Workbook

Sheet ProjectInformation
A1: CPN DATA
A2: INFORMATION ADDED BY DESIGNER
A3: Section Engineer | B3: WHKS & CO.
A4: Design Team
A6: County | B6: SCOTT
A7: Project Number | B7: BRF-461-1(6)--38-82
A8: English or Metric | B8: ENGLISH
A9: Revised
A10: Project Path
A11: Bridge Block
A12: File No.

Sheet DataInput
B1: Cut and Fill | T1: Topsoil Stripping | V1: Existing Pavement Cut | X1: Plowing and Shaping
B2: Column 1 | C2: Column 2 | D2: Column 3 | E2: Column 4 | F2: Column 5 | G2: Column 6 | H2: Column 7 | I2: Column 8 | J2: Column 9 | K2: Column 10 | L2: Column 11 | M2: Column 12 | N2: Column 13 | O2: Column 14 | P2: Column 15 | Q2: Column 16 | R2: Column 17 | S2: Column 18 | T2: Column 1 | U2: Column 2 | V2: Column 1 | W2: Column 2 | X2: Column 1 | Y2: Column 2 | Z2: Column 3 | AA2: Column 4 | AB2: Column 5 | AC2: Column 6 | AD2: Column 7 | AE2: Column 8 | AF2: Column 9 | AG2: Column 10 | AH2: Column 11 | AI2: Column 12 | AJ2: Column 13
A3: ="Station" -> Station | B3: ="Template Cut"&CHAR(10)&"End Area" -> Template Cut End Area | C3: ="Template Cut"&CHAR(10)&"Volume" -> Template Cut Volume | D3: ="Template"&CHAR(10)&"Class 10"&CHAR(10)&"Volume" -> Template Class 10 Volume | E3: ="Template"&CHAR(10)&"Topsoil Cut"&CHAR(10)&"Volume" -> Template Topsoil Cut Volume | F3: ="Template"&CHAR(10)&"Unsuitable"&CHAR(10)&"Type A"&CHAR(10)&"Volume" -> Template Unsuitable Type A Volume | G3: ="Template"&CHAR(10)&"Unsuitable"&CHAR(10)&"Type B"&CHAR(10)&"Volume" -> Template Unsuitable Type B Volume | H3: ="Template"&CHAR(10)&"Unsuitable"&CHAR(10)&"Type C"&CHAR(10)&"Volume" -> Template Unsuitable Type C Volume | I3: ="Template"&CHAR(10)&"Pavement"&CHAR(10)&"Removal"&CHAR(10)&"Volume" -> Template Pavement Removal Volume | J3: ="Template"&CHAR(10)&"Select Loam"&CHAR(10)&"Volume" -> Template Select Loam Volume | K3: ="Template"&CHAR(10)&"Select Sand"&CHAR(10)&"Volume" -> Template Select Sand Volume | L3: ="Template"&CHAR(10)&"Rock"&CHAR(10)&"Volume" -> Template Rock Volume | M3: ="Template"&CHAR(10)&"B & W Rock"&CHAR(10)&"Volume" -> Template B & W Rock Volume | N3: ="Template"&CHAR(10)&"Waste"&CHAR(10)&"Volume" -> Template Waste Volume | O3: ="Template"&CHAR(10)&"Shale"&CHAR(10)&"Volume" -> Template Shale Volume | P3: ="Template"&CHAR(10)&"Rock Undercut"&CHAR(10)&"Volume" -> Template Rock Undercut Volume | Q3: ="Template Fill"&CHAR(10)&"End Area" -> Template Fill End Area | R3: ="Template Fill"&CHAR(10)&"Volume" -> Template Fill Volume | S3: ="Template"&CHAR(10)&"Topsoil"&CHAR(10)&"Replacement"&CHAR(10)&"Volume" -> Template Topsoil Replacement Volume | T3: ="Total"&CHAR(10)&"Topsoil Cut"&CHAR(10)&"End Area" -> Total Topsoil Cut End Area | U3: ="Total"&CHAR(10)&"Topsoil Cut"&CHAR(10)&"Volume" -> Total Topsoil Cut Volume | V3: ="Total Existing"&CHAR(10)&"Pavement Cut"&CHAR(10)&"End Area" -> Total Existing Pavement Cut End Area | W3: ="Total Existing"&CHAR(10)&"Pavement Cut"&CHAR(10)&"Volume" -> Total Existing Pavement Cut Volume | X3: ="Plowing &"&CHAR(10)&"Shaping"&CHAR(10)&CHAR(10)&"+ Fill" -> Plowing & Shaping + Fill | Y3: ="Plowing &"&CHAR(10)&"Shaping"&CHAR(10)&"Class 10"&CHAR(10)&"Volume" -> Plowing & Shaping Class 10 Volume | Z3: ="Template"&CHAR(10)&"Topsoil Cut"&CHAR(10)&"Volume" -> Template Topsoil Cut Volume | AA3: ="Plowing &"&CHAR(10)&"Shaping"&CHAR(10)&"Unsuitable"&CHAR(10)&"Type A"&CHAR(10)&"Volume" -> Plowing & Shaping Unsuitable Type A Volume | AB3: ="Plowing &"&CHAR(10)&"Shaping"&CHAR(10)&"Unsuitable"&CHAR(10)&"Type B"&CHAR(10)&"Volume" -> Plowing & Shaping Unsuitable Type B Volume | AC3: ="Plowing &"&CHAR(10)&"Shaping"&CHAR(10)&"Unsuitable"&CHAR(10)&"Type C"&CHAR(10)&"Volume" -> Plowing & Shaping Unsuitable Type C Volume | AD3: ="Plowing &"&CHAR(10)&"Shaping"&CHAR(10)&"Existing"&CHAR(10)&"Pavement"&CHAR(10)&"Volume" -> Plowing & Shaping Existing Pavement Volume | AE3: ="Plowing &"&CHAR(10)&"Shaping"&CHAR(10)&"Select Loam"&CHAR(10)&"Volume" -> Plowing & Shaping Select Loam Volume | AF3: ="Plowing &"&CHAR(10)&"Shaping"&CHAR(10)&"Select Sand"&CHAR(10)&"Volume" -> Plowing & Shaping Select Sand Volume | AG3: ="Plowing &"&CHAR(10)&"Shaping"&CHAR(10)&"Rock"&CHAR(10)&"Volume" -> Plowing & Shaping Rock Volume | AH3: ="Plowing &"&CHAR(10)&"Shaping"&CHAR(10)&"Broken &"&CHAR(10)&"Weathered"&CHAR(10)&"Rock"&CHAR(10)&"Volume" -> Plowing & Shaping Broken & Weathered Rock Volume | AI3: ="Plowing &"&CHAR(10)&"Shaping"&CHAR(10)&"Waste"&CHAR(10)&"Volume" -> Plowing & Shaping Waste Volume | AJ3: ="Plowing &"&CHAR(10)&"Shaping"&CHAR(10)&"Shale"&CHAR(10)&"Volume" -> Plowing & Shaping Shale Volume
A11: ML461
A12: 4320.39 | B12: 1147 | C12: 199 | D12: 199 | E12: =S12 -> 16 | F12: 0 | G12: 0 | H12: 0 | I12: 0 | J12: 0 | K12: 0 | L12: 0 | M12: 0 | N12: 0 | O12: 0 | P12: 0 | Q12: 223 | R12: 37 | S12: 16 | U12: =S12*1.4 -> 22.4 | V12: 58 | W12: 10
A13: 4325 | B13: 1184 | C13: 1168 | D13: 1168 | E13: =S13 -> 101 | F13: 0 | G13: 0 | H13: 0 | I13: 0 | J13: 0 | K13: 0 | L13: 0 | M13: 0 | N13: 0 | O13: 0 | P13: 0 | Q13: 289 | R13: 237 | S13: 101 | U13: =S13*1.4 -> 141.4 | V13: 58 | W13: 54
A14: 4350 | B14: 1340 | C14: 1185 | D14: 1185 | E14: 123 | F14: 0 | G14: 0 | H14: 0 | I14: 0 | J14: 0 | K14: 0 | L14: 0 | M14: 0 | N14: 0 | O14: 0 | P14: 0 | Q14: 279 | R14: 263 | S14: 123 | U14: 172.2 | V14: 58 | W14: 53
A15: 4375 | B15: 1220 | C15: 1138 | D15: 1138 | E15: 134 | F15: 0 | G15: 0 | H15: 0 | I15: 0 | J15: 0 | K15: 0 | L15: 0 | M15: 0 | N15: 0 | O15: 0 | P15: 0 | Q15: 240 | R15: 240 | S15: 134 | U15: 187.6 | V15: 58 | W15: 53
A16: 4400 | B16: 1238 | C16: 834 | D16: 834 | E16: 129 | F16: 0 | G16: 0 | H16: 0 | I16: 0 | J16: 0 | K16: 0 | L16: 0 | M16: 0 | N16: 0 | O16: 0 | P16: 0 | Q16: 211 | R16: 209 | S16: 129 | U16: 180.6 | V16: 58 | W16: 53
A17: 4425 | B17: 564 | C17: 668 | D17: 668 | E17: 119 | F17: 0 | G17: 0 | H17: 0 | I17: 0 | J17: 0 | K17: 0 | L17: 0 | M17: 0 | N17: 0 | O17: 0 | P17: 0 | Q17: 199 | R17: 190 | S17: 119 | U17: 166.6 | V17: 58 | W17: 53
A18: 4450 | B18: 879 | C18: 710 | D18: 710 | E18: 113 | F18: 0 | G18: 0 | H18: 0 | I18: 0 | J18: 0 | K18: 0 | L18: 0 | M18: 0 | N18: 0 | O18: 0 | P18: 0 | Q18: 153 | R18: 163 | S18: 113 | U18: 158.2 | V18: 58 | W18: 53
A19: 4475 | B19: 654 | C19: 518 | D19: 518 | E19: 101 | F19: 0 | G19: 0 | H19: 0 | I19: 0 | J19: 0 | K19: 0 | L19: 0 | M19: 0 | N19: 0 | O19: 0 | P19: 0 | Q19: 118 | R19: 126 | S19: 101 | U19: 141.4 | V19: 58 | W19: 53
A20: 4500 | B20: 465 | V20: 57
A21: ML461
A22: 4525 | B22: 497 | C22: 420 | D22: 420 | E22: =S22 -> 62 | F22: 0 | G22: 0 | H22: 0 | I22: 0 | J22: 0 | K22: 0 | L22: 0 | M22: 0 | N22: 0 | O22: 0 | P22: 0 | Q22: 37 | R22: 51 | S22: 62 | U22: =S22*1.4 -> 86.8 | V22: 57 | W22: 53
A23: 4550 | B23: 410 | C23: 358 | D23: 358 | E23: =S23 -> 43 | F23: 0 | G23: 0 | H23: 0 | I23: 0 | J23: 0 | K23: 0 | L23: 0 | M23: 0 | N23: 0 | O23: 0 | P23: 0 | Q23: 35 | R23: 33 | S23: 43 | U23: =S23*1.4 -> 60.2 | V23: 57 | W23: 53
A24: 4575 | B24: 364 | C24: 357 | D24: 357 | E24: 45 | F24: 0 | G24: 0 | H24: 0 | I24: 0 | J24: 0 | K24: 0 | L24: 0 | M24: 0 | N24: 0 | O24: 0 | P24: 0 | Q24: 33 | R24: 32 | S24: 45 | U24: 63 | V24: 57 | W24: 53
A25: 4600 | B25: 406 | C25: 437 | D25: 437 | E25: 58 | F25: 0 | G25: 0 | H25: 0 | I25: 0 | J25: 0 | K25: 0 | L25: 0 | M25: 0 | N25: 0 | O25: 0 | P25: 0 | Q25: 34 | R25: 31 | S25: 58 | U25: 81.2 | V25: 57 | W25: 53
A26: 4625 | B26: 537 | C26: 503 | D26: 503 | E26: 67 | F26: 0 | G26: 0 | H26: 0 | I26: 0 | J26: 0 | K26: 0 | L26: 0 | M26: 0 | N26: 0 | O26: 0 | P26: 0 | Q26: 34 | R26: 32 | S26: 67 | U26: 93.8 | V26: 57 | W26: 53
A27: 4650 | B27: 549 | C27: 506 | D27: 506 | E27: 64 | F27: 0 | G27: 0 | H27: 0 | I27: 0 | J27: 0 | K27: 0 | L27: 0 | M27: 0 | N27: 0 | O27: 0 | P27: 0 | Q27: 40 | R27: 34 | S27: 64 | U27: 89.6 | V27: 57 | W27: 53
A28: 4675 | B28: 544 | C28: 473 | D28: 473 | E28: 62 | F28: 0 | G28: 0 | H28: 0 | I28: 0 | J28: 0 | K28: 0 | L28: 0 | M28: 0 | N28: 0 | O28: 0 | P28: 0 | Q28: 54 | R28: 44 | S28: 62 | U28: 86.8 | V28: 58 | W28: 53
A29: 4700 | B29: 479 | C29: 319 | D29: 319 | E29: 67 | F29: 0 | G29: 0 | H29: 0 | I29: 0 | J29: 0 | K29: 0 | L29: 0 | M29: 0 | N29: 0 | O29: 0 | P29: 0 | Q29: 64 | R29: 55 | S29: 67 | U29: 93.8 | V29: 58 | W29: 53
A30: 4725 | B30: 209 | C30: 261 | D30: 261 | E30: 65 | F30: 0 | G30: 0 | H30: 0 | I30: 0 | J30: 0 | K30: 0 | L30: 0 | M30: 0 | N30: 0 | O30: 0 | P30: 0 | Q30: 79 | R30: 66 | S30: 65 | U30: 91 | V30: 57 | W30: 53
A31: 4750 | B31: 353 | C31: 334 | D31: 334 | E31: 64 | F31: 0 | G31: 0 | H31: 0 | I31: 0 | J31: 0 | K31: 0 | L31: 0 | M31: 0 | N31: 0 | O31: 0 | P31: 0 | Q31: 103 | R31: 84 | S31: 64 | U31: 89.6 | V31: 57 | W31: 53
A32: 4775 | B32: 368 | C32: 313 | D32: 313 | E32: 68 | F32: 0 | G32: 0 | H32: 0 | I32: 0 | J32: 0 | K32: 0 | L32: 0 | M32: 0 | N32: 0 | O32: 0 | P32: 0 | Q32: 113 | R32: 100 | S32: 68 | U32: 95.2 | V32: 57 | W32: 53
A33: 4800 | B33: 308 | C33: 281 | D33: 281 | E33: 62 | F33: 0 | G33: 0 | H33: 0 | I33: 0 | J33: 0 | K33: 0 | L33: 0 | M33: 0 | N33: 0 | O33: 0 | P33: 0 | Q33: 131 | R33: 113 | S33: 62 | U33: 86.8 | V33: 57 | W33: 53
A34: 4825 | B34: 299 | C34: 260 | D34: 260 | E34: 55 | F34: 0 | G34: 0 | H34: 0 | I34: 0 | J34: 0 | K34: 0 | L34: 0 | M34: 0 | N34: 0 | O34: 0 | P34: 0 | Q34: 159 | R34: 134 | S34: 55 | U34: 77 | V34: 57 | W34: 53
A35: 4850 | B35: 262 | C35: 263 | D35: 263 | E35: 48 | F35: 0 | G35: 0 | H35: 0 | I35: 0 | J35: 0 | K35: 0 | L35: 0 | M35: 0 | N35: 0 | O35: 0 | P35: 0 | Q35: 219 | R35: 175 | S35: 48 | U35: 67.2 | V35: 57 | W35: 53
A36: 4875 | B36: 306 | C36: 301 | D36: 301 | E36: 54 | F36: 0 | G36: 0 | H36: 0 | I36: 0 | J36: 0 | K36: 0 | L36: 0 | M36: 0 | N36: 0 | O36: 0 | P36: 0 | Q36: 252 | R36: 218 | S36: 54 | U36: 75.6 | V36: 57 | W36: 53
A37: 4900 | B37: 345 | C37: 336 | D37: 336 | E37: 64 | F37: 0 | G37: 0 | H37: 0 | I37: 0 | J37: 0 | K37: 0 | L37: 0 | M37: 0 | N37: 0 | O37: 0 | P37: 0 | Q37: 293 | R37: 252 | S37: 64 | U37: 89.6 | V37: 57 | W37: 53
A38: 4925 | B38: 381 | C38: 366 | D38: 366 | E38: 66 | F38: 0 | G38: 0 | H38: 0 | I38: 0 | J38: 0 | K38: 0 | L38: 0 | M38: 0 | N38: 0 | O38: 0 | P38: 0 | Q38: 317 | R38: 282 | S38: 66 | U38: 92.4 | V38: 57 | W38: 53
A39: 4950 | B39: 410 | C39: 388 | D39: 388 | E39: 67 | F39: 0 | G39: 0 | H39: 0 | I39: 0 | J39: 0 | K39: 0 | L39: 0 | M39: 0 | N39: 0 | O39: 0 | P39: 0 | Q39: 387 | R39: 326 | S39: 67 | U39: 93.8 | V39: 58 | W39: 53
A40: 4975 | B40: 428 | C40: 377 | D40: 377 | E40: 66 | F40: 0 | G40: 0 | H40: 0 | I40: 0 | J40: 0 | K40: 0 | L40: 0 | M40: 0 | N40: 0 | O40: 0 | P40: 0 | Q40: 418 | R40: 373 | S40: 66 | U40: 92.4 | V40: 58 | W40: 53
A41: 5000 | B41: 385 | C41: 301 | D41: 301 | E41: 65 | F41: 0 | G41: 0 | H41: 0 | I41: 0 | J41: 0 | K41: 0 | L41: 0 | M41: 0 | N41: 0 | O41: 0 | P41: 0 | Q41: 442 | R41: 398 | S41: 65 | U41: 91 | V41: 58 | W41: 56
A42: 5025 | B42: 266 | C42: 177 | D42: 177 | E42: 60 | F42: 0 | G42: 0 | H42: 0 | I42: 0 | J42: 0 | K42: 0 | L42: 0 | M42: 0 | N42: 0 | O42: 0 | P42: 0 | Q42: 488 | R42: 430 | S42: 60 | U42: 84 | V42: 63 | W42: 57
A43: 5050 | B43: 115 | C43: 76 | D43: 76 | E43: 56 | F43: 0 | G43: 0 | H43: 0 | I43: 0 | J43: 0 | K43: 0 | L43: 0 | M43: 0 | N43: 0 | O43: 0 | P43: 0 | Q43: 564 | R43: 487 | S43: 56 | U43: 78.4 | V43: 60 | W43: 55
A44: 5075 | B44: 48 | C44: 23 | D44: 23 | E44: 67 | F44: 0 | G44: 0 | H44: 0 | I44: 0 | J44: 0 | K44: 0 | L44: 0 | M44: 0 | N44: 0 | O44: 0 | P44: 0 | Q44: 1346 | R44: 884 | S44: 67 | U44: 93.8 | V44: 58 | W44: 51
A45: 5300 | B45: 1 | C45: 1 | D45: 1 | E45: 78 | F45: 0 | G45: 0 | H45: 0 | I45: 0 | J45: 0 | K45: 0 | L45: 0 | M45: 0 | N45: 0 | O45: 0 | P45: 0 | Q45: 1279 | R45: 1215 | S45: 78 | U45: 109.2 | V45: 52 | W45: 49
A46: 5325 | B46: 2 | C46: 1 | D46: 1 | E46: 76 | F46: 0 | G46: 0 | H46: 0 | I46: 0 | J46: 0 | K46: 0 | L46: 0 | M46: 0 | N46: 0 | O46: 0 | P46: 0 | Q46: 1215 | R46: 1155 | S46: 76 | U46: 106.4 | V46: 53 | W46: 50
A47: 5350 | B47: 1 | C47: 1 | D47: 1 | E47: 75 | F47: 0 | G47: 0 | H47: 0 | I47: 0 | J47: 0 | K47: 0 | L47: 0 | M47: 0 | N47: 0 | O47: 0 | P47: 0 | Q47: 1218 | R47: 1126 | S47: 75 | U47: 105 | V47: 55 | W47: 52
A48: 5375 | B48: 1 | C48: 1 | D48: 1 | E48: 74 | F48: 0 | G48: 0 | H48: 0 | I48: 0 | J48: 0 | K48: 0 | L48: 0 | M48: 0 | N48: 0 | O48: 0 | P48: 0 | Q48: 1040 | R48: 1045 | S48: 74 | U48: 103.6 | V48: 57 | W48: 53
A49: 5400 | B49: 2 | C49: 1 | D49: 1 | E49: 71 | F49: 0 | G49: 0 | H49: 0 | I49: 0 | J49: 0 | K49: 0 | L49: 0 | M49: 0 | N49: 0 | O49: 0 | P49: 0 | Q49: 947 | R49: 920 | S49: 71 | U49: 99.4 | V49: 58 | W49: 55
A50: 5425 | B50: 2 | C50: 2 | D50: 2 | E50: 68 | F50: 0 | G50: 0 | H50: 0 | I50: 0 | J50: 0 | K50: 0 | L50: 0 | M50: 0 | N50: 0 | O50: 0 | P50: 0 | Q50: 811 | R50: 814 | S50: 68 | U50: 95.2 | V50: 60 | W50: 57
A51: 5450 | B51: 2 | C51: 2 | D51: 2 | E51: 64 | F51: 0 | G51: 0 | H51: 0 | I51: 0 | J51: 0 | K51: 0 | L51: 0 | M51: 0 | N51: 0 | O51: 0 | P51: 0 | Q51: 617 | R51: 661 | S51: 64 | U51: 89.6 | V51: 62 | W51: 59
A52: 5475 | B52: 1 | C52: 1 | D52: 1 | E52: 61 | F52: 0 | G52: 0 | H52: 0 | I52: 0 | J52: 0 | K52: 0 | L52: 0 | M52: 0 | N52: 0 | O52: 0 | P52: 0 | Q52: 468 | R52: 503 | S52: 61 | U52: 85.4 | V52: 65 | W52: 61
A53: 5500 | B53: 1 | C53: 1 | D53: 1 | E53: 58 | F53: 0 | G53: 0 | H53: 0 | I53: 0 | J53: 0 | K53: 0 | L53: 0 | M53: 0 | N53: 0 | O53: 0 | P53: 0 | Q53: 431 | R53: 416 | S53: 58 | U53: 81.2 | V53: 67 | W53: 63
A54: 5525 | B54: 2 | C54: 2 | D54: 2 | E54: 54 | F54: 0 | G54: 0 | H54: 0 | I54: 0 | J54: 0 | K54: 0 | L54: 0 | M54: 0 | N54: 0 | O54: 0 | P54: 0 | Q54: 366 | R54: 369 | S54: 54 | U54: 75.6 | V54: 70 | W54: 66
A55: 5550 | B55: 2 | C55: 5 | D55: 5 | E55: 51 | F55: 0 | G55: 0 | H55: 0 | I55: 0 | J55: 0 | K55: 0 | L55: 0 | M55: 0 | N55: 0 | O55: 0 | P55: 0 | Q55: 310 | R55: 313 | S55: 51 | U55: 71.4 | V55: 72 | W55: 68
A56: 5575 | B56: 8 | C56: 14 | D56: 14 | E56: 49 | F56: 0 | G56: 0 | H56: 0 | I56: 0 | J56: 0 | K56: 0 | L56: 0 | M56: 0 | N56: 0 | O56: 0 | P56: 0 | Q56: 262 | R56: 265 | S56: 49 | U56: 68.6 | V56: 75 | W56: 71
A57: 5600 | B57: 22 | C57: 32 | D57: 32 | E57: 45 | F57: 0 | G57: 0 | H57: 0 | I57: 0 | J57: 0 | K57: 0 | L57: 0 | M57: 0 | N57: 0 | O57: 0 | P57: 0 | Q57: 210 | R57: 219 | S57: 45 | U57: 63 | V57: 77 | W57: 73
A58: 5625 | B58: 46 | C58: 54 | D58: 54 | E58: 41 | F58: 0 | G58: 0 | H58: 0 | I58: 0 | J58: 0 | K58: 0 | L58: 0 | M58: 0 | N58: 0 | O58: 0 | P58: 0 | Q58: 153 | R58: 168 | S58: 41 | U58: 57.4 | V58: 80 | W58: 75
A59: 5650 | B59: 70 | C59: 72 | D59: 72 | E59: 38 | F59: 0 | G59: 0 | H59: 0 | I59: 0 | J59: 0 | K59: 0 | L59: 0 | M59: 0 | N59: 0 | O59: 0 | P59: 0 | Q59: 99 | R59: 117 | S59: 38 | U59: 53.2 | V59: 82 | W59: 78
A60: 5675 | B60: 85 | C60: 97 | D60: 97 | E60: 55 | F60: 0 | G60: 0 | H60: 0 | I60: 0 | J60: 0 | K60: 0 | L60: 0 | M60: 0 | N60: 0 | O60: 0 | P60: 0 | Q60: 50 | R60: 69 | S60: 55 | U60: 77 | V60: 85 | W60: 77
A61: 5700 | B61: 123 | C61: 138 | D61: 138 | E61: 69 | F61: 0 | G61: 0 | H61: 0 | I61: 0 | J61: 0 | K61: 0 | L61: 0 | M61: 0 | N61: 0 | O61: 0 | P61: 0 | Q61: 8 | R61: 27 | S61: 69 | U61: 96.6 | V61: 81 | W61: 78
A62: 5725 | B62: 176 | C62: 190 | D62: 190 | E62: 50 | F62: 0 | G62: 0 | H62: 0 | I62: 0 | J62: 0 | K62: 0 | L62: 0 | M62: 0 | N62: 0 | O62: 0 | P62: 0 | Q62: 0 | R62: 4 | S62: 50 | U62: 70 | V62: 87 | W62: 86
A63: 5750 | B63: 235 | C63: 147 | D63: 147 | E63: 18 | F63: 0 | G63: 0 | H63: 0 | I63: 0 | J63: 0 | K63: 0 | L63: 0 | M63: 0 | N63: 0 | O63: 0 | P63: 0 | Q63: 0 | R63: 0 | S63: 18 | U63: 25.2 | V63: 99 | W63: 93
A64: 5775 | B64: 82 | C64: 77 | D64: 77 | E64: 0 | F64: 0 | G64: 0 | H64: 0 | I64: 0 | J64: 0 | K64: 0 | L64: 0 | M64: 0 | N64: 0 | O64: 0 | P64: 0 | Q64: 0 | R64: 0 | S64: 0 | U64: 0 | V64: 102 | W64: 96
A65: 5800 | B65: 84 | C65: 79 | D65: 79 | E65: 0 | F65: 0 | G65: 0 | H65: 0 | I65: 0 | J65: 0 | K65: 0 | L65: 0 | M65: 0 | N65: 0 | O65: 0 | P65: 0 | Q65: 0 | R65: 0 | S65: 0 | U65: 0 | V65: 106 | W65: 105
A66: 5825 | B66: 87 | C66: 82 | D66: 82 | E66: 0 | F66: 0 | G66: 0 | H66: 0 | I66: 0 | J66: 0 | K66: 0 | L66: 0 | M66: 0 | N66: 0 | O66: 0 | P66: 0 | Q66: 0 | R66: 0 | S66: 0 | U66: 0 | V66: 120 | W66: 92
A67: 5850 | B67: 91 | C67: 96 | D67: 96 | E67: 0 | F67: 0 | G67: 0 | H67: 0 | I67: 0 | J67: 0 | K67: 0 | L67: 0 | M67: 0 | N67: 0 | O67: 0 | P67: 0 | Q67: 0 | R67: 0 | S67: 0 | U67: 0 | V67: 79 | W67: 62
A68: 5875 | B68: 116 | C68: 117 | D68: 117 | E68: 0 | F68: 0 | G68: 0 | H68: 0 | I68: 0 | J68: 0 | K68: 0 | L68: 0 | M68: 0 | N68: 0 | O68: 0 | P68: 0 | Q68: 0 | R68: 0 | S68: 0 | U68: 0 | V68: 56 | W68: 51
A69: 5900 | B69: 138 | C69: 115 | D69: 115 | E69: 0 | F69: 0 | G69: 0 | H69: 0 | I69: 0 | J69: 0 | K69: 0 | L69: 0 | M69: 0 | N69: 0 | O69: 0 | P69: 0 | Q69: 1 | R69: 0 | S69: 0 | U69: 0 | V69: 56 | W69: 61
A70: 5925 | B70: 111 | C70: 94 | D70: 94 | E70: 0 | F70: 0 | G70: 0 | H70: 0 | I70: 0 | J70: 0 | K70: 0 | L70: 0 | M70: 0 | N70: 0 | O70: 0 | P70: 0 | Q70: 0 | R70: 0 | S70: 0 | U70: 0 | V70: 75 | W70: 89
A71: 5950 | B71: 93 | C71: 87 | D71: 87 | E71: 0 | F71: 0 | G71: 0 | H71: 0 | I71: 0 | J71: 0 | K71: 0 | L71: 0 | M71: 0 | N71: 0 | O71: 0 | P71: 0 | Q71: 0 | R71: 0 | S71: 0 | U71: 0 | V71: 117 | W71: 110
A72: 5975 | B72: 95 | C72: 85 | D72: 85 | E72: 0 | F72: 0 | G72: 0 | H72: 0 | I72: 0 | J72: 0 | K72: 0 | L72: 0 | M72: 0 | N72: 0 | O72: 0 | P72: 0 | Q72: 0 | R72: 0 | S72: 0 | U72: 0 | V72: 120 | W72: 101
A73: 6000 | B73: 90 | C73: 82 | D73: 82 | E73: 0 | F73: 0 | G73: 0 | H73: 0 | I73: 0 | J73: 0 | K73: 0 | L73: 0 | M73: 0 | N73: 0 | O73: 0 | P73: 0 | Q73: 0 | R73: 0 | S73: 0 | U73: 0 | V73: 98 | W73: 85
A74: 6025 | B74: 88 | C74: 141 | D74: 141 | E74: 14 | F74: 0 | G74: 0 | H74: 0 | I74: 0 | J74: 0 | K74: 0 | L74: 0 | M74: 0 | N74: 0 | O74: 0 | P74: 0 | Q74: 0 | R74: 0 | S74: 14 | U74: 19.6 | V74: 84 | W74: 77
A75: 6050 | B75: 217 | C75: 210 | D75: 210 | E75: 29 | F75: 0 | G75: 0 | H75: 0 | I75: 0 | J75: 0 | K75: 0 | L75: 0 | M75: 0 | N75: 0 | O75: 0 | P75: 0 | Q75: 0 | R75: 0 | S75: 29 | U75: 40.6 | V75: 81 | W75: 74
A76: 6075 | B76: 238 | V76: 79
A78: SR022
A79: 49372.65 | B79: 138 | C79: 12 | D79: 12 | E79: =S79 -> 4 | F79: 0 | G79: 0 | H79: 0 | I79: 0 | J79: 0 | K79: 0 | L79: 0 | M79: 0 | N79: 0 | O79: 0 | P79: 0 | Q79: 103 | R79: 9 | S79: 4 | U79: =S79*1.4 -> 5.6 | V79: 100 | W79: 9
A80: 49375 | B80: 139 | C80: 128 | D80: 128 | E80: =S80 -> 37 | F80: 0 | G80: 0 | H80: 0 | I80: 0 | J80: 0 | K80: 0 | L80: 0 | M80: 0 | N80: 0 | O80: 0 | P80: 0 | Q80: 103 | R80: 101 | S80: 37 | U80: =S80*1.4 -> 51.8 | V80: 103 | W80: 77
A81: 49400 | B81: 138 | C81: 126 | D81: 126 | E81: 36 | F81: 0 | G81: 0 | H81: 0 | I81: 0 | J81: 0 | K81: 0 | L81: 0 | M81: 0 | N81: 0 | O81: 0 | P81: 0 | Q81: 107 | R81: 103 | S81: 36 | U81: 50.4 | V81: 64 | W81: 56
A82: 49425 | B82: 133 | C82: 122 | D82: 122 | E82: 47 | F82: 0 | G82: 0 | H82: 0 | I82: 0 | J82: 0 | K82: 0 | L82: 0 | M82: 0 | N82: 0 | O82: 0 | P82: 0 | Q82: 107 | R82: 104 | S82: 47 | U82: 65.8 | V82: 58 | W82: 53
A83: 49450 | B83: 131 | C83: 119 | D83: 119 | E83: 51 | F83: 0 | G83: 0 | H83: 0 | I83: 0 | J83: 0 | K83: 0 | L83: 0 | M83: 0 | N83: 0 | O83: 0 | P83: 0 | Q83: 98 | R83: 100 | S83: 51 | U83: 71.4 | V83: 57 | W83: 52
A84: 49475 | B84: 127 | C84: 116 | D84: 116 | E84: 53 | F84: 0 | G84: 0 | H84: 0 | I84: 0 | J84: 0 | K84: 0 | L84: 0 | M84: 0 | N84: 0 | O84: 0 | P84: 0 | Q84: 82 | R84: 89 | S84: 53 | U84: 74.2 | V84: 56 | W84: 52
A85: 49500 | B85: 124 | C85: 120 | D85: 120 | E85: 37 | F85: 0 | G85: 0 | H85: 0 | I85: 0 | J85: 0 | K85: 0 | L85: 0 | M85: 0 | N85: 0 | O85: 0 | P85: 0 | Q85: 46 | R85: 64 | S85: 37 | U85: 51.8 | V85: 56 | W85: 77
A86: 49525 | B86: 135 | C86: 118 | D86: 118 | E86: 35 | F86: 0 | G86: 0 | H86: 0 | I86: 0 | J86: 0 | K86: 0 | L86: 0 | M86: 0 | N86: 0 | O86: 0 | P86: 0 | Q86: 76 | R86: 62 | S86: 35 | U86: 49 | V86: 110 | W86: 77
A87: 49550 | B87: 121 | C87: 114 | D87: 114 | E87: 40 | F87: 0 | G87: 0 | H87: 0 | I87: 0 | J87: 0 | K87: 0 | L87: 0 | M87: 0 | N87: 0 | O87: 0 | P87: 0 | Q87: 58 | R87: 65 | S87: 40 | U87: 56 | V87: 56 | W87: 51
A88: 49575 | B88: 125 | C88: 123 | D88: 123 | E88: 35 | F88: 0 | G88: 0 | H88: 0 | I88: 0 | J88: 0 | K88: 0 | L88: 0 | M88: 0 | N88: 0 | O88: 0 | P88: 0 | Q88: 31 | R88: 43 | S88: 35 | U88: 49 | V88: 55 | W88: 50
A89: 49600 | B89: 142 | C89: 123 | D89: 123 | E89: 34 | F89: 0 | G89: 0 | H89: 0 | I89: 0 | J89: 0 | K89: 0 | L89: 0 | M89: 0 | N89: 0 | O89: 0 | P89: 0 | Q89: 16 | R89: 27 | S89: 34 | U89: 47.6 | V89: 54 | W89: 50
A90: 49625 | B90: 125 | C90: 116 | D90: 116 | E90: 39 | F90: 0 | G90: 0 | H90: 0 | I90: 0 | J90: 0 | K90: 0 | L90: 0 | M90: 0 | N90: 0 | O90: 0 | P90: 0 | Q90: 56 | R90: 38 | S90: 39 | U90: 54.6 | V90: 53 | W90: 49
A91: 49650 | B91: 126 | C91: 118 | D91: 118 | E91: 48 | F91: 0 | G91: 0 | H91: 0 | I91: 0 | J91: 0 | K91: 0 | L91: 0 | M91: 0 | N91: 0 | O91: 0 | P91: 0 | Q91: 41 | R91: 50 | S91: 48 | U91: 67.2 | V91: 53 | W91: 49
A92: 49675 | B92: 129 | C92: 117 | D92: 117 | E92: 47 | F92: 0 | G92: 0 | H92: 0 | I92: 0 | J92: 0 | K92: 0 | L92: 0 | M92: 0 | N92: 0 | O92: 0 | P92: 0 | Q92: 26 | R92: 36 | S92: 47 | U92: 65.8 | V92: 53 | W92: 49
A93: 49700 | B93: 124 | C93: 114 | D93: 114 | E93: 36 | F93: 0 | G93: 0 | H93: 0 | I93: 0 | J93: 0 | K93: 0 | L93: 0 | M93: 0 | N93: 0 | O93: 0 | P93: 0 | Q93: 19 | R93: 26 | S93: 36 | U93: 50.4 | V93: 53 | W93: 50
A94: 49725 | B94: 122 | C94: 113 | D94: 113 | E94: 32 | F94: 0 | G94: 0 | H94: 0 | I94: 0 | J94: 0 | K94: 0 | L94: 0 | M94: 0 | N94: 0 | O94: 0 | P94: 0 | Q94: 44 | R94: 34 | S94: 32 | U94: 44.8 | V94: 54 | W94: 51
A95: 49750 | B95: 122 | C95: 113 | D95: 113 | E95: 37 | F95: 0 | G95: 0 | H95: 0 | I95: 0 | J95: 0 | K95: 0 | L95: 0 | M95: 0 | N95: 0 | O95: 0 | P95: 0 | Q95: 53 | R95: 50 | S95: 37 | U95: 51.8 | V95: 56 | W95: 52
A96: 49775 | B96: 122 | C96: 112 | D96: 112 | E96: 38 | F96: 0 | G96: 0 | H96: 0 | I96: 0 | J96: 0 | K96: 0 | L96: 0 | M96: 0 | N96: 0 | O96: 0 | P96: 0 | Q96: 54 | R96: 55 | S96: 38 | U96: 53.2 | V96: 56 | W96: 52
A97: 49800 | B97: 120 | C97: 109 | D97: 109 | E97: 36 | F97: 0 | G97: 0 | H97: 0 | I97: 0 | J97: 0 | K97: 0 | L97: 0 | M97: 0 | N97: 0 | O97: 0 | P97: 0 | Q97: 48 | R97: 53 | S97: 36 | U97: 50.4 | V97: 56 | W97: 52
A98: 49825 | B98: 116 | C98: 110 | D98: 110 | E98: 37 | F98: 0 | G98: 0 | H98: 0 | I98: 0 | J98: 0 | K98: 0 | L98: 0 | M98: 0 | N98: 0 | O98: 0 | P98: 0 | Q98: 54 | R98: 53 | S98: 37 | U98: 51.8 | V98: 55 | W98: 51
A99: 49850 | B99: 121 | C99: 111 | D99: 111 | E99: 36 | F99: 0 | G99: 0 | H99: 0 | I99: 0 | J99: 0 | K99: 0 | L99: 0 | M99: 0 | N99: 0 | O99: 0 | P99: 0 | Q99: 79 | R99: 68 | S99: 36 | U99: 50.4 | V99: 55 | W99: 51
A100: 49875 | B100: 119 | C100: 115 | D100: 115 | E100: 37 | F100: 0 | G100: 0 | H100: 0 | I100: 0 | J100: 0 | K100: 0 | L100: 0 | M100: 0 | N100: 0 | O100: 0 | P100: 0 | Q100: 74 | R100: 76 | S100: 37 | U100: 51.8 | V100: 55 | W100: 51
A101: 49900 | B101: 129 | C101: 110 | D101: 110 | E101: 27 | F101: 0 | G101: 0 | H101: 0 | I101: 0 | J101: 0 | K101: 0 | L101: 0 | M101: 0 | N101: 0 | O101: 0 | P101: 0 | Q101: 24 | R101: 46 | S101: 27 | U101: 37.8 | V101: 55 | W101: 48
A102: 49923.51 | B102: 125 | C102: 7 | D102: 7 | E102: 1 | F102: 0 | G102: 0 | H102: 0 | I102: 0 | J102: 0 | K102: 0 | L102: 0 | M102: 0 | N102: 0 | O102: 0 | P102: 0 | Q102: 25 | R102: 2 | S102: 1 | U102: 1.4 | V102: 56 | W102: 3
A103: 49925 | B103: 125 | C103: 117 | D103: 117 | E103: 19 | F103: 0 | G103: 0 | H103: 0 | I103: 0 | J103: 0 | K103: 0 | L103: 0 | M103: 0 | N103: 0 | O103: 0 | P103: 0 | Q103: 15 | R103: 23 | S103: 19 | U103: 26.6 | V103: 56 | W103: 56
A104: 49950 | B104: 128 | C104: 97 | D104: 97 | E104: 18 | F104: 0 | G104: 0 | H104: 0 | I104: 0 | J104: 0 | K104: 0 | L104: 0 | M104: 0 | N104: 0 | O104: 0 | P104: 0 | Q104: 15 | R104: 18 | S104: 18 | U104: 25.2 | V104: 65 | W104: 67
A105: 49975 | B105: 82 | C105: 99 | D105: 99 | E105: 18 | F105: 0 | G105: 0 | H105: 0 | I105: 0 | J105: 0 | K105: 0 | L105: 0 | M105: 0 | N105: 0 | O105: 0 | P105: 0 | Q105: 12 | R105: 17 | S105: 18 | U105: 25.2 | V105: 80 | W105: 87
A106: 50000 | B106: 132 | C106: 132 | D106: 132 | E106: 23 | F106: 0 | G106: 0 | H106: 0 | I106: 0 | J106: 0 | K106: 0 | L106: 0 | M106: 0 | N106: 0 | O106: 0 | P106: 0 | Q106: 13 | R106: 16 | S106: 23 | U106: 32.2 | V106: 107 | W106: 124
A107: 50025 | B107: 153 | C107: 146 | D107: 146 | E107: 27 | F107: 0 | G107: 0 | H107: 0 | I107: 0 | J107: 0 | K107: 0 | L107: 0 | M107: 0 | N107: 0 | O107: 0 | P107: 0 | Q107: 17 | R107: 18 | S107: 27 | U107: 37.8 | V107: 161 | W107: 141
A108: 50050 | B108: 161 | C108: 142 | D108: 142 | E108: 26 | F108: 0 | G108: 0 | H108: 0 | I108: 0 | J108: 0 | K108: 0 | L108: 0 | M108: 0 | N108: 0 | O108: 0 | P108: 0 | Q108: 19 | R108: 19 | S108: 26 | U108: 36.4 | V108: 144 | W108: 102
A109: 50075 | B109: 146 | C109: 125 | D109: 125 | E109: 23 | F109: 0 | G109: 0 | H109: 0 | I109: 0 | J109: 0 | K109: 0 | L109: 0 | M109: 0 | N109: 0 | O109: 0 | P109: 0 | Q109: 21 | R109: 20 | S109: 23 | U109: 32.2 | V109: 75 | W109: 63
A110: 50100 | B110: 124 | C110: 113 | D110: 113 | E110: 19 | F110: 0 | G110: 0 | H110: 0 | I110: 0 | J110: 0 | K110: 0 | L110: 0 | M110: 0 | N110: 0 | O110: 0 | P110: 0 | Q110: 14 | R110: 20 | S110: 19 | U110: 26.6 | V110: 62 | W110: 56
A111: 50125 | B111: 120 | C111: 110 | D111: 110 | E111: 14 | F111: 0 | G111: 0 | H111: 0 | I111: 0 | J111: 0 | K111: 0 | L111: 0 | M111: 0 | N111: 0 | O111: 0 | P111: 0 | Q111: 3 | R111: 12 | S111: 14 | U111: 19.6 | V111: 58 | W111: 53
A112: 50150 | B112: 118 | C112: 15 | D112: 15 | E112: 2 | F112: 0 | G112: 0 | H112: 0 | I112: 0 | J112: 0 | K112: 0 | L112: 0 | M112: 0 | N112: 0 | O112: 0 | P112: 0 | Q112: 3 | R112: 1 | S112: 2 | U112: 2.8 | V112: 57 | W112: 7
A113: 50153.51 | B113: 110 | V113: 57
A115: SR022A
A116: 100336.9 | B116: 108 | C116: 54 | D116: 54 | E116: =S116 -> 6 | F116: 0 | G116: 0 | H116: 0 | I116: 0 | J116: 0 | K116: 0 | L116: 0 | M116: 0 | N116: 0 | O116: 0 | P116: 0 | Q116: 0 | R116: 0 | S116: 6 | U116: =S116*1.4 -> 8.4 | V116: 32 | W116: 16
A117: 100350 | B117: 114 | C117: 111 | D117: 111 | E117: =S117 -> 16 | F117: 0 | G117: 0 | H117: 0 | I117: 0 | J117: 0 | K117: 0 | L117: 0 | M117: 0 | N117: 0 | O117: 0 | P117: 0 | Q117: 0 | R117: 0 | S117: 16 | U117: =S117*1.4 -> 22.4 | V117: 33 | W117: 31
A118: 100375 | B118: 125 | C118: 118 | D118: 118 | E118: 17 | F118: 0 | G118: 0 | H118: 0 | I118: 0 | J118: 0 | K118: 0 | L118: 0 | M118: 0 | N118: 0 | O118: 0 | P118: 0 | Q118: 0 | R118: 0 | S118: 17 | U118: 23.8 | V118: 34 | W118: 32
A119: 100400 | B119: 129 | C119: 122 | D119: 122 | E119: 17 | F119: 0 | G119: 0 | H119: 0 | I119: 0 | J119: 0 | K119: 0 | L119: 0 | M119: 0 | N119: 0 | O119: 0 | P119: 0 | Q119: 0 | R119: 0 | S119: 17 | U119: 23.8 | V119: 36 | W119: 34
A120: 100425 | B120: 135 | C120: 130 | D120: 130 | E120: 20 | F120: 0 | G120: 0 | H120: 0 | I120: 0 | J120: 0 | K120: 0 | L120: 0 | M120: 0 | N120: 0 | O120: 0 | P120: 0 | Q120: 0 | R120: 0 | S120: 20 | U120: 28 | V120: 37 | W120: 36
A121: 100450 | B121: 146 | C121: 139 | D121: 139 | E121: 23 | F121: 0 | G121: 0 | H121: 0 | I121: 0 | J121: 0 | K121: 0 | L121: 0 | M121: 0 | N121: 0 | O121: 0 | P121: 0 | Q121: 3 | R121: 1 | S121: 23 | U121: 32.2 | V121: 40 | W121: 37
A122: 100475 | B122: 155 | C122: 148 | D122: 148 | E122: 26 | F122: 0 | G122: 0 | H122: 0 | I122: 0 | J122: 0 | K122: 0 | L122: 0 | M122: 0 | N122: 0 | O122: 0 | P122: 0 | Q122: 9 | R122: 6 | S122: 26 | U122: 36.4 | V122: 40 | W122: 37
A123: 100500 | B123: 165 | C123: 151 | D123: 151 | E123: 27 | F123: 0 | G123: 0 | H123: 0 | I123: 0 | J123: 0 | K123: 0 | L123: 0 | M123: 0 | N123: 0 | O123: 0 | P123: 0 | Q123: 11 | R123: 9 | S123: 27 | U123: 37.8 | V123: 40 | W123: 37
A124: 100525 | B124: 162 | C124: 147 | D124: 147 | E124: 27 | F124: 0 | G124: 0 | H124: 0 | I124: 0 | J124: 0 | K124: 0 | L124: 0 | M124: 0 | N124: 0 | O124: 0 | P124: 0 | Q124: 15 | R124: 12 | S124: 27 | U124: 37.8 | V124: 40 | W124: 37
A125: 100550 | B125: 156 | C125: 131 | D125: 131 | E125: 27 | F125: 0 | G125: 0 | H125: 0 | I125: 0 | J125: 0 | K125: 0 | L125: 0 | M125: 0 | N125: 0 | O125: 0 | P125: 0 | Q125: 14 | R125: 14 | S125: 27 | U125: 37.8 | V125: 40 | W125: 37
A126: 100575 | B126: 126 | C126: 118 | D126: 118 | E126: 31 | F126: 0 | G126: 0 | H126: 0 | I126: 0 | J126: 0 | K126: 0 | L126: 0 | M126: 0 | N126: 0 | O126: 0 | P126: 0 | Q126: 7 | R126: 10 | S126: 31 | U126: 43.4 | V126: 39 | W126: 36
A127: 100600 | B127: 129 | C127: 126 | D127: 126 | E127: 36 | F127: 0 | G127: 0 | H127: 0 | I127: 0 | J127: 0 | K127: 0 | L127: 0 | M127: 0 | N127: 0 | O127: 0 | P127: 0 | Q127: 1 | R127: 3 | S127: 36 | U127: 50.4 | V127: 39 | W127: 37
A128: 100625 | B128: 142 | C128: 148 | D128: 148 | E128: 37 | F128: 0 | G128: 0 | H128: 0 | I128: 0 | J128: 0 | K128: 0 | L128: 0 | M128: 0 | N128: 0 | O128: 0 | P128: 0 | Q128: 11 | R128: 5 | S128: 37 | U128: 51.8 | V128: 41 | W128: 41
A129: 100650 | B129: 178 | C129: 22 | D129: 22 | E129: 7 | F129: 0 | G129: 0 | H129: 0 | I129: 0 | J129: 0 | K129: 0 | L129: 0 | M129: 0 | N129: 0 | O129: 0 | P129: 0 | Q129: 11 | R129: 2 | S129: 7 | U129: 9.8 | V129: 48 | W129: 8
A130: 100653.92 | B130: 128 | C130: 136 | D130: 136 | E130: 35 | F130: 0 | G130: 0 | H130: 0 | I130: 0 | J130: 0 | K130: 0 | L130: 0 | M130: 0 | N130: 0 | O130: 0 | P130: 0 | Q130: 7 | R130: 7 | S130: 35 | U130: 49 | V130: 62 | W130: 42
A131: 100675 | B131: 220 | C131: 163 | D131: 163 | E131: 49 | F131: 0 | G131: 0 | H131: 0 | I131: 0 | J131: 0 | K131: 0 | L131: 0 | M131: 0 | N131: 0 | O131: 0 | P131: 0 | Q131: 1 | R131: 4 | S131: 49 | U131: 68.6 | V131: 47 | W131: 43
A132: 100700 | B132: 132 | C132: 218 | D132: 218 | E132: 56 | F132: 0 | G132: 0 | H132: 0 | I132: 0 | J132: 0 | K132: 0 | L132: 0 | M132: 0 | N132: 0 | O132: 0 | P132: 0 | Q132: 1 | R132: 1 | S132: 56 | U132: 78.4 | V132: 46 | W132: 40
A133: 100725 | B133: 339 | C133: 376 | D133: 376 | E133: 59 | F133: 0 | G133: 0 | H133: 0 | I133: 0 | J133: 0 | K133: 0 | L133: 0 | M133: 0 | N133: 0 | O133: 0 | P133: 0 | Q133: 0 | R133: 0 | S133: 59 | U133: 82.6 | V133: 40 | W133: 37
A134: 100750 | B134: 473 | C134: 557 | D134: 557 | E134: 81 | F134: 0 | G134: 0 | H134: 0 | I134: 0 | J134: 0 | K134: 0 | L134: 0 | M134: 0 | N134: 0 | O134: 0 | P134: 0 | Q134: 168 | R134: 78 | S134: 81 | U134: 113.4 | V134: 41 | W134: 41
A135: 100775 | B135: 729 | C135: 793 | D135: 793 | E135: 104 | F135: 0 | G135: 0 | H135: 0 | I135: 0 | J135: 0 | K135: 0 | L135: 0 | M135: 0 | N135: 0 | O135: 0 | P135: 0 | Q135: 300 | R135: 217 | S135: 104 | U135: 145.6 | V135: 48 | W135: 49
A136: 100800 | B136: 984 | C136: 552 | D136: 552 | E136: 78 | F136: 0 | G136: 0 | H136: 0 | I136: 0 | J136: 0 | K136: 0 | L136: 0 | M136: 0 | N136: 0 | O136: 0 | P136: 0 | Q136: 0 | R136: 139 | S136: 78 | U136: 109.2 | V136: 59 | W136: 50
A137: 100825 | B137: 207 | V137: 49
A139: SR022B
A140: 200480.26 | B140: 122 | C140: 90 | D140: 90 | E140: =S140 -> 17 | F140: 0 | G140: 0 | H140: 0 | I140: 0 | J140: 0 | K140: 0 | L140: 0 | M140: 0 | N140: 0 | O140: 0 | P140: 0 | Q140: 2 | R140: 2 | S140: 17 | U140: =S140*1.4 -> 23.8 | V140: 33 | W140: 25
A141: 200500 | B141: 124 | C141: 114 | D141: 114 | E141: =S141 -> 17 | F141: 0 | G141: 0 | H141: 0 | I141: 0 | J141: 0 | K141: 0 | L141: 0 | M141: 0 | N141: 0 | O141: 0 | P141: 0 | Q141: 0 | R141: 1 | S141: 17 | U141: =S141*1.4 -> 23.8 | V141: 35 | W141: 33
A142: 200525 | B142: 121 | C142: 124 | D142: 124 | E142: 16 | F142: 0 | G142: 0 | H142: 0 | I142: 0 | J142: 0 | K142: 0 | L142: 0 | M142: 0 | N142: 0 | O142: 0 | P142: 0 | Q142: 0 | R142: 0 | S142: 16 | U142: 22.4 | V142: 36 | W142: 34
A143: 200550 | B143: 147 | C143: 138 | D143: 138 | E143: 23 | F143: 0 | G143: 0 | H143: 0 | I143: 0 | J143: 0 | K143: 0 | L143: 0 | M143: 0 | N143: 0 | O143: 0 | P143: 0 | Q143: 1 | R143: 0 | S143: 23 | U143: 32.2 | V143: 38 | W143: 36
A144: 200575 | B144: 152 | C144: 145 | D144: 145 | E144: 25 | F144: 0 | G144: 0 | H144: 0 | I144: 0 | J144: 0 | K144: 0 | L144: 0 | M144: 0 | N144: 0 | O144: 0 | P144: 0 | Q144: 5 | R144: 3 | S144: 25 | U144: 35 | V144: 39 | W144: 37
A145: 200600 | B145: 161 | C145: 148 | D145: 148 | E145: 27 | F145: 0 | G145: 0 | H145: 0 | I145: 0 | J145: 0 | K145: 0 | L145: 0 | M145: 0 | N145: 0 | O145: 0 | P145: 0 | Q145: 9 | R145: 7 | S145: 27 | U145: 37.8 | V145: 41 | W145: 38
A146: 200625 | B146: 158 | C146: 152 | D146: 152 | E146: 28 | F146: 0 | G146: 0 | H146: 0 | I146: 0 | J146: 0 | K146: 0 | L146: 0 | M146: 0 | N146: 0 | O146: 0 | P146: 0 | Q146: 15 | R146: 11 | S146: 28 | U146: 39.2 | V146: 41 | W146: 38
A147: 200650 | B147: 170 | C147: 137 | D147: 137 | E147: 25 | F147: 0 | G147: 0 | H147: 0 | I147: 0 | J147: 0 | K147: 0 | L147: 0 | M147: 0 | N147: 0 | O147: 0 | P147: 0 | Q147: 13 | R147: 11 | S147: 25 | U147: 35 | V147: 41 | W147: 33
A148: 200671.76 | B148: 170 | C148: 20 | D148: 20 | E148: 4 | F148: 0 | G148: 0 | H148: 0 | I148: 0 | J148: 0 | K148: 0 | L148: 0 | M148: 0 | N148: 0 | O148: 0 | P148: 0 | Q148: 12 | R148: 1 | S148: 4 | U148: 5.6 | V148: 41 | W148: 5
A149: 200675 | B149: 169 | C149: 153 | D149: 153 | E149: 29 | F149: 0 | G149: 0 | H149: 0 | I149: 0 | J149: 0 | K149: 0 | L149: 0 | M149: 0 | N149: 0 | O149: 0 | P149: 0 | Q149: 12 | R149: 11 | S149: 29 | U149: 40.6 | V149: 41 | W149: 37
A150: 200700 | B150: 162 | C150: 146 | D150: 146 | E150: 29 | F150: 0 | G150: 0 | H150: 0 | I150: 0 | J150: 0 | K150: 0 | L150: 0 | M150: 0 | N150: 0 | O150: 0 | P150: 0 | Q150: 7 | R150: 9 | S150: 29 | U150: 40.6 | V150: 40 | W150: 37
A151: 200725 | B151: 153 | C151: 134 | D151: 134 | E151: 27 | F151: 0 | G151: 0 | H151: 0 | I151: 0 | J151: 0 | K151: 0 | L151: 0 | M151: 0 | N151: 0 | O151: 0 | P151: 0 | Q151: 1 | R151: 4 | S151: 27 | U151: 37.8 | V151: 39 | W151: 36
A152: 200750 | B152: 138 | C152: 120 | D152: 120 | E152: 24 | F152: 0 | G152: 0 | H152: 0 | I152: 0 | J152: 0 | K152: 0 | L152: 0 | M152: 0 | N152: 0 | O152: 0 | P152: 0 | Q152: 0 | R152: 1 | S152: 24 | U152: 33.6 | V152: 39 | W152: 38
A153: 200775 | B153: 122 | C153: 144 | D153: 144 | E153: 30 | F153: 0 | G153: 0 | H153: 0 | I153: 0 | J153: 0 | K153: 0 | L153: 0 | M153: 0 | N153: 0 | O153: 0 | P153: 0 | Q153: 8 | R153: 4 | S153: 30 | U153: 42 | V153: 43 | W153: 41
A154: 200800 | B154: 188 | C154: 210 | D154: 210 | E154: 38 | F154: 0 | G154: 0 | H154: 0 | I154: 0 | J154: 0 | K154: 0 | L154: 0 | M154: 0 | N154: 0 | O154: 0 | P154: 0 | Q154: 1 | R154: 4 | S154: 38 | U154: 53.2 | V154: 46 | W154: 43
A155: 200825 | B155: 266 | C155: 304 | D155: 304 | E155: 43 | F155: 0 | G155: 0 | H155: 0 | I155: 0 | J155: 0 | K155: 0 | L155: 0 | M155: 0 | N155: 0 | O155: 0 | P155: 0 | Q155: 0 | R155: 1 | S155: 43 | U155: 60.2 | V155: 47 | W155: 43
A156: 200850 | B156: 391 | C156: 401 | D156: 401 | E156: 50 | F156: 0 | G156: 0 | H156: 0 | I156: 0 | J156: 0 | K156: 0 | L156: 0 | M156: 0 | N156: 0 | O156: 0 | P156: 0 | Q156: 10 | R156: 4 | S156: 50 | U156: 70 | V156: 46 | W156: 40
A157: 200875 | B157: 475 | C157: 504 | D157: 504 | E157: 64 | F157: 0 | G157: 0 | H157: 0 | I157: 0 | J157: 0 | K157: 0 | L157: 0 | M157: 0 | N157: 0 | O157: 0 | P157: 0 | Q157: 120 | R157: 60 | S157: 64 | U157: 89.6 | V157: 39 | W157: 37
A158: 200900 | B158: 613 | C158: 684 | D158: 684 | E158: 84 | F158: 0 | G158: 0 | H158: 0 | I158: 0 | J158: 0 | K158: 0 | L158: 0 | M158: 0 | N158: 0 | O158: 0 | P158: 0 | Q158: 241 | R158: 167 | S158: 84 | U158: 117.6 | V158: 41 | W158: 38
A159: 200925 | B159: 865 | C159: 974 | D159: 974 | E159: 111 | F159: 0 | G159: 0 | H159: 0 | I159: 0 | J159: 0 | K159: 0 | L159: 0 | M159: 0 | N159: 0 | O159: 0 | P159: 0 | Q159: 396 | R159: 295 | S159: 111 | U159: 155.4 | V159: 42 | W159: 41
A160: 200950 | B160: 1240 | C160: 966 | D160: 966 | E160: 114 | F160: 0 | G160: 0 | H160: 0 | I160: 0 | J160: 0 | K160: 0 | L160: 0 | M160: 0 | N160: 0 | O160: 0 | P160: 0 | Q160: 504 | R160: 416 | S160: 114 | U160: 159.6 | V160: 46 | W160: 49
A161: 200975 | B161: 847 | V161: 60

Sheet DataInformation
B1: Total Cut and Fill Adjustment | AB1: Unsuitable Placement Check | AG1: Topsoil
B2: Unadjusted Total Cut | P2: Add Quantities | R2: Combined Material to be Placed as Fill | S2: Weighted Average Shrink Factor | T2: Unadjusted Total Fill | X2: Add Quantities | AB2: Refer to Standard Road Plan EW-102 | AG2: Typical thickness is 12" | AH2: Typical Thickness is 8" | AI2: Topsoil Cut Shrink Factor
C4: Shrink Factor | D4: Shrink Factor | E4: Shrink Factor | F4: Shrink Factor | G4: Shrink Factor | I4: Shrink Factor | J4: Shrink Factor | K4: Swell Factor | O4: Swell Factor | P4: Shrink Factor | Q4: Shrink Factor
C5: 1.3 | D5: 1.4 | E5: 1.3 | F5: 1.3 | G5: 1.3 | I5: 1.3 | J5: 1.2 | K5: 1.1 | O5: 0 | P5: 1.3 | Q5: 1.3 | S5: =IF(ISERROR(ROUNDUP(SUM((C6*C5),(E6*E5),(F6*F5),(G6*G5),(I6*I5),(J6*J5),(K6*(-K5)),(O6*(-O5)),(P6*P5),(Q6*Q5))/SUM(C6,E6,F6,G6,I6,J6,K6,O6,P6,Q6),1)),"",ROUNDUP(SUM((C6*C5),(E6*E5),(F6*F5),(G6*G5),(I6*I5),(J6*J5),(K6*(-K5)),(O6*O5),(P6*P5),(Q6*Q5))/SUM(C6,E6,F6,G6,I6,J6,K6,O6,P6,Q6),1)) -> 1.3 | AI5: 1.4
B6: =SUM(B11:B161) -> 32235.8 | C6: 29827 | D6: 8430.8 | E6: 0 | F6: 0 | G6: 0 | H6: 7360 | I6: 0 | J6: 0 | K6: 0 | L6: 0 | M6: 0 | N6: 0 | O6: 0 | P6: 0 | Q6: 0 | R6: 29827 | S6: =IF(ISERROR(ROUNDUP($R$6/$S$5,0)),"",ROUNDUP($R$6/$S$5,0)) -> 22944 | T6: =SUM(T11:T161) -> 18543 | U6: 0 | V6: 2408.8 | W6: 7360 | X6: 0 | Y6: 0 | Z6: 28311.8 | AA6: -5363.8 | AB6: ="5' Minimum"&CHAR(10)&"Class 10"&CHAR(10)&"End Area"&CHAR(10)&"Sq. Ft." -> 5' Minimum Class 10 End Area Sq. Ft. | AC6: ="20' Maximum"&CHAR(10)&"End Area"&CHAR(10)&CHAR(10)&"Sq. Ft." -> 20' Maximum End Area Sq. Ft. | AD6: =SUM(AD11:AD161) -> 0 | AE6: ="3' Minimum"&CHAR(10)&"Class 10"&CHAR(10)&"End Area"&CHAR(10)&"Sq. Ft." -> 3' Minimum Class 10 End Area Sq. Ft. | AF6: =SUM(AF11:AF161) -> 27981 | AG6: =SUM(AG11:AG161) -> 8430.8 | AH6: =SUM(AH11:AH161) -> 6022 | AI6: =SUM(AI11:AI161) -> 6022 | AJ6: =SUM(AJ11:AJ161) -> 0
A7: Station | B7: =DataInput!C3 -> Template Cut Volume | C7: =DataInput!D3 -> Template Class 10 Volume | D7: =DataInput!E3 -> Template Topsoil Cut Volume | E7: =DataInput!F3 -> Template Unsuitable Type A Volume | F7: =DataInput!G3 -> Template Unsuitable Type B Volume | G7: =DataInput!H3 -> Template Unsuitable Type C Volume | H7: =DataInput!I3 -> Template Pavement Removal Volume | I7: =DataInput!J3 -> Template Select Loam Volume | J7: =DataInput!K3 -> Template Select Sand Volume | K7: =DataInput!L3 -> Template Rock Volume | L7: =DataInput!M3 -> Template B & W Rock Volume | M7: =DataInput!N3 -> Template Waste Volume | N7: =DataInput!O3 -> Template Shale Volume | O7: =DataInput!P3 -> Template Rock Undercut Volume | P7: ="Add"&CHAR(10)&"Quantity"&CHAR(10)&CHAR(10)&"+Cut" -> Add Quantity +Cut | Q7: ="Add"&CHAR(10)&"Quantity"&CHAR(10)&CHAR(10)&"+Cut" -> Add Quantity +Cut | R7: ="Total"&CHAR(10)&"Cut"&CHAR(10)&"Adjusted" -> Total Cut Adjusted | S7: =IF(AND(S5="",S6=""),"","Total Cut"&CHAR(10)&"Adjusted w/ "&CHAR(10)&"Weighted Average"&CHAR(10)&$S$5&" Shrink Factor") -> Total Cut Adjusted w/ Weighted Average 1.3 Shrink Factor | T7: =DataInput!R3 -> Template Fill Volume | U7: =DataInput!X3 -> Plowing & Shaping + Fill | V7: ="Topsoil"&CHAR(10)&"Stripping"&CHAR(10)&CHAR(10)&"+ Fill" -> Topsoil Stripping + Fill | W7: ="Non-Template"&CHAR(10)&"Existing Pavement"&CHAR(10)&"Removal"&CHAR(10)&"+Fill" -> Non-Template Existing Pavement Removal +Fill | X7: ="Add"&CHAR(10)&"Quantity"&CHAR(10)&CHAR(10)&"+Fill" -> Add Quantity +Fill | Y7: ="Add"&CHAR(10)&"Quantity"&CHAR(10)&CHAR(10)&"+Fill" -> Add Quantity +Fill | Z7: ="Total"&CHAR(10)&"Fill"&CHAR(10)&"Adjusted" -> Total Fill Adjusted | AA7: ="Total Cut Adjusted"&CHAR(10)&"w/ "&$S$5&" Shrink"&CHAR(10)&" Factor Minus Fill" -> Total Cut Adjusted w/ 1.3 Shrink Factor Minus Fill | AD7: ="Approx. Fill"&CHAR(10)&"Volume Below"&CHAR(10)&"5' And Above 20'"&CHAR(10)&"Cu. Yds." -> Approx. Fill Volume Below 5' And Above 20' Cu. Yds. | AF7: ="Approx. Fill"&CHAR(10)&"Volume Below 3'"&CHAR(10)&CHAR(10)&"Cu. Yds." -> Approx. Fill Volume Below 3' Cu. Yds. | AG7: =DataInput!U3 -> Total Topsoil Cut Volume | AH7: =DataInput!S3 -> Template Topsoil Replacement Volume | AI7: ="Topsoil Cut"&CHAR(10)&"With"&CHAR(10)&$AI$5&" Shrink"&CHAR(10)&"Factor" -> Topsoil Cut With 1.4 Shrink Factor | AJ7: ="Topsoil Cut"&CHAR(10)&"With Shrink"&CHAR(10)&"Minus Topsoil"&CHAR(10)&"Replacement" -> Topsoil Cut With Shrink Minus Topsoil Replacement
A11: =IF(DataInput!A11<>"",DataInput!A11,"") -> ML461
A12: =IF(DataInput!A12<>"",DataInput!A12,"") -> 4320.39 | B12: =SUM(DataInput!C12,DataInput!X12)+(DataInput!U12-DataInput!E12) -> 205.4 | C12: =SUM(DataInput!D12,DataInput!Y12) -> 199 | D12: =DataInput!U12 -> 22.4 | E12: =SUM(DataInput!F12,DataInput!AA12) -> 0 | F12: =SUM(DataInput!G12,DataInput!AB12) -> 0 | G12: =SUM(DataInput!H12,DataInput!AC12) -> 0 | H12: =DataInput!W12 -> 10 | I12: =SUM(DataInput!J12,DataInput!AD12) -> 0 | J12: =SUM(DataInput!K12,DataInput!AE12) -> 0 | K12: =SUM(DataInput!L12,DataInput!AF12) -> 0 | L12: =SUM(DataInput!M12,DataInput!AG12) -> 0 | M12: =SUM(DataInput!N12,DataInput!AH12) -> 0 | N12: =SUM(DataInput!O12,DataInput!AI12) -> 0 | O12: =DataInput!P12 -> 0 | R12: =SUM(C12,E12:G12,I12:L12,N12:Q12) -> 199 | S12: =IF(ISERROR(ROUND((R12/$S$5),0)),0,ROUND((R12/$S$5),0)) -> 153 | T12: =DataInput!R12 -> 37 | U12: =DataInput!X12 -> 0 | V12: =IF(DataInput!U12-DataInput!E12>0,DataInput!U12-DataInput!E12,"") -> 6.4 | W12: =IF(DataInput!W12-DataInput!I12>0,DataInput!W12-DataInput!I12,"") -> 10 | Z12: =SUM(T12:Y12) -> 53.4 | AA12: =SUM(S12-Z12) -> 99.6 | AD12: 0 | AF12: 0 | AG12: =DataInput!U12 -> 22.4 | AH12: =DataInput!S12 -> 16 | AI12: =ROUNDUP(AG12/$AI$5,0) -> 16 | AJ12: =AI12-AH12 -> 0
A13: =IF(DataInput!A13<>"",DataInput!A13,"") -> 4325 | B13: =SUM(DataInput!C13,DataInput!X13)+(DataInput!U13-DataInput!E13) -> 1208.4 | C13: =SUM(DataInput!D13,DataInput!Y13) -> 1168 | D13: =DataInput!U13 -> 141.4 | E13: =SUM(DataInput!F13,DataInput!AA13) -> 0 | F13: =SUM(DataInput!G13,DataInput!AB13) -> 0 | G13: =SUM(DataInput!H13,DataInput!AC13) -> 0 | H13: =DataInput!W13 -> 54 | I13: =SUM(DataInput!J13,DataInput!AD13) -> 0 | J13: =SUM(DataInput!K13,DataInput!AE13) -> 0 | K13: =SUM(DataInput!L13,DataInput!AF13) -> 0 | L13: =SUM(DataInput!M13,DataInput!AG13) -> 0 | M13: =SUM(DataInput!N13,DataInput!AH13) -> 0 | N13: =SUM(DataInput!O13,DataInput!AI13) -> 0 | O13: =DataInput!P13 -> 0 | R13: =SUM(C13,E13:G13,I13:L13,N13:Q13) -> 1168 | S13: =IF(ISERROR(ROUND((R13/$S$5),0)),0,ROUND((R13/$S$5),0)) -> 898 | T13: =DataInput!R13 -> 237 | U13: =DataInput!X13 -> 0 | V13: =IF(DataInput!U13-DataInput!E13>0,DataInput!U13-DataInput!E13,"") -> 40.4 | W13: =IF(DataInput!W13-DataInput!I13>0,DataInput!W13-DataInput!I13,"") -> 54 | Z13: =SUM(T13:Y13) -> 331.4 | AA13: =SUM(S13-Z13) -> 566.6 | AB13: =AB12 -> 0 | AC13: =AC12 -> 0 | AD13: =IF(AC13>0,IFERROR(IF(AVERAGE(DataInput!Q12:Q13)>AVERAGE(AC13,AC12),ROUNDDOWN(((((AC12-AB12)+(AC13-AB13))/2)*(A13-A12))/27,0),IF(((((DataInput!Q13-AB13)+(DataInput!Q12-AB12))/2)*(A13-A12))/27>0,ROUNDDOWN(((((DataInput!Q13-AB12)+(DataInput!Q12-AB12))/2)*(A13-A12))/27,0),0)),0),0) -> 0 | AE13: =AE12 -> 0 | AF13: =IFERROR(IF(((((DataInput!Q12-AE12)+(DataInput!Q13-AE13))/2)*(A13-A12))/27>0,ROUNDDOWN(((((DataInput!Q12-AE12)+(DataInput!Q13-AE13))/2)*(A13-A12))/27,0),0),0) -> 43 | AG13: =DataInput!U13 -> 141.4 | AH13: =DataInput!S13 -> 101 | AI13: =ROUNDUP(AG13/$AI$5,0) -> 101 | AJ13: =AI13-AH13 -> 0
A14: =IF(DataInput!A14<>"",DataInput!A14,"") -> 4350 | B14: =SUM(DataInput!C14,DataInput!X14)+(DataInput!U14-DataInput!E14) -> 1234.2 | C14: =SUM(DataInput!D14,DataInput!Y14) -> 1185 | D14: =DataInput!U14 -> 172.2 | E14: =SUM(DataInput!F14,DataInput!AA14) -> 0 | F14: =SUM(DataInput!G14,DataInput!AB14) -> 0 | G14: =SUM(DataInput!H14,DataInput!AC14) -> 0 | H14: =DataInput!W14 -> 53 | I14: =SUM(DataInput!J14,DataInput!AD14) -> 0 | J14: =SUM(DataInput!K14,DataInput!AE14) -> 0 | K14: =SUM(DataInput!L14,DataInput!AF14) -> 0 | L14: =SUM(DataInput!M14,DataInput!AG14) -> 0 | M14: =SUM(DataInput!N14,DataInput!AH14) -> 0 | N14: =SUM(DataInput!O14,DataInput!AI14) -> 0 | O14: =DataInput!P14 -> 0 | R14: 1185 | S14: 912 | T14: =DataInput!R14 -> 263 | U14: =DataInput!X14 -> 0 | V14: =IF(DataInput!U14-DataInput!E14>0,DataInput!U14-DataInput!E14,"") -> 49.2 | W14: =IF(DataInput!W14-DataInput!I14>0,DataInput!W14-DataInput!I14,"") -> 53 | Z14: 365.2 | AA14: 546.8 | AB14: =AB13 -> 0 | AC14: =AC13 -> 0 | AD14: =IF(AC14>0,IFERROR(IF(AVERAGE(DataInput!Q13:Q14)>AVERAGE(AC14,AC13),ROUNDDOWN(((((AC13-AB13)+(AC14-AB14))/2)*(A14-A13))/27,0),IF(((((DataInput!Q14-AB14)+(DataInput!Q13-AB13))/2)*(A14-A13))/27>0,ROUNDDOWN(((((DataInput!Q14-AB13)+(DataInput!Q13-AB13))/2)*(A14-A13))/27,0),0)),0),0) -> 0 | AE14: =AE13 -> 0 | AF14: =IFERROR(IF(((((DataInput!Q13-AE13)+(DataInput!Q14-AE14))/2)*(A14-A13))/27>0,ROUNDDOWN(((((DataInput!Q13-AE13)+(DataInput!Q14-AE14))/2)*(A14-A13))/27,0),0),0) -> 262 | AG14: =DataInput!U14 -> 172.2 | AH14: =DataInput!S14 -> 123 | AI14: 123 | AJ14: 0
A15: =IF(DataInput!A15<>"",DataInput!A15,"") -> 4375 | B15: =SUM(DataInput!C15,DataInput!X15)+(DataInput!U15-DataInput!E15) -> 1191.6 | C15: =SUM(DataInput!D15,DataInput!Y15) -> 1138 | D15: =DataInput!U15 -> 187.6 | E15: =SUM(DataInput!F15,DataInput!AA15) -> 0 | F15: =SUM(DataInput!G15,DataInput!AB15) -> 0 | G15: =SUM(DataInput!H15,DataInput!AC15) -> 0 | H15: =DataInput!W15 -> 53 | I15: =SUM(DataInput!J15,DataInput!AD15) -> 0 | J15: =SUM(DataInput!K15,DataInput!AE15) -> 0 | K15: =SUM(DataInput!L15,DataInput!AF15) -> 0 | L15: =SUM(DataInput!M15,DataInput!AG15) -> 0 | M15: =SUM(DataInput!N15,DataInput!AH15) -> 0 | N15: =SUM(DataInput!O15,DataInput!AI15) -> 0 | O15: =DataInput!P15 -> 0 | R15: 1138 | S15: 875 | T15: =DataInput!R15 -> 240 | U15: =DataInput!X15 -> 0 | V15: =IF(DataInput!U15-DataInput!E15>0,DataInput!U15-DataInput!E15,"") -> 53.6 | W15: =IF(DataInput!W15-DataInput!I15>0,DataInput!W15-DataInput!I15,"") -> 53 | Z15: 346.6 | AA15: 528.4 | AB15: 0 | AC15: 0 | AD15: =IF(AC15>0,IFERROR(IF(AVERAGE(DataInput!Q14:Q15)>AVERAGE(AC15,AC14),ROUNDDOWN(((((AC14-AB14)+(AC15-AB15))/2)*(A15-A14))/27,0),IF(((((DataInput!Q15-AB15)+(DataInput!Q14-AB14))/2)*(A15-A14))/27>0,ROUNDDOWN(((((DataInput!Q15-AB14)+(DataInput!Q14-AB14))/2)*(A15-A14))/27,0),0)),0),0) -> 0 | AE15: 0 | AF15: =IFERROR(IF(((((DataInput!Q14-AE14)+(DataInput!Q15-AE15))/2)*(A15-A14))/27>0,ROUNDDOWN(((((DataInput!Q14-AE14)+(DataInput!Q15-AE15))/2)*(A15-A14))/27,0),0),0) -> 240 | AG15: =DataInput!U15 -> 187.6 | AH15: =DataInput!S15 -> 134 | AI15: 134 | AJ15: 0
A16: =IF(DataInput!A16<>"",DataInput!A16,"") -> 4400 | B16: =SUM(DataInput!C16,DataInput!X16)+(DataInput!U16-DataInput!E16) -> 885.6 | C16: =SUM(DataInput!D16,DataInput!Y16) -> 834 | D16: =DataInput!U16 -> 180.6 | E16: =SUM(DataInput!F16,DataInput!AA16) -> 0 | F16: =SUM(DataInput!G16,DataInput!AB16) -> 0 | G16: =SUM(DataInput!H16,DataInput!AC16) -> 0 | H16: =DataInput!W16 -> 53 | I16: =SUM(DataInput!J16,DataInput!AD16) -> 0 | J16: =SUM(DataInput!K16,DataInput!AE16) -> 0 | K16: =SUM(DataInput!L16,DataInput!AF16) -> 0 | L16: =SUM(DataInput!M16,DataInput!AG16) -> 0 | M16: =SUM(DataInput!N16,DataInput!AH16) -> 0 | N16: =SUM(DataInput!O16,DataInput!AI16) -> 0 | O16: =DataInput!P16 -> 0 | R16: 834 | S16: 642 | T16: =DataInput!R16 -> 209 | U16: =DataInput!X16 -> 0 | V16: =IF(DataInput!U16-DataInput!E16>0,DataInput!U16-DataInput!E16,"") -> 51.6 | W16: =IF(DataInput!W16-DataInput!I16>0,DataInput!W16-DataInput!I16,"") -> 53 | Z16: 313.6 | AA16: 328.4 | AB16: 0 | AC16: 0 | AD16: =IF(AC16>0,IFERROR(IF(AVERAGE(DataInput!Q15:Q16)>AVERAGE(AC16,AC15),ROUNDDOWN(((((AC15-AB15)+(AC16-AB16))/2)*(A16-A15))/27,0),IF(((((DataInput!Q16-AB16)+(DataInput!Q15-AB15))/2)*(A16-A15))/27>0,ROUNDDOWN(((((DataInput!Q16-AB15)+(DataInput!Q15-AB15))/2)*(A16-A15))/27,0),0)),0),0) -> 0 | AE16: 0 | AF16: =IFERROR(IF(((((DataInput!Q15-AE15)+(DataInput!Q16-AE16))/2)*(A16-A15))/27>0,ROUNDDOWN(((((DataInput!Q15-AE15)+(DataInput!Q16-AE16))/2)*(A16-A15))/27,0),0),0) -> 208 | AG16: =DataInput!U16 -> 180.6 | AH16: =DataInput!S16 -> 129 | AI16: 129 | AJ16: 0
A17: =IF(DataInput!A17<>"",DataInput!A17,"") -> 4425 | B17: =SUM(DataInput!C17,DataInput!X17)+(DataInput!U17-DataInput!E17) -> 715.6 | C17: =SUM(DataInput!D17,DataInput!Y17) -> 668 | D17: =DataInput!U17 -> 166.6 | E17: =SUM(DataInput!F17,DataInput!AA17) -> 0 | F17: =SUM(DataInput!G17,DataInput!AB17) -> 0 | G17: =SUM(DataInput!H17,DataInput!AC17) -> 0 | H17: =DataInput!W17 -> 53 | I17: =SUM(DataInput!J17,DataInput!AD17) -> 0 | J17: =SUM(DataInput!K17,DataInput!AE17) -> 0 | K17: =SUM(DataInput!L17,DataInput!AF17) -> 0 | L17: =SUM(DataInput!M17,DataInput!AG17) -> 0 | M17: =SUM(DataInput!N17,DataInput!AH17) -> 0 | N17: =SUM(DataInput!O17,DataInput!AI17) -> 0 | O17: =DataInput!P17 -> 0 | R17: 668 | S17: 514 | T17: =DataInput!R17 -> 190 | U17: =DataInput!X17 -> 0 | V17: =IF(DataInput!U17-DataInput!E17>0,DataInput!U17-DataInput!E17,"") -> 47.6 | W17: =IF(DataInput!W17-DataInput!I17>0,DataInput!W17-DataInput!I17,"") -> 53 | Z17: 290.6 | AA17: 223.4 | AB17: 0 | AC17: 0 | AD17: =IF(AC17>0,IFERROR(IF(AVERAGE(DataInput!Q16:Q17)>AVERAGE(AC17,AC16),ROUNDDOWN(((((AC16-AB16)+(AC17-AB17))/2)*(A17-A16))/27,0),IF(((((DataInput!Q17-AB17)+(DataInput!Q16-AB16))/2)*(A17-A16))/27>0,ROUNDDOWN(((((DataInput!Q17-AB16)+(DataInput!Q16-AB16))/2)*(A17-A16))/27,0),0)),0),0) -> 0 | AE17: 0 | AF17: =IFERROR(IF(((((DataInput!Q16-AE16)+(DataInput!Q17-AE17))/2)*(A17-A16))/27>0,ROUNDDOWN(((((DataInput!Q16-AE16)+(DataInput!Q17-AE17))/2)*(A17-A16))/27,0),0),0) -> 189 | AG17: =DataInput!U17 -> 166.6 | AH17: =DataInput!S17 -> 119 | AI17: 119 | AJ17: 0
A18: =IF(DataInput!A18<>"",DataInput!A18,"") -> 4450 | B18: =SUM(DataInput!C18,DataInput!X18)+(DataInput!U18-DataInput!E18) -> 755.2 | C18: =SUM(DataInput!D18,DataInput!Y18) -> 710 | D18: =DataInput!U18 -> 158.2 | E18: =SUM(DataInput!F18,DataInput!AA18) -> 0 | F18: =SUM(DataInput!G18,DataInput!AB18) -> 0 | G18: =SUM(DataInput!H18,DataInput!AC18) -> 0 | H18: =DataInput!W18 -> 53 | I18: =SUM(DataInput!J18,DataInput!AD18) -> 0 | J18: =SUM(DataInput!K18,DataInput!AE18) -> 0 | K18: =SUM(DataInput!L18,DataInput!AF18) -> 0 | L18: =SUM(DataInput!M18,DataInput!AG18) -> 0 | M18: =SUM(DataInput!N18,DataInput!AH18) -> 0 | N18: =SUM(DataInput!O18,DataInput!AI18) -> 0 | O18: =DataInput!P18 -> 0 | R18: 710 | S18: 546 | T18: =DataInput!R18 -> 163 | U18: =DataInput!X18 -> 0 | V18: =IF(DataInput!U18-DataInput!E18>0,DataInput!U18-DataInput!E18,"") -> 45.2 | W18: =IF(DataInput!W18-DataInput!I18>0,DataInput!W18-DataInput!I18,"") -> 53 | Z18: 261.2 | AA18: 284.8 | AB18: 0 | AC18: 0 | AD18: =IF(AC18>0,IFERROR(IF(AVERAGE(DataInput!Q17:Q18)>AVERAGE(AC18,AC17),ROUNDDOWN(((((AC17-AB17)+(AC18-AB18))/2)*(A18-A17))/27,0),IF(((((DataInput!Q18-AB18)+(DataInput!Q17-AB17))/2)*(A18-A17))/27>0,ROUNDDOWN(((((DataInput!Q18-AB17)+(DataInput!Q17-AB17))/2)*(A18-A17))/27,0),0)),0),0) -> 0 | AE18: 0 | AF18: =IFERROR(IF(((((DataInput!Q17-AE17)+(DataInput!Q18-AE18))/2)*(A18-A17))/27>0,ROUNDDOWN(((((DataInput!Q17-AE17)+(DataInput!Q18-AE18))/2)*(A18-A17))/27,0),0),0) -> 162 | AG18: =DataInput!U18 -> 158.2 | AH18: =DataInput!S18 -> 113 | AI18: 113 | AJ18: 0
A19: =IF(DataInput!A19<>"",DataInput!A19,"") -> 4475 | B19: =SUM(DataInput!C19,DataInput!X19)+(DataInput!U19-DataInput!E19) -> 558.4 | C19: =SUM(DataInput!D19,DataInput!Y19) -> 518 | D19: =DataInput!U19 -> 141.4 | E19: =SUM(DataInput!F19,DataInput!AA19) -> 0 | F19: =SUM(DataInput!G19,DataInput!AB19) -> 0 | G19: =SUM(DataInput!H19,DataInput!AC19) -> 0 | H19: =DataInput!W19 -> 53 | I19: =SUM(DataInput!J19,DataInput!AD19) -> 0 | J19: =SUM(DataInput!K19,DataInput!AE19) -> 0 | K19: =SUM(DataInput!L19,DataInput!AF19) -> 0 | L19: =SUM(DataInput!M19,DataInput!AG19) -> 0 | M19: =SUM(DataInput!N19,DataInput!AH19) -> 0 | N19: =SUM(DataInput!O19,DataInput!AI19) -> 0 | O19: =DataInput!P19 -> 0 | R19: 518 | S19: 398 | T19: =DataInput!R19 -> 126 | U19: =DataInput!X19 -> 0 | V19: =IF(DataInput!U19-DataInput!E19>0,DataInput!U19-DataInput!E19,"") -> 40.4 | W19: =IF(DataInput!W19-DataInput!I19>0,DataInput!W19-DataInput!I19,"") -> 53 | Z19: 219.4 | AA19: 178.6 | AB19: 0 | AC19: 0 | AD19: =IF(AC19>0,IFERROR(IF(AVERAGE(DataInput!Q18:Q19)>AVERAGE(AC19,AC18),ROUNDDOWN(((((AC18-AB18)+(AC19-AB19))/2)*(A19-A18))/27,0),IF(((((DataInput!Q19-AB19)+(DataInput!Q18-AB18))/2)*(A19-A18))/27>0,ROUNDDOWN(((((DataInput!Q19-AB18)+(DataInput!Q18-AB18))/2)*(A19-A18))/27,0),0)),0),0) -> 0 | AE19: 0 | AF19: =IFERROR(IF(((((DataInput!Q18-AE18)+(DataInput!Q19-AE19))/2)*(A19-A18))/27>0,ROUNDDOWN(((((DataInput!Q18-AE18)+(DataInput!Q19-AE19))/2)*(A19-A18))/27,0),0),0) -> 125 | AG19: =DataInput!U19 -> 141.4 | AH19: =DataInput!S19 -> 101 | AI19: 101 | AJ19: 0
A20: =IF(DataInput!A20<>"",DataInput!A20,"") -> 4500 | B20: =SUM(DataInput!C20,DataInput!X20)+(DataInput!U20-DataInput!E20) -> 0 | C20: =SUM(DataInput!D20,DataInput!Y20) -> 0 | D20: =DataInput!U20 -> 0 | E20: =SUM(DataInput!F20,DataInput!AA20) -> 0 | F20: =SUM(DataInput!G20,DataInput!AB20) -> 0 | G20: =SUM(DataInput!H20,DataInput!AC20) -> 0 | H20: =DataInput!W20 -> 0 | I20: =SUM(DataInput!J20,DataInput!AD20) -> 0 | J20: =SUM(DataInput!K20,DataInput!AE20) -> 0 | K20: =SUM(DataInput!L20,DataInput!AF20) -> 0 | L20: =SUM(DataInput!M20,DataInput!AG20) -> 0 | M20: =SUM(DataInput!N20,DataInput!AH20) -> 0 | N20: =SUM(DataInput!O20,DataInput!AI20) -> 0 | O20: =DataInput!P20 -> 0 | R20: 0 | S20: 0 | T20: =DataInput!R20 -> 0 | U20: =DataInput!X20 -> 0 | V20: =IF(DataInput!U20-DataInput!E20>0,DataInput!U20-DataInput!E20,"") ->  | W20: =IF(DataInput!W20-DataInput!I20>0,DataInput!W20-DataInput!I20,"") ->  | Z20: 0 | AA20: 0 | AB20: 0 | AC20: 0 | AD20: =IF(AC20>0,IFERROR(IF(AVERAGE(DataInput!Q19:Q20)>AVERAGE(AC20,AC19),ROUNDDOWN(((((AC19-AB19)+(AC20-AB20))/2)*(A20-A19))/27,0),IF(((((DataInput!Q20-AB20)+(DataInput!Q19-AB19))/2)*(A20-A19))/27>0,ROUNDDOWN(((((DataInput!Q20-AB19)+(DataInput!Q19-AB19))/2)*(A20-A19))/27,0),0)),0),0) -> 0 | AE20: 0 | AF20: =IFERROR(IF(((((DataInput!Q19-AE19)+(DataInput!Q20-AE20))/2)*(A20-A19))/27>0,ROUNDDOWN(((((DataInput!Q19-AE19)+(DataInput!Q20-AE20))/2)*(A20-A19))/27,0),0),0) -> 54 | AG20: =DataInput!U20 -> 0 | AH20: =DataInput!S20 -> 0 | AI20: 0 | AJ20: 0
A21: =IF(DataInput!A21<>"",DataInput!A21,"") -> ML461
A22: =IF(DataInput!A22<>"",DataInput!A22,"") -> 4525 | B22: =SUM(DataInput!C22,DataInput!X22)+(DataInput!U22-DataInput!E22) -> 444.8 | C22: =SUM(DataInput!D22,DataInput!Y22) -> 420 | D22: =DataInput!U22 -> 86.8 | E22: =SUM(DataInput!F22,DataInput!AA22) -> 0 | F22: =SUM(DataInput!G22,DataInput!AB22) -> 0 | G22: =SUM(DataInput!H22,DataInput!AC22) -> 0 | H22: =DataInput!W22 -> 53 | I22: =SUM(DataInput!J22,DataInput!AD22) -> 0 | J22: =SUM(DataInput!K22,DataInput!AE22) -> 0 | K22: =SUM(DataInput!L22,DataInput!AF22) -> 0 | L22: =SUM(DataInput!M22,DataInput!AG22) -> 0 | M22: =SUM(DataInput!N22,DataInput!AH22) -> 0 | N22: =SUM(DataInput!O22,DataInput!AI22) -> 0 | O22: =DataInput!P22 -> 0 | R22: =SUM(C22,E22:G22,I22:L22,N22:Q22) -> 420 | S22: =IF(ISERROR(ROUND((R22/$S$5),0)),0,ROUND((R22/$S$5),0)) -> 323 | T22: =DataInput!R22 -> 51 | U22: =DataInput!X22 -> 0 | V22: =IF(DataInput!U22-DataInput!E22>0,DataInput!U22-DataInput!E22,"") -> 24.8 | W22: =IF(DataInput!W22-DataInput!I22>0,DataInput!W22-DataInput!I22,"") -> 53 | Z22: =SUM(T22:Y22) -> 128.8 | AA22: =SUM(S22-Z22) -> 194.2 | AD22: 0 | AF22: 0 | AG22: =DataInput!U22 -> 86.8 | AH22: =DataInput!S22 -> 62 | AI22: =ROUNDUP(AG22/$AI$5,0) -> 62 | AJ22: =AI22-AH22 -> 0
A23: =IF(DataInput!A23<>"",DataInput!A23,"") -> 4550 | B23: =SUM(DataInput!C23,DataInput!X23)+(DataInput!U23-DataInput!E23) -> 375.2 | C23: =SUM(DataInput!D23,DataInput!Y23) -> 358 | D23: =DataInput!U23 -> 60.2 | E23: =SUM(DataInput!F23,DataInput!AA23) -> 0 | F23: =SUM(DataInput!G23,DataInput!AB23) -> 0 | G23: =SUM(DataInput!H23,DataInput!AC23) -> 0 | H23: =DataInput!W23 -> 53 | I23: =SUM(DataInput!J23,DataInput!AD23) -> 0 | J23: =SUM(DataInput!K23,DataInput!AE23) -> 0 | K23: =SUM(DataInput!L23,DataInput!AF23) -> 0 | L23: =SUM(DataInput!M23,DataInput!AG23) -> 0 | M23: =SUM(DataInput!N23,DataInput!AH23) -> 0 | N23: =SUM(DataInput!O23,DataInput!AI23) -> 0 | O23: =DataInput!P23 -> 0 | R23: =SUM(C23,E23:G23,I23:L23,N23:Q23) -> 358 | S23: =IF(ISERROR(ROUND((R23/$S$5),0)),0,ROUND((R23/$S$5),0)) -> 275 | T23: =DataInput!R23 -> 33 | U23: =DataInput!X23 -> 0 | V23: =IF(DataInput!U23-DataInput!E23>0,DataInput!U23-DataInput!E23,"") -> 17.2 | W23: =IF(DataInput!W23-DataInput!I23>0,DataInput!W23-DataInput!I23,"") -> 53 | Z23: =SUM(T23:Y23) -> 103.2 | AA23: =SUM(S23-Z23) -> 171.8 | AB23: =AB22 -> 0 | AC23: =AC22 -> 0 | AD23: =IF(AC23>0,IFERROR(IF(AVERAGE(DataInput!Q22:Q23)>AVERAGE(AC23,AC22),ROUNDDOWN(((((AC22-AB22)+(AC23-AB23))/2)*(A23-A22))/27,0),IF(((((DataInput!Q23-AB23)+(DataInput!Q22-AB22))/2)*(A23-A22))/27>0,ROUNDDOWN(((((DataInput!Q23-AB22)+(DataInput!Q22-AB22))/2)*(A23-A22))/27,0),0)),0),0) -> 0 | AE23: =AE22 -> 0 | AF23: =IFERROR(IF(((((DataInput!Q22-AE22)+(DataInput!Q23-AE23))/2)*(A23-A22))/27>0,ROUNDDOWN(((((DataInput!Q22-AE22)+(DataInput!Q23-AE23))/2)*(A23-A22))/27,0),0),0) -> 33 | AG23: =DataInput!U23 -> 60.2 | AH23: =DataInput!S23 -> 43 | AI23: =ROUNDUP(AG23/$AI$5,0) -> 43 | AJ23: =AI23-AH23 -> 0
A24: =IF(DataInput!A24<>"",DataInput!A24,"") -> 4575 | B24: =SUM(DataInput!C24,DataInput!X24)+(DataInput!U24-DataInput!E24) -> 375 | C24: =SUM(DataInput!D24,DataInput!Y24) -> 357 | D24: =DataInput!U24 -> 63 | E24: =SUM(DataInput!F24,DataInput!AA24) -> 0 | F24: =SUM(DataInput!G24,DataInput!AB24) -> 0 | G24: =SUM(DataInput!H24,DataInput!AC24) -> 0 | H24: =DataInput!W24 -> 53 | I24: =SUM(DataInput!J24,DataInput!AD24) -> 0 | J24: =SUM(DataInput!K24,DataInput!AE24) -> 0 | K24: =SUM(DataInput!L24,DataInput!AF24) -> 0 | L24: =SUM(DataInput!M24,DataInput!AG24) -> 0 | M24: =SUM(DataInput!N24,DataInput!AH24) -> 0 | N24: =SUM(DataInput!O24,DataInput!AI24) -> 0 | O24: =DataInput!P24 -> 0 | R24: 357 | S24: 275 | T24: =DataInput!R24 -> 32 | U24: =DataInput!X24 -> 0 | V24: =IF(DataInput!U24-DataInput!E24>0,DataInput!U24-DataInput!E24,"") -> 18 | W24: =IF(DataInput!W24-DataInput!I24>0,DataInput!W24-DataInput!I24,"") -> 53 | Z24: 103 | AA24: 172 | AB24: =AB23 -> 0 | AC24: =AC23 -> 0 | AD24: =IF(AC24>0,IFERROR(IF(AVERAGE(DataInput!Q23:Q24)>AVERAGE(AC24,AC23),ROUNDDOWN(((((AC23-AB23)+(AC24-AB24))/2)*(A24-A23))/27,0),IF(((((DataInput!Q24-AB24)+(DataInput!Q23-AB23))/2)*(A24-A23))/27>0,ROUNDDOWN(((((DataInput!Q24-AB23)+(DataInput!Q23-AB23))/2)*(A24-A23))/27,0),0)),0),0) -> 0 | AE24: =AE23 -> 0 | AF24: =IFERROR(IF(((((DataInput!Q23-AE23)+(DataInput!Q24-AE24))/2)*(A24-A23))/27>0,ROUNDDOWN(((((DataInput!Q23-AE23)+(DataInput!Q24-AE24))/2)*(A24-A23))/27,0),0),0) -> 31 | AG24: =DataInput!U24 -> 63 | AH24: =DataInput!S24 -> 45 | AI24: 45 | AJ24: 0
A25: =IF(DataInput!A25<>"",DataInput!A25,"") -> 4600 | B25: =SUM(DataInput!C25,DataInput!X25)+(DataInput!U25-DataInput!E25) -> 460.2 | C25: =SUM(DataInput!D25,DataInput!Y25) -> 437 | D25: =DataInput!U25 -> 81.2 | E25: =SUM(DataInput!F25,DataInput!AA25) -> 0 | F25: =SUM(DataInput!G25,DataInput!AB25) -> 0 | G25: =SUM(DataInput!H25,DataInput!AC25) -> 0 | H25: =DataInput!W25 -> 53 | I25: =SUM(DataInput!J25,DataInput!AD25) -> 0 | J25: =SUM(DataInput!K25,DataInput!AE25) -> 0 | K25: =SUM(DataInput!L25,DataInput!AF25) -> 0 | L25: =SUM(DataInput!M25,DataInput!AG25) -> 0 | M25: =SUM(DataInput!N25,DataInput!AH25) -> 0 | N25: =SUM(DataInput!O25,DataInput!AI25) -> 0 | O25: =DataInput!P25 -> 0 | R25: 437 | S25: 336 | T25: =DataInput!R25 -> 31 | U25: =DataInput!X25 -> 0 | V25: =IF(DataInput!U25-DataInput!E25>0,DataInput!U25-DataInput!E25,"") -> 23.2 | W25: =IF(DataInput!W25-DataInput!I25>0,DataInput!W25-DataInput!I25,"") -> 53 | Z25: 107.2 | AA25: 228.8 | AB25: 0 | AC25: 0 | AD25: =IF(AC25>0,IFERROR(IF(AVERAGE(DataInput!Q24:Q25)>AVERAGE(AC25,AC24),ROUNDDOWN(((((AC24-AB24)+(AC25-AB25))/2)*(A25-A24))/27,0),IF(((((DataInput!Q25-AB25)+(DataInput!Q24-AB24))/2)*(A25-A24))/27>0,ROUNDDOWN(((((DataInput!Q25-AB24)+(DataInput!Q24-AB24))/2)*(A25-A24))/27,0),0)),0),0) -> 0 | AE25: 0 | AF25: =IFERROR(IF(((((DataInput!Q24-AE24)+(DataInput!Q25-AE25))/2)*(A25-A24))/27>0,ROUNDDOWN(((((DataInput!Q24-AE24)+(DataInput!Q25-AE25))/2)*(A25-A24))/27,0),0),0) -> 31 | AG25: =DataInput!U25 -> 81.2 | AH25: =DataInput!S25 -> 58 | AI25: 58 | AJ25: 0
A26: =IF(DataInput!A26<>"",DataInput!A26,"") -> 4625 | B26: =SUM(DataInput!C26,DataInput!X26)+(DataInput!U26-DataInput!E26) -> 529.8 | C26: =SUM(DataInput!D26,DataInput!Y26) -> 503 | D26: =DataInput!U26 -> 93.8 | E26: =SUM(DataInput!F26,DataInput!AA26) -> 0 | F26: =SUM(DataInput!G26,DataInput!AB26) -> 0 | G26: =SUM(DataInput!H26,DataInput!AC26) -> 0 | H26: =DataInput!W26 -> 53 | I26: =SUM(DataInput!J26,DataInput!AD26) -> 0 | J26: =SUM(DataInput!K26,DataInput!AE26) -> 0 | K26: =SUM(DataInput!L26,DataInput!AF26) -> 0 | L26: =SUM(DataInput!M26,DataInput!AG26) -> 0 | M26: =SUM(DataInput!N26,DataInput!AH26) -> 0 | N26: =SUM(DataInput!O26,DataInput!AI26) -> 0 | O26: =DataInput!P26 -> 0 | R26: 503 | S26: 387 | T26: =DataInput!R26 -> 32 | U26: =DataInput!X26 -> 0 | V26: =IF(DataInput!U26-DataInput!E26>0,DataInput!U26-DataInput!E26,"") -> 26.8 | W26: =IF(DataInput!W26-DataInput!I26>0,DataInput!W26-DataInput!I26,"") -> 53 | Z26: 111.8 | AA26: 275.2 | AB26: 0 | AC26: 0 | AD26: =IF(AC26>0,IFERROR(IF(AVERAGE(DataInput!Q25:Q26)>AVERAGE(AC26,AC25),ROUNDDOWN(((((AC25-AB25)+(AC26-AB26))/2)*(A26-A25))/27,0),IF(((((DataInput!Q26-AB26)+(DataInput!Q25-AB25))/2)*(A26-A25))/27>0,ROUNDDOWN(((((DataInput!Q26-AB25)+(DataInput!Q25-AB25))/2)*(A26-A25))/27,0),0)),0),0) -> 0 | AE26: 0 | AF26: =IFERROR(IF(((((DataInput!Q25-AE25)+(DataInput!Q26-AE26))/2)*(A26-A25))/27>0,ROUNDDOWN(((((DataInput!Q25-AE25)+(DataInput!Q26-AE26))/2)*(A26-A25))/27,0),0),0) -> 31 | AG26: =DataInput!U26 -> 93.8 | AH26: =DataInput!S26 -> 67 | AI26: 67 | AJ26: 0
A27: =IF(DataInput!A27<>"",DataInput!A27,"") -> 4650 | B27: =SUM(DataInput!C27,DataInput!X27)+(DataInput!U27-DataInput!E27) -> 531.6 | C27: =SUM(DataInput!D27,DataInput!Y27) -> 506 | D27: =DataInput!U27 -> 89.6 | E27: =SUM(DataInput!F27,DataInput!AA27) -> 0 | F27: =SUM(DataInput!G27,DataInput!AB27) -> 0 | G27: =SUM(DataInput!H27,DataInput!AC27) -> 0 | H27: =DataInput!W27 -> 53 | I27: =SUM(DataInput!J27,DataInput!AD27) -> 0 | J27: =SUM(DataInput!K27,DataInput!AE27) -> 0 | K27: =SUM(DataInput!L27,DataInput!AF27) -> 0 | L27: =SUM(DataInput!M27,DataInput!AG27) -> 0 | M27: =SUM(DataInput!N27,DataInput!AH27) -> 0 | N27: =SUM(DataInput!O27,DataInput!AI27) -> 0 | O27: =DataInput!P27 -> 0 | R27: 506 | S27: 389 | T27: =DataInput!R27 -> 34 | U27: =DataInput!X27 -> 0 | V27: =IF(DataInput!U27-DataInput!E27>0,DataInput!U27-DataInput!E27,"") -> 25.6 | W27: =IF(DataInput!W27-DataInput!I27>0,DataInput!W27-DataInput!I27,"") -> 53 | Z27: 112.6 | AA27: 276.4 | AB27: 0 | AC27: 0 | AD27: =IF(AC27>0,IFERROR(IF(AVERAGE(DataInput!Q26:Q27)>AVERAGE(AC27,AC26),ROUNDDOWN(((((AC26-AB26)+(AC27-AB27))/2)*(A27-A26))/27,0),IF(((((DataInput!Q27-AB27)+(DataInput!Q26-AB26))/2)*(A27-A26))/27>0,ROUNDDOWN(((((DataInput!Q27-AB26)+(DataInput!Q26-AB26))/2)*(A27-A26))/27,0),0)),0),0) -> 0 | AE27: 0 | AF27: =IFERROR(IF(((((DataInput!Q26-AE26)+(DataInput!Q27-AE27))/2)*(A27-A26))/27>0,ROUNDDOWN(((((DataInput!Q26-AE26)+(DataInput!Q27-AE27))/2)*(A27-A26))/27,0),0),0) -> 34 | AG27: =DataInput!U27 -> 89.6 | AH27: =DataInput!S27 -> 64 | AI27: 64 | AJ27: 0
A28: =IF(DataInput!A28<>"",DataInput!A28,"") -> 4675 | B28: =SUM(DataInput!C28,DataInput!X28)+(DataInput!U28-DataInput!E28) -> 497.8 | C28: =SUM(DataInput!D28,DataInput!Y28) -> 473 | D28: =DataInput!U28 -> 86.8 | E28: =SUM(DataInput!F28,DataInput!AA28) -> 0 | F28: =SUM(DataInput!G28,DataInput!AB28) -> 0 | G28: =SUM(DataInput!H28,DataInput!AC28) -> 0 | H28: =DataInput!W28 -> 53 | I28: =SUM(DataInput!J28,DataInput!AD28) -> 0 | J28: =SUM(DataInput!K28,DataInput!AE28) -> 0 | K28: =SUM(DataInput!L28,DataInput!AF28) -> 0 | L28: =SUM(DataInput!M28,DataInput!AG28) -> 0 | M28: =SUM(DataInput!N28,DataInput!AH28) -> 0 | N28: =SUM(DataInput!O28,DataInput!AI28) -> 0 | O28: =DataInput!P28 -> 0 | R28: 473 | S28: 364 | T28: =DataInput!R28 -> 44 | U28: =DataInput!X28 -> 0 | V28: =IF(DataInput!U28-DataInput!E28>0,DataInput!U28-DataInput!E28,"") -> 24.8 | W28: =IF(DataInput!W28-DataInput!I28>0,DataInput!W28-DataInput!I28,"") -> 53 | Z28: 121.8 | AA28: 242.2 | AB28: 0 | AC28: 0 | AD28: =IF(AC28>0,IFERROR(IF(AVERAGE(DataInput!Q27:Q28)>AVERAGE(AC28,AC27),ROUNDDOWN(((((AC27-AB27)+(AC28-AB28))/2)*(A28-A27))/27,0),IF(((((DataInput!Q28-AB28)+(DataInput!Q27-AB27))/2)*(A28-A27))/27>0,ROUNDDOWN(((((DataInput!Q28-AB27)+(DataInput!Q27-AB27))/2)*(A28-A27))/27,0),0)),0),0) -> 0 | AE28: 0 | AF28: =IFERROR(IF(((((DataInput!Q27-AE27)+(DataInput!Q28-AE28))/2)*(A28-A27))/27>0,ROUNDDOWN(((((DataInput!Q27-AE27)+(DataInput!Q28-AE28))/2)*(A28-A27))/27,0),0),0) -> 43 | AG28: =DataInput!U28 -> 86.8 | AH28: =DataInput!S28 -> 62 | AI28: 62 | AJ28: 0
A29: =IF(DataInput!A29<>"",DataInput!A29,"") -> 4700 | B29: =SUM(DataInput!C29,DataInput!X29)+(DataInput!U29-DataInput!E29) -> 345.8 | C29: =SUM(DataInput!D29,DataInput!Y29) -> 319 | D29: =DataInput!U29 -> 93.8 | E29: =SUM(DataInput!F29,DataInput!AA29) -> 0 | F29: =SUM(DataInput!G29,DataInput!AB29) -> 0 | G29: =SUM(DataInput!H29,DataInput!AC29) -> 0 | H29: =DataInput!W29 -> 53 | I29: =SUM(DataInput!J29,DataInput!AD29) -> 0 | J29: =SUM(DataInput!K29,DataInput!AE29) -> 0 | K29: =SUM(DataInput!L29,DataInput!AF29) -> 0 | L29: =SUM(DataInput!M29,DataInput!AG29) -> 0 | M29: =SUM(DataInput!N29,DataInput!AH29) -> 0 | N29: =SUM(DataInput!O29,DataInput!AI29) -> 0 | O29: =DataInput!P29 -> 0 | R29: 319 | S29: 245 | T29: =DataInput!R29 -> 55 | U29: =DataInput!X29 -> 0 | V29: =IF(DataInput!U29-DataInput!E29>0,DataInput!U29-DataInput!E29,"") -> 26.8 | W29: =IF(DataInput!W29-DataInput!I29>0,DataInput!W29-DataInput!I29,"") -> 53 | Z29: 134.8 | AA29: 110.2 | AB29: 0 | AC29: 0 | AD29: =IF(AC29>0,IFERROR(IF(AVERAGE(DataInput!Q28:Q29)>AVERAGE(AC29,AC28),ROUNDDOWN(((((AC28-AB28)+(AC29-AB29))/2)*(A29-A28))/27,0),IF(((((DataInput!Q29-AB29)+(DataInput!Q28-AB28))/2)*(A29-A28))/27>0,ROUNDDOWN(((((DataInput!Q29-AB28)+(DataInput!Q28-AB28))/2)*(A29-A28))/27,0),0)),0),0) -> 0 | AE29: 0 | AF29: =IFERROR(IF(((((DataInput!Q28-AE28)+(DataInput!Q29-AE29))/2)*(A29-A28))/27>0,ROUNDDOWN(((((DataInput!Q28-AE28)+(DataInput!Q29-AE29))/2)*(A29-A28))/27,0),0),0) -> 54 | AG29: =DataInput!U29 -> 93.8 | AH29: =DataInput!S29 -> 67 | AI29: 67 | AJ29: 0
A30: =IF(DataInput!A30<>"",DataInput!A30,"") -> 4725 | B30: =SUM(DataInput!C30,DataInput!X30)+(DataInput!U30-DataInput!E30) -> 287 | C30: =SUM(DataInput!D30,DataInput!Y30) -> 261 | D30: =DataInput!U30 -> 91 | E30: =SUM(DataInput!F30,DataInput!AA30) -> 0 | F30: =SUM(DataInput!G30,DataInput!AB30) -> 0 | G30: =SUM(DataInput!H30,DataInput!AC30) -> 0 | H30: =DataInput!W30 -> 53 | I30: =SUM(DataInput!J30,DataInput!AD30) -> 0 | J30: =SUM(DataInput!K30,DataInput!AE30) -> 0 | K30: =SUM(DataInput!L30,DataInput!AF30) -> 0 | L30: =SUM(DataInput!M30,DataInput!AG30) -> 0 | M30: =SUM(DataInput!N30,DataInput!AH30) -> 0 | N30: =SUM(DataInput!O30,DataInput!AI30) -> 0 | O30: =DataInput!P30 -> 0 | R30: 261 | S30: 201 | T30: =DataInput!R30 -> 66 | U30: =DataInput!X30 -> 0 | V30: =IF(DataInput!U30-DataInput!E30>0,DataInput!U30-DataInput!E30,"") -> 26 | W30: =IF(DataInput!W30-DataInput!I30>0,DataInput!W30-DataInput!I30,"") -> 53 | Z30: 145 | AA30: 56 | AB30: 0 | AC30: 0 | AD30: =IF(AC30>0,IFERROR(IF(AVERAGE(DataInput!Q29:Q30)>AVERAGE(AC30,AC29),ROUNDDOWN(((((AC29-AB29)+(AC30-AB30))/2)*(A30-A29))/27,0),IF(((((DataInput!Q30-AB30)+(DataInput!Q29-AB29))/2)*(A30-A29))/27>0,ROUNDDOWN(((((DataInput!Q30-AB29)+(DataInput!Q29-AB29))/2)*(A30-A29))/27,0),0)),0),0) -> 0 | AE30: 0 | AF30: =IFERROR(IF(((((DataInput!Q29-AE29)+(DataInput!Q30-AE30))/2)*(A30-A29))/27>0,ROUNDDOWN(((((DataInput!Q29-AE29)+(DataInput!Q30-AE30))/2)*(A30-A29))/27,0),0),0) -> 66 | AG30: =DataInput!U30 -> 91 | AH30: =DataInput!S30 -> 65 | AI30: 65 | AJ30: 0
A31: =IF(DataInput!A31<>"",DataInput!A31,"") -> 4750 | B31: =SUM(DataInput!C31,DataInput!X31)+(DataInput!U31-DataInput!E31) -> 359.6 | C31: =SUM(DataInput!D31,DataInput!Y31) -> 334 | D31: =DataInput!U31 -> 89.6 | E31: =SUM(DataInput!F31,DataInput!AA31) -> 0 | F31: =SUM(DataInput!G31,DataInput!AB31) -> 0 | G31: =SUM(DataInput!H31,DataInput!AC31) -> 0 | H31: =DataInput!W31 -> 53 | I31: =SUM(DataInput!J31,DataInput!AD31) -> 0 | J31: =SUM(DataInput!K31,DataInput!AE31) -> 0 | K31: =SUM(DataInput!L31,DataInput!AF31) -> 0 | L31: =SUM(DataInput!M31,DataInput!AG31) -> 0 | M31: =SUM(DataInput!N31,DataInput!AH31) -> 0 | N31: =SUM(DataInput!O31,DataInput!AI31) -> 0 | O31: =DataInput!P31 -> 0 | R31: 334 | S31: 257 | T31: =DataInput!R31 -> 84 | U31: =DataInput!X31 -> 0 | V31: =IF(DataInput!U31-DataInput!E31>0,DataInput!U31-DataInput!E31,"") -> 25.6 | W31: =IF(DataInput!W31-DataInput!I31>0,DataInput!W31-DataInput!I31,"") -> 53 | Z31: 162.6 | AA31: 94.4 | AB31: 0 | AC31: 0 | AD31: =IF(AC31>0,IFERROR(IF(AVERAGE(DataInput!Q30:Q31)>AVERAGE(AC31,AC30),ROUNDDOWN(((((AC30-AB30)+(AC31-AB31))/2)*(A31-A30))/27,0),IF(((((DataInput!Q31-AB31)+(DataInput!Q30-AB30))/2)*(A31-A30))/27>0,ROUNDDOWN(((((DataInput!Q31-AB30)+(DataInput!Q30-AB30))/2)*(A31-A30))/27,0),0)),0),0) -> 0 | AE31: 0 | AF31: =IFERROR(IF(((((DataInput!Q30-AE30)+(DataInput!Q31-AE31))/2)*(A31-A30))/27>0,ROUNDDOWN(((((DataInput!Q30-AE30)+(DataInput!Q31-AE31))/2)*(A31-A30))/27,0),0),0) -> 84 | AG31: =DataInput!U31 -> 89.6 | AH31: =DataInput!S31 -> 64 | AI31: 64 | AJ31: 0
A32: =IF(DataInput!A32<>"",DataInput!A32,"") -> 4775 | B32: =SUM(DataInput!C32,DataInput!X32)+(DataInput!U32-DataInput!E32) -> 340.2 | C32: =SUM(DataInput!D32,DataInput!Y32) -> 313 | D32: =DataInput!U32 -> 95.2 | E32: =SUM(DataInput!F32,DataInput!AA32) -> 0 | F32: =SUM(DataInput!G32,DataInput!AB32) -> 0 | G32: =SUM(DataInput!H32,DataInput!AC32) -> 0 | H32: =DataInput!W32 -> 53 | I32: =SUM(DataInput!J32,DataInput!AD32) -> 0 | J32: =SUM(DataInput!K32,DataInput!AE32) -> 0 | K32: =SUM(DataInput!L32,DataInput!AF32) -> 0 | L32: =SUM(DataInput!M32,DataInput!AG32) -> 0 | M32: =SUM(DataInput!N32,DataInput!AH32) -> 0 | N32: =SUM(DataInput!O32,DataInput!AI32) -> 0 | O32: =DataInput!P32 -> 0 | R32: 313 | S32: 241 | T32: =DataInput!R32 -> 100 | U32: =DataInput!X32 -> 0 | V32: =IF(DataInput!U32-DataInput!E32>0,DataInput!U32-DataInput!E32,"") -> 27.2 | W32: =IF(DataInput!W32-DataInput!I32>0,DataInput!W32-DataInput!I32,"") -> 53 | Z32: 180.2 | AA32: 60.8 | AB32: 0 | AC32: 0 | AD32: =IF(AC32>0,IFERROR(IF(AVERAGE(DataInput!Q31:Q32)>AVERAGE(AC32,AC31),ROUNDDOWN(((((AC31-AB31)+(AC32-AB32))/2)*(A32-A31))/27,0),IF(((((DataInput!Q32-AB32)+(DataInput!Q31-AB31))/2)*(A32-A31))/27>0,ROUNDDOWN(((((DataInput!Q32-AB31)+(DataInput!Q31-AB31))/2)*(A32-A31))/27,0),0)),0),0) -> 0 | AE32: 0 | AF32: =IFERROR(IF(((((DataInput!Q31-AE31)+(DataInput!Q32-AE32))/2)*(A32-A31))/27>0,ROUNDDOWN(((((DataInput!Q31-AE31)+(DataInput!Q32-AE32))/2)*(A32-A31))/27,0),0),0) -> 100 | AG32: =DataInput!U32 -> 95.2 | AH32: =DataInput!S32 -> 68 | AI32: 68 | AJ32: 0
A33: =IF(DataInput!A33<>"",DataInput!A33,"") -> 4800 | B33: =SUM(DataInput!C33,DataInput!X33)+(DataInput!U33-DataInput!E33) -> 305.8 | C33: =SUM(DataInput!D33,DataInput!Y33) -> 281 | D33: =DataInput!U33 -> 86.8 | E33: =SUM(DataInput!F33,DataInput!AA33) -> 0 | F33: =SUM(DataInput!G33,DataInput!AB33) -> 0 | G33: =SUM(DataInput!H33,DataInput!AC33) -> 0 | H33: =DataInput!W33 -> 53 | I33: =SUM(DataInput!J33,DataInput!AD33) -> 0 | J33: =SUM(DataInput!K33,DataInput!AE33) -> 0 | K33: =SUM(DataInput!L33,DataInput!AF33) -> 0 | L33: =SUM(DataInput!M33,DataInput!AG33) -> 0 | M33: =SUM(DataInput!N33,DataInput!AH33) -> 0 | N33: =SUM(DataInput!O33,DataInput!AI33) -> 0 | O33: =DataInput!P33 -> 0 | R33: 281 | S33: 216 | T33: =DataInput!R33 -> 113 | U33: =DataInput!X33 -> 0 | V33: =IF(DataInput!U33-DataInput!E33>0,DataInput!U33-DataInput!E33,"") -> 24.8 | W33: =IF(DataInput!W33-DataInput!I33>0,DataInput!W33-DataInput!I33,"") -> 53 | Z33: 190.8 | AA33: 25.2 | AB33: 0 | AC33: 0 | AD33: =IF(AC33>0,IFERROR(IF(AVERAGE(DataInput!Q32:Q33)>AVERAGE(AC33,AC32),ROUNDDOWN(((((AC32-AB32)+(AC33-AB33))/2)*(A33-A32))/27,0),IF(((((DataInput!Q33-AB33)+(DataInput!Q32-AB32))/2)*(A33-A32))/27>0,ROUNDDOWN(((((DataInput!Q33-AB32)+(DataInput!Q32-AB32))/2)*(A33-A32))/27,0),0)),0),0) -> 0 | AE33: 0 | AF33: =IFERROR(IF(((((DataInput!Q32-AE32)+(DataInput!Q33-AE33))/2)*(A33-A32))/27>0,ROUNDDOWN(((((DataInput!Q32-AE32)+(DataInput!Q33-AE33))/2)*(A33-A32))/27,0),0),0) -> 112 | AG33: =DataInput!U33 -> 86.8 | AH33: =DataInput!S33 -> 62 | AI33: 62 | AJ33: 0
A34: =IF(DataInput!A34<>"",DataInput!A34,"") -> 4825 | B34: =SUM(DataInput!C34,DataInput!X34)+(DataInput!U34-DataInput!E34) -> 282 | C34: =SUM(DataInput!D34,DataInput!Y34) -> 260 | D34: =DataInput!U34 -> 77 | E34: =SUM(DataInput!F34,DataInput!AA34) -> 0 | F34: =SUM(DataInput!G34,DataInput!AB34) -> 0 | G34: =SUM(DataInput!H34,DataInput!AC34) -> 0 | H34: =DataInput!W34 -> 53 | I34: =SUM(DataInput!J34,DataInput!AD34) -> 0 | J34: =SUM(DataInput!K34,DataInput!AE34) -> 0 | K34: =SUM(DataInput!L34,DataInput!AF34) -> 0 | L34: =SUM(DataInput!M34,DataInput!AG34) -> 0 | M34: =SUM(DataInput!N34,DataInput!AH34) -> 0 | N34: =SUM(DataInput!O34,DataInput!AI34) -> 0 | O34: =DataInput!P34 -> 0 | R34: 260 | S34: 200 | T34: =DataInput!R34 -> 134 | U34: =DataInput!X34 -> 0 | V34: =IF(DataInput!U34-DataInput!E34>0,DataInput!U34-DataInput!E34,"") -> 22 | W34: =IF(DataInput!W34-DataInput!I34>0,DataInput!W34-DataInput!I34,"") -> 53 | Z34: 209 | AA34: -9 | AB34: 0 | AC34: 0 | AD34: =IF(AC34>0,IFERROR(IF(AVERAGE(DataInput!Q33:Q34)>AVERAGE(AC34,AC33),ROUNDDOWN(((((AC33-AB33)+(AC34-AB34))/2)*(A34-A33))/27,0),IF(((((DataInput!Q34-AB34)+(DataInput!Q33-AB33))/2)*(A34-A33))/27>0,ROUNDDOWN(((((DataInput!Q34-AB33)+(DataInput!Q33-AB33))/2)*(A34-A33))/27,0),0)),0),0) -> 0 | AE34: 0 | AF34: =IFERROR(IF(((((DataInput!Q33-AE33)+(DataInput!Q34-AE34))/2)*(A34-A33))/27>0,ROUNDDOWN(((((DataInput!Q33-AE33)+(DataInput!Q34-AE34))/2)*(A34-A33))/27,0),0),0) -> 134 | AG34: =DataInput!U34 -> 77 | AH34: =DataInput!S34 -> 55 | AI34: 55 | AJ34: 0
A35: =IF(DataInput!A35<>"",DataInput!A35,"") -> 4850 | B35: =SUM(DataInput!C35,DataInput!X35)+(DataInput!U35-DataInput!E35) -> 282.2 | C35: =SUM(DataInput!D35,DataInput!Y35) -> 263 | D35: =DataInput!U35 -> 67.2 | E35: =SUM(DataInput!F35,DataInput!AA35) -> 0 | F35: =SUM(DataInput!G35,DataInput!AB35) -> 0 | G35: =SUM(DataInput!H35,DataInput!AC35) -> 0 | H35: =DataInput!W35 -> 53 | I35: =SUM(DataInput!J35,DataInput!AD35) -> 0 | J35: =SUM(DataInput!K35,DataInput!AE35) -> 0 | K35: =SUM(DataInput!L35,DataInput!AF35) -> 0 | L35: =SUM(DataInput!M35,DataInput!AG35) -> 0 | M35: =SUM(DataInput!N35,DataInput!AH35) -> 0 | N35: =SUM(DataInput!O35,DataInput!AI35) -> 0 | O35: =DataInput!P35 -> 0 | R35: 263 | S35: 202 | T35: =DataInput!R35 -> 175 | U35: =DataInput!X35 -> 0 | V35: =IF(DataInput!U35-DataInput!E35>0,DataInput!U35-DataInput!E35,"") -> 19.2 | W35: =IF(DataInput!W35-DataInput!I35>0,DataInput!W35-DataInput!I35,"") -> 53 | Z35: 247.2 | AA35: -45.2 | AB35: 0 | AC35: 0 | AD35: =IF(AC35>0,IFERROR(IF(AVERAGE(DataInput!Q34:Q35)>AVERAGE(AC35,AC34),ROUNDDOWN(((((AC34-AB34)+(AC35-AB35))/2)*(A35-A34))/27,0),IF(((((DataInput!Q35-AB35)+(DataInput!Q34-AB34))/2)*(A35-A34))/27>0,ROUNDDOWN(((((DataInput!Q35-AB34)+(DataInput!Q34-AB34))/2)*(A35-A34))/27,0),0)),0),0) -> 0 | AE35: 0 | AF35: =IFERROR(IF(((((DataInput!Q34-AE34)+(DataInput!Q35-AE35))/2)*(A35-A34))/27>0,ROUNDDOWN(((((DataInput!Q34-AE34)+(DataInput!Q35-AE35))/2)*(A35-A34))/27,0),0),0) -> 175 | AG35: =DataInput!U35 -> 67.2 | AH35: =DataInput!S35 -> 48 | AI35: 48 | AJ35: 0
A36: =IF(DataInput!A36<>"",DataInput!A36,"") -> 4875 | B36: =SUM(DataInput!C36,DataInput!X36)+(DataInput!U36-DataInput!E36) -> 322.6 | C36: =SUM(DataInput!D36,DataInput!Y36) -> 301 | D36: =DataInput!U36 -> 75.6 | E36: =SUM(DataInput!F36,DataInput!AA36) -> 0 | F36: =SUM(DataInput!G36,DataInput!AB36) -> 0 | G36: =SUM(DataInput!H36,DataInput!AC36) -> 0 | H36: =DataInput!W36 -> 53 | I36: =SUM(DataInput!J36,DataInput!AD36) -> 0 | J36: =SUM(DataInput!K36,DataInput!AE36) -> 0 | K36: =SUM(DataInput!L36,DataInput!AF36) -> 0 | L36: =SUM(DataInput!M36,DataInput!AG36) -> 0 | M36: =SUM(DataInput!N36,DataInput!AH36) -> 0 | N36: =SUM(DataInput!O36,DataInput!AI36) -> 0 | O36: =DataInput!P36 -> 0 | R36: 301 | S36: 232 | T36: =DataInput!R36 -> 218 | U36: =DataInput!X36 -> 0 | V36: =IF(DataInput!U36-DataInput!E36>0,DataInput!U36-DataInput!E36,"") -> 21.6 | W36: =IF(DataInput!W36-DataInput!I36>0,DataInput!W36-DataInput!I36,"") -> 53 | Z36: 292.6 | AA36: -60.6 | AB36: 0 | AC36: 0 | AD36: =IF(AC36>0,IFERROR(IF(AVERAGE(DataInput!Q35:Q36)>AVERAGE(AC36,AC35),ROUNDDOWN(((((AC35-AB35)+(AC36-AB36))/2)*(A36-A35))/27,0),IF(((((DataInput!Q36-AB36)+(DataInput!Q35-AB35))/2)*(A36-A35))/27>0,ROUNDDOWN(((((DataInput!Q36-AB35)+(DataInput!Q35-AB35))/2)*(A36-A35))/27,0),0)),0),0) -> 0 | AE36: 0 | AF36: =IFERROR(IF(((((DataInput!Q35-AE35)+(DataInput!Q36-AE36))/2)*(A36-A35))/27>0,ROUNDDOWN(((((DataInput!Q35-AE35)+(DataInput!Q36-AE36))/2)*(A36-A35))/27,0),0),0) -> 218 | AG36: =DataInput!U36 -> 75.6 | AH36: =DataInput!S36 -> 54 | AI36: 54 | AJ36: 0
A37: =IF(DataInput!A37<>"",DataInput!A37,"") -> 4900 | B37: =SUM(DataInput!C37,DataInput!X37)+(DataInput!U37-DataInput!E37) -> 361.6 | C37: =SUM(DataInput!D37,DataInput!Y37) -> 336 | D37: =DataInput!U37 -> 89.6 | E37: =SUM(DataInput!F37,DataInput!AA37) -> 0 | F37: =SUM(DataInput!G37,DataInput!AB37) -> 0 | G37: =SUM(DataInput!H37,DataInput!AC37) -> 0 | H37: =DataInput!W37 -> 53 | I37: =SUM(DataInput!J37,DataInput!AD37) -> 0 | J37: =SUM(DataInput!K37,DataInput!AE37) -> 0 | K37: =SUM(DataInput!L37,DataInput!AF37) -> 0 | L37: =SUM(DataInput!M37,DataInput!AG37) -> 0 | M37: =SUM(DataInput!N37,DataInput!AH37) -> 0 | N37: =SUM(DataInput!O37,DataInput!AI37) -> 0 | O37: =DataInput!P37 -> 0 | R37: 336 | S37: 258 | T37: =DataInput!R37 -> 252 | U37: =DataInput!X37 -> 0 | V37: =IF(DataInput!U37-DataInput!E37>0,DataInput!U37-DataInput!E37,"") -> 25.6 | W37: =IF(DataInput!W37-DataInput!I37>0,DataInput!W37-DataInput!I37,"") -> 53 | Z37: 330.6 | AA37: -72.6 | AB37: 0 | AC37: 0 | AD37: =IF(AC37>0,IFERROR(IF(AVERAGE(DataInput!Q36:Q37)>AVERAGE(AC37,AC36),ROUNDDOWN(((((AC36-AB36)+(AC37-AB37))/2)*(A37-A36))/27,0),IF(((((DataInput!Q37-AB37)+(DataInput!Q36-AB36))/2)*(A37-A36))/27>0,ROUNDDOWN(((((DataInput!Q37-AB36)+(DataInput!Q36-AB36))/2)*(A37-A36))/27,0),0)),0),0) -> 0 | AE37: 0 | AF37: =IFERROR(IF(((((DataInput!Q36-AE36)+(DataInput!Q37-AE37))/2)*(A37-A36))/27>0,ROUNDDOWN(((((DataInput!Q36-AE36)+(DataInput!Q37-AE37))/2)*(A37-A36))/27,0),0),0) -> 252 | AG37: =DataInput!U37 -> 89.6 | AH37: =DataInput!S37 -> 64 | AI37: 64 | AJ37: 0
A38: =IF(DataInput!A38<>"",DataInput!A38,"") -> 4925 | B38: =SUM(DataInput!C38,DataInput!X38)+(DataInput!U38-DataInput!E38) -> 392.4 | C38: =SUM(DataInput!D38,DataInput!Y38) -> 366 | D38: =DataInput!U38 -> 92.4 | E38: =SUM(DataInput!F38,DataInput!AA38) -> 0 | F38: =SUM(DataInput!G38,DataInput!AB38) -> 0 | G38: =SUM(DataInput!H38,DataInput!AC38) -> 0 | H38: =DataInput!W38 -> 53 | I38: =SUM(DataInput!J38,DataInput!AD38) -> 0 | J38: =SUM(DataInput!K38,DataInput!AE38) -> 0 | K38: =SUM(DataInput!L38,DataInput!AF38) -> 0 | L38: =SUM(DataInput!M38,DataInput!AG38) -> 0 | M38: =SUM(DataInput!N38,DataInput!AH38) -> 0 | N38: =SUM(DataInput!O38,DataInput!AI38) -> 0 | O38: =DataInput!P38 -> 0 | R38: 366 | S38: 282 | T38: =DataInput!R38 -> 282 | U38: =DataInput!X38 -> 0 | V38: =IF(DataInput!U38-DataInput!E38>0,DataInput!U38-DataInput!E38,"") -> 26.4 | W38: =IF(DataInput!W38-DataInput!I38>0,DataInput!W38-DataInput!I38,"") -> 53 | Z38: 361.4 | AA38: -79.4 | AB38: 0 | AC38: 0 | AD38: =IF(AC38>0,IFERROR(IF(AVERAGE(DataInput!Q37:Q38)>AVERAGE(AC38,AC37),ROUNDDOWN(((((AC37-AB37)+(AC38-AB38))/2)*(A38-A37))/27,0),IF(((((DataInput!Q38-AB38)+(DataInput!Q37-AB37))/2)*(A38-A37))/27>0,ROUNDDOWN(((((DataInput!Q38-AB37)+(DataInput!Q37-AB37))/2)*(A38-A37))/27,0),0)),0),0) -> 0 | AE38: 0 | AF38: =IFERROR(IF(((((DataInput!Q37-AE37)+(DataInput!Q38-AE38))/2)*(A38-A37))/27>0,ROUNDDOWN(((((DataInput!Q37-AE37)+(DataInput!Q38-AE38))/2)*(A38-A37))/27,0),0),0) -> 282 | AG38: =DataInput!U38 -> 92.4 | AH38: =DataInput!S38 -> 66 | AI38: 66 | AJ38: 0
A39: =IF(DataInput!A39<>"",DataInput!A39,"") -> 4950 | B39: =SUM(DataInput!C39,DataInput!X39)+(DataInput!U39-DataInput!E39) -> 414.8 | C39: =SUM(DataInput!D39,DataInput!Y39) -> 388 | D39: =DataInput!U39 -> 93.8 | E39: =SUM(DataInput!F39,DataInput!AA39) -> 0 | F39: =SUM(DataInput!G39,DataInput!AB39) -> 0 | G39: =SUM(DataInput!H39,DataInput!AC39) -> 0 | H39: =DataInput!W39 -> 53 | I39: =SUM(DataInput!J39,DataInput!AD39) -> 0 | J39: =SUM(DataInput!K39,DataInput!AE39) -> 0 | K39: =SUM(DataInput!L39,DataInput!AF39) -> 0 | L39: =SUM(DataInput!M39,DataInput!AG39) -> 0 | M39: =SUM(DataInput!N39,DataInput!AH39) -> 0 | N39: =SUM(DataInput!O39,DataInput!AI39) -> 0 | O39: =DataInput!P39 -> 0 | R39: 388 | S39: 298 | T39: =DataInput!R39 -> 326 | U39: =DataInput!X39 -> 0 | V39: =IF(DataInput!U39-DataInput!E39>0,DataInput!U39-DataInput!E39,"") -> 26.8 | W39: =IF(DataInput!W39-DataInput!I39>0,DataInput!W39-DataInput!I39,"") -> 53 | Z39: 405.8 | AA39: -107.8 | AB39: 0 | AC39: 0 | AD39: =IF(AC39>0,IFERROR(IF(AVERAGE(DataInput!Q38:Q39)>AVERAGE(AC39,AC38),ROUNDDOWN(((((AC38-AB38)+(AC39-AB39))/2)*(A39-A38))/27,0),IF(((((DataInput!Q39-AB39)+(DataInput!Q38-AB38))/2)*(A39-A38))/27>0,ROUNDDOWN(((((DataInput!Q39-AB38)+(DataInput!Q38-AB38))/2)*(A39-A38))/27,0),0)),0),0) -> 0 | AE39: 0 | AF39: =IFERROR(IF(((((DataInput!Q38-AE38)+(DataInput!Q39-AE39))/2)*(A39-A38))/27>0,ROUNDDOWN(((((DataInput!Q38-AE38)+(DataInput!Q39-AE39))/2)*(A39-A38))/27,0),0),0) -> 325 | AG39: =DataInput!U39 -> 93.8 | AH39: =DataInput!S39 -> 67 | AI39: 67 | AJ39: 0
A40: =IF(DataInput!A40<>"",DataInput!A40,"") -> 4975 | B40: =SUM(DataInput!C40,DataInput!X40)+(DataInput!U40-DataInput!E40) -> 403.4 | C40: =SUM(DataInput!D40,DataInput!Y40) -> 377 | D40: =DataInput!U40 -> 92.4 | E40: =SUM(DataInput!F40,DataInput!AA40) -> 0 | F40: =SUM(DataInput!G40,DataInput!AB40) -> 0 | G40: =SUM(DataInput!H40,DataInput!AC40) -> 0 | H40: =DataInput!W40 -> 53 | I40: =SUM(DataInput!J40,DataInput!AD40) -> 0 | J40: =SUM(DataInput!K40,DataInput!AE40) -> 0 | K40: =SUM(DataInput!L40,DataInput!AF40) -> 0 | L40: =SUM(DataInput!M40,DataInput!AG40) -> 0 | M40: =SUM(DataInput!N40,DataInput!AH40) -> 0 | N40: =SUM(DataInput!O40,DataInput!AI40) -> 0 | O40: =DataInput!P40 -> 0 | R40: 377 | S40: 290 | T40: =DataInput!R40 -> 373 | U40: =DataInput!X40 -> 0 | V40: =IF(DataInput!U40-DataInput!E40>0,DataInput!U40-DataInput!E40,"") -> 26.4 | W40: =IF(DataInput!W40-DataInput!I40>0,DataInput!W40-DataInput!I40,"") -> 53 | Z40: 452.4 | AA40: -162.4 | AB40: 0 | AC40: 0 | AD40: =IF(AC40>0,IFERROR(IF(AVERAGE(DataInput!Q39:Q40)>AVERAGE(AC40,AC39),ROUNDDOWN(((((AC39-AB39)+(AC40-AB40))/2)*(A40-A39))/27,0),IF(((((DataInput!Q40-AB40)+(DataInput!Q39-AB39))/2)*(A40-A39))/27>0,ROUNDDOWN(((((DataInput!Q40-AB39)+(DataInput!Q39-AB39))/2)*(A40-A39))/27,0),0)),0),0) -> 0 | AE40: 0 | AF40: =IFERROR(IF(((((DataInput!Q39-AE39)+(DataInput!Q40-AE40))/2)*(A40-A39))/27>0,ROUNDDOWN(((((DataInput!Q39-AE39)+(DataInput!Q40-AE40))/2)*(A40-A39))/27,0),0),0) -> 372 | AG40: =DataInput!U40 -> 92.4 | AH40: =DataInput!S40 -> 66 | AI40: 66 | AJ40: 0
A41: =IF(DataInput!A41<>"",DataInput!A41,"") -> 5000 | B41: =SUM(DataInput!C41,DataInput!X41)+(DataInput!U41-DataInput!E41) -> 327 | C41: =SUM(DataInput!D41,DataInput!Y41) -> 301 | D41: =DataInput!U41 -> 91 | E41: =SUM(DataInput!F41,DataInput!AA41) -> 0 | F41: =SUM(DataInput!G41,DataInput!AB41) -> 0 | G41: =SUM(DataInput!H41,DataInput!AC41) -> 0 | H41: =DataInput!W41 -> 56 | I41: =SUM(DataInput!J41,DataInput!AD41) -> 0 | J41: =SUM(DataInput!K41,DataInput!AE41) -> 0 | K41: =SUM(DataInput!L41,DataInput!AF41) -> 0 | L41: =SUM(DataInput!M41,DataInput!AG41) -> 0 | M41: =SUM(DataInput!N41,DataInput!AH41) -> 0 | N41: =SUM(DataInput!O41,DataInput!AI41) -> 0 | O41: =DataInput!P41 -> 0 | R41: 301 | S41: 232 | T41: =DataInput!R41 -> 398 | U41: =DataInput!X41 -> 0 | V41: =IF(DataInput!U41-DataInput!E41>0,DataInput!U41-DataInput!E41,"") -> 26 | W41: =IF(DataInput!W41-DataInput!I41>0,DataInput!W41-DataInput!I41,"") -> 56 | Z41: 480 | AA41: -248 | AB41: 0 | AC41: 0 | AD41: =IF(AC41>0,IFERROR(IF(AVERAGE(DataInput!Q40:Q41)>AVERAGE(AC41,AC40),ROUNDDOWN(((((AC40-AB40)+(AC41-AB41))/2)*(A41-A40))/27,0),IF(((((DataInput!Q41-AB41)+(DataInput!Q40-AB40))/2)*(A41-A40))/27>0,ROUNDDOWN(((((DataInput!Q41-AB40)+(DataInput!Q40-AB40))/2)*(A41-A40))/27,0),0)),0),0) -> 0 | AE41: 0 | AF41: =IFERROR(IF(((((DataInput!Q40-AE40)+(DataInput!Q41-AE41))/2)*(A41-A40))/27>0,ROUNDDOWN(((((DataInput!Q40-AE40)+(DataInput!Q41-AE41))/2)*(A41-A40))/27,0),0),0) -> 398 | AG41: =DataInput!U41 -> 91 | AH41: =DataInput!S41 -> 65 | AI41: 65 | AJ41: 0
A42: =IF(DataInput!A42<>"",DataInput!A42,"") -> 5025 | B42: =SUM(DataInput!C42,DataInput!X42)+(DataInput!U42-DataInput!E42) -> 201 | C42: =SUM(DataInput!D42,DataInput!Y42) -> 177 | D42: =DataInput!U42 -> 84 | E42: =SUM(DataInput!F42,DataInput!AA42) -> 0 | F42: =SUM(DataInput!G42,DataInput!AB42) -> 0 | G42: =SUM(DataInput!H42,DataInput!AC42) -> 0 | H42: =DataInput!W42 -> 57 | I42: =SUM(DataInput!J42,DataInput!AD42) -> 0 | J42: =SUM(DataInput!K42,DataInput!AE42) -> 0 | K42: =SUM(DataInput!L42,DataInput!AF42) -> 0 | L42: =SUM(DataInput!M42,DataInput!AG42) -> 0 | M42: =SUM(DataInput!N42,DataInput!AH42) -> 0 | N42: =SUM(DataInput!O42,DataInput!AI42) -> 0 | O42: =DataInput!P42 -> 0 | R42: 177 | S42: 136 | T42: =DataInput!R42 -> 430 | U42: =DataInput!X42 -> 0 | V42: =IF(DataInput!U42-DataInput!E42>0,DataInput!U42-DataInput!E42,"") -> 24 | W42: =IF(DataInput!W42-DataInput!I42>0,DataInput!W42-DataInput!I42,"") -> 57 | Z42: 511 | AA42: -375 | AB42: 0 | AC42: 0 | AD42: =IF(AC42>0,IFERROR(IF(AVERAGE(DataInput!Q41:Q42)>AVERAGE(AC42,AC41),ROUNDDOWN(((((AC41-AB41)+(AC42-AB42))/2)*(A42-A41))/27,0),IF(((((DataInput!Q42-AB42)+(DataInput!Q41-AB41))/2)*(A42-A41))/27>0,ROUNDDOWN(((((DataInput!Q42-AB41)+(DataInput!Q41-AB41))/2)*(A42-A41))/27,0),0)),0),0) -> 0 | AE42: 0 | AF42: =IFERROR(IF(((((DataInput!Q41-AE41)+(DataInput!Q42-AE42))/2)*(A42-A41))/27>0,ROUNDDOWN(((((DataInput!Q41-AE41)+(DataInput!Q42-AE42))/2)*(A42-A41))/27,0),0),0) -> 430 | AG42: =DataInput!U42 -> 84 | AH42: =DataInput!S42 -> 60 | AI42: 60 | AJ42: 0
A43: =IF(DataInput!A43<>"",DataInput!A43,"") -> 5050 | B43: =SUM(DataInput!C43,DataInput!X43)+(DataInput!U43-DataInput!E43) -> 98.4 | C43: =SUM(DataInput!D43,DataInput!Y43) -> 76 | D43: =DataInput!U43 -> 78.4 | E43: =SUM(DataInput!F43,DataInput!AA43) -> 0 | F43: =SUM(DataInput!G43,DataInput!AB43) -> 0 | G43: =SUM(DataInput!H43,DataInput!AC43) -> 0 | H43: =DataInput!W43 -> 55 | I43: =SUM(DataInput!J43,DataInput!AD43) -> 0 | J43: =SUM(DataInput!K43,DataInput!AE43) -> 0 | K43: =SUM(DataInput!L43,DataInput!AF43) -> 0 | L43: =SUM(DataInput!M43,DataInput!AG43) -> 0 | M43: =SUM(DataInput!N43,DataInput!AH43) -> 0 | N43: =SUM(DataInput!O43,DataInput!AI43) -> 0 | O43: =DataInput!P43 -> 0 | R43: 76 | S43: 58 | T43: =DataInput!R43 -> 487 | U43: =DataInput!X43 -> 0 | V43: =IF(DataInput!U43-DataInput!E43>0,DataInput!U43-DataInput!E43,"") -> 22.4 | W43: =IF(DataInput!W43-DataInput!I43>0,DataInput!W43-DataInput!I43,"") -> 55 | Z43: 564.4 | AA43: -506.4 | AB43: 0 | AC43: 0 | AD43: =IF(AC43>0,IFERROR(IF(AVERAGE(DataInput!Q42:Q43)>AVERAGE(AC43,AC42),ROUNDDOWN(((((AC42-AB42)+(AC43-AB43))/2)*(A43-A42))/27,0),IF(((((DataInput!Q43-AB43)+(DataInput!Q42-AB42))/2)*(A43-A42))/27>0,ROUNDDOWN(((((DataInput!Q43-AB42)+(DataInput!Q42-AB42))/2)*(A43-A42))/27,0),0)),0),0) -> 0 | AE43: 0 | AF43: =IFERROR(IF(((((DataInput!Q42-AE42)+(DataInput!Q43-AE43))/2)*(A43-A42))/27>0,ROUNDDOWN(((((DataInput!Q42-AE42)+(DataInput!Q43-AE43))/2)*(A43-A42))/27,0),0),0) -> 487 | AG43: =DataInput!U43 -> 78.4 | AH43: =DataInput!S43 -> 56 | AI43: 56 | AJ43: 0
A44: =IF(DataInput!A44<>"",DataInput!A44,"") -> 5075 | B44: =SUM(DataInput!C44,DataInput!X44)+(DataInput!U44-DataInput!E44) -> 49.8 | C44: =SUM(DataInput!D44,DataInput!Y44) -> 23 | D44: =DataInput!U44 -> 93.8 | E44: =SUM(DataInput!F44,DataInput!AA44) -> 0 | F44: =SUM(DataInput!G44,DataInput!AB44) -> 0 | G44: =SUM(DataInput!H44,DataInput!AC44) -> 0 | H44: =DataInput!W44 -> 51 | I44: =SUM(DataInput!J44,DataInput!AD44) -> 0 | J44: =SUM(DataInput!K44,DataInput!AE44) -> 0 | K44: =SUM(DataInput!L44,DataInput!AF44) -> 0 | L44: =SUM(DataInput!M44,DataInput!AG44) -> 0 | M44: =SUM(DataInput!N44,DataInput!AH44) -> 0 | N44: =SUM(DataInput!O44,DataInput!AI44) -> 0 | O44: =DataInput!P44 -> 0 | R44: 23 | S44: 18 | T44: =DataInput!R44 -> 884 | U44: =DataInput!X44 -> 0 | V44: =IF(DataInput!U44-DataInput!E44>0,DataInput!U44-DataInput!E44,"") -> 26.8 | W44: =IF(DataInput!W44-DataInput!I44>0,DataInput!W44-DataInput!I44,"") -> 51 | Z44: 961.8 | AA44: -943.8 | AB44: 0 | AC44: 0 | AD44: =IF(AC44>0,IFERROR(IF(AVERAGE(DataInput!Q43:Q44)>AVERAGE(AC44,AC43),ROUNDDOWN(((((AC43-AB43)+(AC44-AB44))/2)*(A44-A43))/27,0),IF(((((DataInput!Q44-AB44)+(DataInput!Q43-AB43))/2)*(A44-A43))/27>0,ROUNDDOWN(((((DataInput!Q44-AB43)+(DataInput!Q43-AB43))/2)*(A44-A43))/27,0),0)),0),0) -> 0 | AE44: 0 | AF44: =IFERROR(IF(((((DataInput!Q43-AE43)+(DataInput!Q44-AE44))/2)*(A44-A43))/27>0,ROUNDDOWN(((((DataInput!Q43-AE43)+(DataInput!Q44-AE44))/2)*(A44-A43))/27,0),0),0) -> 884 | AG44: =DataInput!U44 -> 93.8 | AH44: =DataInput!S44 -> 67 | AI44: 67 | AJ44: 0
A45: =IF(DataInput!A45<>"",DataInput!A45,"") -> 5300 | B45: =SUM(DataInput!C45,DataInput!X45)+(DataInput!U45-DataInput!E45) -> 32.2 | C45: =SUM(DataInput!D45,DataInput!Y45) -> 1 | D45: =DataInput!U45 -> 109.2 | E45: =SUM(DataInput!F45,DataInput!AA45) -> 0 | F45: =SUM(DataInput!G45,DataInput!AB45) -> 0 | G45: =SUM(DataInput!H45,DataInput!AC45) -> 0 | H45: =DataInput!W45 -> 49 | I45: =SUM(DataInput!J45,DataInput!AD45) -> 0 | J45: =SUM(DataInput!K45,DataInput!AE45) -> 0 | K45: =SUM(DataInput!L45,DataInput!AF45) -> 0 | L45: =SUM(DataInput!M45,DataInput!AG45) -> 0 | M45: =SUM(DataInput!N45,DataInput!AH45) -> 0 | N45: =SUM(DataInput!O45,DataInput!AI45) -> 0 | O45: =DataInput!P45 -> 0 | R45: 1 | S45: 1 | T45: =DataInput!R45 -> 1215 | U45: =DataInput!X45 -> 0 | V45: =IF(DataInput!U45-DataInput!E45>0,DataInput!U45-DataInput!E45,"") -> 31.2 | W45: =IF(DataInput!W45-DataInput!I45>0,DataInput!W45-DataInput!I45,"") -> 49 | Z45: 1295.2 | AA45: -1294.2 | AB45: 0 | AC45: 0 | AD45: =IF(AC45>0,IFERROR(IF(AVERAGE(DataInput!Q44:Q45)>AVERAGE(AC45,AC44),ROUNDDOWN(((((AC44-AB44)+(AC45-AB45))/2)*(A45-A44))/27,0),IF(((((DataInput!Q45-AB45)+(DataInput!Q44-AB44))/2)*(A45-A44))/27>0,ROUNDDOWN(((((DataInput!Q45-AB44)+(DataInput!Q44-AB44))/2)*(A45-A44))/27,0),0)),0),0) -> 0 | AE45: 0 | AF45: =IFERROR(IF(((((DataInput!Q44-AE44)+(DataInput!Q45-AE45))/2)*(A45-A44))/27>0,ROUNDDOWN(((((DataInput!Q44-AE44)+(DataInput!Q45-AE45))/2)*(A45-A44))/27,0),0),0) -> 10937 | AG45: =DataInput!U45 -> 109.2 | AH45: =DataInput!S45 -> 78 | AI45: 78 | AJ45: 0
A46: =IF(DataInput!A46<>"",DataInput!A46,"") -> 5325 | B46: =SUM(DataInput!C46,DataInput!X46)+(DataInput!U46-DataInput!E46) -> 31.4 | C46: =SUM(DataInput!D46,DataInput!Y46) -> 1 | D46: =DataInput!U46 -> 106.4 | E46: =SUM(DataInput!F46,DataInput!AA46) -> 0 | F46: =SUM(DataInput!G46,DataInput!AB46) -> 0 | G46: =SUM(DataInput!H46,DataInput!AC46) -> 0 | H46: =DataInput!W46 -> 50 | I46: =SUM(DataInput!J46,DataInput!AD46) -> 0 | J46: =SUM(DataInput!K46,DataInput!AE46) -> 0 | K46: =SUM(DataInput!L46,DataInput!AF46) -> 0 | L46: =SUM(DataInput!M46,DataInput!AG46) -> 0 | M46: =SUM(DataInput!N46,DataInput!AH46) -> 0 | N46: =SUM(DataInput!O46,DataInput!AI46) -> 0 | O46: =DataInput!P46 -> 0 | R46: 1 | S46: 1 | T46: =DataInput!R46 -> 1155 | U46: =DataInput!X46 -> 0 | V46: =IF(DataInput!U46-DataInput!E46>0,DataInput!U46-DataInput!E46,"") -> 30.4 | W46: =IF(DataInput!W46-DataInput!I46>0,DataInput!W46-DataInput!I46,"") -> 50 | Z46: 1235.4 | AA46: -1234.4 | AB46: 0 | AC46: 0 | AD46: =IF(AC46>0,IFERROR(IF(AVERAGE(DataInput!Q45:Q46)>AVERAGE(AC46,AC45),ROUNDDOWN(((((AC45-AB45)+(AC46-AB46))/2)*(A46-A45))/27,0),IF(((((DataInput!Q46-AB46)+(DataInput!Q45-AB45))/2)*(A46-A45))/27>0,ROUNDDOWN(((((DataInput!Q46-AB45)+(DataInput!Q45-AB45))/2)*(A46-A45))/27,0),0)),0),0) -> 0 | AE46: 0 | AF46: =IFERROR(IF(((((DataInput!Q45-AE45)+(DataInput!Q46-AE46))/2)*(A46-A45))/27>0,ROUNDDOWN(((((DataInput!Q45-AE45)+(DataInput!Q46-AE46))/2)*(A46-A45))/27,0),0),0) -> 1154 | AG46: =DataInput!U46 -> 106.4 | AH46: =DataInput!S46 -> 76 | AI46: 76 | AJ46: 0
A47: =IF(DataInput!A47<>"",DataInput!A47,"") -> 5350 | B47: =SUM(DataInput!C47,DataInput!X47)+(DataInput!U47-DataInput!E47) -> 31 | C47: =SUM(DataInput!D47,DataInput!Y47) -> 1 | D47: =DataInput!U47 -> 105 | E47: =SUM(DataInput!F47,DataInput!AA47) -> 0 | F47: =SUM(DataInput!G47,DataInput!AB47) -> 0 | G47: =SUM(DataInput!H47,DataInput!AC47) -> 0 | H47: =DataInput!W47 -> 52 | I47: =SUM(DataInput!J47,DataInput!AD47) -> 0 | J47: =SUM(DataInput!K47,DataInput!AE47) -> 0 | K47: =SUM(DataInput!L47,DataInput!AF47) -> 0 | L47: =SUM(DataInput!M47,DataInput!AG47) -> 0 | M47: =SUM(DataInput!N47,DataInput!AH47) -> 0 | N47: =SUM(DataInput!O47,DataInput!AI47) -> 0 | O47: =DataInput!P47 -> 0 | R47: 1 | S47: 1 | T47: =DataInput!R47 -> 1126 | U47: =DataInput!X47 -> 0 | V47: =IF(DataInput!U47-DataInput!E47>0,DataInput!U47-DataInput!E47,"") -> 30 | W47: =IF(DataInput!W47-DataInput!I47>0,DataInput!W47-DataInput!I47,"") -> 52 | Z47: 1208 | AA47: -1207 | AB47: 0 | AC47: 0 | AD47: =IF(AC47>0,IFERROR(IF(AVERAGE(DataInput!Q46:Q47)>AVERAGE(AC47,AC46),ROUNDDOWN(((((AC46-AB46)+(AC47-AB47))/2)*(A47-A46))/27,0),IF(((((DataInput!Q47-AB47)+(DataInput!Q46-AB46))/2)*(A47-A46))/27>0,ROUNDDOWN(((((DataInput!Q47-AB46)+(DataInput!Q46-AB46))/2)*(A47-A46))/27,0),0)),0),0) -> 0 | AE47: 0 | AF47: =IFERROR(IF(((((DataInput!Q46-AE46)+(DataInput!Q47-AE47))/2)*(A47-A46))/27>0,ROUNDDOWN(((((DataInput!Q46-AE46)+(DataInput!Q47-AE47))/2)*(A47-A46))/27,0),0),0) -> 1126 | AG47: =DataInput!U47 -> 105 | AH47: =DataInput!S47 -> 75 | AI47: 75 | AJ47: 0
A48: =IF(DataInput!A48<>"",DataInput!A48,"") -> 5375 | B48: =SUM(DataInput!C48,DataInput!X48)+(DataInput!U48-DataInput!E48) -> 30.6 | C48: =SUM(DataInput!D48,DataInput!Y48) -> 1 | D48: =DataInput!U48 -> 103.6 | E48: =SUM(DataInput!F48,DataInput!AA48) -> 0 | F48: =SUM(DataInput!G48,DataInput!AB48) -> 0 | G48: =SUM(DataInput!H48,DataInput!AC48) -> 0 | H48: =DataInput!W48 -> 53 | I48: =SUM(DataInput!J48,DataInput!AD48) -> 0 | J48: =SUM(DataInput!K48,DataInput!AE48) -> 0 | K48: =SUM(DataInput!L48,DataInput!AF48) -> 0 | L48: =SUM(DataInput!M48,DataInput!AG48) -> 0 | M48: =SUM(DataInput!N48,DataInput!AH48) -> 0 | N48: =SUM(DataInput!O48,DataInput!AI48) -> 0 | O48: =DataInput!P48 -> 0 | R48: 1 | S48: 1 | T48: =DataInput!R48 -> 1045 | U48: =DataInput!X48 -> 0 | V48: =IF(DataInput!U48-DataInput!E48>0,DataInput!U48-DataInput!E48,"") -> 29.6 | W48: =IF(DataInput!W48-DataInput!I48>0,DataInput!W48-DataInput!I48,"") -> 53 | Z48: 1127.6 | AA48: -1126.6 | AB48: 0 | AC48: 0 | AD48: =IF(AC48>0,IFERROR(IF(AVERAGE(DataInput!Q47:Q48)>AVERAGE(AC48,AC47),ROUNDDOWN(((((AC47-AB47)+(AC48-AB48))/2)*(A48-A47))/27,0),IF(((((DataInput!Q48-AB48)+(DataInput!Q47-AB47))/2)*(A48-A47))/27>0,ROUNDDOWN(((((DataInput!Q48-AB47)+(DataInput!Q47-AB47))/2)*(A48-A47))/27,0),0)),0),0) -> 0 | AE48: 0 | AF48: =IFERROR(IF(((((DataInput!Q47-AE47)+(DataInput!Q48-AE48))/2)*(A48-A47))/27>0,ROUNDDOWN(((((DataInput!Q47-AE47)+(DataInput!Q48-AE48))/2)*(A48-A47))/27,0),0),0) -> 1045 | AG48: =DataInput!U48 -> 103.6 | AH48: =DataInput!S48 -> 74 | AI48: 74 | AJ48: 0
A49: =IF(DataInput!A49<>"",DataInput!A49,"") -> 5400 | B49: =SUM(DataInput!C49,DataInput!X49)+(DataInput!U49-DataInput!E49) -> 29.4 | C49: =SUM(DataInput!D49,DataInput!Y49) -> 1 | D49: =DataInput!U49 -> 99.4 | E49: =SUM(DataInput!F49,DataInput!AA49) -> 0 | F49: =SUM(DataInput!G49,DataInput!AB49) -> 0 | G49: =SUM(DataInput!H49,DataInput!AC49) -> 0 | H49: =DataInput!W49 -> 55 | I49: =SUM(DataInput!J49,DataInput!AD49) -> 0 | J49: =SUM(DataInput!K49,DataInput!AE49) -> 0 | K49: =SUM(DataInput!L49,DataInput!AF49) -> 0 | L49: =SUM(DataInput!M49,DataInput!AG49) -> 0 | M49: =SUM(DataInput!N49,DataInput!AH49) -> 0 | N49: =SUM(DataInput!O49,DataInput!AI49) -> 0 | O49: =DataInput!P49 -> 0 | R49: 1 | S49: 1 | T49: =DataInput!R49 -> 920 | U49: =DataInput!X49 -> 0 | V49: =IF(DataInput!U49-DataInput!E49>0,DataInput!U49-DataInput!E49,"") -> 28.4 | W49: =IF(DataInput!W49-DataInput!I49>0,DataInput!W49-DataInput!I49,"") -> 55 | Z49: 1003.4 | AA49: -1002.4 | AB49: 0 | AC49: 0 | AD49: =IF(AC49>0,IFERROR(IF(AVERAGE(DataInput!Q48:Q49)>AVERAGE(AC49,AC48),ROUNDDOWN(((((AC48-AB48)+(AC49-AB49))/2)*(A49-A48))/27,0),IF(((((DataInput!Q49-AB49)+(DataInput!Q48-AB48))/2)*(A49-A48))/27>0,ROUNDDOWN(((((DataInput!Q49-AB48)+(DataInput!Q48-AB48))/2)*(A49-A48))/27,0),0)),0),0) -> 0 | AE49: 0 | AF49: =IFERROR(IF(((((DataInput!Q48-AE48)+(DataInput!Q49-AE49))/2)*(A49-A48))/27>0,ROUNDDOWN(((((DataInput!Q48-AE48)+(DataInput!Q49-AE49))/2)*(A49-A48))/27,0),0),0) -> 919 | AG49: =DataInput!U49 -> 99.4 | AH49: =DataInput!S49 -> 71 | AI49: 71 | AJ49: 0
A50: =IF(DataInput!A50<>"",DataInput!A50,"") -> 5425 | B50: =SUM(DataInput!C50,DataInput!X50)+(DataInput!U50-DataInput!E50) -> 29.2 | C50: =SUM(DataInput!D50,DataInput!Y50) -> 2 | D50: =DataInput!U50 -> 95.2 | E50: =SUM(DataInput!F50,DataInput!AA50) -> 0 | F50: =SUM(DataInput!G50,DataInput!AB50) -> 0 | G50: =SUM(DataInput!H50,DataInput!AC50) -> 0 | H50: =DataInput!W50 -> 57 | I50: =SUM(DataInput!J50,DataInput!AD50) -> 0 | J50: =SUM(DataInput!K50,DataInput!AE50) -> 0 | K50: =SUM(DataInput!L50,DataInput!AF50) -> 0 | L50: =SUM(DataInput!M50,DataInput!AG50) -> 0 | M50: =SUM(DataInput!N50,DataInput!AH50) -> 0 | N50: =SUM(DataInput!O50,DataInput!AI50) -> 0 | O50: =DataInput!P50 -> 0 | R50: 2 | S50: 2 | T50: =DataInput!R50 -> 814 | U50: =DataInput!X50 -> 0 | V50: =IF(DataInput!U50-DataInput!E50>0,DataInput!U50-DataInput!E50,"") -> 27.2 | W50: =IF(DataInput!W50-DataInput!I50>0,DataInput!W50-DataInput!I50,"") -> 57 | Z50: 898.2 | AA50: -896.2 | AB50: 0 | AC50: 0 | AD50: =IF(AC50>0,IFERROR(IF(AVERAGE(DataInput!Q49:Q50)>AVERAGE(AC50,AC49),ROUNDDOWN(((((AC49-AB49)+(AC50-AB50))/2)*(A50-A49))/27,0),IF(((((DataInput!Q50-AB50)+(DataInput!Q49-AB49))/2)*(A50-A49))/27>0,ROUNDDOWN(((((DataInput!Q50-AB49)+(DataInput!Q49-AB49))/2)*(A50-A49))/27,0),0)),0),0) -> 0 | AE50: 0 | AF50: =IFERROR(IF(((((DataInput!Q49-AE49)+(DataInput!Q50-AE50))/2)*(A50-A49))/27>0,ROUNDDOWN(((((DataInput!Q49-AE49)+(DataInput!Q50-AE50))/2)*(A50-A49))/27,0),0),0) -> 813 | AG50: =DataInput!U50 -> 95.2 | AH50: =DataInput!S50 -> 68 | AI50: 68 | AJ50: 0
A51: =IF(DataInput!A51<>"",DataInput!A51,"") -> 5450 | B51: =SUM(DataInput!C51,DataInput!X51)+(DataInput!U51-DataInput!E51) -> 27.6 | C51: =SUM(DataInput!D51,DataInput!Y51) -> 2 | D51: =DataInput!U51 -> 89.6 | E51: =SUM(DataInput!F51,DataInput!AA51) -> 0 | F51: =SUM(DataInput!G51,DataInput!AB51) -> 0 | G51: =SUM(DataInput!H51,DataInput!AC51) -> 0 | H51: =DataInput!W51 -> 59 | I51: =SUM(DataInput!J51,DataInput!AD51) -> 0 | J51: =SUM(DataInput!K51,DataInput!AE51) -> 0 | K51: =SUM(DataInput!L51,DataInput!AF51) -> 0 | L51: =SUM(DataInput!M51,DataInput!AG51) -> 0 | M51: =SUM(DataInput!N51,DataInput!AH51) -> 0 | N51: =SUM(DataInput!O51,DataInput!AI51) -> 0 | O51: =DataInput!P51 -> 0 | R51: 2 | S51: 2 | T51: =DataInput!R51 -> 661 | U51: =DataInput!X51 -> 0 | V51: =IF(DataInput!U51-DataInput!E51>0,DataInput!U51-DataInput!E51,"") -> 25.6 | W51: =IF(DataInput!W51-DataInput!I51>0,DataInput!W51-DataInput!I51,"") -> 59 | Z51: 745.6 | AA51: -743.6 | AB51: 0 | AC51: 0 | AD51: =IF(AC51>0,IFERROR(IF(AVERAGE(DataInput!Q50:Q51)>AVERAGE(AC51,AC50),ROUNDDOWN(((((AC50-AB50)+(AC51-AB51))/2)*(A51-A50))/27,0),IF(((((DataInput!Q51-AB51)+(DataInput!Q50-AB50))/2)*(A51-A50))/27>0,ROUNDDOWN(((((DataInput!Q51-AB50)+(DataInput!Q50-AB50))/2)*(A51-A50))/27,0),0)),0),0) -> 0 | AE51: 0 | AF51: =IFERROR(IF(((((DataInput!Q50-AE50)+(DataInput!Q51-AE51))/2)*(A51-A50))/27>0,ROUNDDOWN(((((DataInput!Q50-AE50)+(DataInput!Q51-AE51))/2)*(A51-A50))/27,0),0),0) -> 661 | AG51: =DataInput!U51 -> 89.6 | AH51: =DataInput!S51 -> 64 | AI51: 64 | AJ51: 0
A52: =IF(DataInput!A52<>"",DataInput!A52,"") -> 5475 | B52: =SUM(DataInput!C52,DataInput!X52)+(DataInput!U52-DataInput!E52) -> 25.4 | C52: =SUM(DataInput!D52,DataInput!Y52) -> 1 | D52: =DataInput!U52 -> 85.4 | E52: =SUM(DataInput!F52,DataInput!AA52) -> 0 | F52: =SUM(DataInput!G52,DataInput!AB52) -> 0 | G52: =SUM(DataInput!H52,DataInput!AC52) -> 0 | H52: =DataInput!W52 -> 61 | I52: =SUM(DataInput!J52,DataInput!AD52) -> 0 | J52: =SUM(DataInput!K52,DataInput!AE52) -> 0 | K52: =SUM(DataInput!L52,DataInput!AF52) -> 0 | L52: =SUM(DataInput!M52,DataInput!AG52) -> 0 | M52: =SUM(DataInput!N52,DataInput!AH52) -> 0 | N52: =SUM(DataInput!O52,DataInput!AI52) -> 0 | O52: =DataInput!P52 -> 0 | R52: 1 | S52: 1 | T52: =DataInput!R52 -> 503 | U52: =DataInput!X52 -> 0 | V52: =IF(DataInput!U52-DataInput!E52>0,DataInput!U52-DataInput!E52,"") -> 24.4 | W52: =IF(DataInput!W52-DataInput!I52>0,DataInput!W52-DataInput!I52,"") -> 61 | Z52: 588.4 | AA52: -587.4 | AB52: 0 | AC52: 0 | AD52: =IF(AC52>0,IFERROR(IF(AVERAGE(DataInput!Q51:Q52)>AVERAGE(AC52,AC51),ROUNDDOWN(((((AC51-AB51)+(AC52-AB52))/2)*(A52-A51))/27,0),IF(((((DataInput!Q52-AB52)+(DataInput!Q51-AB51))/2)*(A52-A51))/27>0,ROUNDDOWN(((((DataInput!Q52-AB51)+(DataInput!Q51-AB51))/2)*(A52-A51))/27,0),0)),0),0) -> 0 | AE52: 0 | AF52: =IFERROR(IF(((((DataInput!Q51-AE51)+(DataInput!Q52-AE52))/2)*(A52-A51))/27>0,ROUNDDOWN(((((DataInput!Q51-AE51)+(DataInput!Q52-AE52))/2)*(A52-A51))/27,0),0),0) -> 502 | AG52: =DataInput!U52 -> 85.4 | AH52: =DataInput!S52 -> 61 | AI52: 61 | AJ52: 0
A53: =IF(DataInput!A53<>"",DataInput!A53,"") -> 5500 | B53: =SUM(DataInput!C53,DataInput!X53)+(DataInput!U53-DataInput!E53) -> 24.2 | C53: =SUM(DataInput!D53,DataInput!Y53) -> 1 | D53: =DataInput!U53 -> 81.2 | E53: =SUM(DataInput!F53,DataInput!AA53) -> 0 | F53: =SUM(DataInput!G53,DataInput!AB53) -> 0 | G53: =SUM(DataInput!H53,DataInput!AC53) -> 0 | H53: =DataInput!W53 -> 63 | I53: =SUM(DataInput!J53,DataInput!AD53) -> 0 | J53: =SUM(DataInput!K53,DataInput!AE53) -> 0 | K53: =SUM(DataInput!L53,DataInput!AF53) -> 0 | L53: =SUM(DataInput!M53,DataInput!AG53) -> 0 | M53: =SUM(DataInput!N53,DataInput!AH53) -> 0 | N53: =SUM(DataInput!O53,DataInput!AI53) -> 0 | O53: =DataInput!P53 -> 0 | R53: 1 | S53: 1 | T53: =DataInput!R53 -> 416 | U53: =DataInput!X53 -> 0 | V53: =IF(DataInput!U53-DataInput!E53>0,DataInput!U53-DataInput!E53,"") -> 23.2 | W53: =IF(DataInput!W53-DataInput!I53>0,DataInput!W53-DataInput!I53,"") -> 63 | Z53: 502.2 | AA53: -501.2 | AB53: 0 | AC53: 0 | AD53: =IF(AC53>0,IFERROR(IF(AVERAGE(DataInput!Q52:Q53)>AVERAGE(AC53,AC52),ROUNDDOWN(((((AC52-AB52)+(AC53-AB53))/2)*(A53-A52))/27,0),IF(((((DataInput!Q53-AB53)+(DataInput!Q52-AB52))/2)*(A53-A52))/27>0,ROUNDDOWN(((((DataInput!Q53-AB52)+(DataInput!Q52-AB52))/2)*(A53-A52))/27,0),0)),0),0) -> 0 | AE53: 0 | AF53: =IFERROR(IF(((((DataInput!Q52-AE52)+(DataInput!Q53-AE53))/2)*(A53-A52))/27>0,ROUNDDOWN(((((DataInput!Q52-AE52)+(DataInput!Q53-AE53))/2)*(A53-A52))/27,0),0),0) -> 416 | AG53: =DataInput!U53 -> 81.2 | AH53: =DataInput!S53 -> 58 | AI53: 58 | AJ53: 0
A54: =IF(DataInput!A54<>"",DataInput!A54,"") -> 5525 | B54: =SUM(DataInput!C54,DataInput!X54)+(DataInput!U54-DataInput!E54) -> 23.6 | C54: =SUM(DataInput!D54,DataInput!Y54) -> 2 | D54: =DataInput!U54 -> 75.6 | E54: =SUM(DataInput!F54,DataInput!AA54) -> 0 | F54: =SUM(DataInput!G54,DataInput!AB54) -> 0 | G54: =SUM(DataInput!H54,DataInput!AC54) -> 0 | H54: =DataInput!W54 -> 66 | I54: =SUM(DataInput!J54,DataInput!AD54) -> 0 | J54: =SUM(DataInput!K54,DataInput!AE54) -> 0 | K54: =SUM(DataInput!L54,DataInput!AF54) -> 0 | L54: =SUM(DataInput!M54,DataInput!AG54) -> 0 | M54: =SUM(DataInput!N54,DataInput!AH54) -> 0 | N54: =SUM(DataInput!O54,DataInput!AI54) -> 0 | O54: =DataInput!P54 -> 0 | R54: 2 | S54: 2 | T54: =DataInput!R54 -> 369 | U54: =DataInput!X54 -> 0 | V54: =IF(DataInput!U54-DataInput!E54>0,DataInput!U54-DataInput!E54,"") -> 21.6 | W54: =IF(DataInput!W54-DataInput!I54>0,DataInput!W54-DataInput!I54,"") -> 66 | Z54: 456.6 | AA54: -454.6 | AB54: 0 | AC54: 0 | AD54: =IF(AC54>0,IFERROR(IF(AVERAGE(DataInput!Q53:Q54)>AVERAGE(AC54,AC53),ROUNDDOWN(((((AC53-AB53)+(AC54-AB54))/2)*(A54-A53))/27,0),IF(((((DataInput!Q54-AB54)+(DataInput!Q53-AB53))/2)*(A54-A53))/27>0,ROUNDDOWN(((((DataInput!Q54-AB53)+(DataInput!Q53-AB53))/2)*(A54-A53))/27,0),0)),0),0) -> 0 | AE54: 0 | AF54: =IFERROR(IF(((((DataInput!Q53-AE53)+(DataInput!Q54-AE54))/2)*(A54-A53))/27>0,ROUNDDOWN(((((DataInput!Q53-AE53)+(DataInput!Q54-AE54))/2)*(A54-A53))/27,0),0),0) -> 368 | AG54: =DataInput!U54 -> 75.6 | AH54: =DataInput!S54 -> 54 | AI54: 54 | AJ54: 0
A55: =IF(DataInput!A55<>"",DataInput!A55,"") -> 5550 | B55: =SUM(DataInput!C55,DataInput!X55)+(DataInput!U55-DataInput!E55) -> 25.4 | C55: =SUM(DataInput!D55,DataInput!Y55) -> 5 | D55: =DataInput!U55 -> 71.4 | E55: =SUM(DataInput!F55,DataInput!AA55) -> 0 | F55: =SUM(DataInput!G55,DataInput!AB55) -> 0 | G55: =SUM(DataInput!H55,DataInput!AC55) -> 0 | H55: =DataInput!W55 -> 68 | I55: =SUM(DataInput!J55,DataInput!AD55) -> 0 | J55: =SUM(DataInput!K55,DataInput!AE55) -> 0 | K55: =SUM(DataInput!L55,DataInput!AF55) -> 0 | L55: =SUM(DataInput!M55,DataInput!AG55) -> 0 | M55: =SUM(DataInput!N55,DataInput!AH55) -> 0 | N55: =SUM(DataInput!O55,DataInput!AI55) -> 0 | O55: =DataInput!P55 -> 0 | R55: 5 | S55: 4 | T55: =DataInput!R55 -> 313 | U55: =DataInput!X55 -> 0 | V55: =IF(DataInput!U55-DataInput!E55>0,DataInput!U55-DataInput!E55,"") -> 20.4 | W55: =IF(DataInput!W55-DataInput!I55>0,DataInput!W55-DataInput!I55,"") -> 68 | Z55: 401.4 | AA55: -397.4 | AB55: 0 | AC55: 0 | AD55: =IF(AC55>0,IFERROR(IF(AVERAGE(DataInput!Q54:Q55)>AVERAGE(AC55,AC54),ROUNDDOWN(((((AC54-AB54)+(AC55-AB55))/2)*(A55-A54))/27,0),IF(((((DataInput!Q55-AB55)+(DataInput!Q54-AB54))/2)*(A55-A54))/27>0,ROUNDDOWN(((((DataInput!Q55-AB54)+(DataInput!Q54-AB54))/2)*(A55-A54))/27,0),0)),0),0) -> 0 | AE55: 0 | AF55: =IFERROR(IF(((((DataInput!Q54-AE54)+(DataInput!Q55-AE55))/2)*(A55-A54))/27>0,ROUNDDOWN(((((DataInput!Q54-AE54)+(DataInput!Q55-AE55))/2)*(A55-A54))/27,0),0),0) -> 312 | AG55: =DataInput!U55 -> 71.4 | AH55: =DataInput!S55 -> 51 | AI55: 51 | AJ55: 0
A56: =IF(DataInput!A56<>"",DataInput!A56,"") -> 5575 | B56: =SUM(DataInput!C56,DataInput!X56)+(DataInput!U56-DataInput!E56) -> 33.6 | C56: =SUM(DataInput!D56,DataInput!Y56) -> 14 | D56: =DataInput!U56 -> 68.6 | E56: =SUM(DataInput!F56,DataInput!AA56) -> 0 | F56: =SUM(DataInput!G56,DataInput!AB56) -> 0 | G56: =SUM(DataInput!H56,DataInput!AC56) -> 0 | H56: =DataInput!W56 -> 71 | I56: =SUM(DataInput!J56,DataInput!AD56) -> 0 | J56: =SUM(DataInput!K56,DataInput!AE56) -> 0 | K56: =SUM(DataInput!L56,DataInput!AF56) -> 0 | L56: =SUM(DataInput!M56,DataInput!AG56) -> 0 | M56: =SUM(DataInput!N56,DataInput!AH56) -> 0 | N56: =SUM(DataInput!O56,DataInput!AI56) -> 0 | O56: =DataInput!P56 -> 0 | R56: 14 | S56: 11 | T56: =DataInput!R56 -> 265 | U56: =DataInput!X56 -> 0 | V56: =IF(DataInput!U56-DataInput!E56>0,DataInput!U56-DataInput!E56,"") -> 19.6 | W56: =IF(DataInput!W56-DataInput!I56>0,DataInput!W56-DataInput!I56,"") -> 71 | Z56: 355.6 | AA56: -344.6 | AB56: 0 | AC56: 0 | AD56: =IF(AC56>0,IFERROR(IF(AVERAGE(DataInput!Q55:Q56)>AVERAGE(AC56,AC55),ROUNDDOWN(((((AC55-AB55)+(AC56-AB56))/2)*(A56-A55))/27,0),IF(((((DataInput!Q56-AB56)+(DataInput!Q55-AB55))/2)*(A56-A55))/27>0,ROUNDDOWN(((((DataInput!Q56-AB55)+(DataInput!Q55-AB55))/2)*(A56-A55))/27,0),0)),0),0) -> 0 | AE56: 0 | AF56: =IFERROR(IF(((((DataInput!Q55-AE55)+(DataInput!Q56-AE56))/2)*(A56-A55))/27>0,ROUNDDOWN(((((DataInput!Q55-AE55)+(DataInput!Q56-AE56))/2)*(A56-A55))/27,0),0),0) -> 264 | AG56: =DataInput!U56 -> 68.6 | AH56: =DataInput!S56 -> 49 | AI56: 49 | AJ56: 0
A57: =IF(DataInput!A57<>"",DataInput!A57,"") -> 5600 | B57: =SUM(DataInput!C57,DataInput!X57)+(DataInput!U57-DataInput!E57) -> 50 | C57: =SUM(DataInput!D57,DataInput!Y57) -> 32 | D57: =DataInput!U57 -> 63 | E57: =SUM(DataInput!F57,DataInput!AA57) -> 0 | F57: =SUM(DataInput!G57,DataInput!AB57) -> 0 | G57: =SUM(DataInput!H57,DataInput!AC57) -> 0 | H57: =DataInput!W57 -> 73 | I57: =SUM(DataInput!J57,DataInput!AD57) -> 0 | J57: =SUM(DataInput!K57,DataInput!AE57) -> 0 | K57: =SUM(DataInput!L57,DataInput!AF57) -> 0 | L57: =SUM(DataInput!M57,DataInput!AG57) -> 0 | M57: =SUM(DataInput!N57,DataInput!AH57) -> 0 | N57: =SUM(DataInput!O57,DataInput!AI57) -> 0 | O57: =DataInput!P57 -> 0 | R57: 32 | S57: 25 | T57: =DataInput!R57 -> 219 | U57: =DataInput!X57 -> 0 | V57: =IF(DataInput!U57-DataInput!E57>0,DataInput!U57-DataInput!E57,"") -> 18 | W57: =IF(DataInput!W57-DataInput!I57>0,DataInput!W57-DataInput!I57,"") -> 73 | Z57: 310 | AA57: -285 | AB57: 0 | AC57: 0 | AD57: =IF(AC57>0,IFERROR(IF(AVERAGE(DataInput!Q56:Q57)>AVERAGE(AC57,AC56),ROUNDDOWN(((((AC56-AB56)+(AC57-AB57))/2)*(A57-A56))/27,0),IF(((((DataInput!Q57-AB57)+(DataInput!Q56-AB56))/2)*(A57-A56))/27>0,ROUNDDOWN(((((DataInput!Q57-AB56)+(DataInput!Q56-AB56))/2)*(A57-A56))/27,0),0)),0),0) -> 0 | AE57: 0 | AF57: =IFERROR(IF(((((DataInput!Q56-AE56)+(DataInput!Q57-AE57))/2)*(A57-A56))/27>0,ROUNDDOWN(((((DataInput!Q56-AE56)+(DataInput!Q57-AE57))/2)*(A57-A56))/27,0),0),0) -> 218 | AG57: =DataInput!U57 -> 63 | AH57: =DataInput!S57 -> 45 | AI57: 45 | AJ57: 0
A58: =IF(DataInput!A58<>"",DataInput!A58,"") -> 5625 | B58: =SUM(DataInput!C58,DataInput!X58)+(DataInput!U58-DataInput!E58) -> 70.4 | C58: =SUM(DataInput!D58,DataInput!Y58) -> 54 | D58: =DataInput!U58 -> 57.4 | E58: =SUM(DataInput!F58,DataInput!AA58) -> 0 | F58: =SUM(DataInput!G58,DataInput!AB58) -> 0 | G58: =SUM(DataInput!H58,DataInput!AC58) -> 0 | H58: =DataInput!W58 -> 75 | I58: =SUM(DataInput!J58,DataInput!AD58) -> 0 | J58: =SUM(DataInput!K58,DataInput!AE58) -> 0 | K58: =SUM(DataInput!L58,DataInput!AF58) -> 0 | L58: =SUM(DataInput!M58,DataInput!AG58) -> 0 | M58: =SUM(DataInput!N58,DataInput!AH58) -> 0 | N58: =SUM(DataInput!O58,DataInput!AI58) -> 0 | O58: =DataInput!P58 -> 0 | R58: 54 | S58: 42 | T58: =DataInput!R58 -> 168 | U58: =DataInput!X58 -> 0 | V58: =IF(DataInput!U58-DataInput!E58>0,DataInput!U58-DataInput!E58,"") -> 16.4 | W58: =IF(DataInput!W58-DataInput!I58>0,DataInput!W58-DataInput!I58,"") -> 75 | Z58: 259.4 | AA58: -217.4 | AB58: 0 | AC58: 0 | AD58: =IF(AC58>0,IFERROR(IF(AVERAGE(DataInput!Q57:Q58)>AVERAGE(AC58,AC57),ROUNDDOWN(((((AC57-AB57)+(AC58-AB58))/2)*(A58-A57))/27,0),IF(((((DataInput!Q58-AB58)+(DataInput!Q57-AB57))/2)*(A58-A57))/27>0,ROUNDDOWN(((((DataInput!Q58-AB57)+(DataInput!Q57-AB57))/2)*(A58-A57))/27,0),0)),0),0) -> 0 | AE58: 0 | AF58: =IFERROR(IF(((((DataInput!Q57-AE57)+(DataInput!Q58-AE58))/2)*(A58-A57))/27>0,ROUNDDOWN(((((DataInput!Q57-AE57)+(DataInput!Q58-AE58))/2)*(A58-A57))/27,0),0),0) -> 168 | AG58: =DataInput!U58 -> 57.4 | AH58: =DataInput!S58 -> 41 | AI58: 41 | AJ58: 0
A59: =IF(DataInput!A59<>"",DataInput!A59,"") -> 5650 | B59: =SUM(DataInput!C59,DataInput!X59)+(DataInput!U59-DataInput!E59) -> 87.2 | C59: =SUM(DataInput!D59,DataInput!Y59) -> 72 | D59: =DataInput!U59 -> 53.2 | E59: =SUM(DataInput!F59,DataInput!AA59) -> 0 | F59: =SUM(DataInput!G59,DataInput!AB59) -> 0 | G59: =SUM(DataInput!H59,DataInput!AC59) -> 0 | H59: =DataInput!W59 -> 78 | I59: =SUM(DataInput!J59,DataInput!AD59) -> 0 | J59: =SUM(DataInput!K59,DataInput!AE59) -> 0 | K59: =SUM(DataInput!L59,DataInput!AF59) -> 0 | L59: =SUM(DataInput!M59,DataInput!AG59) -> 0 | M59: =SUM(DataInput!N59,DataInput!AH59) -> 0 | N59: =SUM(DataInput!O59,DataInput!AI59) -> 0 | O59: =DataInput!P59 -> 0 | R59: 72 | S59: 55 | T59: =DataInput!R59 -> 117 | U59: =DataInput!X59 -> 0 | V59: =IF(DataInput!U59-DataInput!E59>0,DataInput!U59-DataInput!E59,"") -> 15.2 | W59: =IF(DataInput!W59-DataInput!I59>0,DataInput!W59-DataInput!I59,"") -> 78 | Z59: 210.2 | AA59: -155.2 | AB59: 0 | AC59: 0 | AD59: =IF(AC59>0,IFERROR(IF(AVERAGE(DataInput!Q58:Q59)>AVERAGE(AC59,AC58),ROUNDDOWN(((((AC58-AB58)+(AC59-AB59))/2)*(A59-A58))/27,0),IF(((((DataInput!Q59-AB59)+(DataInput!Q58-AB58))/2)*(A59-A58))/27>0,ROUNDDOWN(((((DataInput!Q59-AB58)+(DataInput!Q58-AB58))/2)*(A59-A58))/27,0),0)),0),0) -> 0 | AE59: 0 | AF59: =IFERROR(IF(((((DataInput!Q58-AE58)+(DataInput!Q59-AE59))/2)*(A59-A58))/27>0,ROUNDDOWN(((((DataInput!Q58-AE58)+(DataInput!Q59-AE59))/2)*(A59-A58))/27,0),0),0) -> 116 | AG59: =DataInput!U59 -> 53.2 | AH59: =DataInput!S59 -> 38 | AI59: 38 | AJ59: 0
A60: =IF(DataInput!A60<>"",DataInput!A60,"") -> 5675 | B60: =SUM(DataInput!C60,DataInput!X60)+(DataInput!U60-DataInput!E60) -> 119 | C60: =SUM(DataInput!D60,DataInput!Y60) -> 97 | D60: =DataInput!U60 -> 77 | E60: =SUM(DataInput!F60,DataInput!AA60) -> 0 | F60: =SUM(DataInput!G60,DataInput!AB60) -> 0 | G60: =SUM(DataInput!H60,DataInput!AC60) -> 0 | H60: =DataInput!W60 -> 77 | I60: =SUM(DataInput!J60,DataInput!AD60) -> 0 | J60: =SUM(DataInput!K60,DataInput!AE60) -> 0 | K60: =SUM(DataInput!L60,DataInput!AF60) -> 0 | L60: =SUM(DataInput!M60,DataInput!AG60) -> 0 | M60: =SUM(DataInput!N60,DataInput!AH60) -> 0 | N60: =SUM(DataInput!O60,DataInput!AI60) -> 0 | O60: =DataInput!P60 -> 0 | R60: 97 | S60: 75 | T60: =DataInput!R60 -> 69 | U60: =DataInput!X60 -> 0 | V60: =IF(DataInput!U60-DataInput!E60>0,DataInput!U60-DataInput!E60,"") -> 22 | W60: =IF(DataInput!W60-DataInput!I60>0,DataInput!W60-DataInput!I60,"") -> 77 | Z60: 168 | AA60: -93 | AB60: 0 | AC60: 0 | AD60: =IF(AC60>0,IFERROR(IF(AVERAGE(DataInput!Q59:Q60)>AVERAGE(AC60,AC59),ROUNDDOWN(((((AC59-AB59)+(AC60-AB60))/2)*(A60-A59))/27,0),IF(((((DataInput!Q60-AB60)+(DataInput!Q59-AB59))/2)*(A60-A59))/27>0,ROUNDDOWN(((((DataInput!Q60-AB59)+(DataInput!Q59-AB59))/2)*(A60-A59))/27,0),0)),0),0) -> 0 | AE60: 0 | AF60: =IFERROR(IF(((((DataInput!Q59-AE59)+(DataInput!Q60-AE60))/2)*(A60-A59))/27>0,ROUNDDOWN(((((DataInput!Q59-AE59)+(DataInput!Q60-AE60))/2)*(A60-A59))/27,0),0),0) -> 68 | AG60: =DataInput!U60 -> 77 | AH60: =DataInput!S60 -> 55 | AI60: 55 | AJ60: 0
A61: =IF(DataInput!A61<>"",DataInput!A61,"") -> 5700 | B61: =SUM(DataInput!C61,DataInput!X61)+(DataInput!U61-DataInput!E61) -> 165.6 | C61: =SUM(DataInput!D61,DataInput!Y61) -> 138 | D61: =DataInput!U61 -> 96.6 | E61: =SUM(DataInput!F61,DataInput!AA61) -> 0 | F61: =SUM(DataInput!G61,DataInput!AB61) -> 0 | G61: =SUM(DataInput!H61,DataInput!AC61) -> 0 | H61: =DataInput!W61 -> 78 | I61: =SUM(DataInput!J61,DataInput!AD61) -> 0 | J61: =SUM(DataInput!K61,DataInput!AE61) -> 0 | K61: =SUM(DataInput!L61,DataInput!AF61) -> 0 | L61: =SUM(DataInput!M61,DataInput!AG61) -> 0 | M61: =SUM(DataInput!N61,DataInput!AH61) -> 0 | N61: =SUM(DataInput!O61,DataInput!AI61) -> 0 | O61: =DataInput!P61 -> 0 | R61: 138 | S61: 106 | T61: =DataInput!R61 -> 27 | U61: =DataInput!X61 -> 0 | V61: =IF(DataInput!U61-DataInput!E61>0,DataInput!U61-DataInput!E61,"") -> 27.6 | W61: =IF(DataInput!W61-DataInput!I61>0,DataInput!W61-DataInput!I61,"") -> 78 | Z61: 132.6 | AA61: -26.6 | AB61: 0 | AC61: 0 | AD61: =IF(AC61>0,IFERROR(IF(AVERAGE(DataInput!Q60:Q61)>AVERAGE(AC61,AC60),ROUNDDOWN(((((AC60-AB60)+(AC61-AB61))/2)*(A61-A60))/27,0),IF(((((DataInput!Q61-AB61)+(DataInput!Q60-AB60))/2)*(A61-A60))/27>0,ROUNDDOWN(((((DataInput!Q61-AB60)+(DataInput!Q60-AB60))/2)*(A61-A60))/27,0),0)),0),0) -> 0 | AE61: 0 | AF61: =IFERROR(IF(((((DataInput!Q60-AE60)+(DataInput!Q61-AE61))/2)*(A61-A60))/27>0,ROUNDDOWN(((((DataInput!Q60-AE60)+(DataInput!Q61-AE61))/2)*(A61-A60))/27,0),0),0) -> 26 | AG61: =DataInput!U61 -> 96.6 | AH61: =DataInput!S61 -> 69 | AI61: 69 | AJ61: 0
A62: =IF(DataInput!A62<>"",DataInput!A62,"") -> 5725 | B62: =SUM(DataInput!C62,DataInput!X62)+(DataInput!U62-DataInput!E62) -> 210 | C62: =SUM(DataInput!D62,DataInput!Y62) -> 190 | D62: =DataInput!U62 -> 70 | E62: =SUM(DataInput!F62,DataInput!AA62) -> 0 | F62: =SUM(DataInput!G62,DataInput!AB62) -> 0 | G62: =SUM(DataInput!H62,DataInput!AC62) -> 0 | H62: =DataInput!W62 -> 86 | I62: =SUM(DataInput!J62,DataInput!AD62) -> 0 | J62: =SUM(DataInput!K62,DataInput!AE62) -> 0 | K62: =SUM(DataInput!L62,DataInput!AF62) -> 0 | L62: =SUM(DataInput!M62,DataInput!AG62) -> 0 | M62: =SUM(DataInput!N62,DataInput!AH62) -> 0 | N62: =SUM(DataInput!O62,DataInput!AI62) -> 0 | O62: =DataInput!P62 -> 0 | R62: 190 | S62: 146 | T62: =DataInput!R62 -> 4 | U62: =DataInput!X62 -> 0 | V62: =IF(DataInput!U62-DataInput!E62>0,DataInput!U62-DataInput!E62,"") -> 20 | W62: =IF(DataInput!W62-DataInput!I62>0,DataInput!W62-DataInput!I62,"") -> 86 | Z62: 110 | AA62: 36 | AB62: 0 | AC62: 0 | AD62: =IF(AC62>0,IFERROR(IF(AVERAGE(DataInput!Q61:Q62)>AVERAGE(AC62,AC61),ROUNDDOWN(((((AC61-AB61)+(AC62-AB62))/2)*(A62-A61))/27,0),IF(((((DataInput!Q62-AB62)+(DataInput!Q61-AB61))/2)*(A62-A61))/27>0,ROUNDDOWN(((((DataInput!Q62-AB61)+(DataInput!Q61-AB61))/2)*(A62-A61))/27,0),0)),0),0) -> 0 | AE62: 0 | AF62: =IFERROR(IF(((((DataInput!Q61-AE61)+(DataInput!Q62-AE62))/2)*(A62-A61))/27>0,ROUNDDOWN(((((DataInput!Q61-AE61)+(DataInput!Q62-AE62))/2)*(A62-A61))/27,0),0),0) -> 3 | AG62: =DataInput!U62 -> 70 | AH62: =DataInput!S62 -> 50 | AI62: 50 | AJ62: 0
A63: =IF(DataInput!A63<>"",DataInput!A63,"") -> 5750 | B63: =SUM(DataInput!C63,DataInput!X63)+(DataInput!U63-DataInput!E63) -> 154.2 | C63: =SUM(DataInput!D63,DataInput!Y63) -> 147 | D63: =DataInput!U63 -> 25.2 | E63: =SUM(DataInput!F63,DataInput!AA63) -> 0 | F63: =SUM(DataInput!G63,DataInput!AB63) -> 0 | G63: =SUM(DataInput!H63,DataInput!AC63) -> 0 | H63: =DataInput!W63 -> 93 | I63: =SUM(DataInput!J63,DataInput!AD63) -> 0 | J63: =SUM(DataInput!K63,DataInput!AE63) -> 0 | K63: =SUM(DataInput!L63,DataInput!AF63) -> 0 | L63: =SUM(DataInput!M63,DataInput!AG63) -> 0 | M63: =SUM(DataInput!N63,DataInput!AH63) -> 0 | N63: =SUM(DataInput!O63,DataInput!AI63) -> 0 | O63: =DataInput!P63 -> 0 | R63: 147 | S63: 113 | T63: =DataInput!R63 -> 0 | U63: =DataInput!X63 -> 0 | V63: =IF(DataInput!U63-DataInput!E63>0,DataInput!U63-DataInput!E63,"") -> 7.2 | W63: =IF(DataInput!W63-DataInput!I63>0,DataInput!W63-DataInput!I63,"") -> 93 | Z63: 100.2 | AA63: 12.8 | AB63: 0 | AC63: 0 | AD63: =IF(AC63>0,IFERROR(IF(AVERAGE(DataInput!Q62:Q63)>AVERAGE(AC63,AC62),ROUNDDOWN(((((AC62-AB62)+(AC63-AB63))/2)*(A63-A62))/27,0),IF(((((DataInput!Q63-AB63)+(DataInput!Q62-AB62))/2)*(A63-A62))/27>0,ROUNDDOWN(((((DataInput!Q63-AB62)+(DataInput!Q62-AB62))/2)*(A63-A62))/27,0),0)),0),0) -> 0 | AE63: 0 | AF63: =IFERROR(IF(((((DataInput!Q62-AE62)+(DataInput!Q63-AE63))/2)*(A63-A62))/27>0,ROUNDDOWN(((((DataInput!Q62-AE62)+(DataInput!Q63-AE63))/2)*(A63-A62))/27,0),0),0) -> 0 | AG63: =DataInput!U63 -> 25.2 | AH63: =DataInput!S63 -> 18 | AI63: 18 | AJ63: 0
A64: =IF(DataInput!A64<>"",DataInput!A64,"") -> 5775 | B64: =SUM(DataInput!C64,DataInput!X64)+(DataInput!U64-DataInput!E64) -> 77 | C64: =SUM(DataInput!D64,DataInput!Y64) -> 77 | D64: =DataInput!U64 -> 0 | E64: =SUM(DataInput!F64,DataInput!AA64) -> 0 | F64: =SUM(DataInput!G64,DataInput!AB64) -> 0 | G64: =SUM(DataInput!H64,DataInput!AC64) -> 0 | H64: =DataInput!W64 -> 96 | I64: =SUM(DataInput!J64,DataInput!AD64) -> 0 | J64: =SUM(DataInput!K64,DataInput!AE64) -> 0 | K64: =SUM(DataInput!L64,DataInput!AF64) -> 0 | L64: =SUM(DataInput!M64,DataInput!AG64) -> 0 | M64: =SUM(DataInput!N64,DataInput!AH64) -> 0 | N64: =SUM(DataInput!O64,DataInput!AI64) -> 0 | O64: =DataInput!P64 -> 0 | R64: 77 | S64: 59 | T64: =DataInput!R64 -> 0 | U64: =DataInput!X64 -> 0 | V64: =IF(DataInput!U64-DataInput!E64>0,DataInput!U64-DataInput!E64,"") ->  | W64: =IF(DataInput!W64-DataInput!I64>0,DataInput!W64-DataInput!I64,"") -> 96 | Z64: 96 | AA64: -37 | AB64: 0 | AC64: 0 | AD64: =IF(AC64>0,IFERROR(IF(AVERAGE(DataInput!Q63:Q64)>AVERAGE(AC64,AC63),ROUNDDOWN(((((AC63-AB63)+(AC64-AB64))/2)*(A64-A63))/27,0),IF(((((DataInput!Q64-AB64)+(DataInput!Q63-AB63))/2)*(A64-A63))/27>0,ROUNDDOWN(((((DataInput!Q64-AB63)+(DataInput!Q63-AB63))/2)*(A64-A63))/27,0),0)),0),0) -> 0 | AE64: 0 | AF64: =IFERROR(IF(((((DataInput!Q63-AE63)+(DataInput!Q64-AE64))/2)*(A64-A63))/27>0,ROUNDDOWN(((((DataInput!Q63-AE63)+(DataInput!Q64-AE64))/2)*(A64-A63))/27,0),0),0) -> 0 | AG64: =DataInput!U64 -> 0 | AH64: =DataInput!S64 -> 0 | AI64: 0 | AJ64: 0
A65: =IF(DataInput!A65<>"",DataInput!A65,"") -> 5800 | B65: =SUM(DataInput!C65,DataInput!X65)+(DataInput!U65-DataInput!E65) -> 79 | C65: =SUM(DataInput!D65,DataInput!Y65) -> 79 | D65: =DataInput!U65 -> 0 | E65: =SUM(DataInput!F65,DataInput!AA65) -> 0 | F65: =SUM(DataInput!G65,DataInput!AB65) -> 0 | G65: =SUM(DataInput!H65,DataInput!AC65) -> 0 | H65: =DataInput!W65 -> 105 | I65: =SUM(DataInput!J65,DataInput!AD65) -> 0 | J65: =SUM(DataInput!K65,DataInput!AE65) -> 0 | K65: =SUM(DataInput!L65,DataInput!AF65) -> 0 | L65: =SUM(DataInput!M65,DataInput!AG65) -> 0 | M65: =SUM(DataInput!N65,DataInput!AH65) -> 0 | N65: =SUM(DataInput!O65,DataInput!AI65) -> 0 | O65: =DataInput!P65 -> 0 | R65: 79 | S65: 61 | T65: =DataInput!R65 -> 0 | U65: =DataInput!X65 -> 0 | V65: =IF(DataInput!U65-DataInput!E65>0,DataInput!U65-DataInput!E65,"") ->  | W65: =IF(DataInput!W65-DataInput!I65>0,DataInput!W65-DataInput!I65,"") -> 105 | Z65: 105 | AA65: -44 | AB65: 0 | AC65: 0 | AD65: =IF(AC65>0,IFERROR(IF(AVERAGE(DataInput!Q64:Q65)>AVERAGE(AC65,AC64),ROUNDDOWN(((((AC64-AB64)+(AC65-AB65))/2)*(A65-A64))/27,0),IF(((((DataInput!Q65-AB65)+(DataInput!Q64-AB64))/2)*(A65-A64))/27>0,ROUNDDOWN(((((DataInput!Q65-AB64)+(DataInput!Q64-AB64))/2)*(A65-A64))/27,0),0)),0),0) -> 0 | AE65: 0 | AF65: =IFERROR(IF(((((DataInput!Q64-AE64)+(DataInput!Q65-AE65))/2)*(A65-A64))/27>0,ROUNDDOWN(((((DataInput!Q64-AE64)+(DataInput!Q65-AE65))/2)*(A65-A64))/27,0),0),0) -> 0 | AG65: =DataInput!U65 -> 0 | AH65: =DataInput!S65 -> 0 | AI65: 0 | AJ65: 0
A66: =IF(DataInput!A66<>"",DataInput!A66,"") -> 5825 | B66: =SUM(DataInput!C66,DataInput!X66)+(DataInput!U66-DataInput!E66) -> 82 | C66: =SUM(DataInput!D66,DataInput!Y66) -> 82 | D66: =DataInput!U66 -> 0 | E66: =SUM(DataInput!F66,DataInput!AA66) -> 0 | F66: =SUM(DataInput!G66,DataInput!AB66) -> 0 | G66: =SUM(DataInput!H66,DataInput!AC66) -> 0 | H66: =DataInput!W66 -> 92 | I66: =SUM(DataInput!J66,DataInput!AD66) -> 0 | J66: =SUM(DataInput!K66,DataInput!AE66) -> 0 | K66: =SUM(DataInput!L66,DataInput!AF66) -> 0 | L66: =SUM(DataInput!M66,DataInput!AG66) -> 0 | M66: =SUM(DataInput!N66,DataInput!AH66) -> 0 | N66: =SUM(DataInput!O66,DataInput!AI66) -> 0 | O66: =DataInput!P66 -> 0 | R66: 82 | S66: 63 | T66: =DataInput!R66 -> 0 | U66: =DataInput!X66 -> 0 | V66: =IF(DataInput!U66-DataInput!E66>0,DataInput!U66-DataInput!E66,"") ->  | W66: =IF(DataInput!W66-DataInput!I66>0,DataInput!W66-DataInput!I66,"") -> 92 | Z66: 92 | AA66: -29 | AB66: 0 | AC66: 0 | AD66: =IF(AC66>0,IFERROR(IF(AVERAGE(DataInput!Q65:Q66)>AVERAGE(AC66,AC65),ROUNDDOWN(((((AC65-AB65)+(AC66-AB66))/2)*(A66-A65))/27,0),IF(((((DataInput!Q66-AB66)+(DataInput!Q65-AB65))/2)*(A66-A65))/27>0,ROUNDDOWN(((((DataInput!Q66-AB65)+(DataInput!Q65-AB65))/2)*(A66-A65))/27,0),0)),0),0) -> 0 | AE66: 0 | AF66: =IFERROR(IF(((((DataInput!Q65-AE65)+(DataInput!Q66-AE66))/2)*(A66-A65))/27>0,ROUNDDOWN(((((DataInput!Q65-AE65)+(DataInput!Q66-AE66))/2)*(A66-A65))/27,0),0),0) -> 0 | AG66: =DataInput!U66 -> 0 | AH66: =DataInput!S66 -> 0 | AI66: 0 | AJ66: 0
A67: =IF(DataInput!A67<>"",DataInput!A67,"") -> 5850 | B67: =SUM(DataInput!C67,DataInput!X67)+(DataInput!U67-DataInput!E67) -> 96 | C67: =SUM(DataInput!D67,DataInput!Y67) -> 96 | D67: =DataInput!U67 -> 0 | E67: =SUM(DataInput!F67,DataInput!AA67) -> 0 | F67: =SUM(DataInput!G67,DataInput!AB67) -> 0 | G67: =SUM(DataInput!H67,DataInput!AC67) -> 0 | H67: =DataInput!W67 -> 62 | I67: =SUM(DataInput!J67,DataInput!AD67) -> 0 | J67: =SUM(DataInput!K67,DataInput!AE67) -> 0 | K67: =SUM(DataInput!L67,DataInput!AF67) -> 0 | L67: =SUM(DataInput!M67,DataInput!AG67) -> 0 | M67: =SUM(DataInput!N67,DataInput!AH67) -> 0 | N67: =SUM(DataInput!O67,DataInput!AI67) -> 0 | O67: =DataInput!P67 -> 0 | R67: 96 | S67: 74 | T67: =DataInput!R67 -> 0 | U67: =DataInput!X67 -> 0 | V67: =IF(DataInput!U67-DataInput!E67>0,DataInput!U67-DataInput!E67,"") ->  | W67: =IF(DataInput!W67-DataInput!I67>0,DataInput!W67-DataInput!I67,"") -> 62 | Z67: 62 | AA67: 12 | AB67: 0 | AC67: 0 | AD67: =IF(AC67>0,IFERROR(IF(AVERAGE(DataInput!Q66:Q67)>AVERAGE(AC67,AC66),ROUNDDOWN(((((AC66-AB66)+(AC67-AB67))/2)*(A67-A66))/27,0),IF(((((DataInput!Q67-AB67)+(DataInput!Q66-AB66))/2)*(A67-A66))/27>0,ROUNDDOWN(((((DataInput!Q67-AB66)+(DataInput!Q66-AB66))/2)*(A67-A66))/27,0),0)),0),0) -> 0 | AE67: 0 | AF67: =IFERROR(IF(((((DataInput!Q66-AE66)+(DataInput!Q67-AE67))/2)*(A67-A66))/27>0,ROUNDDOWN(((((DataInput!Q66-AE66)+(DataInput!Q67-AE67))/2)*(A67-A66))/27,0),0),0) -> 0 | AG67: =DataInput!U67 -> 0 | AH67: =DataInput!S67 -> 0 | AI67: 0 | AJ67: 0
A68: =IF(DataInput!A68<>"",DataInput!A68,"") -> 5875 | B68: =SUM(DataInput!C68,DataInput!X68)+(DataInput!U68-DataInput!E68) -> 117 | C68: =SUM(DataInput!D68,DataInput!Y68) -> 117 | D68: =DataInput!U68 -> 0 | E68: =SUM(DataInput!F68,DataInput!AA68) -> 0 | F68: =SUM(DataInput!G68,DataInput!AB68) -> 0 | G68: =SUM(DataInput!H68,DataInput!AC68) -> 0 | H68: =DataInput!W68 -> 51 | I68: =SUM(DataInput!J68,DataInput!AD68) -> 0 | J68: =SUM(DataInput!K68,DataInput!AE68) -> 0 | K68: =SUM(DataInput!L68,DataInput!AF68) -> 0 | L68: =SUM(DataInput!M68,DataInput!AG68) -> 0 | M68: =SUM(DataInput!N68,DataInput!AH68) -> 0 | N68: =SUM(DataInput!O68,DataInput!AI68) -> 0 | O68: =DataInput!P68 -> 0 | R68: 117 | S68: 90 | T68: =DataInput!R68 -> 0 | U68: =DataInput!X68 -> 0 | V68: =IF(DataInput!U68-DataInput!E68>0,DataInput!U68-DataInput!E68,"") ->  | W68: =IF(DataInput!W68-DataInput!I68>0,DataInput!W68-DataInput!I68,"") -> 51 | Z68: 51 | AA68: 39 | AB68: 0 | AC68: 0 | AD68: =IF(AC68>0,IFERROR(IF(AVERAGE(DataInput!Q67:Q68)>AVERAGE(AC68,AC67),ROUNDDOWN(((((AC67-AB67)+(AC68-AB68))/2)*(A68-A67))/27,0),IF(((((DataInput!Q68-AB68)+(DataInput!Q67-AB67))/2)*(A68-A67))/27>0,ROUNDDOWN(((((DataInput!Q68-AB67)+(DataInput!Q67-AB67))/2)*(A68-A67))/27,0),0)),0),0) -> 0 | AE68: 0 | AF68: =IFERROR(IF(((((DataInput!Q67-AE67)+(DataInput!Q68-AE68))/2)*(A68-A67))/27>0,ROUNDDOWN(((((DataInput!Q67-AE67)+(DataInput!Q68-AE68))/2)*(A68-A67))/27,0),0),0) -> 0 | AG68: =DataInput!U68 -> 0 | AH68: =DataInput!S68 -> 0 | AI68: 0 | AJ68: 0
A69: =IF(DataInput!A69<>"",DataInput!A69,"") -> 5900 | B69: =SUM(DataInput!C69,DataInput!X69)+(DataInput!U69-DataInput!E69) -> 115 | C69: =SUM(DataInput!D69,DataInput!Y69) -> 115 | D69: =DataInput!U69 -> 0 | E69: =SUM(DataInput!F69,DataInput!AA69) -> 0 | F69: =SUM(DataInput!G69,DataInput!AB69) -> 0 | G69: =SUM(DataInput!H69,DataInput!AC69) -> 0 | H69: =DataInput!W69 -> 61 | I69: =SUM(DataInput!J69,DataInput!AD69) -> 0 | J69: =SUM(DataInput!K69,DataInput!AE69) -> 0 | K69: =SUM(DataInput!L69,DataInput!AF69) -> 0 | L69: =SUM(DataInput!M69,DataInput!AG69) -> 0 | M69: =SUM(DataInput!N69,DataInput!AH69) -> 0 | N69: =SUM(DataInput!O69,DataInput!AI69) -> 0 | O69: =DataInput!P69 -> 0 | R69: 115 | S69: 88 | T69: =DataInput!R69 -> 0 | U69: =DataInput!X69 -> 0 | V69: =IF(DataInput!U69-DataInput!E69>0,DataInput!U69-DataInput!E69,"") ->  | W69: =IF(DataInput!W69-DataInput!I69>0,DataInput!W69-DataInput!I69,"") -> 61 | Z69: 61 | AA69: 27 | AB69: 0 | AC69: 0 | AD69: =IF(AC69>0,IFERROR(IF(AVERAGE(DataInput!Q68:Q69)>AVERAGE(AC69,AC68),ROUNDDOWN(((((AC68-AB68)+(AC69-AB69))/2)*(A69-A68))/27,0),IF(((((DataInput!Q69-AB69)+(DataInput!Q68-AB68))/2)*(A69-A68))/27>0,ROUNDDOWN(((((DataInput!Q69-AB68)+(DataInput!Q68-AB68))/2)*(A69-A68))/27,0),0)),0),0) -> 0 | AE69: 0 | AF69: =IFERROR(IF(((((DataInput!Q68-AE68)+(DataInput!Q69-AE69))/2)*(A69-A68))/27>0,ROUNDDOWN(((((DataInput!Q68-AE68)+(DataInput!Q69-AE69))/2)*(A69-A68))/27,0),0),0) -> 0 | AG69: =DataInput!U69 -> 0 | AH69: =DataInput!S69 -> 0 | AI69: 0 | AJ69: 0
A70: =IF(DataInput!A70<>"",DataInput!A70,"") -> 5925 | B70: =SUM(DataInput!C70,DataInput!X70)+(DataInput!U70-DataInput!E70) -> 94 | C70: =SUM(DataInput!D70,DataInput!Y70) -> 94 | D70: =DataInput!U70 -> 0 | E70: =SUM(DataInput!F70,DataInput!AA70) -> 0 | F70: =SUM(DataInput!G70,DataInput!AB70) -> 0 | G70: =SUM(DataInput!H70,DataInput!AC70) -> 0 | H70: =DataInput!W70 -> 89 | I70: =SUM(DataInput!J70,DataInput!AD70) -> 0 | J70: =SUM(DataInput!K70,DataInput!AE70) -> 0 | K70: =SUM(DataInput!L70,DataInput!AF70) -> 0 | L70: =SUM(DataInput!M70,DataInput!AG70) -> 0 | M70: =SUM(DataInput!N70,DataInput!AH70) -> 0 | N70: =SUM(DataInput!O70,DataInput!AI70) -> 0 | O70: =DataInput!P70 -> 0 | R70: 94 | S70: 72 | T70: =DataInput!R70 -> 0 | U70: =DataInput!X70 -> 0 | V70: =IF(DataInput!U70-DataInput!E70>0,DataInput!U70-DataInput!E70,"") ->  | W70: =IF(DataInput!W70-DataInput!I70>0,DataInput!W70-DataInput!I70,"") -> 89 | Z70: 89 | AA70: -17 | AB70: 0 | AC70: 0 | AD70: =IF(AC70>0,IFERROR(IF(AVERAGE(DataInput!Q69:Q70)>AVERAGE(AC70,AC69),ROUNDDOWN(((((AC69-AB69)+(AC70-AB70))/2)*(A70-A69))/27,0),IF(((((DataInput!Q70-AB70)+(DataInput!Q69-AB69))/2)*(A70-A69))/27>0,ROUNDDOWN(((((DataInput!Q70-AB69)+(DataInput!Q69-AB69))/2)*(A70-A69))/27,0),0)),0),0) -> 0 | AE70: 0 | AF70: =IFERROR(IF(((((DataInput!Q69-AE69)+(DataInput!Q70-AE70))/2)*(A70-A69))/27>0,ROUNDDOWN(((((DataInput!Q69-AE69)+(DataInput!Q70-AE70))/2)*(A70-A69))/27,0),0),0) -> 0 | AG70: =DataInput!U70 -> 0 | AH70: =DataInput!S70 -> 0 | AI70: 0 | AJ70: 0
A71: =IF(DataInput!A71<>"",DataInput!A71,"") -> 5950 | B71: =SUM(DataInput!C71,DataInput!X71)+(DataInput!U71-DataInput!E71) -> 87 | C71: =SUM(DataInput!D71,DataInput!Y71) -> 87 | D71: =DataInput!U71 -> 0 | E71: =SUM(DataInput!F71,DataInput!AA71) -> 0 | F71: =SUM(DataInput!G71,DataInput!AB71) -> 0 | G71: =SUM(DataInput!H71,DataInput!AC71) -> 0 | H71: =DataInput!W71 -> 110 | I71: =SUM(DataInput!J71,DataInput!AD71) -> 0 | J71: =SUM(DataInput!K71,DataInput!AE71) -> 0 | K71: =SUM(DataInput!L71,DataInput!AF71) -> 0 | L71: =SUM(DataInput!M71,DataInput!AG71) -> 0 | M71: =SUM(DataInput!N71,DataInput!AH71) -> 0 | N71: =SUM(DataInput!O71,DataInput!AI71) -> 0 | O71: =DataInput!P71 -> 0 | R71: 87 | S71: 67 | T71: =DataInput!R71 -> 0 | U71: =DataInput!X71 -> 0 | V71: =IF(DataInput!U71-DataInput!E71>0,DataInput!U71-DataInput!E71,"") ->  | W71: =IF(DataInput!W71-DataInput!I71>0,DataInput!W71-DataInput!I71,"") -> 110 | Z71: 110 | AA71: -43 | AB71: 0 | AC71: 0 | AD71: =IF(AC71>0,IFERROR(IF(AVERAGE(DataInput!Q70:Q71)>AVERAGE(AC71,AC70),ROUNDDOWN(((((AC70-AB70)+(AC71-AB71))/2)*(A71-A70))/27,0),IF(((((DataInput!Q71-AB71)+(DataInput!Q70-AB70))/2)*(A71-A70))/27>0,ROUNDDOWN(((((DataInput!Q71-AB70)+(DataInput!Q70-AB70))/2)*(A71-A70))/27,0),0)),0),0) -> 0 | AE71: 0 | AF71: =IFERROR(IF(((((DataInput!Q70-AE70)+(DataInput!Q71-AE71))/2)*(A71-A70))/27>0,ROUNDDOWN(((((DataInput!Q70-AE70)+(DataInput!Q71-AE71))/2)*(A71-A70))/27,0),0),0) -> 0 | AG71: =DataInput!U71 -> 0 | AH71: =DataInput!S71 -> 0 | AI71: 0 | AJ71: 0
A72: =IF(DataInput!A72<>"",DataInput!A72,"") -> 5975 | B72: =SUM(DataInput!C72,DataInput!X72)+(DataInput!U72-DataInput!E72) -> 85 | C72: =SUM(DataInput!D72,DataInput!Y72) -> 85 | D72: =DataInput!U72 -> 0 | E72: =SUM(DataInput!F72,DataInput!AA72) -> 0 | F72: =SUM(DataInput!G72,DataInput!AB72) -> 0 | G72: =SUM(DataInput!H72,DataInput!AC72) -> 0 | H72: =DataInput!W72 -> 101 | I72: =SUM(DataInput!J72,DataInput!AD72) -> 0 | J72: =SUM(DataInput!K72,DataInput!AE72) -> 0 | K72: =SUM(DataInput!L72,DataInput!AF72) -> 0 | L72: =SUM(DataInput!M72,DataInput!AG72) -> 0 | M72: =SUM(DataInput!N72,DataInput!AH72) -> 0 | N72: =SUM(DataInput!O72,DataInput!AI72) -> 0 | O72: =DataInput!P72 -> 0 | R72: 85 | S72: 65 | T72: =DataInput!R72 -> 0 | U72: =DataInput!X72 -> 0 | V72: =IF(DataInput!U72-DataInput!E72>0,DataInput!U72-DataInput!E72,"") ->  | W72: =IF(DataInput!W72-DataInput!I72>0,DataInput!W72-DataInput!I72,"") -> 101 | Z72: 101 | AA72: -36 | AB72: 0 | AC72: 0 | AD72: =IF(AC72>0,IFERROR(IF(AVERAGE(DataInput!Q71:Q72)>AVERAGE(AC72,AC71),ROUNDDOWN(((((AC71-AB71)+(AC72-AB72))/2)*(A72-A71))/27,0),IF(((((DataInput!Q72-AB72)+(DataInput!Q71-AB71))/2)*(A72-A71))/27>0,ROUNDDOWN(((((DataInput!Q72-AB71)+(DataInput!Q71-AB71))/2)*(A72-A71))/27,0),0)),0),0) -> 0 | AE72: 0 | AF72: =IFERROR(IF(((((DataInput!Q71-AE71)+(DataInput!Q72-AE72))/2)*(A72-A71))/27>0,ROUNDDOWN(((((DataInput!Q71-AE71)+(DataInput!Q72-AE72))/2)*(A72-A71))/27,0),0),0) -> 0 | AG72: =DataInput!U72 -> 0 | AH72: =DataInput!S72 -> 0 | AI72: 0 | AJ72: 0
A73: =IF(DataInput!A73<>"",DataInput!A73,"") -> 6000 | B73: =SUM(DataInput!C73,DataInput!X73)+(DataInput!U73-DataInput!E73) -> 82 | C73: =SUM(DataInput!D73,DataInput!Y73) -> 82 | D73: =DataInput!U73 -> 0 | E73: =SUM(DataInput!F73,DataInput!AA73) -> 0 | F73: =SUM(DataInput!G73,DataInput!AB73) -> 0 | G73: =SUM(DataInput!H73,DataInput!AC73) -> 0 | H73: =DataInput!W73 -> 85 | I73: =SUM(DataInput!J73,DataInput!AD73) -> 0 | J73: =SUM(DataInput!K73,DataInput!AE73) -> 0 | K73: =SUM(DataInput!L73,DataInput!AF73) -> 0 | L73: =SUM(DataInput!M73,DataInput!AG73) -> 0 | M73: =SUM(DataInput!N73,DataInput!AH73) -> 0 | N73: =SUM(DataInput!O73,DataInput!AI73) -> 0 | O73: =DataInput!P73 -> 0 | R73: 82 | S73: 63 | T73: =DataInput!R73 -> 0 | U73: =DataInput!X73 -> 0 | V73: =IF(DataInput!U73-DataInput!E73>0,DataInput!U73-DataInput!E73,"") ->  | W73: =IF(DataInput!W73-DataInput!I73>0,DataInput!W73-DataInput!I73,"") -> 85 | Z73: 85 | AA73: -22 | AB73: 0 | AC73: 0 | AD73: =IF(AC73>0,IFERROR(IF(AVERAGE(DataInput!Q72:Q73)>AVERAGE(AC73,AC72),ROUNDDOWN(((((AC72-AB72)+(AC73-AB73))/2)*(A73-A72))/27,0),IF(((((DataInput!Q73-AB73)+(DataInput!Q72-AB72))/2)*(A73-A72))/27>0,ROUNDDOWN(((((DataInput!Q73-AB72)+(DataInput!Q72-AB72))/2)*(A73-A72))/27,0),0)),0),0) -> 0 | AE73: 0 | AF73: =IFERROR(IF(((((DataInput!Q72-AE72)+(DataInput!Q73-AE73))/2)*(A73-A72))/27>0,ROUNDDOWN(((((DataInput!Q72-AE72)+(DataInput!Q73-AE73))/2)*(A73-A72))/27,0),0),0) -> 0 | AG73: =DataInput!U73 -> 0 | AH73: =DataInput!S73 -> 0 | AI73: 0 | AJ73: 0
A74: =IF(DataInput!A74<>"",DataInput!A74,"") -> 6025 | B74: =SUM(DataInput!C74,DataInput!X74)+(DataInput!U74-DataInput!E74) -> 146.6 | C74: =SUM(DataInput!D74,DataInput!Y74) -> 141 | D74: =DataInput!U74 -> 19.6 | E74: =SUM(DataInput!F74,DataInput!AA74) -> 0 | F74: =SUM(DataInput!G74,DataInput!AB74) -> 0 | G74: =SUM(DataInput!H74,DataInput!AC74) -> 0 | H74: =DataInput!W74 -> 77 | I74: =SUM(DataInput!J74,DataInput!AD74) -> 0 | J74: =SUM(DataInput!K74,DataInput!AE74) -> 0 | K74: =SUM(DataInput!L74,DataInput!AF74) -> 0 | L74: =SUM(DataInput!M74,DataInput!AG74) -> 0 | M74: =SUM(DataInput!N74,DataInput!AH74) -> 0 | N74: =SUM(DataInput!O74,DataInput!AI74) -> 0 | O74: =DataInput!P74 -> 0 | R74: 141 | S74: 108 | T74: =DataInput!R74 -> 0 | U74: =DataInput!X74 -> 0 | V74: =IF(DataInput!U74-DataInput!E74>0,DataInput!U74-DataInput!E74,"") -> 5.6 | W74: =IF(DataInput!W74-DataInput!I74>0,DataInput!W74-DataInput!I74,"") -> 77 | Z74: 82.6 | AA74: 25.4 | AB74: 0 | AC74: 0 | AD74: =IF(AC74>0,IFERROR(IF(AVERAGE(DataInput!Q73:Q74)>AVERAGE(AC74,AC73),ROUNDDOWN(((((AC73-AB73)+(AC74-AB74))/2)*(A74-A73))/27,0),IF(((((DataInput!Q74-AB74)+(DataInput!Q73-AB73))/2)*(A74-A73))/27>0,ROUNDDOWN(((((DataInput!Q74-AB73)+(DataInput!Q73-AB73))/2)*(A74-A73))/27,0),0)),0),0) -> 0 | AE74: 0 | AF74: =IFERROR(IF(((((DataInput!Q73-AE73)+(DataInput!Q74-AE74))/2)*(A74-A73))/27>0,ROUNDDOWN(((((DataInput!Q73-AE73)+(DataInput!Q74-AE74))/2)*(A74-A73))/27,0),0),0) -> 0 | AG74: =DataInput!U74 -> 19.6 | AH74: =DataInput!S74 -> 14 | AI74: 14 | AJ74: 0
A75: =IF(DataInput!A75<>"",DataInput!A75,"") -> 6050 | B75: =SUM(DataInput!C75,DataInput!X75)+(DataInput!U75-DataInput!E75) -> 221.6 | C75: =SUM(DataInput!D75,DataInput!Y75) -> 210 | D75: =DataInput!U75 -> 40.6 | E75: =SUM(DataInput!F75,DataInput!AA75) -> 0 | F75: =SUM(DataInput!G75,DataInput!AB75) -> 0 | G75: =SUM(DataInput!H75,DataInput!AC75) -> 0 | H75: =DataInput!W75 -> 74 | I75: =SUM(DataInput!J75,DataInput!AD75) -> 0 | J75: =SUM(DataInput!K75,DataInput!AE75) -> 0 | K75: =SUM(DataInput!L75,DataInput!AF75) -> 0 | L75: =SUM(DataInput!M75,DataInput!AG75) -> 0 | M75: =SUM(DataInput!N75,DataInput!AH75) -> 0 | N75: =SUM(DataInput!O75,DataInput!AI75) -> 0 | O75: =DataInput!P75 -> 0 | R75: 210 | S75: 162 | T75: =DataInput!R75 -> 0 | U75: =DataInput!X75 -> 0 | V75: =IF(DataInput!U75-DataInput!E75>0,DataInput!U75-DataInput!E75,"") -> 11.6 | W75: =IF(DataInput!W75-DataInput!I75>0,DataInput!W75-DataInput!I75,"") -> 74 | Z75: 85.6 | AA75: 76.4 | AB75: 0 | AC75: 0 | AD75: =IF(AC75>0,IFERROR(IF(AVERAGE(DataInput!Q74:Q75)>AVERAGE(AC75,AC74),ROUNDDOWN(((((AC74-AB74)+(AC75-AB75))/2)*(A75-A74))/27,0),IF(((((DataInput!Q75-AB75)+(DataInput!Q74-AB74))/2)*(A75-A74))/27>0,ROUNDDOWN(((((DataInput!Q75-AB74)+(DataInput!Q74-AB74))/2)*(A75-A74))/27,0),0)),0),0) -> 0 | AE75: 0 | AF75: =IFERROR(IF(((((DataInput!Q74-AE74)+(DataInput!Q75-AE75))/2)*(A75-A74))/27>0,ROUNDDOWN(((((DataInput!Q74-AE74)+(DataInput!Q75-AE75))/2)*(A75-A74))/27,0),0),0) -> 0 | AG75: =DataInput!U75 -> 40.6 | AH75: =DataInput!S75 -> 29 | AI75: 29 | AJ75: 0
A76: =IF(DataInput!A76<>"",DataInput!A76,"") -> 6075 | B76: =SUM(DataInput!C76,DataInput!X76)+(DataInput!U76-DataInput!E76) -> 0 | C76: =SUM(DataInput!D76,DataInput!Y76) -> 0 | D76: =DataInput!U76 -> 0 | E76: =SUM(DataInput!F76,DataInput!AA76) -> 0 | F76: =SUM(DataInput!G76,DataInput!AB76) -> 0 | G76: =SUM(DataInput!H76,DataInput!AC76) -> 0 | H76: =DataInput!W76 -> 0 | I76: =SUM(DataInput!J76,DataInput!AD76) -> 0 | J76: =SUM(DataInput!K76,DataInput!AE76) -> 0 | K76: =SUM(DataInput!L76,DataInput!AF76) -> 0 | L76: =SUM(DataInput!M76,DataInput!AG76) -> 0 | M76: =SUM(DataInput!N76,DataInput!AH76) -> 0 | N76: =SUM(DataInput!O76,DataInput!AI76) -> 0 | O76: =DataInput!P76 -> 0 | R76: 0 | S76: 0 | T76: =DataInput!R76 -> 0 | U76: =DataInput!X76 -> 0 | V76: =IF(DataInput!U76-DataInput!E76>0,DataInput!U76-DataInput!E76,"") ->  | W76: =IF(DataInput!W76-DataInput!I76>0,DataInput!W76-DataInput!I76,"") ->  | Z76: 0 | AA76: 0 | AB76: 0 | AC76: 0 | AD76: =IF(AC76>0,IFERROR(IF(AVERAGE(DataInput!Q75:Q76)>AVERAGE(AC76,AC75),ROUNDDOWN(((((AC75-AB75)+(AC76-AB76))/2)*(A76-A75))/27,0),IF(((((DataInput!Q76-AB76)+(DataInput!Q75-AB75))/2)*(A76-A75))/27>0,ROUNDDOWN(((((DataInput!Q76-AB75)+(DataInput!Q75-AB75))/2)*(A76-A75))/27,0),0)),0),0) -> 0 | AE76: 0 | AF76: =IFERROR(IF(((((DataInput!Q75-AE75)+(DataInput!Q76-AE76))/2)*(A76-A75))/27>0,ROUNDDOWN(((((DataInput!Q75-AE75)+(DataInput!Q76-AE76))/2)*(A76-A75))/27,0),0),0) -> 0 | AG76: =DataInput!U76 -> 0 | AH76: =DataInput!S76 -> 0 | AI76: 0 | AJ76: 0
A78: =IF(DataInput!A78<>"",DataInput!A78,"") -> SR022
A79: =IF(DataInput!A79<>"",DataInput!A79,"") -> 49372.65 | B79: =SUM(DataInput!C79,DataInput!X79)+(DataInput!U79-DataInput!E79) -> 13.6 | C79: =SUM(DataInput!D79,DataInput!Y79) -> 12 | D79: =DataInput!U79 -> 5.6 | E79: =SUM(DataInput!F79,DataInput!AA79) -> 0 | F79: =SUM(DataInput!G79,DataInput!AB79) -> 0 | G79: =SUM(DataInput!H79,DataInput!AC79) -> 0 | H79: =DataInput!W79 -> 9 | I79: =SUM(DataInput!J79,DataInput!AD79) -> 0 | J79: =SUM(DataInput!K79,DataInput!AE79) -> 0 | K79: =SUM(DataInput!L79,DataInput!AF79) -> 0 | L79: =SUM(DataInput!M79,DataInput!AG79) -> 0 | M79: =SUM(DataInput!N79,DataInput!AH79) -> 0 | N79: =SUM(DataInput!O79,DataInput!AI79) -> 0 | O79: =DataInput!P79 -> 0 | R79: =SUM(C79,E79:G79,I79:L79,N79:Q79) -> 12 | S79: =IF(ISERROR(ROUND((R79/$S$5),0)),0,ROUND((R79/$S$5),0)) -> 9 | T79: =DataInput!R79 -> 9 | U79: =DataInput!X79 -> 0 | V79: =IF(DataInput!U79-DataInput!E79>0,DataInput!U79-DataInput!E79,"") -> 1.6 | W79: =IF(DataInput!W79-DataInput!I79>0,DataInput!W79-DataInput!I79,"") -> 9 | Z79: =SUM(T79:Y79) -> 19.6 | AA79: =SUM(S79-Z79) -> -10.6 | AD79: 0 | AF79: 0 | AG79: =DataInput!U79 -> 5.6 | AH79: =DataInput!S79 -> 4 | AI79: =ROUNDUP(AG79/$AI$5,0) -> 4 | AJ79: =AI79-AH79 -> 0
A80: =IF(DataInput!A80<>"",DataInput!A80,"") -> 49375 | B80: =SUM(DataInput!C80,DataInput!X80)+(DataInput!U80-DataInput!E80) -> 142.8 | C80: =SUM(DataInput!D80,DataInput!Y80) -> 128 | D80: =DataInput!U80 -> 51.8 | E80: =SUM(DataInput!F80,DataInput!AA80) -> 0 | F80: =SUM(DataInput!G80,DataInput!AB80) -> 0 | G80: =SUM(DataInput!H80,DataInput!AC80) -> 0 | H80: =DataInput!W80 -> 77 | I80: =SUM(DataInput!J80,DataInput!AD80) -> 0 | J80: =SUM(DataInput!K80,DataInput!AE80) -> 0 | K80: =SUM(DataInput!L80,DataInput!AF80) -> 0 | L80: =SUM(DataInput!M80,DataInput!AG80) -> 0 | M80: =SUM(DataInput!N80,DataInput!AH80) -> 0 | N80: =SUM(DataInput!O80,DataInput!AI80) -> 0 | O80: =DataInput!P80 -> 0 | R80: =SUM(C80,E80:G80,I80:L80,N80:Q80) -> 128 | S80: =IF(ISERROR(ROUND((R80/$S$5),0)),0,ROUND((R80/$S$5),0)) -> 98 | T80: =DataInput!R80 -> 101 | U80: =DataInput!X80 -> 0 | V80: =IF(DataInput!U80-DataInput!E80>0,DataInput!U80-DataInput!E80,"") -> 14.8 | W80: =IF(DataInput!W80-DataInput!I80>0,DataInput!W80-DataInput!I80,"") -> 77 | Z80: =SUM(T80:Y80) -> 192.8 | AA80: =SUM(S80-Z80) -> -94.8 | AB80: =AB79 -> 0 | AC80: =AC79 -> 0 | AD80: =IF(AC80>0,IFERROR(IF(AVERAGE(DataInput!Q79:Q80)>AVERAGE(AC80,AC79),ROUNDDOWN(((((AC79-AB79)+(AC80-AB80))/2)*(A80-A79))/27,0),IF(((((DataInput!Q80-AB80)+(DataInput!Q79-AB79))/2)*(A80-A79))/27>0,ROUNDDOWN(((((DataInput!Q80-AB79)+(DataInput!Q79-AB79))/2)*(A80-A79))/27,0),0)),0),0) -> 0 | AE80: =AE79 -> 0 | AF80: =IFERROR(IF(((((DataInput!Q79-AE79)+(DataInput!Q80-AE80))/2)*(A80-A79))/27>0,ROUNDDOWN(((((DataInput!Q79-AE79)+(DataInput!Q80-AE80))/2)*(A80-A79))/27,0),0),0) -> 8 | AG80: =DataInput!U80 -> 51.8 | AH80: =DataInput!S80 -> 37 | AI80: =ROUNDUP(AG80/$AI$5,0) -> 37 | AJ80: =AI80-AH80 -> 0
A81: =IF(DataInput!A81<>"",DataInput!A81,"") -> 49400 | B81: =SUM(DataInput!C81,DataInput!X81)+(DataInput!U81-DataInput!E81) -> 140.4 | C81: =SUM(DataInput!D81,DataInput!Y81) -> 126 | D81: =DataInput!U81 -> 50.4 | E81: =SUM(DataInput!F81,DataInput!AA81) -> 0 | F81: =SUM(DataInput!G81,DataInput!AB81) -> 0 | G81: =SUM(DataInput!H81,DataInput!AC81) -> 0 | H81: =DataInput!W81 -> 56 | I81: =SUM(DataInput!J81,DataInput!AD81) -> 0 | J81: =SUM(DataInput!K81,DataInput!AE81) -> 0 | K81: =SUM(DataInput!L81,DataInput!AF81) -> 0 | L81: =SUM(DataInput!M81,DataInput!AG81) -> 0 | M81: =SUM(DataInput!N81,DataInput!AH81) -> 0 | N81: =SUM(DataInput!O81,DataInput!AI81) -> 0 | O81: =DataInput!P81 -> 0 | R81: 126 | S81: 97 | T81: =DataInput!R81 -> 103 | U81: =DataInput!X81 -> 0 | V81: =IF(DataInput!U81-DataInput!E81>0,DataInput!U81-DataInput!E81,"") -> 14.4 | W81: =IF(DataInput!W81-DataInput!I81>0,DataInput!W81-DataInput!I81,"") -> 56 | Z81: 173.4 | AA81: -76.4 | AB81: =AB80 -> 0 | AC81: =AC80 -> 0 | AD81: =IF(AC81>0,IFERROR(IF(AVERAGE(DataInput!Q80:Q81)>AVERAGE(AC81,AC80),ROUNDDOWN(((((AC80-AB80)+(AC81-AB81))/2)*(A81-A80))/27,0),IF(((((DataInput!Q81-AB81)+(DataInput!Q80-AB80))/2)*(A81-A80))/27>0,ROUNDDOWN(((((DataInput!Q81-AB80)+(DataInput!Q80-AB80))/2)*(A81-A80))/27,0),0)),0),0) -> 0 | AE81: =AE80 -> 0 | AF81: =IFERROR(IF(((((DataInput!Q80-AE80)+(DataInput!Q81-AE81))/2)*(A81-A80))/27>0,ROUNDDOWN(((((DataInput!Q80-AE80)+(DataInput!Q81-AE81))/2)*(A81-A80))/27,0),0),0) -> 97 | AG81: =DataInput!U81 -> 50.4 | AH81: =DataInput!S81 -> 36 | AI81: 36 | AJ81: 0
A82: =IF(DataInput!A82<>"",DataInput!A82,"") -> 49425 | B82: =SUM(DataInput!C82,DataInput!X82)+(DataInput!U82-DataInput!E82) -> 140.8 | C82: =SUM(DataInput!D82,DataInput!Y82) -> 122 | D82: =DataInput!U82 -> 65.8 | E82: =SUM(DataInput!F82,DataInput!AA82) -> 0 | F82: =SUM(DataInput!G82,DataInput!AB82) -> 0 | G82: =SUM(DataInput!H82,DataInput!AC82) -> 0 | H82: =DataInput!W82 -> 53 | I82: =SUM(DataInput!J82,DataInput!AD82) -> 0 | J82: =SUM(DataInput!K82,DataInput!AE82) -> 0 | K82: =SUM(DataInput!L82,DataInput!AF82) -> 0 | L82: =SUM(DataInput!M82,DataInput!AG82) -> 0 | M82: =SUM(DataInput!N82,DataInput!AH82) -> 0 | N82: =SUM(DataInput!O82,DataInput!AI82) -> 0 | O82: =DataInput!P82 -> 0 | R82: 122 | S82: 94 | T82: =DataInput!R82 -> 104 | U82: =DataInput!X82 -> 0 | V82: =IF(DataInput!U82-DataInput!E82>0,DataInput!U82-DataInput!E82,"") -> 18.8 | W82: =IF(DataInput!W82-DataInput!I82>0,DataInput!W82-DataInput!I82,"") -> 53 | Z82: 175.8 | AA82: -81.8 | AB82: 0 | AC82: 0 | AD82: =IF(AC82>0,IFERROR(IF(AVERAGE(DataInput!Q81:Q82)>AVERAGE(AC82,AC81),ROUNDDOWN(((((AC81-AB81)+(AC82-AB82))/2)*(A82-A81))/27,0),IF(((((DataInput!Q82-AB82)+(DataInput!Q81-AB81))/2)*(A82-A81))/27>0,ROUNDDOWN(((((DataInput!Q82-AB81)+(DataInput!Q81-AB81))/2)*(A82-A81))/27,0),0)),0),0) -> 0 | AE82: 0 | AF82: =IFERROR(IF(((((DataInput!Q81-AE81)+(DataInput!Q82-AE82))/2)*(A82-A81))/27>0,ROUNDDOWN(((((DataInput!Q81-AE81)+(DataInput!Q82-AE82))/2)*(A82-A81))/27,0),0),0) -> 99 | AG82: =DataInput!U82 -> 65.8 | AH82: =DataInput!S82 -> 47 | AI82: 47 | AJ82: 0
A83: =IF(DataInput!A83<>"",DataInput!A83,"") -> 49450 | B83: =SUM(DataInput!C83,DataInput!X83)+(DataInput!U83-DataInput!E83) -> 139.4 | C83: =SUM(DataInput!D83,DataInput!Y83) -> 119 | D83: =DataInput!U83 -> 71.4 | E83: =SUM(DataInput!F83,DataInput!AA83) -> 0 | F83: =SUM(DataInput!G83,DataInput!AB83) -> 0 | G83: =SUM(DataInput!H83,DataInput!AC83) -> 0 | H83: =DataInput!W83 -> 52 | I83: =SUM(DataInput!J83,DataInput!AD83) -> 0 | J83: =SUM(DataInput!K83,DataInput!AE83) -> 0 | K83: =SUM(DataInput!L83,DataInput!AF83) -> 0 | L83: =SUM(DataInput!M83,DataInput!AG83) -> 0 | M83: =SUM(DataInput!N83,DataInput!AH83) -> 0 | N83: =SUM(DataInput!O83,DataInput!AI83) -> 0 | O83: =DataInput!P83 -> 0 | R83: 119 | S83: 92 | T83: =DataInput!R83 -> 100 | U83: =DataInput!X83 -> 0 | V83: =IF(DataInput!U83-DataInput!E83>0,DataInput!U83-DataInput!E83,"") -> 20.4 | W83: =IF(DataInput!W83-DataInput!I83>0,DataInput!W83-DataInput!I83,"") -> 52 | Z83: 172.4 | AA83: -80.4 | AB83: 0 | AC83: 0 | AD83: =IF(AC83>0,IFERROR(IF(AVERAGE(DataInput!Q82:Q83)>AVERAGE(AC83,AC82),ROUNDDOWN(((((AC82-AB82)+(AC83-AB83))/2)*(A83-A82))/27,0),IF(((((DataInput!Q83-AB83)+(DataInput!Q82-AB82))/2)*(A83-A82))/27>0,ROUNDDOWN(((((DataInput!Q83-AB82)+(DataInput!Q82-AB82))/2)*(A83-A82))/27,0),0)),0),0) -> 0 | AE83: 0 | AF83: =IFERROR(IF(((((DataInput!Q82-AE82)+(DataInput!Q83-AE83))/2)*(A83-A82))/27>0,ROUNDDOWN(((((DataInput!Q82-AE82)+(DataInput!Q83-AE83))/2)*(A83-A82))/27,0),0),0) -> 94 | AG83: =DataInput!U83 -> 71.4 | AH83: =DataInput!S83 -> 51 | AI83: 51 | AJ83: 0
A84: =IF(DataInput!A84<>"",DataInput!A84,"") -> 49475 | B84: =SUM(DataInput!C84,DataInput!X84)+(DataInput!U84-DataInput!E84) -> 137.2 | C84: =SUM(DataInput!D84,DataInput!Y84) -> 116 | D84: =DataInput!U84 -> 74.2 | E84: =SUM(DataInput!F84,DataInput!AA84) -> 0 | F84: =SUM(DataInput!G84,DataInput!AB84) -> 0 | G84: =SUM(DataInput!H84,DataInput!AC84) -> 0 | H84: =DataInput!W84 -> 52 | I84: =SUM(DataInput!J84,DataInput!AD84) -> 0 | J84: =SUM(DataInput!K84,DataInput!AE84) -> 0 | K84: =SUM(DataInput!L84,DataInput!AF84) -> 0 | L84: =SUM(DataInput!M84,DataInput!AG84) -> 0 | M84: =SUM(DataInput!N84,DataInput!AH84) -> 0 | N84: =SUM(DataInput!O84,DataInput!AI84) -> 0 | O84: =DataInput!P84 -> 0 | R84: 116 | S84: 89 | T84: =DataInput!R84 -> 89 | U84: =DataInput!X84 -> 0 | V84: =IF(DataInput!U84-DataInput!E84>0,DataInput!U84-DataInput!E84,"") -> 21.2 | W84: =IF(DataInput!W84-DataInput!I84>0,DataInput!W84-DataInput!I84,"") -> 52 | Z84: 162.2 | AA84: -73.2 | AB84: 0 | AC84: 0 | AD84: =IF(AC84>0,IFERROR(IF(AVERAGE(DataInput!Q83:Q84)>AVERAGE(AC84,AC83),ROUNDDOWN(((((AC83-AB83)+(AC84-AB84))/2)*(A84-A83))/27,0),IF(((((DataInput!Q84-AB84)+(DataInput!Q83-AB83))/2)*(A84-A83))/27>0,ROUNDDOWN(((((DataInput!Q84-AB83)+(DataInput!Q83-AB83))/2)*(A84-A83))/27,0),0)),0),0) -> 0 | AE84: 0 | AF84: =IFERROR(IF(((((DataInput!Q83-AE83)+(DataInput!Q84-AE84))/2)*(A84-A83))/27>0,ROUNDDOWN(((((DataInput!Q83-AE83)+(DataInput!Q84-AE84))/2)*(A84-A83))/27,0),0),0) -> 83 | AG84: =DataInput!U84 -> 74.2 | AH84: =DataInput!S84 -> 53 | AI84: 53 | AJ84: 0
A85: =IF(DataInput!A85<>"",DataInput!A85,"") -> 49500 | B85: =SUM(DataInput!C85,DataInput!X85)+(DataInput!U85-DataInput!E85) -> 134.8 | C85: =SUM(DataInput!D85,DataInput!Y85) -> 120 | D85: =DataInput!U85 -> 51.8 | E85: =SUM(DataInput!F85,DataInput!AA85) -> 0 | F85: =SUM(DataInput!G85,DataInput!AB85) -> 0 | G85: =SUM(DataInput!H85,DataInput!AC85) -> 0 | H85: =DataInput!W85 -> 77 | I85: =SUM(DataInput!J85,DataInput!AD85) -> 0 | J85: =SUM(DataInput!K85,DataInput!AE85) -> 0 | K85: =SUM(DataInput!L85,DataInput!AF85) -> 0 | L85: =SUM(DataInput!M85,DataInput!AG85) -> 0 | M85: =SUM(DataInput!N85,DataInput!AH85) -> 0 | N85: =SUM(DataInput!O85,DataInput!AI85) -> 0 | O85: =DataInput!P85 -> 0 | R85: 120 | S85: 92 | T85: =DataInput!R85 -> 64 | U85: =DataInput!X85 -> 0 | V85: =IF(DataInput!U85-DataInput!E85>0,DataInput!U85-DataInput!E85,"") -> 14.8 | W85: =IF(DataInput!W85-DataInput!I85>0,DataInput!W85-DataInput!I85,"") -> 77 | Z85: 155.8 | AA85: -63.8 | AB85: 0 | AC85: 0 | AD85: =IF(AC85>0,IFERROR(IF(AVERAGE(DataInput!Q84:Q85)>AVERAGE(AC85,AC84),ROUNDDOWN(((((AC84-AB84)+(AC85-AB85))/2)*(A85-A84))/27,0),IF(((((DataInput!Q85-AB85)+(DataInput!Q84-AB84))/2)*(A85-A84))/27>0,ROUNDDOWN(((((DataInput!Q85-AB84)+(DataInput!Q84-AB84))/2)*(A85-A84))/27,0),0)),0),0) -> 0 | AE85: 0 | AF85: =IFERROR(IF(((((DataInput!Q84-AE84)+(DataInput!Q85-AE85))/2)*(A85-A84))/27>0,ROUNDDOWN(((((DataInput!Q84-AE84)+(DataInput!Q85-AE85))/2)*(A85-A84))/27,0),0),0) -> 59 | AG85: =DataInput!U85 -> 51.8 | AH85: =DataInput!S85 -> 37 | AI85: 37 | AJ85: 0
A86: =IF(DataInput!A86<>"",DataInput!A86,"") -> 49525 | B86: =SUM(DataInput!C86,DataInput!X86)+(DataInput!U86-DataInput!E86) -> 132 | C86: =SUM(DataInput!D86,DataInput!Y86) -> 118 | D86: =DataInput!U86 -> 49 | E86: =SUM(DataInput!F86,DataInput!AA86) -> 0 | F86: =SUM(DataInput!G86,DataInput!AB86) -> 0 | G86: =SUM(DataInput!H86,DataInput!AC86) -> 0 | H86: =DataInput!W86 -> 77 | I86: =SUM(DataInput!J86,DataInput!AD86) -> 0 | J86: =SUM(DataInput!K86,DataInput!AE86) -> 0 | K86: =SUM(DataInput!L86,DataInput!AF86) -> 0 | L86: =SUM(DataInput!M86,DataInput!AG86) -> 0 | M86: =SUM(DataInput!N86,DataInput!AH86) -> 0 | N86: =SUM(DataInput!O86,DataInput!AI86) -> 0 | O86: =DataInput!P86 -> 0 | R86: 118 | S86: 91 | T86: =DataInput!R86 -> 62 | U86: =DataInput!X86 -> 0 | V86: =IF(DataInput!U86-DataInput!E86>0,DataInput!U86-DataInput!E86,"") -> 14 | W86: =IF(DataInput!W86-DataInput!I86>0,DataInput!W86-DataInput!I86,"") -> 77 | Z86: 153 | AA86: -62 | AB86: 0 | AC86: 0 | AD86: =IF(AC86>0,IFERROR(IF(AVERAGE(DataInput!Q85:Q86)>AVERAGE(AC86,AC85),ROUNDDOWN(((((AC85-AB85)+(AC86-AB86))/2)*(A86-A85))/27,0),IF(((((DataInput!Q86-AB86)+(DataInput!Q85-AB85))/2)*(A86-A85))/27>0,ROUNDDOWN(((((DataInput!Q86-AB85)+(DataInput!Q85-AB85))/2)*(A86-A85))/27,0),0)),0),0) -> 0 | AE86: 0 | AF86: =IFERROR(IF(((((DataInput!Q85-AE85)+(DataInput!Q86-AE86))/2)*(A86-A85))/27>0,ROUNDDOWN(((((DataInput!Q85-AE85)+(DataInput!Q86-AE86))/2)*(A86-A85))/27,0),0),0) -> 56 | AG86: =DataInput!U86 -> 49 | AH86: =DataInput!S86 -> 35 | AI86: 35 | AJ86: 0
A87: =IF(DataInput!A87<>"",DataInput!A87,"") -> 49550 | B87: =SUM(DataInput!C87,DataInput!X87)+(DataInput!U87-DataInput!E87) -> 130 | C87: =SUM(DataInput!D87,DataInput!Y87) -> 114 | D87: =DataInput!U87 -> 56 | E87: =SUM(DataInput!F87,DataInput!AA87) -> 0 | F87: =SUM(DataInput!G87,DataInput!AB87) -> 0 | G87: =SUM(DataInput!H87,DataInput!AC87) -> 0 | H87: =DataInput!W87 -> 51 | I87: =SUM(DataInput!J87,DataInput!AD87) -> 0 | J87: =SUM(DataInput!K87,DataInput!AE87) -> 0 | K87: =SUM(DataInput!L87,DataInput!AF87) -> 0 | L87: =SUM(DataInput!M87,DataInput!AG87) -> 0 | M87: =SUM(DataInput!N87,DataInput!AH87) -> 0 | N87: =SUM(DataInput!O87,DataInput!AI87) -> 0 | O87: =DataInput!P87 -> 0 | R87: 114 | S87: 88 | T87: =DataInput!R87 -> 65 | U87: =DataInput!X87 -> 0 | V87: =IF(DataInput!U87-DataInput!E87>0,DataInput!U87-DataInput!E87,"") -> 16 | W87: =IF(DataInput!W87-DataInput!I87>0,DataInput!W87-DataInput!I87,"") -> 51 | Z87: 132 | AA87: -44 | AB87: 0 | AC87: 0 | AD87: =IF(AC87>0,IFERROR(IF(AVERAGE(DataInput!Q86:Q87)>AVERAGE(AC87,AC86),ROUNDDOWN(((((AC86-AB86)+(AC87-AB87))/2)*(A87-A86))/27,0),IF(((((DataInput!Q87-AB87)+(DataInput!Q86-AB86))/2)*(A87-A86))/27>0,ROUNDDOWN(((((DataInput!Q87-AB86)+(DataInput!Q86-AB86))/2)*(A87-A86))/27,0),0)),0),0) -> 0 | AE87: 0 | AF87: =IFERROR(IF(((((DataInput!Q86-AE86)+(DataInput!Q87-AE87))/2)*(A87-A86))/27>0,ROUNDDOWN(((((DataInput!Q86-AE86)+(DataInput!Q87-AE87))/2)*(A87-A86))/27,0),0),0) -> 62 | AG87: =DataInput!U87 -> 56 | AH87: =DataInput!S87 -> 40 | AI87: 40 | AJ87: 0
A88: =IF(DataInput!A88<>"",DataInput!A88,"") -> 49575 | B88: =SUM(DataInput!C88,DataInput!X88)+(DataInput!U88-DataInput!E88) -> 137 | C88: =SUM(DataInput!D88,DataInput!Y88) -> 123 | D88: =DataInput!U88 -> 49 | E88: =SUM(DataInput!F88,DataInput!AA88) -> 0 | F88: =SUM(DataInput!G88,DataInput!AB88) -> 0 | G88: =SUM(DataInput!H88,DataInput!AC88) -> 0 | H88: =DataInput!W88 -> 50 | I88: =SUM(DataInput!J88,DataInput!AD88) -> 0 | J88: =SUM(DataInput!K88,DataInput!AE88) -> 0 | K88: =SUM(DataInput!L88,DataInput!AF88) -> 0 | L88: =SUM(DataInput!M88,DataInput!AG88) -> 0 | M88: =SUM(DataInput!N88,DataInput!AH88) -> 0 | N88: =SUM(DataInput!O88,DataInput!AI88) -> 0 | O88: =DataInput!P88 -> 0 | R88: 123 | S88: 95 | T88: =DataInput!R88 -> 43 | U88: =DataInput!X88 -> 0 | V88: =IF(DataInput!U88-DataInput!E88>0,DataInput!U88-DataInput!E88,"") -> 14 | W88: =IF(DataInput!W88-DataInput!I88>0,DataInput!W88-DataInput!I88,"") -> 50 | Z88: 107 | AA88: -12 | AB88: 0 | AC88: 0 | AD88: =IF(AC88>0,IFERROR(IF(AVERAGE(DataInput!Q87:Q88)>AVERAGE(AC88,AC87),ROUNDDOWN(((((AC87-AB87)+(AC88-AB88))/2)*(A88-A87))/27,0),IF(((((DataInput!Q88-AB88)+(DataInput!Q87-AB87))/2)*(A88-A87))/27>0,ROUNDDOWN(((((DataInput!Q88-AB87)+(DataInput!Q87-AB87))/2)*(A88-A87))/27,0),0)),0),0) -> 0 | AE88: 0 | AF88: =IFERROR(IF(((((DataInput!Q87-AE87)+(DataInput!Q88-AE88))/2)*(A88-A87))/27>0,ROUNDDOWN(((((DataInput!Q87-AE87)+(DataInput!Q88-AE88))/2)*(A88-A87))/27,0),0),0) -> 41 | AG88: =DataInput!U88 -> 49 | AH88: =DataInput!S88 -> 35 | AI88: 35 | AJ88: 0
A89: =IF(DataInput!A89<>"",DataInput!A89,"") -> 49600 | B89: =SUM(DataInput!C89,DataInput!X89)+(DataInput!U89-DataInput!E89) -> 136.6 | C89: =SUM(DataInput!D89,DataInput!Y89) -> 123 | D89: =DataInput!U89 -> 47.6 | E89: =SUM(DataInput!F89,DataInput!AA89) -> 0 | F89: =SUM(DataInput!G89,DataInput!AB89) -> 0 | G89: =SUM(DataInput!H89,DataInput!AC89) -> 0 | H89: =DataInput!W89 -> 50 | I89: =SUM(DataInput!J89,DataInput!AD89) -> 0 | J89: =SUM(DataInput!K89,DataInput!AE89) -> 0 | K89: =SUM(DataInput!L89,DataInput!AF89) -> 0 | L89: =SUM(DataInput!M89,DataInput!AG89) -> 0 | M89: =SUM(DataInput!N89,DataInput!AH89) -> 0 | N89: =SUM(DataInput!O89,DataInput!AI89) -> 0 | O89: =DataInput!P89 -> 0 | R89: 123 | S89: 95 | T89: =DataInput!R89 -> 27 | U89: =DataInput!X89 -> 0 | V89: =IF(DataInput!U89-DataInput!E89>0,DataInput!U89-DataInput!E89,"") -> 13.6 | W89: =IF(DataInput!W89-DataInput!I89>0,DataInput!W89-DataInput!I89,"") -> 50 | Z89: 90.6 | AA89: 4.4 | AB89: 0 | AC89: 0 | AD89: =IF(AC89>0,IFERROR(IF(AVERAGE(DataInput!Q88:Q89)>AVERAGE(AC89,AC88),ROUNDDOWN(((((AC88-AB88)+(AC89-AB89))/2)*(A89-A88))/27,0),IF(((((DataInput!Q89-AB89)+(DataInput!Q88-AB88))/2)*(A89-A88))/27>0,ROUNDDOWN(((((DataInput!Q89-AB88)+(DataInput!Q88-AB88))/2)*(A89-A88))/27,0),0)),0),0) -> 0 | AE89: 0 | AF89: =IFERROR(IF(((((DataInput!Q88-AE88)+(DataInput!Q89-AE89))/2)*(A89-A88))/27>0,ROUNDDOWN(((((DataInput!Q88-AE88)+(DataInput!Q89-AE89))/2)*(A89-A88))/27,0),0),0) -> 21 | AG89: =DataInput!U89 -> 47.6 | AH89: =DataInput!S89 -> 34 | AI89: 34 | AJ89: 0
A90: =IF(DataInput!A90<>"",DataInput!A90,"") -> 49625 | B90: =SUM(DataInput!C90,DataInput!X90)+(DataInput!U90-DataInput!E90) -> 131.6 | C90: =SUM(DataInput!D90,DataInput!Y90) -> 116 | D90: =DataInput!U90 -> 54.6 | E90: =SUM(DataInput!F90,DataInput!AA90) -> 0 | F90: =SUM(DataInput!G90,DataInput!AB90) -> 0 | G90: =SUM(DataInput!H90,DataInput!AC90) -> 0 | H90: =DataInput!W90 -> 49 | I90: =SUM(DataInput!J90,DataInput!AD90) -> 0 | J90: =SUM(DataInput!K90,DataInput!AE90) -> 0 | K90: =SUM(DataInput!L90,DataInput!AF90) -> 0 | L90: =SUM(DataInput!M90,DataInput!AG90) -> 0 | M90: =SUM(DataInput!N90,DataInput!AH90) -> 0 | N90: =SUM(DataInput!O90,DataInput!AI90) -> 0 | O90: =DataInput!P90 -> 0 | R90: 116 | S90: 89 | T90: =DataInput!R90 -> 38 | U90: =DataInput!X90 -> 0 | V90: =IF(DataInput!U90-DataInput!E90>0,DataInput!U90-DataInput!E90,"") -> 15.6 | W90: =IF(DataInput!W90-DataInput!I90>0,DataInput!W90-DataInput!I90,"") -> 49 | Z90: 102.6 | AA90: -13.6 | AB90: 0 | AC90: 0 | AD90: =IF(AC90>0,IFERROR(IF(AVERAGE(DataInput!Q89:Q90)>AVERAGE(AC90,AC89),ROUNDDOWN(((((AC89-AB89)+(AC90-AB90))/2)*(A90-A89))/27,0),IF(((((DataInput!Q90-AB90)+(DataInput!Q89-AB89))/2)*(A90-A89))/27>0,ROUNDDOWN(((((DataInput!Q90-AB89)+(DataInput!Q89-AB89))/2)*(A90-A89))/27,0),0)),0),0) -> 0 | AE90: 0 | AF90: =IFERROR(IF(((((DataInput!Q89-AE89)+(DataInput!Q90-AE90))/2)*(A90-A89))/27>0,ROUNDDOWN(((((DataInput!Q89-AE89)+(DataInput!Q90-AE90))/2)*(A90-A89))/27,0),0),0) -> 33 | AG90: =DataInput!U90 -> 54.6 | AH90: =DataInput!S90 -> 39 | AI90: 39 | AJ90: 0
A91: =IF(DataInput!A91<>"",DataInput!A91,"") -> 49650 | B91: =SUM(DataInput!C91,DataInput!X91)+(DataInput!U91-DataInput!E91) -> 137.2 | C91: =SUM(DataInput!D91,DataInput!Y91) -> 118 | D91: =DataInput!U91 -> 67.2 | E91: =SUM(DataInput!F91,DataInput!AA91) -> 0 | F91: =SUM(DataInput!G91,DataInput!AB91) -> 0 | G91: =SUM(DataInput!H91,DataInput!AC91) -> 0 | H91: =DataInput!W91 -> 49 | I91: =SUM(DataInput!J91,DataInput!AD91) -> 0 | J91: =SUM(DataInput!K91,DataInput!AE91) -> 0 | K91: =SUM(DataInput!L91,DataInput!AF91) -> 0 | L91: =SUM(DataInput!M91,DataInput!AG91) -> 0 | M91: =SUM(DataInput!N91,DataInput!AH91) -> 0 | N91: =SUM(DataInput!O91,DataInput!AI91) -> 0 | O91: =DataInput!P91 -> 0 | R91: 118 | S91: 91 | T91: =DataInput!R91 -> 50 | U91: =DataInput!X91 -> 0 | V91: =IF(DataInput!U91-DataInput!E91>0,DataInput!U91-DataInput!E91,"") -> 19.2 | W91: =IF(DataInput!W91-DataInput!I91>0,DataInput!W91-DataInput!I91,"") -> 49 | Z91: 118.2 | AA91: -27.2 | AB91: 0 | AC91: 0 | AD91: =IF(AC91>0,IFERROR(IF(AVERAGE(DataInput!Q90:Q91)>AVERAGE(AC91,AC90),ROUNDDOWN(((((AC90-AB90)+(AC91-AB91))/2)*(A91-A90))/27,0),IF(((((DataInput!Q91-AB91)+(DataInput!Q90-AB90))/2)*(A91-A90))/27>0,ROUNDDOWN(((((DataInput!Q91-AB90)+(DataInput!Q90-AB90))/2)*(A91-A90))/27,0),0)),0),0) -> 0 | AE91: 0 | AF91: =IFERROR(IF(((((DataInput!Q90-AE90)+(DataInput!Q91-AE91))/2)*(A91-A90))/27>0,ROUNDDOWN(((((DataInput!Q90-AE90)+(DataInput!Q91-AE91))/2)*(A91-A90))/27,0),0),0) -> 44 | AG91: =DataInput!U91 -> 67.2 | AH91: =DataInput!S91 -> 48 | AI91: 48 | AJ91: 0
A92: =IF(DataInput!A92<>"",DataInput!A92,"") -> 49675 | B92: =SUM(DataInput!C92,DataInput!X92)+(DataInput!U92-DataInput!E92) -> 135.8 | C92: =SUM(DataInput!D92,DataInput!Y92) -> 117 | D92: =DataInput!U92 -> 65.8 | E92: =SUM(DataInput!F92,DataInput!AA92) -> 0 | F92: =SUM(DataInput!G92,DataInput!AB92) -> 0 | G92: =SUM(DataInput!H92,DataInput!AC92) -> 0 | H92: =DataInput!W92 -> 49 | I92: =SUM(DataInput!J92,DataInput!AD92) -> 0 | J92: =SUM(DataInput!K92,DataInput!AE92) -> 0 | K92: =SUM(DataInput!L92,DataInput!AF92) -> 0 | L92: =SUM(DataInput!M92,DataInput!AG92) -> 0 | M92: =SUM(DataInput!N92,DataInput!AH92) -> 0 | N92: =SUM(DataInput!O92,DataInput!AI92) -> 0 | O92: =DataInput!P92 -> 0 | R92: 117 | S92: 90 | T92: =DataInput!R92 -> 36 | U92: =DataInput!X92 -> 0 | V92: =IF(DataInput!U92-DataInput!E92>0,DataInput!U92-DataInput!E92,"") -> 18.8 | W92: =IF(DataInput!W92-DataInput!I92>0,DataInput!W92-DataInput!I92,"") -> 49 | Z92: 103.8 | AA92: -13.8 | AB92: 0 | AC92: 0 | AD92: =IF(AC92>0,IFERROR(IF(AVERAGE(DataInput!Q91:Q92)>AVERAGE(AC92,AC91),ROUNDDOWN(((((AC91-AB91)+(AC92-AB92))/2)*(A92-A91))/27,0),IF(((((DataInput!Q92-AB92)+(DataInput!Q91-AB91))/2)*(A92-A91))/27>0,ROUNDDOWN(((((DataInput!Q92-AB91)+(DataInput!Q91-AB91))/2)*(A92-A91))/27,0),0)),0),0) -> 0 | AE92: 0 | AF92: =IFERROR(IF(((((DataInput!Q91-AE91)+(DataInput!Q92-AE92))/2)*(A92-A91))/27>0,ROUNDDOWN(((((DataInput!Q91-AE91)+(DataInput!Q92-AE92))/2)*(A92-A91))/27,0),0),0) -> 31 | AG92: =DataInput!U92 -> 65.8 | AH92: =DataInput!S92 -> 47 | AI92: 47 | AJ92: 0
A93: =IF(DataInput!A93<>"",DataInput!A93,"") -> 49700 | B93: =SUM(DataInput!C93,DataInput!X93)+(DataInput!U93-DataInput!E93) -> 128.4 | C93: =SUM(DataInput!D93,DataInput!Y93) -> 114 | D93: =DataInput!U93 -> 50.4 | E93: =SUM(DataInput!F93,DataInput!AA93) -> 0 | F93: =SUM(DataInput!G93,DataInput!AB93) -> 0 | G93: =SUM(DataInput!H93,DataInput!AC93) -> 0 | H93: =DataInput!W93 -> 50 | I93: =SUM(DataInput!J93,DataInput!AD93) -> 0 | J93: =SUM(DataInput!K93,DataInput!AE93) -> 0 | K93: =SUM(DataInput!L93,DataInput!AF93) -> 0 | L93: =SUM(DataInput!M93,DataInput!AG93) -> 0 | M93: =SUM(DataInput!N93,DataInput!AH93) -> 0 | N93: =SUM(DataInput!O93,DataInput!AI93) -> 0 | O93: =DataInput!P93 -> 0 | R93: 114 | S93: 88 | T93: =DataInput!R93 -> 26 | U93: =DataInput!X93 -> 0 | V93: =IF(DataInput!U93-DataInput!E93>0,DataInput!U93-DataInput!E93,"") -> 14.4 | W93: =IF(DataInput!W93-DataInput!I93>0,DataInput!W93-DataInput!I93,"") -> 50 | Z93: 90.4 | AA93: -2.4 | AB93: 0 | AC93: 0 | AD93: =IF(AC93>0,IFERROR(IF(AVERAGE(DataInput!Q92:Q93)>AVERAGE(AC93,AC92),ROUNDDOWN(((((AC92-AB92)+(AC93-AB93))/2)*(A93-A92))/27,0),IF(((((DataInput!Q93-AB93)+(DataInput!Q92-AB92))/2)*(A93-A92))/27>0,ROUNDDOWN(((((DataInput!Q93-AB92)+(DataInput!Q92-AB92))/2)*(A93-A92))/27,0),0)),0),0) -> 0 | AE93: 0 | AF93: =IFERROR(IF(((((DataInput!Q92-AE92)+(DataInput!Q93-AE93))/2)*(A93-A92))/27>0,ROUNDDOWN(((((DataInput!Q92-AE92)+(DataInput!Q93-AE93))/2)*(A93-A92))/27,0),0),0) -> 20 | AG93: =DataInput!U93 -> 50.4 | AH93: =DataInput!S93 -> 36 | AI93: 36 | AJ93: 0
A94: =IF(DataInput!A94<>"",DataInput!A94,"") -> 49725 | B94: =SUM(DataInput!C94,DataInput!X94)+(DataInput!U94-DataInput!E94) -> 125.8 | C94: =SUM(DataInput!D94,DataInput!Y94) -> 113 | D94: =DataInput!U94 -> 44.8 | E94: =SUM(DataInput!F94,DataInput!AA94) -> 0 | F94: =SUM(DataInput!G94,DataInput!AB94) -> 0 | G94: =SUM(DataInput!H94,DataInput!AC94) -> 0 | H94: =DataInput!W94 -> 51 | I94: =SUM(DataInput!J94,DataInput!AD94) -> 0 | J94: =SUM(DataInput!K94,DataInput!AE94) -> 0 | K94: =SUM(DataInput!L94,DataInput!AF94) -> 0 | L94: =SUM(DataInput!M94,DataInput!AG94) -> 0 | M94: =SUM(DataInput!N94,DataInput!AH94) -> 0 | N94: =SUM(DataInput!O94,DataInput!AI94) -> 0 | O94: =DataInput!P94 -> 0 | R94: 113 | S94: 87 | T94: =DataInput!R94 -> 34 | U94: =DataInput!X94 -> 0 | V94: =IF(DataInput!U94-DataInput!E94>0,DataInput!U94-DataInput!E94,"") -> 12.8 | W94: =IF(DataInput!W94-DataInput!I94>0,DataInput!W94-DataInput!I94,"") -> 51 | Z94: 97.8 | AA94: -10.8 | AB94: 0 | AC94: 0 | AD94: =IF(AC94>0,IFERROR(IF(AVERAGE(DataInput!Q93:Q94)>AVERAGE(AC94,AC93),ROUNDDOWN(((((AC93-AB93)+(AC94-AB94))/2)*(A94-A93))/27,0),IF(((((DataInput!Q94-AB94)+(DataInput!Q93-AB93))/2)*(A94-A93))/27>0,ROUNDDOWN(((((DataInput!Q94-AB93)+(DataInput!Q93-AB93))/2)*(A94-A93))/27,0),0)),0),0) -> 0 | AE94: 0 | AF94: =IFERROR(IF(((((DataInput!Q93-AE93)+(DataInput!Q94-AE94))/2)*(A94-A93))/27>0,ROUNDDOWN(((((DataInput!Q93-AE93)+(DataInput!Q94-AE94))/2)*(A94-A93))/27,0),0),0) -> 29 | AG94: =DataInput!U94 -> 44.8 | AH94: =DataInput!S94 -> 32 | AI94: 32 | AJ94: 0
A95: =IF(DataInput!A95<>"",DataInput!A95,"") -> 49750 | B95: =SUM(DataInput!C95,DataInput!X95)+(DataInput!U95-DataInput!E95) -> 127.8 | C95: =SUM(DataInput!D95,DataInput!Y95) -> 113 | D95: =DataInput!U95 -> 51.8 | E95: =SUM(DataInput!F95,DataInput!AA95) -> 0 | F95: =SUM(DataInput!G95,DataInput!AB95) -> 0 | G95: =SUM(DataInput!H95,DataInput!AC95) -> 0 | H95: =DataInput!W95 -> 52 | I95: =SUM(DataInput!J95,DataInput!AD95) -> 0 | J95: =SUM(DataInput!K95,DataInput!AE95) -> 0 | K95: =SUM(DataInput!L95,DataInput!AF95) -> 0 | L95: =SUM(DataInput!M95,DataInput!AG95) -> 0 | M95: =SUM(DataInput!N95,DataInput!AH95) -> 0 | N95: =SUM(DataInput!O95,DataInput!AI95) -> 0 | O95: =DataInput!P95 -> 0 | R95: 113 | S95: 87 | T95: =DataInput!R95 -> 50 | U95: =DataInput!X95 -> 0 | V95: =IF(DataInput!U95-DataInput!E95>0,DataInput!U95-DataInput!E95,"") -> 14.8 | W95: =IF(DataInput!W95-DataInput!I95>0,DataInput!W95-DataInput!I95,"") -> 52 | Z95: 116.8 | AA95: -29.8 | AB95: 0 | AC95: 0 | AD95: =IF(AC95>0,IFERROR(IF(AVERAGE(DataInput!Q94:Q95)>AVERAGE(AC95,AC94),ROUNDDOWN(((((AC94-AB94)+(AC95-AB95))/2)*(A95-A94))/27,0),IF(((((DataInput!Q95-AB95)+(DataInput!Q94-AB94))/2)*(A95-A94))/27>0,ROUNDDOWN(((((DataInput!Q95-AB94)+(DataInput!Q94-AB94))/2)*(A95-A94))/27,0),0)),0),0) -> 0 | AE95: 0 | AF95: =IFERROR(IF(((((DataInput!Q94-AE94)+(DataInput!Q95-AE95))/2)*(A95-A94))/27>0,ROUNDDOWN(((((DataInput!Q94-AE94)+(DataInput!Q95-AE95))/2)*(A95-A94))/27,0),0),0) -> 44 | AG95: =DataInput!U95 -> 51.8 | AH95: =DataInput!S95 -> 37 | AI95: 37 | AJ95: 0
A96: =IF(DataInput!A96<>"",DataInput!A96,"") -> 49775 | B96: =SUM(DataInput!C96,DataInput!X96)+(DataInput!U96-DataInput!E96) -> 127.2 | C96: =SUM(DataInput!D96,DataInput!Y96) -> 112 | D96: =DataInput!U96 -> 53.2 | E96: =SUM(DataInput!F96,DataInput!AA96) -> 0 | F96: =SUM(DataInput!G96,DataInput!AB96) -> 0 | G96: =SUM(DataInput!H96,DataInput!AC96) -> 0 | H96: =DataInput!W96 -> 52 | I96: =SUM(DataInput!J96,DataInput!AD96) -> 0 | J96: =SUM(DataInput!K96,DataInput!AE96) -> 0 | K96: =SUM(DataInput!L96,DataInput!AF96) -> 0 | L96: =SUM(DataInput!M96,DataInput!AG96) -> 0 | M96: =SUM(DataInput!N96,DataInput!AH96) -> 0 | N96: =SUM(DataInput!O96,DataInput!AI96) -> 0 | O96: =DataInput!P96 -> 0 | R96: 112 | S96: 86 | T96: =DataInput!R96 -> 55 | U96: =DataInput!X96 -> 0 | V96: =IF(DataInput!U96-DataInput!E96>0,DataInput!U96-DataInput!E96,"") -> 15.2 | W96: =IF(DataInput!W96-DataInput!I96>0,DataInput!W96-DataInput!I96,"") -> 52 | Z96: 122.2 | AA96: -36.2 | AB96: 0 | AC96: 0 | AD96: =IF(AC96>0,IFERROR(IF(AVERAGE(DataInput!Q95:Q96)>AVERAGE(AC96,AC95),ROUNDDOWN(((((AC95-AB95)+(AC96-AB96))/2)*(A96-A95))/27,0),IF(((((DataInput!Q96-AB96)+(DataInput!Q95-AB95))/2)*(A96-A95))/27>0,ROUNDDOWN(((((DataInput!Q96-AB95)+(DataInput!Q95-AB95))/2)*(A96-A95))/27,0),0)),0),0) -> 0 | AE96: 0 | AF96: =IFERROR(IF(((((DataInput!Q95-AE95)+(DataInput!Q96-AE96))/2)*(A96-A95))/27>0,ROUNDDOWN(((((DataInput!Q95-AE95)+(DataInput!Q96-AE96))/2)*(A96-A95))/27,0),0),0) -> 49 | AG96: =DataInput!U96 -> 53.2 | AH96: =DataInput!S96 -> 38 | AI96: 38 | AJ96: 0
A97: =IF(DataInput!A97<>"",DataInput!A97,"") -> 49800 | B97: =SUM(DataInput!C97,DataInput!X97)+(DataInput!U97-DataInput!E97) -> 123.4 | C97: =SUM(DataInput!D97,DataInput!Y97) -> 109 | D97: =DataInput!U97 -> 50.4 | E97: =SUM(DataInput!F97,DataInput!AA97) -> 0 | F97: =SUM(DataInput!G97,DataInput!AB97) -> 0 | G97: =SUM(DataInput!H97,DataInput!AC97) -> 0 | H97: =DataInput!W97 -> 52 | I97: =SUM(DataInput!J97,DataInput!AD97) -> 0 | J97: =SUM(DataInput!K97,DataInput!AE97) -> 0 | K97: =SUM(DataInput!L97,DataInput!AF97) -> 0 | L97: =SUM(DataInput!M97,DataInput!AG97) -> 0 | M97: =SUM(DataInput!N97,DataInput!AH97) -> 0 | N97: =SUM(DataInput!O97,DataInput!AI97) -> 0 | O97: =DataInput!P97 -> 0 | R97: 109 | S97: 84 | T97: =DataInput!R97 -> 53 | U97: =DataInput!X97 -> 0 | V97: =IF(DataInput!U97-DataInput!E97>0,DataInput!U97-DataInput!E97,"") -> 14.4 | W97: =IF(DataInput!W97-DataInput!I97>0,DataInput!W97-DataInput!I97,"") -> 52 | Z97: 119.4 | AA97: -35.4 | AB97: 0 | AC97: 0 | AD97: =IF(AC97>0,IFERROR(IF(AVERAGE(DataInput!Q96:Q97)>AVERAGE(AC97,AC96),ROUNDDOWN(((((AC96-AB96)+(AC97-AB97))/2)*(A97-A96))/27,0),IF(((((DataInput!Q97-AB97)+(DataInput!Q96-AB96))/2)*(A97-A96))/27>0,ROUNDDOWN(((((DataInput!Q97-AB96)+(DataInput!Q96-AB96))/2)*(A97-A96))/27,0),0)),0),0) -> 0 | AE97: 0 | AF97: =IFERROR(IF(((((DataInput!Q96-AE96)+(DataInput!Q97-AE97))/2)*(A97-A96))/27>0,ROUNDDOWN(((((DataInput!Q96-AE96)+(DataInput!Q97-AE97))/2)*(A97-A96))/27,0),0),0) -> 47 | AG97: =DataInput!U97 -> 50.4 | AH97: =DataInput!S97 -> 36 | AI97: 36 | AJ97: 0
A98: =IF(DataInput!A98<>"",DataInput!A98,"") -> 49825 | B98: =SUM(DataInput!C98,DataInput!X98)+(DataInput!U98-DataInput!E98) -> 124.8 | C98: =SUM(DataInput!D98,DataInput!Y98) -> 110 | D98: =DataInput!U98 -> 51.8 | E98: =SUM(DataInput!F98,DataInput!AA98) -> 0 | F98: =SUM(DataInput!G98,DataInput!AB98) -> 0 | G98: =SUM(DataInput!H98,DataInput!AC98) -> 0 | H98: =DataInput!W98 -> 51 | I98: =SUM(DataInput!J98,DataInput!AD98) -> 0 | J98: =SUM(DataInput!K98,DataInput!AE98) -> 0 | K98: =SUM(DataInput!L98,DataInput!AF98) -> 0 | L98: =SUM(DataInput!M98,DataInput!AG98) -> 0 | M98: =SUM(DataInput!N98,DataInput!AH98) -> 0 | N98: =SUM(DataInput!O98,DataInput!AI98) -> 0 | O98: =DataInput!P98 -> 0 | R98: 110 | S98: 85 | T98: =DataInput!R98 -> 53 | U98: =DataInput!X98 -> 0 | V98: =IF(DataInput!U98-DataInput!E98>0,DataInput!U98-DataInput!E98,"") -> 14.8 | W98: =IF(DataInput!W98-DataInput!I98>0,DataInput!W98-DataInput!I98,"") -> 51 | Z98: 118.8 | AA98: -33.8 | AB98: 0 | AC98: 0 | AD98: =IF(AC98>0,IFERROR(IF(AVERAGE(DataInput!Q97:Q98)>AVERAGE(AC98,AC97),ROUNDDOWN(((((AC97-AB97)+(AC98-AB98))/2)*(A98-A97))/27,0),IF(((((DataInput!Q98-AB98)+(DataInput!Q97-AB97))/2)*(A98-A97))/27>0,ROUNDDOWN(((((DataInput!Q98-AB97)+(DataInput!Q97-AB97))/2)*(A98-A97))/27,0),0)),0),0) -> 0 | AE98: 0 | AF98: =IFERROR(IF(((((DataInput!Q97-AE97)+(DataInput!Q98-AE98))/2)*(A98-A97))/27>0,ROUNDDOWN(((((DataInput!Q97-AE97)+(DataInput!Q98-AE98))/2)*(A98-A97))/27,0),0),0) -> 47 | AG98: =DataInput!U98 -> 51.8 | AH98: =DataInput!S98 -> 37 | AI98: 37 | AJ98: 0
A99: =IF(DataInput!A99<>"",DataInput!A99,"") -> 49850 | B99: =SUM(DataInput!C99,DataInput!X99)+(DataInput!U99-DataInput!E99) -> 125.4 | C99: =SUM(DataInput!D99,DataInput!Y99) -> 111 | D99: =DataInput!U99 -> 50.4 | E99: =SUM(DataInput!F99,DataInput!AA99) -> 0 | F99: =SUM(DataInput!G99,DataInput!AB99) -> 0 | G99: =SUM(DataInput!H99,DataInput!AC99) -> 0 | H99: =DataInput!W99 -> 51 | I99: =SUM(DataInput!J99,DataInput!AD99) -> 0 | J99: =SUM(DataInput!K99,DataInput!AE99) -> 0 | K99: =SUM(DataInput!L99,DataInput!AF99) -> 0 | L99: =SUM(DataInput!M99,DataInput!AG99) -> 0 | M99: =SUM(DataInput!N99,DataInput!AH99) -> 0 | N99: =SUM(DataInput!O99,DataInput!AI99) -> 0 | O99: =DataInput!P99 -> 0 | R99: 111 | S99: 85 | T99: =DataInput!R99 -> 68 | U99: =DataInput!X99 -> 0 | V99: =IF(DataInput!U99-DataInput!E99>0,DataInput!U99-DataInput!E99,"") -> 14.4 | W99: =IF(DataInput!W99-DataInput!I99>0,DataInput!W99-DataInput!I99,"") -> 51 | Z99: 133.4 | AA99: -48.4 | AB99: 0 | AC99: 0 | AD99: =IF(AC99>0,IFERROR(IF(AVERAGE(DataInput!Q98:Q99)>AVERAGE(AC99,AC98),ROUNDDOWN(((((AC98-AB98)+(AC99-AB99))/2)*(A99-A98))/27,0),IF(((((DataInput!Q99-AB99)+(DataInput!Q98-AB98))/2)*(A99-A98))/27>0,ROUNDDOWN(((((DataInput!Q99-AB98)+(DataInput!Q98-AB98))/2)*(A99-A98))/27,0),0)),0),0) -> 0 | AE99: 0 | AF99: =IFERROR(IF(((((DataInput!Q98-AE98)+(DataInput!Q99-AE99))/2)*(A99-A98))/27>0,ROUNDDOWN(((((DataInput!Q98-AE98)+(DataInput!Q99-AE99))/2)*(A99-A98))/27,0),0),0) -> 61 | AG99: =DataInput!U99 -> 50.4 | AH99: =DataInput!S99 -> 36 | AI99: 36 | AJ99: 0
A100: =IF(DataInput!A100<>"",DataInput!A100,"") -> 49875 | B100: =SUM(DataInput!C100,DataInput!X100)+(DataInput!U100-DataInput!E100) -> 129.8 | C100: =SUM(DataInput!D100,DataInput!Y100) -> 115 | D100: =DataInput!U100 -> 51.8 | E100: =SUM(DataInput!F100,DataInput!AA100) -> 0 | F100: =SUM(DataInput!G100,DataInput!AB100) -> 0 | G100: =SUM(DataInput!H100,DataInput!AC100) -> 0 | H100: =DataInput!W100 -> 51 | I100: =SUM(DataInput!J100,DataInput!AD100) -> 0 | J100: =SUM(DataInput!K100,DataInput!AE100) -> 0 | K100: =SUM(DataInput!L100,DataInput!AF100) -> 0 | L100: =SUM(DataInput!M100,DataInput!AG100) -> 0 | M100: =SUM(DataInput!N100,DataInput!AH100) -> 0 | N100: =SUM(DataInput!O100,DataInput!AI100) -> 0 | O100: =DataInput!P100 -> 0 | R100: 115 | S100: 88 | T100: =DataInput!R100 -> 76 | U100: =DataInput!X100 -> 0 | V100: =IF(DataInput!U100-DataInput!E100>0,DataInput!U100-DataInput!E100,"") -> 14.8 | W100: =IF(DataInput!W100-DataInput!I100>0,DataInput!W100-DataInput!I100,"") -> 51 | Z100: 141.8 | AA100: -53.8 | AB100: 0 | AC100: 0 | AD100: =IF(AC100>0,IFERROR(IF(AVERAGE(DataInput!Q99:Q100)>AVERAGE(AC100,AC99),ROUNDDOWN(((((AC99-AB99)+(AC100-AB100))/2)*(A100-A99))/27,0),IF(((((DataInput!Q100-AB100)+(DataInput!Q99-AB99))/2)*(A100-A99))/27>0,ROUNDDOWN(((((DataInput!Q100-AB99)+(DataInput!Q99-AB99))/2)*(A100-A99))/27,0),0)),0),0) -> 0 | AE100: 0 | AF100: =IFERROR(IF(((((DataInput!Q99-AE99)+(DataInput!Q100-AE100))/2)*(A100-A99))/27>0,ROUNDDOWN(((((DataInput!Q99-AE99)+(DataInput!Q100-AE100))/2)*(A100-A99))/27,0),0),0) -> 70 | AG100: =DataInput!U100 -> 51.8 | AH100: =DataInput!S100 -> 37 | AI100: 37 | AJ100: 0
A101: =IF(DataInput!A101<>"",DataInput!A101,"") -> 49900 | B101: =SUM(DataInput!C101,DataInput!X101)+(DataInput!U101-DataInput!E101) -> 120.8 | C101: =SUM(DataInput!D101,DataInput!Y101) -> 110 | D101: =DataInput!U101 -> 37.8 | E101: =SUM(DataInput!F101,DataInput!AA101) -> 0 | F101: =SUM(DataInput!G101,DataInput!AB101) -> 0 | G101: =SUM(DataInput!H101,DataInput!AC101) -> 0 | H101: =DataInput!W101 -> 48 | I101: =SUM(DataInput!J101,DataInput!AD101) -> 0 | J101: =SUM(DataInput!K101,DataInput!AE101) -> 0 | K101: =SUM(DataInput!L101,DataInput!AF101) -> 0 | L101: =SUM(DataInput!M101,DataInput!AG101) -> 0 | M101: =SUM(DataInput!N101,DataInput!AH101) -> 0 | N101: =SUM(DataInput!O101,DataInput!AI101) -> 0 | O101: =DataInput!P101 -> 0 | R101: 110 | S101: 85 | T101: =DataInput!R101 -> 46 | U101: =DataInput!X101 -> 0 | V101: =IF(DataInput!U101-DataInput!E101>0,DataInput!U101-DataInput!E101,"") -> 10.8 | W101: =IF(DataInput!W101-DataInput!I101>0,DataInput!W101-DataInput!I101,"") -> 48 | Z101: 104.8 | AA101: -19.8 | AB101: 0 | AC101: 0 | AD101: =IF(AC101>0,IFERROR(IF(AVERAGE(DataInput!Q100:Q101)>AVERAGE(AC101,AC100),ROUNDDOWN(((((AC100-AB100)+(AC101-AB101))/2)*(A101-A100))/27,0),IF(((((DataInput!Q101-AB101)+(DataInput!Q100-AB100))/2)*(A101-A100))/27>0,ROUNDDOWN(((((DataInput!Q101-AB100)+(DataInput!Q100-AB100))/2)*(A101-A100))/27,0),0)),0),0) -> 0 | AE101: 0 | AF101: =IFERROR(IF(((((DataInput!Q100-AE100)+(DataInput!Q101-AE101))/2)*(A101-A100))/27>0,ROUNDDOWN(((((DataInput!Q100-AE100)+(DataInput!Q101-AE101))/2)*(A101-A100))/27,0),0),0) -> 45 | AG101: =DataInput!U101 -> 37.8 | AH101: =DataInput!S101 -> 27 | AI101: 27 | AJ101: 0
A102: =IF(DataInput!A102<>"",DataInput!A102,"") -> 49923.51 | B102: =SUM(DataInput!C102,DataInput!X102)+(DataInput!U102-DataInput!E102) -> 7.4 | C102: =SUM(DataInput!D102,DataInput!Y102) -> 7 | D102: =DataInput!U102 -> 1.4 | E102: =SUM(DataInput!F102,DataInput!AA102) -> 0 | F102: =SUM(DataInput!G102,DataInput!AB102) -> 0 | G102: =SUM(DataInput!H102,DataInput!AC102) -> 0 | H102: =DataInput!W102 -> 3 | I102: =SUM(DataInput!J102,DataInput!AD102) -> 0 | J102: =SUM(DataInput!K102,DataInput!AE102) -> 0 | K102: =SUM(DataInput!L102,DataInput!AF102) -> 0 | L102: =SUM(DataInput!M102,DataInput!AG102) -> 0 | M102: =SUM(DataInput!N102,DataInput!AH102) -> 0 | N102: =SUM(DataInput!O102,DataInput!AI102) -> 0 | O102: =DataInput!P102 -> 0 | R102: 7 | S102: 5 | T102: =DataInput!R102 -> 2 | U102: =DataInput!X102 -> 0 | V102: =IF(DataInput!U102-DataInput!E102>0,DataInput!U102-DataInput!E102,"") -> 0.4 | W102: =IF(DataInput!W102-DataInput!I102>0,DataInput!W102-DataInput!I102,"") -> 3 | Z102: 5.4 | AA102: -0.4 | AB102: 0 | AC102: 0 | AD102: =IF(AC102>0,IFERROR(IF(AVERAGE(DataInput!Q101:Q102)>AVERAGE(AC102,AC101),ROUNDDOWN(((((AC101-AB101)+(AC102-AB102))/2)*(A102-A101))/27,0),IF(((((DataInput!Q102-AB102)+(DataInput!Q101-AB101))/2)*(A102-A101))/27>0,ROUNDDOWN(((((DataInput!Q102-AB101)+(DataInput!Q101-AB101))/2)*(A102-A101))/27,0),0)),0),0) -> 0 | AE102: 0 | AF102: =IFERROR(IF(((((DataInput!Q101-AE101)+(DataInput!Q102-AE102))/2)*(A102-A101))/27>0,ROUNDDOWN(((((DataInput!Q101-AE101)+(DataInput!Q102-AE102))/2)*(A102-A101))/27,0),0),0) -> 21 | AG102: =DataInput!U102 -> 1.4 | AH102: =DataInput!S102 -> 1 | AI102: 1 | AJ102: 0
A103: =IF(DataInput!A103<>"",DataInput!A103,"") -> 49925 | B103: =SUM(DataInput!C103,DataInput!X103)+(DataInput!U103-DataInput!E103) -> 124.6 | C103: =SUM(DataInput!D103,DataInput!Y103) -> 117 | D103: =DataInput!U103 -> 26.6 | E103: =SUM(DataInput!F103,DataInput!AA103) -> 0 | F103: =SUM(DataInput!G103,DataInput!AB103) -> 0 | G103: =SUM(DataInput!H103,DataInput!AC103) -> 0 | H103: =DataInput!W103 -> 56 | I103: =SUM(DataInput!J103,DataInput!AD103) -> 0 | J103: =SUM(DataInput!K103,DataInput!AE103) -> 0 | K103: =SUM(DataInput!L103,DataInput!AF103) -> 0 | L103: =SUM(DataInput!M103,DataInput!AG103) -> 0 | M103: =SUM(DataInput!N103,DataInput!AH103) -> 0 | N103: =SUM(DataInput!O103,DataInput!AI103) -> 0 | O103: =DataInput!P103 -> 0 | R103: 117 | S103: 90 | T103: =DataInput!R103 -> 23 | U103: =DataInput!X103 -> 0 | V103: =IF(DataInput!U103-DataInput!E103>0,DataInput!U103-DataInput!E103,"") -> 7.6 | W103: =IF(DataInput!W103-DataInput!I103>0,DataInput!W103-DataInput!I103,"") -> 56 | Z103: 86.6 | AA103: 3.4 | AB103: 0 | AC103: 0 | AD103: =IF(AC103>0,IFERROR(IF(AVERAGE(DataInput!Q102:Q103)>AVERAGE(AC103,AC102),ROUNDDOWN(((((AC102-AB102)+(AC103-AB103))/2)*(A103-A102))/27,0),IF(((((DataInput!Q103-AB103)+(DataInput!Q102-AB102))/2)*(A103-A102))/27>0,ROUNDDOWN(((((DataInput!Q103-AB102)+(DataInput!Q102-AB102))/2)*(A103-A102))/27,0),0)),0),0) -> 0 | AE103: 0 | AF103: =IFERROR(IF(((((DataInput!Q102-AE102)+(DataInput!Q103-AE103))/2)*(A103-A102))/27>0,ROUNDDOWN(((((DataInput!Q102-AE102)+(DataInput!Q103-AE103))/2)*(A103-A102))/27,0),0),0) -> 1 | AG103: =DataInput!U103 -> 26.6 | AH103: =DataInput!S103 -> 19 | AI103: 19 | AJ103: 0
A104: =IF(DataInput!A104<>"",DataInput!A104,"") -> 49950 | B104: =SUM(DataInput!C104,DataInput!X104)+(DataInput!U104-DataInput!E104) -> 104.2 | C104: =SUM(DataInput!D104,DataInput!Y104) -> 97 | D104: =DataInput!U104 -> 25.2 | E104: =SUM(DataInput!F104,DataInput!AA104) -> 0 | F104: =SUM(DataInput!G104,DataInput!AB104) -> 0 | G104: =SUM(DataInput!H104,DataInput!AC104) -> 0 | H104: =DataInput!W104 -> 67 | I104: =SUM(DataInput!J104,DataInput!AD104) -> 0 | J104: =SUM(DataInput!K104,DataInput!AE104) -> 0 | K104: =SUM(DataInput!L104,DataInput!AF104) -> 0 | L104: =SUM(DataInput!M104,DataInput!AG104) -> 0 | M104: =SUM(DataInput!N104,DataInput!AH104) -> 0 | N104: =SUM(DataInput!O104,DataInput!AI104) -> 0 | O104: =DataInput!P104 -> 0 | R104: 97 | S104: 75 | T104: =DataInput!R104 -> 18 | U104: =DataInput!X104 -> 0 | V104: =IF(DataInput!U104-DataInput!E104>0,DataInput!U104-DataInput!E104,"") -> 7.2 | W104: =IF(DataInput!W104-DataInput!I104>0,DataInput!W104-DataInput!I104,"") -> 67 | Z104: 92.2 | AA104: -17.2 | AB104: 0 | AC104: 0 | AD104: =IF(AC104>0,IFERROR(IF(AVERAGE(DataInput!Q103:Q104)>AVERAGE(AC104,AC103),ROUNDDOWN(((((AC103-AB103)+(AC104-AB104))/2)*(A104-A103))/27,0),IF(((((DataInput!Q104-AB104)+(DataInput!Q103-AB103))/2)*(A104-A103))/27>0,ROUNDDOWN(((((DataInput!Q104-AB103)+(DataInput!Q103-AB103))/2)*(A104-A103))/27,0),0)),0),0) -> 0 | AE104: 0 | AF104: =IFERROR(IF(((((DataInput!Q103-AE103)+(DataInput!Q104-AE104))/2)*(A104-A103))/27>0,ROUNDDOWN(((((DataInput!Q103-AE103)+(DataInput!Q104-AE104))/2)*(A104-A103))/27,0),0),0) -> 13 | AG104: =DataInput!U104 -> 25.2 | AH104: =DataInput!S104 -> 18 | AI104: 18 | AJ104: 0
A105: =IF(DataInput!A105<>"",DataInput!A105,"") -> 49975 | B105: =SUM(DataInput!C105,DataInput!X105)+(DataInput!U105-DataInput!E105) -> 106.2 | C105: =SUM(DataInput!D105,DataInput!Y105) -> 99 | D105: =DataInput!U105 -> 25.2 | E105: =SUM(DataInput!F105,DataInput!AA105) -> 0 | F105: =SUM(DataInput!G105,DataInput!AB105) -> 0 | G105: =SUM(DataInput!H105,DataInput!AC105) -> 0 | H105: =DataInput!W105 -> 87 | I105: =SUM(DataInput!J105,DataInput!AD105) -> 0 | J105: =SUM(DataInput!K105,DataInput!AE105) -> 0 | K105: =SUM(DataInput!L105,DataInput!AF105) -> 0 | L105: =SUM(DataInput!M105,DataInput!AG105) -> 0 | M105: =SUM(DataInput!N105,DataInput!AH105) -> 0 | N105: =SUM(DataInput!O105,DataInput!AI105) -> 0 | O105: =DataInput!P105 -> 0 | R105: 99 | S105: 76 | T105: =DataInput!R105 -> 17 | U105: =DataInput!X105 -> 0 | V105: =IF(DataInput!U105-DataInput!E105>0,DataInput!U105-DataInput!E105,"") -> 7.2 | W105: =IF(DataInput!W105-DataInput!I105>0,DataInput!W105-DataInput!I105,"") -> 87 | Z105: 111.2 | AA105: -35.2 | AB105: 0 | AC105: 0 | AD105: =IF(AC105>0,IFERROR(IF(AVERAGE(DataInput!Q104:Q105)>AVERAGE(AC105,AC104),ROUNDDOWN(((((AC104-AB104)+(AC105-AB105))/2)*(A105-A104))/27,0),IF(((((DataInput!Q105-AB105)+(DataInput!Q104-AB104))/2)*(A105-A104))/27>0,ROUNDDOWN(((((DataInput!Q105-AB104)+(DataInput!Q104-AB104))/2)*(A105-A104))/27,0),0)),0),0) -> 0 | AE105: 0 | AF105: =IFERROR(IF(((((DataInput!Q104-AE104)+(DataInput!Q105-AE105))/2)*(A105-A104))/27>0,ROUNDDOWN(((((DataInput!Q104-AE104)+(DataInput!Q105-AE105))/2)*(A105-A104))/27,0),0),0) -> 12 | AG105: =DataInput!U105 -> 25.2 | AH105: =DataInput!S105 -> 18 | AI105: 18 | AJ105: 0
A106: =IF(DataInput!A106<>"",DataInput!A106,"") -> 50000 | B106: =SUM(DataInput!C106,DataInput!X106)+(DataInput!U106-DataInput!E106) -> 141.2 | C106: =SUM(DataInput!D106,DataInput!Y106) -> 132 | D106: =DataInput!U106 -> 32.2 | E106: =SUM(DataInput!F106,DataInput!AA106) -> 0 | F106: =SUM(DataInput!G106,DataInput!AB106) -> 0 | G106: =SUM(DataInput!H106,DataInput!AC106) -> 0 | H106: =DataInput!W106 -> 124 | I106: =SUM(DataInput!J106,DataInput!AD106) -> 0 | J106: =SUM(DataInput!K106,DataInput!AE106) -> 0 | K106: =SUM(DataInput!L106,DataInput!AF106) -> 0 | L106: =SUM(DataInput!M106,DataInput!AG106) -> 0 | M106: =SUM(DataInput!N106,DataInput!AH106) -> 0 | N106: =SUM(DataInput!O106,DataInput!AI106) -> 0 | O106: =DataInput!P106 -> 0 | R106: 132 | S106: 102 | T106: =DataInput!R106 -> 16 | U106: =DataInput!X106 -> 0 | V106: =IF(DataInput!U106-DataInput!E106>0,DataInput!U106-DataInput!E106,"") -> 9.2 | W106: =IF(DataInput!W106-DataInput!I106>0,DataInput!W106-DataInput!I106,"") -> 124 | Z106: 149.2 | AA106: -47.2 | AB106: 0 | AC106: 0 | AD106: =IF(AC106>0,IFERROR(IF(AVERAGE(DataInput!Q105:Q106)>AVERAGE(AC106,AC105),ROUNDDOWN(((((AC105-AB105)+(AC106-AB106))/2)*(A106-A105))/27,0),IF(((((DataInput!Q106-AB106)+(DataInput!Q105-AB105))/2)*(A106-A105))/27>0,ROUNDDOWN(((((DataInput!Q106-AB105)+(DataInput!Q105-AB105))/2)*(A106-A105))/27,0),0)),0),0) -> 0 | AE106: 0 | AF106: =IFERROR(IF(((((DataInput!Q105-AE105)+(DataInput!Q106-AE106))/2)*(A106-A105))/27>0,ROUNDDOWN(((((DataInput!Q105-AE105)+(DataInput!Q106-AE106))/2)*(A106-A105))/27,0),0),0) -> 11 | AG106: =DataInput!U106 -> 32.2 | AH106: =DataInput!S106 -> 23 | AI106: 23 | AJ106: 0
A107: =IF(DataInput!A107<>"",DataInput!A107,"") -> 50025 | B107: =SUM(DataInput!C107,DataInput!X107)+(DataInput!U107-DataInput!E107) -> 156.8 | C107: =SUM(DataInput!D107,DataInput!Y107) -> 146 | D107: =DataInput!U107 -> 37.8 | E107: =SUM(DataInput!F107,DataInput!AA107) -> 0 | F107: =SUM(DataInput!G107,DataInput!AB107) -> 0 | G107: =SUM(DataInput!H107,DataInput!AC107) -> 0 | H107: =DataInput!W107 -> 141 | I107: =SUM(DataInput!J107,DataInput!AD107) -> 0 | J107: =SUM(DataInput!K107,DataInput!AE107) -> 0 | K107: =SUM(DataInput!L107,DataInput!AF107) -> 0 | L107: =SUM(DataInput!M107,DataInput!AG107) -> 0 | M107: =SUM(DataInput!N107,DataInput!AH107) -> 0 | N107: =SUM(DataInput!O107,DataInput!AI107) -> 0 | O107: =DataInput!P107 -> 0 | R107: 146 | S107: 112 | T107: =DataInput!R107 -> 18 | U107: =DataInput!X107 -> 0 | V107: =IF(DataInput!U107-DataInput!E107>0,DataInput!U107-DataInput!E107,"") -> 10.8 | W107: =IF(DataInput!W107-DataInput!I107>0,DataInput!W107-DataInput!I107,"") -> 141 | Z107: 169.8 | AA107: -57.8 | AB107: 0 | AC107: 0 | AD107: =IF(AC107>0,IFERROR(IF(AVERAGE(DataInput!Q106:Q107)>AVERAGE(AC107,AC106),ROUNDDOWN(((((AC106-AB106)+(AC107-AB107))/2)*(A107-A106))/27,0),IF(((((DataInput!Q107-AB107)+(DataInput!Q106-AB106))/2)*(A107-A106))/27>0,ROUNDDOWN(((((DataInput!Q107-AB106)+(DataInput!Q106-AB106))/2)*(A107-A106))/27,0),0)),0),0) -> 0 | AE107: 0 | AF107: =IFERROR(IF(((((DataInput!Q106-AE106)+(DataInput!Q107-AE107))/2)*(A107-A106))/27>0,ROUNDDOWN(((((DataInput!Q106-AE106)+(DataInput!Q107-AE107))/2)*(A107-A106))/27,0),0),0) -> 13 | AG107: =DataInput!U107 -> 37.8 | AH107: =DataInput!S107 -> 27 | AI107: 27 | AJ107: 0
A108: =IF(DataInput!A108<>"",DataInput!A108,"") -> 50050 | B108: =SUM(DataInput!C108,DataInput!X108)+(DataInput!U108-DataInput!E108) -> 152.4 | C108: =SUM(DataInput!D108,DataInput!Y108) -> 142 | D108: =DataInput!U108 -> 36.4 | E108: =SUM(DataInput!F108,DataInput!AA108) -> 0 | F108: =SUM(DataInput!G108,DataInput!AB108) -> 0 | G108: =SUM(DataInput!H108,DataInput!AC108) -> 0 | H108: =DataInput!W108 -> 102 | I108: =SUM(DataInput!J108,DataInput!AD108) -> 0 | J108: =SUM(DataInput!K108,DataInput!AE108) -> 0 | K108: =SUM(DataInput!L108,DataInput!AF108) -> 0 | L108: =SUM(DataInput!M108,DataInput!AG108) -> 0 | M108: =SUM(DataInput!N108,DataInput!AH108) -> 0 | N108: =SUM(DataInput!O108,DataInput!AI108) -> 0 | O108: =DataInput!P108 -> 0 | R108: 142 | S108: 109 | T108: =DataInput!R108 -> 19 | U108: =DataInput!X108 -> 0 | V108: =IF(DataInput!U108-DataInput!E108>0,DataInput!U108-DataInput!E108,"") -> 10.4 | W108: =IF(DataInput!W108-DataInput!I108>0,DataInput!W108-DataInput!I108,"") -> 102 | Z108: 131.4 | AA108: -22.4 | AB108: 0 | AC108: 0 | AD108: =IF(AC108>0,IFERROR(IF(AVERAGE(DataInput!Q107:Q108)>AVERAGE(AC108,AC107),ROUNDDOWN(((((AC107-AB107)+(AC108-AB108))/2)*(A108-A107))/27,0),IF(((((DataInput!Q108-AB108)+(DataInput!Q107-AB107))/2)*(A108-A107))/27>0,ROUNDDOWN(((((DataInput!Q108-AB107)+(DataInput!Q107-AB107))/2)*(A108-A107))/27,0),0)),0),0) -> 0 | AE108: 0 | AF108: =IFERROR(IF(((((DataInput!Q107-AE107)+(DataInput!Q108-AE108))/2)*(A108-A107))/27>0,ROUNDDOWN(((((DataInput!Q107-AE107)+(DataInput!Q108-AE108))/2)*(A108-A107))/27,0),0),0) -> 16 | AG108: =DataInput!U108 -> 36.4 | AH108: =DataInput!S108 -> 26 | AI108: 26 | AJ108: 0
A109: =IF(DataInput!A109<>"",DataInput!A109,"") -> 50075 | B109: =SUM(DataInput!C109,DataInput!X109)+(DataInput!U109-DataInput!E109) -> 134.2 | C109: =SUM(DataInput!D109,DataInput!Y109) -> 125 | D109: =DataInput!U109 -> 32.2 | E109: =SUM(DataInput!F109,DataInput!AA109) -> 0 | F109: =SUM(DataInput!G109,DataInput!AB109) -> 0 | G109: =SUM(DataInput!H109,DataInput!AC109) -> 0 | H109: =DataInput!W109 -> 63 | I109: =SUM(DataInput!J109,DataInput!AD109) -> 0 | J109: =SUM(DataInput!K109,DataInput!AE109) -> 0 | K109: =SUM(DataInput!L109,DataInput!AF109) -> 0 | L109: =SUM(DataInput!M109,DataInput!AG109) -> 0 | M109: =SUM(DataInput!N109,DataInput!AH109) -> 0 | N109: =SUM(DataInput!O109,DataInput!AI109) -> 0 | O109: =DataInput!P109 -> 0 | R109: 125 | S109: 96 | T109: =DataInput!R109 -> 20 | U109: =DataInput!X109 -> 0 | V109: =IF(DataInput!U109-DataInput!E109>0,DataInput!U109-DataInput!E109,"") -> 9.2 | W109: =IF(DataInput!W109-DataInput!I109>0,DataInput!W109-DataInput!I109,"") -> 63 | Z109: 92.2 | AA109: 3.8 | AB109: 0 | AC109: 0 | AD109: =IF(AC109>0,IFERROR(IF(AVERAGE(DataInput!Q108:Q109)>AVERAGE(AC109,AC108),ROUNDDOWN(((((AC108-AB108)+(AC109-AB109))/2)*(A109-A108))/27,0),IF(((((DataInput!Q109-AB109)+(DataInput!Q108-AB108))/2)*(A109-A108))/27>0,ROUNDDOWN(((((DataInput!Q109-AB108)+(DataInput!Q108-AB108))/2)*(A109-A108))/27,0),0)),0),0) -> 0 | AE109: 0 | AF109: =IFERROR(IF(((((DataInput!Q108-AE108)+(DataInput!Q109-AE109))/2)*(A109-A108))/27>0,ROUNDDOWN(((((DataInput!Q108-AE108)+(DataInput!Q109-AE109))/2)*(A109-A108))/27,0),0),0) -> 18 | AG109: =DataInput!U109 -> 32.2 | AH109: =DataInput!S109 -> 23 | AI109: 23 | AJ109: 0
A110: =IF(DataInput!A110<>"",DataInput!A110,"") -> 50100 | B110: =SUM(DataInput!C110,DataInput!X110)+(DataInput!U110-DataInput!E110) -> 120.6 | C110: =SUM(DataInput!D110,DataInput!Y110) -> 113 | D110: =DataInput!U110 -> 26.6 | E110: =SUM(DataInput!F110,DataInput!AA110) -> 0 | F110: =SUM(DataInput!G110,DataInput!AB110) -> 0 | G110: =SUM(DataInput!H110,DataInput!AC110) -> 0 | H110: =DataInput!W110 -> 56 | I110: =SUM(DataInput!J110,DataInput!AD110) -> 0 | J110: =SUM(DataInput!K110,DataInput!AE110) -> 0 | K110: =SUM(DataInput!L110,DataInput!AF110) -> 0 | L110: =SUM(DataInput!M110,DataInput!AG110) -> 0 | M110: =SUM(DataInput!N110,DataInput!AH110) -> 0 | N110: =SUM(DataInput!O110,DataInput!AI110) -> 0 | O110: =DataInput!P110 -> 0 | R110: 113 | S110: 87 | T110: =DataInput!R110 -> 20 | U110: =DataInput!X110 -> 0 | V110: =IF(DataInput!U110-DataInput!E110>0,DataInput!U110-DataInput!E110,"") -> 7.6 | W110: =IF(DataInput!W110-DataInput!I110>0,DataInput!W110-DataInput!I110,"") -> 56 | Z110: 83.6 | AA110: 3.4 | AB110: 0 | AC110: 0 | AD110: =IF(AC110>0,IFERROR(IF(AVERAGE(DataInput!Q109:Q110)>AVERAGE(AC110,AC109),ROUNDDOWN(((((AC109-AB109)+(AC110-AB110))/2)*(A110-A109))/27,0),IF(((((DataInput!Q110-AB110)+(DataInput!Q109-AB109))/2)*(A110-A109))/27>0,ROUNDDOWN(((((DataInput!Q110-AB109)+(DataInput!Q109-AB109))/2)*(A110-A109))/27,0),0)),0),0) -> 0 | AE110: 0 | AF110: =IFERROR(IF(((((DataInput!Q109-AE109)+(DataInput!Q110-AE110))/2)*(A110-A109))/27>0,ROUNDDOWN(((((DataInput!Q109-AE109)+(DataInput!Q110-AE110))/2)*(A110-A109))/27,0),0),0) -> 16 | AG110: =DataInput!U110 -> 26.6 | AH110: =DataInput!S110 -> 19 | AI110: 19 | AJ110: 0
A111: =IF(DataInput!A111<>"",DataInput!A111,"") -> 50125 | B111: =SUM(DataInput!C111,DataInput!X111)+(DataInput!U111-DataInput!E111) -> 115.6 | C111: =SUM(DataInput!D111,DataInput!Y111) -> 110 | D111: =DataInput!U111 -> 19.6 | E111: =SUM(DataInput!F111,DataInput!AA111) -> 0 | F111: =SUM(DataInput!G111,DataInput!AB111) -> 0 | G111: =SUM(DataInput!H111,DataInput!AC111) -> 0 | H111: =DataInput!W111 -> 53 | I111: =SUM(DataInput!J111,DataInput!AD111) -> 0 | J111: =SUM(DataInput!K111,DataInput!AE111) -> 0 | K111: =SUM(DataInput!L111,DataInput!AF111) -> 0 | L111: =SUM(DataInput!M111,DataInput!AG111) -> 0 | M111: =SUM(DataInput!N111,DataInput!AH111) -> 0 | N111: =SUM(DataInput!O111,DataInput!AI111) -> 0 | O111: =DataInput!P111 -> 0 | R111: 110 | S111: 85 | T111: =DataInput!R111 -> 12 | U111: =DataInput!X111 -> 0 | V111: =IF(DataInput!U111-DataInput!E111>0,DataInput!U111-DataInput!E111,"") -> 5.6 | W111: =IF(DataInput!W111-DataInput!I111>0,DataInput!W111-DataInput!I111,"") -> 53 | Z111: 70.6 | AA111: 14.4 | AB111: 0 | AC111: 0 | AD111: =IF(AC111>0,IFERROR(IF(AVERAGE(DataInput!Q110:Q111)>AVERAGE(AC111,AC110),ROUNDDOWN(((((AC110-AB110)+(AC111-AB111))/2)*(A111-A110))/27,0),IF(((((DataInput!Q111-AB111)+(DataInput!Q110-AB110))/2)*(A111-A110))/27>0,ROUNDDOWN(((((DataInput!Q111-AB110)+(DataInput!Q110-AB110))/2)*(A111-A110))/27,0),0)),0),0) -> 0 | AE111: 0 | AF111: =IFERROR(IF(((((DataInput!Q110-AE110)+(DataInput!Q111-AE111))/2)*(A111-A110))/27>0,ROUNDDOWN(((((DataInput!Q110-AE110)+(DataInput!Q111-AE111))/2)*(A111-A110))/27,0),0),0) -> 7 | AG111: =DataInput!U111 -> 19.6 | AH111: =DataInput!S111 -> 14 | AI111: 14 | AJ111: 0
A112: =IF(DataInput!A112<>"",DataInput!A112,"") -> 50150 | B112: =SUM(DataInput!C112,DataInput!X112)+(DataInput!U112-DataInput!E112) -> 15.8 | C112: =SUM(DataInput!D112,DataInput!Y112) -> 15 | D112: =DataInput!U112 -> 2.8 | E112: =SUM(DataInput!F112,DataInput!AA112) -> 0 | F112: =SUM(DataInput!G112,DataInput!AB112) -> 0 | G112: =SUM(DataInput!H112,DataInput!AC112) -> 0 | H112: =DataInput!W112 -> 7 | I112: =SUM(DataInput!J112,DataInput!AD112) -> 0 | J112: =SUM(DataInput!K112,DataInput!AE112) -> 0 | K112: =SUM(DataInput!L112,DataInput!AF112) -> 0 | L112: =SUM(DataInput!M112,DataInput!AG112) -> 0 | M112: =SUM(DataInput!N112,DataInput!AH112) -> 0 | N112: =SUM(DataInput!O112,DataInput!AI112) -> 0 | O112: =DataInput!P112 -> 0 | R112: 15 | S112: 12 | T112: =DataInput!R112 -> 1 | U112: =DataInput!X112 -> 0 | V112: =IF(DataInput!U112-DataInput!E112>0,DataInput!U112-DataInput!E112,"") -> 0.8 | W112: =IF(DataInput!W112-DataInput!I112>0,DataInput!W112-DataInput!I112,"") -> 7 | Z112: 8.8 | AA112: 3.2 | AB112: 0 | AC112: 0 | AD112: =IF(AC112>0,IFERROR(IF(AVERAGE(DataInput!Q111:Q112)>AVERAGE(AC112,AC111),ROUNDDOWN(((((AC111-AB111)+(AC112-AB112))/2)*(A112-A111))/27,0),IF(((((DataInput!Q112-AB112)+(DataInput!Q111-AB111))/2)*(A112-A111))/27>0,ROUNDDOWN(((((DataInput!Q112-AB111)+(DataInput!Q111-AB111))/2)*(A112-A111))/27,0),0)),0),0) -> 0 | AE112: 0 | AF112: =IFERROR(IF(((((DataInput!Q111-AE111)+(DataInput!Q112-AE112))/2)*(A112-A111))/27>0,ROUNDDOWN(((((DataInput!Q111-AE111)+(DataInput!Q112-AE112))/2)*(A112-A111))/27,0),0),0) -> 2 | AG112: =DataInput!U112 -> 2.8 | AH112: =DataInput!S112 -> 2 | AI112: 2 | AJ112: 0
A113: =IF(DataInput!A113<>"",DataInput!A113,"") -> 50153.51 | B113: =SUM(DataInput!C113,DataInput!X113)+(DataInput!U113-DataInput!E113) -> 0 | C113: =SUM(DataInput!D113,DataInput!Y113) -> 0 | D113: =DataInput!U113 -> 0 | E113: =SUM(DataInput!F113,DataInput!AA113) -> 0 | F113: =SUM(DataInput!G113,DataInput!AB113) -> 0 | G113: =SUM(DataInput!H113,DataInput!AC113) -> 0 | H113: =DataInput!W113 -> 0 | I113: =SUM(DataInput!J113,DataInput!AD113) -> 0 | J113: =SUM(DataInput!K113,DataInput!AE113) -> 0 | K113: =SUM(DataInput!L113,DataInput!AF113) -> 0 | L113: =SUM(DataInput!M113,DataInput!AG113) -> 0 | M113: =SUM(DataInput!N113,DataInput!AH113) -> 0 | N113: =SUM(DataInput!O113,DataInput!AI113) -> 0 | O113: =DataInput!P113 -> 0 | R113: 0 | S113: 0 | T113: =DataInput!R113 -> 0 | U113: =DataInput!X113 -> 0 | V113: =IF(DataInput!U113-DataInput!E113>0,DataInput!U113-DataInput!E113,"") ->  | W113: =IF(DataInput!W113-DataInput!I113>0,DataInput!W113-DataInput!I113,"") ->  | Z113: 0 | AA113: 0 | AB113: 0 | AC113: 0 | AD113: =IF(AC113>0,IFERROR(IF(AVERAGE(DataInput!Q112:Q113)>AVERAGE(AC113,AC112),ROUNDDOWN(((((AC112-AB112)+(AC113-AB113))/2)*(A113-A112))/27,0),IF(((((DataInput!Q113-AB113)+(DataInput!Q112-AB112))/2)*(A113-A112))/27>0,ROUNDDOWN(((((DataInput!Q113-AB112)+(DataInput!Q112-AB112))/2)*(A113-A112))/27,0),0)),0),0) -> 0 | AE113: 0 | AF113: =IFERROR(IF(((((DataInput!Q112-AE112)+(DataInput!Q113-AE113))/2)*(A113-A112))/27>0,ROUNDDOWN(((((DataInput!Q112-AE112)+(DataInput!Q113-AE113))/2)*(A113-A112))/27,0),0),0) -> 0 | AG113: =DataInput!U113 -> 0 | AH113: =DataInput!S113 -> 0 | AI113: 0 | AJ113: 0
A115: =IF(DataInput!A115<>"",DataInput!A115,"") -> SR022A
A116: =IF(DataInput!A116<>"",DataInput!A116,"") -> 100336.9 | B116: =SUM(DataInput!C116,DataInput!X116)+(DataInput!U116-DataInput!E116) -> 56.4 | C116: =SUM(DataInput!D116,DataInput!Y116) -> 54 | D116: =DataInput!U116 -> 8.4 | E116: =SUM(DataInput!F116,DataInput!AA116) -> 0 | F116: =SUM(DataInput!G116,DataInput!AB116) -> 0 | G116: =SUM(DataInput!H116,DataInput!AC116) -> 0 | H116: =DataInput!W116 -> 16 | I116: =SUM(DataInput!J116,DataInput!AD116) -> 0 | J116: =SUM(DataInput!K116,DataInput!AE116) -> 0 | K116: =SUM(DataInput!L116,DataInput!AF116) -> 0 | L116: =SUM(DataInput!M116,DataInput!AG116) -> 0 | M116: =SUM(DataInput!N116,DataInput!AH116) -> 0 | N116: =SUM(DataInput!O116,DataInput!AI116) -> 0 | O116: =DataInput!P116 -> 0 | R116: =SUM(C116,E116:G116,I116:L116,N116:Q116) -> 54 | S116: =IF(ISERROR(ROUND((R116/$S$5),0)),0,ROUND((R116/$S$5),0)) -> 42 | T116: =DataInput!R116 -> 0 | U116: =DataInput!X116 -> 0 | V116: =IF(DataInput!U116-DataInput!E116>0,DataInput!U116-DataInput!E116,"") -> 2.4 | W116: =IF(DataInput!W116-DataInput!I116>0,DataInput!W116-DataInput!I116,"") -> 16 | Z116: =SUM(T116:Y116) -> 18.4 | AA116: =SUM(S116-Z116) -> 23.6 | AD116: 0 | AF116: 0 | AG116: =DataInput!U116 -> 8.4 | AH116: =DataInput!S116 -> 6 | AI116: =ROUNDUP(AG116/$AI$5,0) -> 6 | AJ116: =AI116-AH116 -> 0
A117: =IF(DataInput!A117<>"",DataInput!A117,"") -> 100350 | B117: =SUM(DataInput!C117,DataInput!X117)+(DataInput!U117-DataInput!E117) -> 117.4 | C117: =SUM(DataInput!D117,DataInput!Y117) -> 111 | D117: =DataInput!U117 -> 22.4 | E117: =SUM(DataInput!F117,DataInput!AA117) -> 0 | F117: =SUM(DataInput!G117,DataInput!AB117) -> 0 | G117: =SUM(DataInput!H117,DataInput!AC117) -> 0 | H117: =DataInput!W117 -> 31 | I117: =SUM(DataInput!J117,DataInput!AD117) -> 0 | J117: =SUM(DataInput!K117,DataInput!AE117) -> 0 | K117: =SUM(DataInput!L117,DataInput!AF117) -> 0 | L117: =SUM(DataInput!M117,DataInput!AG117) -> 0 | M117: =SUM(DataInput!N117,DataInput!AH117) -> 0 | N117: =SUM(DataInput!O117,DataInput!AI117) -> 0 | O117: =DataInput!P117 -> 0 | R117: =SUM(C117,E117:G117,I117:L117,N117:Q117) -> 111 | S117: =IF(ISERROR(ROUND((R117/$S$5),0)),0,ROUND((R117/$S$5),0)) -> 85 | T117: =DataInput!R117 -> 0 | U117: =DataInput!X117 -> 0 | V117: =IF(DataInput!U117-DataInput!E117>0,DataInput!U117-DataInput!E117,"") -> 6.4 | W117: =IF(DataInput!W117-DataInput!I117>0,DataInput!W117-DataInput!I117,"") -> 31 | Z117: =SUM(T117:Y117) -> 37.4 | AA117: =SUM(S117-Z117) -> 47.6 | AB117: =AB116 -> 0 | AC117: =AC116 -> 0 | AD117: =IF(AC117>0,IFERROR(IF(AVERAGE(DataInput!Q116:Q117)>AVERAGE(AC117,AC116),ROUNDDOWN(((((AC116-AB116)+(AC117-AB117))/2)*(A117-A116))/27,0),IF(((((DataInput!Q117-AB117)+(DataInput!Q116-AB116))/2)*(A117-A116))/27>0,ROUNDDOWN(((((DataInput!Q117-AB116)+(DataInput!Q116-AB116))/2)*(A117-A116))/27,0),0)),0),0) -> 0 | AE117: =AE116 -> 0 | AF117: =IFERROR(IF(((((DataInput!Q116-AE116)+(DataInput!Q117-AE117))/2)*(A117-A116))/27>0,ROUNDDOWN(((((DataInput!Q116-AE116)+(DataInput!Q117-AE117))/2)*(A117-A116))/27,0),0),0) -> 0 | AG117: =DataInput!U117 -> 22.4 | AH117: =DataInput!S117 -> 16 | AI117: =ROUNDUP(AG117/$AI$5,0) -> 16 | AJ117: =AI117-AH117 -> 0
A118: =IF(DataInput!A118<>"",DataInput!A118,"") -> 100375 | B118: =SUM(DataInput!C118,DataInput!X118)+(DataInput!U118-DataInput!E118) -> 124.8 | C118: =SUM(DataInput!D118,DataInput!Y118) -> 118 | D118: =DataInput!U118 -> 23.8 | E118: =SUM(DataInput!F118,DataInput!AA118) -> 0 | F118: =SUM(DataInput!G118,DataInput!AB118) -> 0 | G118: =SUM(DataInput!H118,DataInput!AC118) -> 0 | H118: =DataInput!W118 -> 32 | I118: =SUM(DataInput!J118,DataInput!AD118) -> 0 | J118: =SUM(DataInput!K118,DataInput!AE118) -> 0 | K118: =SUM(DataInput!L118,DataInput!AF118) -> 0 | L118: =SUM(DataInput!M118,DataInput!AG118) -> 0 | M118: =SUM(DataInput!N118,DataInput!AH118) -> 0 | N118: =SUM(DataInput!O118,DataInput!AI118) -> 0 | O118: =DataInput!P118 -> 0 | R118: 118 | S118: 91 | T118: =DataInput!R118 -> 0 | U118: =DataInput!X118 -> 0 | V118: =IF(DataInput!U118-DataInput!E118>0,DataInput!U118-DataInput!E118,"") -> 6.8 | W118: =IF(DataInput!W118-DataInput!I118>0,DataInput!W118-DataInput!I118,"") -> 32 | Z118: 38.8 | AA118: 52.2 | AB118: =AB117 -> 0 | AC118: =AC117 -> 0 | AD118: =IF(AC118>0,IFERROR(IF(AVERAGE(DataInput!Q117:Q118)>AVERAGE(AC118,AC117),ROUNDDOWN(((((AC117-AB117)+(AC118-AB118))/2)*(A118-A117))/27,0),IF(((((DataInput!Q118-AB118)+(DataInput!Q117-AB117))/2)*(A118-A117))/27>0,ROUNDDOWN(((((DataInput!Q118-AB117)+(DataInput!Q117-AB117))/2)*(A118-A117))/27,0),0)),0),0) -> 0 | AE118: =AE117 -> 0 | AF118: =IFERROR(IF(((((DataInput!Q117-AE117)+(DataInput!Q118-AE118))/2)*(A118-A117))/27>0,ROUNDDOWN(((((DataInput!Q117-AE117)+(DataInput!Q118-AE118))/2)*(A118-A117))/27,0),0),0) -> 0 | AG118: =DataInput!U118 -> 23.8 | AH118: =DataInput!S118 -> 17 | AI118: 17 | AJ118: 0
A119: =IF(DataInput!A119<>"",DataInput!A119,"") -> 100400 | B119: =SUM(DataInput!C119,DataInput!X119)+(DataInput!U119-DataInput!E119) -> 128.8 | C119: =SUM(DataInput!D119,DataInput!Y119) -> 122 | D119: =DataInput!U119 -> 23.8 | E119: =SUM(DataInput!F119,DataInput!AA119) -> 0 | F119: =SUM(DataInput!G119,DataInput!AB119) -> 0 | G119: =SUM(DataInput!H119,DataInput!AC119) -> 0 | H119: =DataInput!W119 -> 34 | I119: =SUM(DataInput!J119,DataInput!AD119) -> 0 | J119: =SUM(DataInput!K119,DataInput!AE119) -> 0 | K119: =SUM(DataInput!L119,DataInput!AF119) -> 0 | L119: =SUM(DataInput!M119,DataInput!AG119) -> 0 | M119: =SUM(DataInput!N119,DataInput!AH119) -> 0 | N119: =SUM(DataInput!O119,DataInput!AI119) -> 0 | O119: =DataInput!P119 -> 0 | R119: 122 | S119: 94 | T119: =DataInput!R119 -> 0 | U119: =DataInput!X119 -> 0 | V119: =IF(DataInput!U119-DataInput!E119>0,DataInput!U119-DataInput!E119,"") -> 6.8 | W119: =IF(DataInput!W119-DataInput!I119>0,DataInput!W119-DataInput!I119,"") -> 34 | Z119: 40.8 | AA119: 53.2 | AB119: 0 | AC119: 0 | AD119: =IF(AC119>0,IFERROR(IF(AVERAGE(DataInput!Q118:Q119)>AVERAGE(AC119,AC118),ROUNDDOWN(((((AC118-AB118)+(AC119-AB119))/2)*(A119-A118))/27,0),IF(((((DataInput!Q119-AB119)+(DataInput!Q118-AB118))/2)*(A119-A118))/27>0,ROUNDDOWN(((((DataInput!Q119-AB118)+(DataInput!Q118-AB118))/2)*(A119-A118))/27,0),0)),0),0) -> 0 | AE119: 0 | AF119: =IFERROR(IF(((((DataInput!Q118-AE118)+(DataInput!Q119-AE119))/2)*(A119-A118))/27>0,ROUNDDOWN(((((DataInput!Q118-AE118)+(DataInput!Q119-AE119))/2)*(A119-A118))/27,0),0),0) -> 0 | AG119: =DataInput!U119 -> 23.8 | AH119: =DataInput!S119 -> 17 | AI119: 17 | AJ119: 0
A120: =IF(DataInput!A120<>"",DataInput!A120,"") -> 100425 | B120: =SUM(DataInput!C120,DataInput!X120)+(DataInput!U120-DataInput!E120) -> 138 | C120: =SUM(DataInput!D120,DataInput!Y120) -> 130 | D120: =DataInput!U120 -> 28 | E120: =SUM(DataInput!F120,DataInput!AA120) -> 0 | F120: =SUM(DataInput!G120,DataInput!AB120) -> 0 | G120: =SUM(DataInput!H120,DataInput!AC120) -> 0 | H120: =DataInput!W120 -> 36 | I120: =SUM(DataInput!J120,DataInput!AD120) -> 0 | J120: =SUM(DataInput!K120,DataInput!AE120) -> 0 | K120: =SUM(DataInput!L120,DataInput!AF120) -> 0 | L120: =SUM(DataInput!M120,DataInput!AG120) -> 0 | M120: =SUM(DataInput!N120,DataInput!AH120) -> 0 | N120: =SUM(DataInput!O120,DataInput!AI120) -> 0 | O120: =DataInput!P120 -> 0 | R120: 130 | S120: 100 | T120: =DataInput!R120 -> 0 | U120: =DataInput!X120 -> 0 | V120: =IF(DataInput!U120-DataInput!E120>0,DataInput!U120-DataInput!E120,"") -> 8 | W120: =IF(DataInput!W120-DataInput!I120>0,DataInput!W120-DataInput!I120,"") -> 36 | Z120: 44 | AA120: 56 | AB120: 0 | AC120: 0 | AD120: =IF(AC120>0,IFERROR(IF(AVERAGE(DataInput!Q119:Q120)>AVERAGE(AC120,AC119),ROUNDDOWN(((((AC119-AB119)+(AC120-AB120))/2)*(A120-A119))/27,0),IF(((((DataInput!Q120-AB120)+(DataInput!Q119-AB119))/2)*(A120-A119))/27>0,ROUNDDOWN(((((DataInput!Q120-AB119)+(DataInput!Q119-AB119))/2)*(A120-A119))/27,0),0)),0),0) -> 0 | AE120: 0 | AF120: =IFERROR(IF(((((DataInput!Q119-AE119)+(DataInput!Q120-AE120))/2)*(A120-A119))/27>0,ROUNDDOWN(((((DataInput!Q119-AE119)+(DataInput!Q120-AE120))/2)*(A120-A119))/27,0),0),0) -> 0 | AG120: =DataInput!U120 -> 28 | AH120: =DataInput!S120 -> 20 | AI120: 20 | AJ120: 0
A121: =IF(DataInput!A121<>"",DataInput!A121,"") -> 100450 | B121: =SUM(DataInput!C121,DataInput!X121)+(DataInput!U121-DataInput!E121) -> 148.2 | C121: =SUM(DataInput!D121,DataInput!Y121) -> 139 | D121: =DataInput!U121 -> 32.2 | E121: =SUM(DataInput!F121,DataInput!AA121) -> 0 | F121: =SUM(DataInput!G121,DataInput!AB121) -> 0 | G121: =SUM(DataInput!H121,DataInput!AC121) -> 0 | H121: =DataInput!W121 -> 37 | I121: =SUM(DataInput!J121,DataInput!AD121) -> 0 | J121: =SUM(DataInput!K121,DataInput!AE121) -> 0 | K121: =SUM(DataInput!L121,DataInput!AF121) -> 0 | L121: =SUM(DataInput!M121,DataInput!AG121) -> 0 | M121: =SUM(DataInput!N121,DataInput!AH121) -> 0 | N121: =SUM(DataInput!O121,DataInput!AI121) -> 0 | O121: =DataInput!P121 -> 0 | R121: 139 | S121: 107 | T121: =DataInput!R121 -> 1 | U121: =DataInput!X121 -> 0 | V121: =IF(DataInput!U121-DataInput!E121>0,DataInput!U121-DataInput!E121,"") -> 9.2 | W121: =IF(DataInput!W121-DataInput!I121>0,DataInput!W121-DataInput!I121,"") -> 37 | Z121: 47.2 | AA121: 59.8 | AB121: 0 | AC121: 0 | AD121: =IF(AC121>0,IFERROR(IF(AVERAGE(DataInput!Q120:Q121)>AVERAGE(AC121,AC120),ROUNDDOWN(((((AC120-AB120)+(AC121-AB121))/2)*(A121-A120))/27,0),IF(((((DataInput!Q121-AB121)+(DataInput!Q120-AB120))/2)*(A121-A120))/27>0,ROUNDDOWN(((((DataInput!Q121-AB120)+(DataInput!Q120-AB120))/2)*(A121-A120))/27,0),0)),0),0) -> 0 | AE121: 0 | AF121: =IFERROR(IF(((((DataInput!Q120-AE120)+(DataInput!Q121-AE121))/2)*(A121-A120))/27>0,ROUNDDOWN(((((DataInput!Q120-AE120)+(DataInput!Q121-AE121))/2)*(A121-A120))/27,0),0),0) -> 1 | AG121: =DataInput!U121 -> 32.2 | AH121: =DataInput!S121 -> 23 | AI121: 23 | AJ121: 0
A122: =IF(DataInput!A122<>"",DataInput!A122,"") -> 100475 | B122: =SUM(DataInput!C122,DataInput!X122)+(DataInput!U122-DataInput!E122) -> 158.4 | C122: =SUM(DataInput!D122,DataInput!Y122) -> 148 | D122: =DataInput!U122 -> 36.4 | E122: =SUM(DataInput!F122,DataInput!AA122) -> 0 | F122: =SUM(DataInput!G122,DataInput!AB122) -> 0 | G122: =SUM(DataInput!H122,DataInput!AC122) -> 0 | H122: =DataInput!W122 -> 37 | I122: =SUM(DataInput!J122,DataInput!AD122) -> 0 | J122: =SUM(DataInput!K122,DataInput!AE122) -> 0 | K122: =SUM(DataInput!L122,DataInput!AF122) -> 0 | L122: =SUM(DataInput!M122,DataInput!AG122) -> 0 | M122: =SUM(DataInput!N122,DataInput!AH122) -> 0 | N122: =SUM(DataInput!O122,DataInput!AI122) -> 0 | O122: =DataInput!P122 -> 0 | R122: 148 | S122: 114 | T122: =DataInput!R122 -> 6 | U122: =DataInput!X122 -> 0 | V122: =IF(DataInput!U122-DataInput!E122>0,DataInput!U122-DataInput!E122,"") -> 10.4 | W122: =IF(DataInput!W122-DataInput!I122>0,DataInput!W122-DataInput!I122,"") -> 37 | Z122: 53.4 | AA122: 60.6 | AB122: 0 | AC122: 0 | AD122: =IF(AC122>0,IFERROR(IF(AVERAGE(DataInput!Q121:Q122)>AVERAGE(AC122,AC121),ROUNDDOWN(((((AC121-AB121)+(AC122-AB122))/2)*(A122-A121))/27,0),IF(((((DataInput!Q122-AB122)+(DataInput!Q121-AB121))/2)*(A122-A121))/27>0,ROUNDDOWN(((((DataInput!Q122-AB121)+(DataInput!Q121-AB121))/2)*(A122-A121))/27,0),0)),0),0) -> 0 | AE122: 0 | AF122: =IFERROR(IF(((((DataInput!Q121-AE121)+(DataInput!Q122-AE122))/2)*(A122-A121))/27>0,ROUNDDOWN(((((DataInput!Q121-AE121)+(DataInput!Q122-AE122))/2)*(A122-A121))/27,0),0),0) -> 5 | AG122: =DataInput!U122 -> 36.4 | AH122: =DataInput!S122 -> 26 | AI122: 26 | AJ122: 0
A123: =IF(DataInput!A123<>"",DataInput!A123,"") -> 100500 | B123: =SUM(DataInput!C123,DataInput!X123)+(DataInput!U123-DataInput!E123) -> 161.8 | C123: =SUM(DataInput!D123,DataInput!Y123) -> 151 | D123: =DataInput!U123 -> 37.8 | E123: =SUM(DataInput!F123,DataInput!AA123) -> 0 | F123: =SUM(DataInput!G123,DataInput!AB123) -> 0 | G123: =SUM(DataInput!H123,DataInput!AC123) -> 0 | H123: =DataInput!W123 -> 37 | I123: =SUM(DataInput!J123,DataInput!AD123) -> 0 | J123: =SUM(DataInput!K123,DataInput!AE123) -> 0 | K123: =SUM(DataInput!L123,DataInput!AF123) -> 0 | L123: =SUM(DataInput!M123,DataInput!AG123) -> 0 | M123: =SUM(DataInput!N123,DataInput!AH123) -> 0 | N123: =SUM(DataInput!O123,DataInput!AI123) -> 0 | O123: =DataInput!P123 -> 0 | R123: 151 | S123: 116 | T123: =DataInput!R123 -> 9 | U123: =DataInput!X123 -> 0 | V123: =IF(DataInput!U123-DataInput!E123>0,DataInput!U123-DataInput!E123,"") -> 10.8 | W123: =IF(DataInput!W123-DataInput!I123>0,DataInput!W123-DataInput!I123,"") -> 37 | Z123: 56.8 | AA123: 59.2 | AB123: 0 | AC123: 0 | AD123: =IF(AC123>0,IFERROR(IF(AVERAGE(DataInput!Q122:Q123)>AVERAGE(AC123,AC122),ROUNDDOWN(((((AC122-AB122)+(AC123-AB123))/2)*(A123-A122))/27,0),IF(((((DataInput!Q123-AB123)+(DataInput!Q122-AB122))/2)*(A123-A122))/27>0,ROUNDDOWN(((((DataInput!Q123-AB122)+(DataInput!Q122-AB122))/2)*(A123-A122))/27,0),0)),0),0) -> 0 | AE123: 0 | AF123: =IFERROR(IF(((((DataInput!Q122-AE122)+(DataInput!Q123-AE123))/2)*(A123-A122))/27>0,ROUNDDOWN(((((DataInput!Q122-AE122)+(DataInput!Q123-AE123))/2)*(A123-A122))/27,0),0),0) -> 9 | AG123: =DataInput!U123 -> 37.8 | AH123: =DataInput!S123 -> 27 | AI123: 27 | AJ123: 0
A124: =IF(DataInput!A124<>"",DataInput!A124,"") -> 100525 | B124: =SUM(DataInput!C124,DataInput!X124)+(DataInput!U124-DataInput!E124) -> 157.8 | C124: =SUM(DataInput!D124,DataInput!Y124) -> 147 | D124: =DataInput!U124 -> 37.8 | E124: =SUM(DataInput!F124,DataInput!AA124) -> 0 | F124: =SUM(DataInput!G124,DataInput!AB124) -> 0 | G124: =SUM(DataInput!H124,DataInput!AC124) -> 0 | H124: =DataInput!W124 -> 37 | I124: =SUM(DataInput!J124,DataInput!AD124) -> 0 | J124: =SUM(DataInput!K124,DataInput!AE124) -> 0 | K124: =SUM(DataInput!L124,DataInput!AF124) -> 0 | L124: =SUM(DataInput!M124,DataInput!AG124) -> 0 | M124: =SUM(DataInput!N124,DataInput!AH124) -> 0 | N124: =SUM(DataInput!O124,DataInput!AI124) -> 0 | O124: =DataInput!P124 -> 0 | R124: 147 | S124: 113 | T124: =DataInput!R124 -> 12 | U124: =DataInput!X124 -> 0 | V124: =IF(DataInput!U124-DataInput!E124>0,DataInput!U124-DataInput!E124,"") -> 10.8 | W124: =IF(DataInput!W124-DataInput!I124>0,DataInput!W124-DataInput!I124,"") -> 37 | Z124: 59.8 | AA124: 53.2 | AB124: 0 | AC124: 0 | AD124: =IF(AC124>0,IFERROR(IF(AVERAGE(DataInput!Q123:Q124)>AVERAGE(AC124,AC123),ROUNDDOWN(((((AC123-AB123)+(AC124-AB124))/2)*(A124-A123))/27,0),IF(((((DataInput!Q124-AB124)+(DataInput!Q123-AB123))/2)*(A124-A123))/27>0,ROUNDDOWN(((((DataInput!Q124-AB123)+(DataInput!Q123-AB123))/2)*(A124-A123))/27,0),0)),0),0) -> 0 | AE124: 0 | AF124: =IFERROR(IF(((((DataInput!Q123-AE123)+(DataInput!Q124-AE124))/2)*(A124-A123))/27>0,ROUNDDOWN(((((DataInput!Q123-AE123)+(DataInput!Q124-AE124))/2)*(A124-A123))/27,0),0),0) -> 12 | AG124: =DataInput!U124 -> 37.8 | AH124: =DataInput!S124 -> 27 | AI124: 27 | AJ124: 0
A125: =IF(DataInput!A125<>"",DataInput!A125,"") -> 100550 | B125: =SUM(DataInput!C125,DataInput!X125)+(DataInput!U125-DataInput!E125) -> 141.8 | C125: =SUM(DataInput!D125,DataInput!Y125) -> 131 | D125: =DataInput!U125 -> 37.8 | E125: =SUM(DataInput!F125,DataInput!AA125) -> 0 | F125: =SUM(DataInput!G125,DataInput!AB125) -> 0 | G125: =SUM(DataInput!H125,DataInput!AC125) -> 0 | H125: =DataInput!W125 -> 37 | I125: =SUM(DataInput!J125,DataInput!AD125) -> 0 | J125: =SUM(DataInput!K125,DataInput!AE125) -> 0 | K125: =SUM(DataInput!L125,DataInput!AF125) -> 0 | L125: =SUM(DataInput!M125,DataInput!AG125) -> 0 | M125: =SUM(DataInput!N125,DataInput!AH125) -> 0 | N125: =SUM(DataInput!O125,DataInput!AI125) -> 0 | O125: =DataInput!P125 -> 0 | R125: 131 | S125: 101 | T125: =DataInput!R125 -> 14 | U125: =DataInput!X125 -> 0 | V125: =IF(DataInput!U125-DataInput!E125>0,DataInput!U125-DataInput!E125,"") -> 10.8 | W125: =IF(DataInput!W125-DataInput!I125>0,DataInput!W125-DataInput!I125,"") -> 37 | Z125: 61.8 | AA125: 39.2 | AB125: 0 | AC125: 0 | AD125: =IF(AC125>0,IFERROR(IF(AVERAGE(DataInput!Q124:Q125)>AVERAGE(AC125,AC124),ROUNDDOWN(((((AC124-AB124)+(AC125-AB125))/2)*(A125-A124))/27,0),IF(((((DataInput!Q125-AB125)+(DataInput!Q124-AB124))/2)*(A125-A124))/27>0,ROUNDDOWN(((((DataInput!Q125-AB124)+(DataInput!Q124-AB124))/2)*(A125-A124))/27,0),0)),0),0) -> 0 | AE125: 0 | AF125: =IFERROR(IF(((((DataInput!Q124-AE124)+(DataInput!Q125-AE125))/2)*(A125-A124))/27>0,ROUNDDOWN(((((DataInput!Q124-AE124)+(DataInput!Q125-AE125))/2)*(A125-A124))/27,0),0),0) -> 13 | AG125: =DataInput!U125 -> 37.8 | AH125: =DataInput!S125 -> 27 | AI125: 27 | AJ125: 0
A126: =IF(DataInput!A126<>"",DataInput!A126,"") -> 100575 | B126: =SUM(DataInput!C126,DataInput!X126)+(DataInput!U126-DataInput!E126) -> 130.4 | C126: =SUM(DataInput!D126,DataInput!Y126) -> 118 | D126: =DataInput!U126 -> 43.4 | E126: =SUM(DataInput!F126,DataInput!AA126) -> 0 | F126: =SUM(DataInput!G126,DataInput!AB126) -> 0 | G126: =SUM(DataInput!H126,DataInput!AC126) -> 0 | H126: =DataInput!W126 -> 36 | I126: =SUM(DataInput!J126,DataInput!AD126) -> 0 | J126: =SUM(DataInput!K126,DataInput!AE126) -> 0 | K126: =SUM(DataInput!L126,DataInput!AF126) -> 0 | L126: =SUM(DataInput!M126,DataInput!AG126) -> 0 | M126: =SUM(DataInput!N126,DataInput!AH126) -> 0 | N126: =SUM(DataInput!O126,DataInput!AI126) -> 0 | O126: =DataInput!P126 -> 0 | R126: 118 | S126: 91 | T126: =DataInput!R126 -> 10 | U126: =DataInput!X126 -> 0 | V126: =IF(DataInput!U126-DataInput!E126>0,DataInput!U126-DataInput!E126,"") -> 12.4 | W126: =IF(DataInput!W126-DataInput!I126>0,DataInput!W126-DataInput!I126,"") -> 36 | Z126: 58.4 | AA126: 32.6 | AB126: 0 | AC126: 0 | AD126: =IF(AC126>0,IFERROR(IF(AVERAGE(DataInput!Q125:Q126)>AVERAGE(AC126,AC125),ROUNDDOWN(((((AC125-AB125)+(AC126-AB126))/2)*(A126-A125))/27,0),IF(((((DataInput!Q126-AB126)+(DataInput!Q125-AB125))/2)*(A126-A125))/27>0,ROUNDDOWN(((((DataInput!Q126-AB125)+(DataInput!Q125-AB125))/2)*(A126-A125))/27,0),0)),0),0) -> 0 | AE126: 0 | AF126: =IFERROR(IF(((((DataInput!Q125-AE125)+(DataInput!Q126-AE126))/2)*(A126-A125))/27>0,ROUNDDOWN(((((DataInput!Q125-AE125)+(DataInput!Q126-AE126))/2)*(A126-A125))/27,0),0),0) -> 9 | AG126: =DataInput!U126 -> 43.4 | AH126: =DataInput!S126 -> 31 | AI126: 31 | AJ126: 0
A127: =IF(DataInput!A127<>"",DataInput!A127,"") -> 100600 | B127: =SUM(DataInput!C127,DataInput!X127)+(DataInput!U127-DataInput!E127) -> 140.4 | C127: =SUM(DataInput!D127,DataInput!Y127) -> 126 | D127: =DataInput!U127 -> 50.4 | E127: =SUM(DataInput!F127,DataInput!AA127) -> 0 | F127: =SUM(DataInput!G127,DataInput!AB127) -> 0 | G127: =SUM(DataInput!H127,DataInput!AC127) -> 0 | H127: =DataInput!W127 -> 37 | I127: =SUM(DataInput!J127,DataInput!AD127) -> 0 | J127: =SUM(DataInput!K127,DataInput!AE127) -> 0 | K127: =SUM(DataInput!L127,DataInput!AF127) -> 0 | L127: =SUM(DataInput!M127,DataInput!AG127) -> 0 | M127: =SUM(DataInput!N127,DataInput!AH127) -> 0 | N127: =SUM(DataInput!O127,DataInput!AI127) -> 0 | O127: =DataInput!P127 -> 0 | R127: 126 | S127: 97 | T127: =DataInput!R127 -> 3 | U127: =DataInput!X127 -> 0 | V127: =IF(DataInput!U127-DataInput!E127>0,DataInput!U127-DataInput!E127,"") -> 14.4 | W127: =IF(DataInput!W127-DataInput!I127>0,DataInput!W127-DataInput!I127,"") -> 37 | Z127: 54.4 | AA127: 42.6 | AB127: 0 | AC127: 0 | AD127: =IF(AC127>0,IFERROR(IF(AVERAGE(DataInput!Q126:Q127)>AVERAGE(AC127,AC126),ROUNDDOWN(((((AC126-AB126)+(AC127-AB127))/2)*(A127-A126))/27,0),IF(((((DataInput!Q127-AB127)+(DataInput!Q126-AB126))/2)*(A127-A126))/27>0,ROUNDDOWN(((((DataInput!Q127-AB126)+(DataInput!Q126-AB126))/2)*(A127-A126))/27,0),0)),0),0) -> 0 | AE127: 0 | AF127: =IFERROR(IF(((((DataInput!Q126-AE126)+(DataInput!Q127-AE127))/2)*(A127-A126))/27>0,ROUNDDOWN(((((DataInput!Q126-AE126)+(DataInput!Q127-AE127))/2)*(A127-A126))/27,0),0),0) -> 3 | AG127: =DataInput!U127 -> 50.4 | AH127: =DataInput!S127 -> 36 | AI127: 36 | AJ127: 0
A128: =IF(DataInput!A128<>"",DataInput!A128,"") -> 100625 | B128: =SUM(DataInput!C128,DataInput!X128)+(DataInput!U128-DataInput!E128) -> 162.8 | C128: =SUM(DataInput!D128,DataInput!Y128) -> 148 | D128: =DataInput!U128 -> 51.8 | E128: =SUM(DataInput!F128,DataInput!AA128) -> 0 | F128: =SUM(DataInput!G128,DataInput!AB128) -> 0 | G128: =SUM(DataInput!H128,DataInput!AC128) -> 0 | H128: =DataInput!W128 -> 41 | I128: =SUM(DataInput!J128,DataInput!AD128) -> 0 | J128: =SUM(DataInput!K128,DataInput!AE128) -> 0 | K128: =SUM(DataInput!L128,DataInput!AF128) -> 0 | L128: =SUM(DataInput!M128,DataInput!AG128) -> 0 | M128: =SUM(DataInput!N128,DataInput!AH128) -> 0 | N128: =SUM(DataInput!O128,DataInput!AI128) -> 0 | O128: =DataInput!P128 -> 0 | R128: 148 | S128: 114 | T128: =DataInput!R128 -> 5 | U128: =DataInput!X128 -> 0 | V128: =IF(DataInput!U128-DataInput!E128>0,DataInput!U128-DataInput!E128,"") -> 14.8 | W128: =IF(DataInput!W128-DataInput!I128>0,DataInput!W128-DataInput!I128,"") -> 41 | Z128: 60.8 | AA128: 53.2 | AB128: 0 | AC128: 0 | AD128: =IF(AC128>0,IFERROR(IF(AVERAGE(DataInput!Q127:Q128)>AVERAGE(AC128,AC127),ROUNDDOWN(((((AC127-AB127)+(AC128-AB128))/2)*(A128-A127))/27,0),IF(((((DataInput!Q128-AB128)+(DataInput!Q127-AB127))/2)*(A128-A127))/27>0,ROUNDDOWN(((((DataInput!Q128-AB127)+(DataInput!Q127-AB127))/2)*(A128-A127))/27,0),0)),0),0) -> 0 | AE128: 0 | AF128: =IFERROR(IF(((((DataInput!Q127-AE127)+(DataInput!Q128-AE128))/2)*(A128-A127))/27>0,ROUNDDOWN(((((DataInput!Q127-AE127)+(DataInput!Q128-AE128))/2)*(A128-A127))/27,0),0),0) -> 5 | AG128: =DataInput!U128 -> 51.8 | AH128: =DataInput!S128 -> 37 | AI128: 37 | AJ128: 0
A129: =IF(DataInput!A129<>"",DataInput!A129,"") -> 100650 | B129: =SUM(DataInput!C129,DataInput!X129)+(DataInput!U129-DataInput!E129) -> 24.8 | C129: =SUM(DataInput!D129,DataInput!Y129) -> 22 | D129: =DataInput!U129 -> 9.8 | E129: =SUM(DataInput!F129,DataInput!AA129) -> 0 | F129: =SUM(DataInput!G129,DataInput!AB129) -> 0 | G129: =SUM(DataInput!H129,DataInput!AC129) -> 0 | H129: =DataInput!W129 -> 8 | I129: =SUM(DataInput!J129,DataInput!AD129) -> 0 | J129: =SUM(DataInput!K129,DataInput!AE129) -> 0 | K129: =SUM(DataInput!L129,DataInput!AF129) -> 0 | L129: =SUM(DataInput!M129,DataInput!AG129) -> 0 | M129: =SUM(DataInput!N129,DataInput!AH129) -> 0 | N129: =SUM(DataInput!O129,DataInput!AI129) -> 0 | O129: =DataInput!P129 -> 0 | R129: 22 | S129: 17 | T129: =DataInput!R129 -> 2 | U129: =DataInput!X129 -> 0 | V129: =IF(DataInput!U129-DataInput!E129>0,DataInput!U129-DataInput!E129,"") -> 2.8 | W129: =IF(DataInput!W129-DataInput!I129>0,DataInput!W129-DataInput!I129,"") -> 8 | Z129: 12.8 | AA129: 4.2 | AB129: 0 | AC129: 0 | AD129: =IF(AC129>0,IFERROR(IF(AVERAGE(DataInput!Q128:Q129)>AVERAGE(AC129,AC128),ROUNDDOWN(((((AC128-AB128)+(AC129-AB129))/2)*(A129-A128))/27,0),IF(((((DataInput!Q129-AB129)+(DataInput!Q128-AB128))/2)*(A129-A128))/27>0,ROUNDDOWN(((((DataInput!Q129-AB128)+(DataInput!Q128-AB128))/2)*(A129-A128))/27,0),0)),0),0) -> 0 | AE129: 0 | AF129: =IFERROR(IF(((((DataInput!Q128-AE128)+(DataInput!Q129-AE129))/2)*(A129-A128))/27>0,ROUNDDOWN(((((DataInput!Q128-AE128)+(DataInput!Q129-AE129))/2)*(A129-A128))/27,0),0),0) -> 10 | AG129: =DataInput!U129 -> 9.8 | AH129: =DataInput!S129 -> 7 | AI129: 7 | AJ129: 0
A130: =IF(DataInput!A130<>"",DataInput!A130,"") -> 100653.92 | B130: =SUM(DataInput!C130,DataInput!X130)+(DataInput!U130-DataInput!E130) -> 150 | C130: =SUM(DataInput!D130,DataInput!Y130) -> 136 | D130: =DataInput!U130 -> 49 | E130: =SUM(DataInput!F130,DataInput!AA130) -> 0 | F130: =SUM(DataInput!G130,DataInput!AB130) -> 0 | G130: =SUM(DataInput!H130,DataInput!AC130) -> 0 | H130: =DataInput!W130 -> 42 | I130: =SUM(DataInput!J130,DataInput!AD130) -> 0 | J130: =SUM(DataInput!K130,DataInput!AE130) -> 0 | K130: =SUM(DataInput!L130,DataInput!AF130) -> 0 | L130: =SUM(DataInput!M130,DataInput!AG130) -> 0 | M130: =SUM(DataInput!N130,DataInput!AH130) -> 0 | N130: =SUM(DataInput!O130,DataInput!AI130) -> 0 | O130: =DataInput!P130 -> 0 | R130: 136 | S130: 105 | T130: =DataInput!R130 -> 7 | U130: =DataInput!X130 -> 0 | V130: =IF(DataInput!U130-DataInput!E130>0,DataInput!U130-DataInput!E130,"") -> 14 | W130: =IF(DataInput!W130-DataInput!I130>0,DataInput!W130-DataInput!I130,"") -> 42 | Z130: 63 | AA130: 42 | AB130: 0 | AC130: 0 | AD130: =IF(AC130>0,IFERROR(IF(AVERAGE(DataInput!Q129:Q130)>AVERAGE(AC130,AC129),ROUNDDOWN(((((AC129-AB129)+(AC130-AB130))/2)*(A130-A129))/27,0),IF(((((DataInput!Q130-AB130)+(DataInput!Q129-AB129))/2)*(A130-A129))/27>0,ROUNDDOWN(((((DataInput!Q130-AB129)+(DataInput!Q129-AB129))/2)*(A130-A129))/27,0),0)),0),0) -> 0 | AE130: 0 | AF130: =IFERROR(IF(((((DataInput!Q129-AE129)+(DataInput!Q130-AE130))/2)*(A130-A129))/27>0,ROUNDDOWN(((((DataInput!Q129-AE129)+(DataInput!Q130-AE130))/2)*(A130-A129))/27,0),0),0) -> 1 | AG130: =DataInput!U130 -> 49 | AH130: =DataInput!S130 -> 35 | AI130: 35 | AJ130: 0
A131: =IF(DataInput!A131<>"",DataInput!A131,"") -> 100675 | B131: =SUM(DataInput!C131,DataInput!X131)+(DataInput!U131-DataInput!E131) -> 182.6 | C131: =SUM(DataInput!D131,DataInput!Y131) -> 163 | D131: =DataInput!U131 -> 68.6 | E131: =SUM(DataInput!F131,DataInput!AA131) -> 0 | F131: =SUM(DataInput!G131,DataInput!AB131) -> 0 | G131: =SUM(DataInput!H131,DataInput!AC131) -> 0 | H131: =DataInput!W131 -> 43 | I131: =SUM(DataInput!J131,DataInput!AD131) -> 0 | J131: =SUM(DataInput!K131,DataInput!AE131) -> 0 | K131: =SUM(DataInput!L131,DataInput!AF131) -> 0 | L131: =SUM(DataInput!M131,DataInput!AG131) -> 0 | M131: =SUM(DataInput!N131,DataInput!AH131) -> 0 | N131: =SUM(DataInput!O131,DataInput!AI131) -> 0 | O131: =DataInput!P131 -> 0 | R131: 163 | S131: 125 | T131: =DataInput!R131 -> 4 | U131: =DataInput!X131 -> 0 | V131: =IF(DataInput!U131-DataInput!E131>0,DataInput!U131-DataInput!E131,"") -> 19.6 | W131: =IF(DataInput!W131-DataInput!I131>0,DataInput!W131-DataInput!I131,"") -> 43 | Z131: 66.6 | AA131: 58.4 | AB131: 0 | AC131: 0 | AD131: =IF(AC131>0,IFERROR(IF(AVERAGE(DataInput!Q130:Q131)>AVERAGE(AC131,AC130),ROUNDDOWN(((((AC130-AB130)+(AC131-AB131))/2)*(A131-A130))/27,0),IF(((((DataInput!Q131-AB131)+(DataInput!Q130-AB130))/2)*(A131-A130))/27>0,ROUNDDOWN(((((DataInput!Q131-AB130)+(DataInput!Q130-AB130))/2)*(A131-A130))/27,0),0)),0),0) -> 0 | AE131: 0 | AF131: =IFERROR(IF(((((DataInput!Q130-AE130)+(DataInput!Q131-AE131))/2)*(A131-A130))/27>0,ROUNDDOWN(((((DataInput!Q130-AE130)+(DataInput!Q131-AE131))/2)*(A131-A130))/27,0),0),0) -> 3 | AG131: =DataInput!U131 -> 68.6 | AH131: =DataInput!S131 -> 49 | AI131: 49 | AJ131: 0
A132: =IF(DataInput!A132<>"",DataInput!A132,"") -> 100700 | B132: =SUM(DataInput!C132,DataInput!X132)+(DataInput!U132-DataInput!E132) -> 240.4 | C132: =SUM(DataInput!D132,DataInput!Y132) -> 218 | D132: =DataInput!U132 -> 78.4 | E132: =SUM(DataInput!F132,DataInput!AA132) -> 0 | F132: =SUM(DataInput!G132,DataInput!AB132) -> 0 | G132: =SUM(DataInput!H132,DataInput!AC132) -> 0 | H132: =DataInput!W132 -> 40 | I132: =SUM(DataInput!J132,DataInput!AD132) -> 0 | J132: =SUM(DataInput!K132,DataInput!AE132) -> 0 | K132: =SUM(DataInput!L132,DataInput!AF132) -> 0 | L132: =SUM(DataInput!M132,DataInput!AG132) -> 0 | M132: =SUM(DataInput!N132,DataInput!AH132) -> 0 | N132: =SUM(DataInput!O132,DataInput!AI132) -> 0 | O132: =DataInput!P132 -> 0 | R132: 218 | S132: 168 | T132: =DataInput!R132 -> 1 | U132: =DataInput!X132 -> 0 | V132: =IF(DataInput!U132-DataInput!E132>0,DataInput!U132-DataInput!E132,"") -> 22.4 | W132: =IF(DataInput!W132-DataInput!I132>0,DataInput!W132-DataInput!I132,"") -> 40 | Z132: 63.4 | AA132: 104.6 | AB132: 0 | AC132: 0 | AD132: =IF(AC132>0,IFERROR(IF(AVERAGE(DataInput!Q131:Q132)>AVERAGE(AC132,AC131),ROUNDDOWN(((((AC131-AB131)+(AC132-AB132))/2)*(A132-A131))/27,0),IF(((((DataInput!Q132-AB132)+(DataInput!Q131-AB131))/2)*(A132-A131))/27>0,ROUNDDOWN(((((DataInput!Q132-AB131)+(DataInput!Q131-AB131))/2)*(A132-A131))/27,0),0)),0),0) -> 0 | AE132: 0 | AF132: =IFERROR(IF(((((DataInput!Q131-AE131)+(DataInput!Q132-AE132))/2)*(A132-A131))/27>0,ROUNDDOWN(((((DataInput!Q131-AE131)+(DataInput!Q132-AE132))/2)*(A132-A131))/27,0),0),0) -> 0 | AG132: =DataInput!U132 -> 78.4 | AH132: =DataInput!S132 -> 56 | AI132: 56 | AJ132: 0
A133: =IF(DataInput!A133<>"",DataInput!A133,"") -> 100725 | B133: =SUM(DataInput!C133,DataInput!X133)+(DataInput!U133-DataInput!E133) -> 399.6 | C133: =SUM(DataInput!D133,DataInput!Y133) -> 376 | D133: =DataInput!U133 -> 82.6 | E133: =SUM(DataInput!F133,DataInput!AA133) -> 0 | F133: =SUM(DataInput!G133,DataInput!AB133) -> 0 | G133: =SUM(DataInput!H133,DataInput!AC133) -> 0 | H133: =DataInput!W133 -> 37 | I133: =SUM(DataInput!J133,DataInput!AD133) -> 0 | J133: =SUM(DataInput!K133,DataInput!AE133) -> 0 | K133: =SUM(DataInput!L133,DataInput!AF133) -> 0 | L133: =SUM(DataInput!M133,DataInput!AG133) -> 0 | M133: =SUM(DataInput!N133,DataInput!AH133) -> 0 | N133: =SUM(DataInput!O133,DataInput!AI133) -> 0 | O133: =DataInput!P133 -> 0 | R133: 376 | S133: 289 | T133: =DataInput!R133 -> 0 | U133: =DataInput!X133 -> 0 | V133: =IF(DataInput!U133-DataInput!E133>0,DataInput!U133-DataInput!E133,"") -> 23.6 | W133: =IF(DataInput!W133-DataInput!I133>0,DataInput!W133-DataInput!I133,"") -> 37 | Z133: 60.6 | AA133: 228.4 | AB133: 0 | AC133: 0 | AD133: =IF(AC133>0,IFERROR(IF(AVERAGE(DataInput!Q132:Q133)>AVERAGE(AC133,AC132),ROUNDDOWN(((((AC132-AB132)+(AC133-AB133))/2)*(A133-A132))/27,0),IF(((((DataInput!Q133-AB133)+(DataInput!Q132-AB132))/2)*(A133-A132))/27>0,ROUNDDOWN(((((DataInput!Q133-AB132)+(DataInput!Q132-AB132))/2)*(A133-A132))/27,0),0)),0),0) -> 0 | AE133: 0 | AF133: =IFERROR(IF(((((DataInput!Q132-AE132)+(DataInput!Q133-AE133))/2)*(A133-A132))/27>0,ROUNDDOWN(((((DataInput!Q132-AE132)+(DataInput!Q133-AE133))/2)*(A133-A132))/27,0),0),0) -> 0 | AG133: =DataInput!U133 -> 82.6 | AH133: =DataInput!S133 -> 59 | AI133: 59 | AJ133: 0
A134: =IF(DataInput!A134<>"",DataInput!A134,"") -> 100750 | B134: =SUM(DataInput!C134,DataInput!X134)+(DataInput!U134-DataInput!E134) -> 589.4 | C134: =SUM(DataInput!D134,DataInput!Y134) -> 557 | D134: =DataInput!U134 -> 113.4 | E134: =SUM(DataInput!F134,DataInput!AA134) -> 0 | F134: =SUM(DataInput!G134,DataInput!AB134) -> 0 | G134: =SUM(DataInput!H134,DataInput!AC134) -> 0 | H134: =DataInput!W134 -> 41 | I134: =SUM(DataInput!J134,DataInput!AD134) -> 0 | J134: =SUM(DataInput!K134,DataInput!AE134) -> 0 | K134: =SUM(DataInput!L134,DataInput!AF134) -> 0 | L134: =SUM(DataInput!M134,DataInput!AG134) -> 0 | M134: =SUM(DataInput!N134,DataInput!AH134) -> 0 | N134: =SUM(DataInput!O134,DataInput!AI134) -> 0 | O134: =DataInput!P134 -> 0 | R134: 557 | S134: 428 | T134: =DataInput!R134 -> 78 | U134: =DataInput!X134 -> 0 | V134: =IF(DataInput!U134-DataInput!E134>0,DataInput!U134-DataInput!E134,"") -> 32.4 | W134: =IF(DataInput!W134-DataInput!I134>0,DataInput!W134-DataInput!I134,"") -> 41 | Z134: 151.4 | AA134: 276.6 | AB134: 0 | AC134: 0 | AD134: =IF(AC134>0,IFERROR(IF(AVERAGE(DataInput!Q133:Q134)>AVERAGE(AC134,AC133),ROUNDDOWN(((((AC133-AB133)+(AC134-AB134))/2)*(A134-A133))/27,0),IF(((((DataInput!Q134-AB134)+(DataInput!Q133-AB133))/2)*(A134-A133))/27>0,ROUNDDOWN(((((DataInput!Q134-AB133)+(DataInput!Q133-AB133))/2)*(A134-A133))/27,0),0)),0),0) -> 0 | AE134: 0 | AF134: =IFERROR(IF(((((DataInput!Q133-AE133)+(DataInput!Q134-AE134))/2)*(A134-A133))/27>0,ROUNDDOWN(((((DataInput!Q133-AE133)+(DataInput!Q134-AE134))/2)*(A134-A133))/27,0),0),0) -> 77 | AG134: =DataInput!U134 -> 113.4 | AH134: =DataInput!S134 -> 81 | AI134: 81 | AJ134: 0
A135: =IF(DataInput!A135<>"",DataInput!A135,"") -> 100775 | B135: =SUM(DataInput!C135,DataInput!X135)+(DataInput!U135-DataInput!E135) -> 834.6 | C135: =SUM(DataInput!D135,DataInput!Y135) -> 793 | D135: =DataInput!U135 -> 145.6 | E135: =SUM(DataInput!F135,DataInput!AA135) -> 0 | F135: =SUM(DataInput!G135,DataInput!AB135) -> 0 | G135: =SUM(DataInput!H135,DataInput!AC135) -> 0 | H135: =DataInput!W135 -> 49 | I135: =SUM(DataInput!J135,DataInput!AD135) -> 0 | J135: =SUM(DataInput!K135,DataInput!AE135) -> 0 | K135: =SUM(DataInput!L135,DataInput!AF135) -> 0 | L135: =SUM(DataInput!M135,DataInput!AG135) -> 0 | M135: =SUM(DataInput!N135,DataInput!AH135) -> 0 | N135: =SUM(DataInput!O135,DataInput!AI135) -> 0 | O135: =DataInput!P135 -> 0 | R135: 793 | S135: 610 | T135: =DataInput!R135 -> 217 | U135: =DataInput!X135 -> 0 | V135: =IF(DataInput!U135-DataInput!E135>0,DataInput!U135-DataInput!E135,"") -> 41.6 | W135: =IF(DataInput!W135-DataInput!I135>0,DataInput!W135-DataInput!I135,"") -> 49 | Z135: 307.6 | AA135: 302.4 | AB135: 0 | AC135: 0 | AD135: =IF(AC135>0,IFERROR(IF(AVERAGE(DataInput!Q134:Q135)>AVERAGE(AC135,AC134),ROUNDDOWN(((((AC134-AB134)+(AC135-AB135))/2)*(A135-A134))/27,0),IF(((((DataInput!Q135-AB135)+(DataInput!Q134-AB134))/2)*(A135-A134))/27>0,ROUNDDOWN(((((DataInput!Q135-AB134)+(DataInput!Q134-AB134))/2)*(A135-A134))/27,0),0)),0),0) -> 0 | AE135: 0 | AF135: =IFERROR(IF(((((DataInput!Q134-AE134)+(DataInput!Q135-AE135))/2)*(A135-A134))/27>0,ROUNDDOWN(((((DataInput!Q134-AE134)+(DataInput!Q135-AE135))/2)*(A135-A134))/27,0),0),0) -> 216 | AG135: =DataInput!U135 -> 145.6 | AH135: =DataInput!S135 -> 104 | AI135: 104 | AJ135: 0
A136: =IF(DataInput!A136<>"",DataInput!A136,"") -> 100800 | B136: =SUM(DataInput!C136,DataInput!X136)+(DataInput!U136-DataInput!E136) -> 583.2 | C136: =SUM(DataInput!D136,DataInput!Y136) -> 552 | D136: =DataInput!U136 -> 109.2 | E136: =SUM(DataInput!F136,DataInput!AA136) -> 0 | F136: =SUM(DataInput!G136,DataInput!AB136) -> 0 | G136: =SUM(DataInput!H136,DataInput!AC136) -> 0 | H136: =DataInput!W136 -> 50 | I136: =SUM(DataInput!J136,DataInput!AD136) -> 0 | J136: =SUM(DataInput!K136,DataInput!AE136) -> 0 | K136: =SUM(DataInput!L136,DataInput!AF136) -> 0 | L136: =SUM(DataInput!M136,DataInput!AG136) -> 0 | M136: =SUM(DataInput!N136,DataInput!AH136) -> 0 | N136: =SUM(DataInput!O136,DataInput!AI136) -> 0 | O136: =DataInput!P136 -> 0 | R136: 552 | S136: 425 | T136: =DataInput!R136 -> 139 | U136: =DataInput!X136 -> 0 | V136: =IF(DataInput!U136-DataInput!E136>0,DataInput!U136-DataInput!E136,"") -> 31.2 | W136: =IF(DataInput!W136-DataInput!I136>0,DataInput!W136-DataInput!I136,"") -> 50 | Z136: 220.2 | AA136: 204.8 | AB136: 0 | AC136: 0 | AD136: =IF(AC136>0,IFERROR(IF(AVERAGE(DataInput!Q135:Q136)>AVERAGE(AC136,AC135),ROUNDDOWN(((((AC135-AB135)+(AC136-AB136))/2)*(A136-A135))/27,0),IF(((((DataInput!Q136-AB136)+(DataInput!Q135-AB135))/2)*(A136-A135))/27>0,ROUNDDOWN(((((DataInput!Q136-AB135)+(DataInput!Q135-AB135))/2)*(A136-A135))/27,0),0)),0),0) -> 0 | AE136: 0 | AF136: =IFERROR(IF(((((DataInput!Q135-AE135)+(DataInput!Q136-AE136))/2)*(A136-A135))/27>0,ROUNDDOWN(((((DataInput!Q135-AE135)+(DataInput!Q136-AE136))/2)*(A136-A135))/27,0),0),0) -> 138 | AG136: =DataInput!U136 -> 109.2 | AH136: =DataInput!S136 -> 78 | AI136: 78 | AJ136: 0
A137: =IF(DataInput!A137<>"",DataInput!A137,"") -> 100825 | B137: =SUM(DataInput!C137,DataInput!X137)+(DataInput!U137-DataInput!E137) -> 0 | C137: =SUM(DataInput!D137,DataInput!Y137) -> 0 | D137: =DataInput!U137 -> 0 | E137: =SUM(DataInput!F137,DataInput!AA137) -> 0 | F137: =SUM(DataInput!G137,DataInput!AB137) -> 0 | G137: =SUM(DataInput!H137,DataInput!AC137) -> 0 | H137: =DataInput!W137 -> 0 | I137: =SUM(DataInput!J137,DataInput!AD137) -> 0 | J137: =SUM(DataInput!K137,DataInput!AE137) -> 0 | K137: =SUM(DataInput!L137,DataInput!AF137) -> 0 | L137: =SUM(DataInput!M137,DataInput!AG137) -> 0 | M137: =SUM(DataInput!N137,DataInput!AH137) -> 0 | N137: =SUM(DataInput!O137,DataInput!AI137) -> 0 | O137: =DataInput!P137 -> 0 | R137: 0 | S137: 0 | T137: =DataInput!R137 -> 0 | U137: =DataInput!X137 -> 0 | V137: =IF(DataInput!U137-DataInput!E137>0,DataInput!U137-DataInput!E137,"") ->  | W137: =IF(DataInput!W137-DataInput!I137>0,DataInput!W137-DataInput!I137,"") ->  | Z137: 0 | AA137: 0 | AB137: 0 | AC137: 0 | AD137: =IF(AC137>0,IFERROR(IF(AVERAGE(DataInput!Q136:Q137)>AVERAGE(AC137,AC136),ROUNDDOWN(((((AC136-AB136)+(AC137-AB137))/2)*(A137-A136))/27,0),IF(((((DataInput!Q137-AB137)+(DataInput!Q136-AB136))/2)*(A137-A136))/27>0,ROUNDDOWN(((((DataInput!Q137-AB136)+(DataInput!Q136-AB136))/2)*(A137-A136))/27,0),0)),0),0) -> 0 | AE137: 0 | AF137: =IFERROR(IF(((((DataInput!Q136-AE136)+(DataInput!Q137-AE137))/2)*(A137-A136))/27>0,ROUNDDOWN(((((DataInput!Q136-AE136)+(DataInput!Q137-AE137))/2)*(A137-A136))/27,0),0),0) -> 0 | AG137: =DataInput!U137 -> 0 | AH137: =DataInput!S137 -> 0 | AI137: 0 | AJ137: 0
A139: =IF(DataInput!A139<>"",DataInput!A139,"") -> SR022B
A140: =IF(DataInput!A140<>"",DataInput!A140,"") -> 200480.26 | B140: =SUM(DataInput!C140,DataInput!X140)+(DataInput!U140-DataInput!E140) -> 96.8 | C140: =SUM(DataInput!D140,DataInput!Y140) -> 90 | D140: =DataInput!U140 -> 23.8 | E140: =SUM(DataInput!F140,DataInput!AA140) -> 0 | F140: =SUM(DataInput!G140,DataInput!AB140) -> 0 | G140: =SUM(DataInput!H140,DataInput!AC140) -> 0 | H140: =DataInput!W140 -> 25 | I140: =SUM(DataInput!J140,DataInput!AD140) -> 0 | J140: =SUM(DataInput!K140,DataInput!AE140) -> 0 | K140: =SUM(DataInput!L140,DataInput!AF140) -> 0 | L140: =SUM(DataInput!M140,DataInput!AG140) -> 0 | M140: =SUM(DataInput!N140,DataInput!AH140) -> 0 | N140: =SUM(DataInput!O140,DataInput!AI140) -> 0 | O140: =DataInput!P140 -> 0 | R140: =SUM(C140,E140:G140,I140:L140,N140:Q140) -> 90 | S140: =IF(ISERROR(ROUND((R140/$S$5),0)),0,ROUND((R140/$S$5),0)) -> 69 | T140: =DataInput!R140 -> 2 | U140: =DataInput!X140 -> 0 | V140: =IF(DataInput!U140-DataInput!E140>0,DataInput!U140-DataInput!E140,"") -> 6.8 | W140: =IF(DataInput!W140-DataInput!I140>0,DataInput!W140-DataInput!I140,"") -> 25 | Z140: =SUM(T140:Y140) -> 33.8 | AA140: =SUM(S140-Z140) -> 35.2 | AD140: 0 | AF140: 0 | AG140: =DataInput!U140 -> 23.8 | AH140: =DataInput!S140 -> 17 | AI140: =ROUNDUP(AG140/$AI$5,0) -> 17 | AJ140: =AI140-AH140 -> 0
A141: =IF(DataInput!A141<>"",DataInput!A141,"") -> 200500 | B141: =SUM(DataInput!C141,DataInput!X141)+(DataInput!U141-DataInput!E141) -> 120.8 | C141: =SUM(DataInput!D141,DataInput!Y141) -> 114 | D141: =DataInput!U141 -> 23.8 | E141: =SUM(DataInput!F141,DataInput!AA141) -> 0 | F141: =SUM(DataInput!G141,DataInput!AB141) -> 0 | G141: =SUM(DataInput!H141,DataInput!AC141) -> 0 | H141: =DataInput!W141 -> 33 | I141: =SUM(DataInput!J141,DataInput!AD141) -> 0 | J141: =SUM(DataInput!K141,DataInput!AE141) -> 0 | K141: =SUM(DataInput!L141,DataInput!AF141) -> 0 | L141: =SUM(DataInput!M141,DataInput!AG141) -> 0 | M141: =SUM(DataInput!N141,DataInput!AH141) -> 0 | N141: =SUM(DataInput!O141,DataInput!AI141) -> 0 | O141: =DataInput!P141 -> 0 | R141: =SUM(C141,E141:G141,I141:L141,N141:Q141) -> 114 | S141: =IF(ISERROR(ROUND((R141/$S$5),0)),0,ROUND((R141/$S$5),0)) -> 88 | T141: =DataInput!R141 -> 1 | U141: =DataInput!X141 -> 0 | V141: =IF(DataInput!U141-DataInput!E141>0,DataInput!U141-DataInput!E141,"") -> 6.8 | W141: =IF(DataInput!W141-DataInput!I141>0,DataInput!W141-DataInput!I141,"") -> 33 | Z141: =SUM(T141:Y141) -> 40.8 | AA141: =SUM(S141-Z141) -> 47.2 | AB141: =AB140 -> 0 | AC141: =AC140 -> 0 | AD141: =IF(AC141>0,IFERROR(IF(AVERAGE(DataInput!Q140:Q141)>AVERAGE(AC141,AC140),ROUNDDOWN(((((AC140-AB140)+(AC141-AB141))/2)*(A141-A140))/27,0),IF(((((DataInput!Q141-AB141)+(DataInput!Q140-AB140))/2)*(A141-A140))/27>0,ROUNDDOWN(((((DataInput!Q141-AB140)+(DataInput!Q140-AB140))/2)*(A141-A140))/27,0),0)),0),0) -> 0 | AE141: =AE140 -> 0 | AF141: =IFERROR(IF(((((DataInput!Q140-AE140)+(DataInput!Q141-AE141))/2)*(A141-A140))/27>0,ROUNDDOWN(((((DataInput!Q140-AE140)+(DataInput!Q141-AE141))/2)*(A141-A140))/27,0),0),0) -> 0 | AG141: =DataInput!U141 -> 23.8 | AH141: =DataInput!S141 -> 17 | AI141: =ROUNDUP(AG141/$AI$5,0) -> 17 | AJ141: =AI141-AH141 -> 0
A142: =IF(DataInput!A142<>"",DataInput!A142,"") -> 200525 | B142: =SUM(DataInput!C142,DataInput!X142)+(DataInput!U142-DataInput!E142) -> 130.4 | C142: =SUM(DataInput!D142,DataInput!Y142) -> 124 | D142: =DataInput!U142 -> 22.4 | E142: =SUM(DataInput!F142,DataInput!AA142) -> 0 | F142: =SUM(DataInput!G142,DataInput!AB142) -> 0 | G142: =SUM(DataInput!H142,DataInput!AC142) -> 0 | H142: =DataInput!W142 -> 34 | I142: =SUM(DataInput!J142,DataInput!AD142) -> 0 | J142: =SUM(DataInput!K142,DataInput!AE142) -> 0 | K142: =SUM(DataInput!L142,DataInput!AF142) -> 0 | L142: =SUM(DataInput!M142,DataInput!AG142) -> 0 | M142: =SUM(DataInput!N142,DataInput!AH142) -> 0 | N142: =SUM(DataInput!O142,DataInput!AI142) -> 0 | O142: =DataInput!P142 -> 0 | R142: 124 | S142: 95 | T142: =DataInput!R142 -> 0 | U142: =DataInput!X142 -> 0 | V142: =IF(DataInput!U142-DataInput!E142>0,DataInput!U142-DataInput!E142,"") -> 6.4 | W142: =IF(DataInput!W142-DataInput!I142>0,DataInput!W142-DataInput!I142,"") -> 34 | Z142: 40.4 | AA142: 54.6 | AB142: =AB141 -> 0 | AC142: =AC141 -> 0 | AD142: =IF(AC142>0,IFERROR(IF(AVERAGE(DataInput!Q141:Q142)>AVERAGE(AC142,AC141),ROUNDDOWN(((((AC141-AB141)+(AC142-AB142))/2)*(A142-A141))/27,0),IF(((((DataInput!Q142-AB142)+(DataInput!Q141-AB141))/2)*(A142-A141))/27>0,ROUNDDOWN(((((DataInput!Q142-AB141)+(DataInput!Q141-AB141))/2)*(A142-A141))/27,0),0)),0),0) -> 0 | AE142: =AE141 -> 0 | AF142: =IFERROR(IF(((((DataInput!Q141-AE141)+(DataInput!Q142-AE142))/2)*(A142-A141))/27>0,ROUNDDOWN(((((DataInput!Q141-AE141)+(DataInput!Q142-AE142))/2)*(A142-A141))/27,0),0),0) -> 0 | AG142: =DataInput!U142 -> 22.4 | AH142: =DataInput!S142 -> 16 | AI142: 16 | AJ142: 0
A143: =IF(DataInput!A143<>"",DataInput!A143,"") -> 200550 | B143: =SUM(DataInput!C143,DataInput!X143)+(DataInput!U143-DataInput!E143) -> 147.2 | C143: =SUM(DataInput!D143,DataInput!Y143) -> 138 | D143: =DataInput!U143 -> 32.2 | E143: =SUM(DataInput!F143,DataInput!AA143) -> 0 | F143: =SUM(DataInput!G143,DataInput!AB143) -> 0 | G143: =SUM(DataInput!H143,DataInput!AC143) -> 0 | H143: =DataInput!W143 -> 36 | I143: =SUM(DataInput!J143,DataInput!AD143) -> 0 | J143: =SUM(DataInput!K143,DataInput!AE143) -> 0 | K143: =SUM(DataInput!L143,DataInput!AF143) -> 0 | L143: =SUM(DataInput!M143,DataInput!AG143) -> 0 | M143: =SUM(DataInput!N143,DataInput!AH143) -> 0 | N143: =SUM(DataInput!O143,DataInput!AI143) -> 0 | O143: =DataInput!P143 -> 0 | R143: 138 | S143: 106 | T143: =DataInput!R143 -> 0 | U143: =DataInput!X143 -> 0 | V143: =IF(DataInput!U143-DataInput!E143>0,DataInput!U143-DataInput!E143,"") -> 9.2 | W143: =IF(DataInput!W143-DataInput!I143>0,DataInput!W143-DataInput!I143,"") -> 36 | Z143: 45.2 | AA143: 60.8 | AB143: 0 | AC143: 0 | AD143: =IF(AC143>0,IFERROR(IF(AVERAGE(DataInput!Q142:Q143)>AVERAGE(AC143,AC142),ROUNDDOWN(((((AC142-AB142)+(AC143-AB143))/2)*(A143-A142))/27,0),IF(((((DataInput!Q143-AB143)+(DataInput!Q142-AB142))/2)*(A143-A142))/27>0,ROUNDDOWN(((((DataInput!Q143-AB142)+(DataInput!Q142-AB142))/2)*(A143-A142))/27,0),0)),0),0) -> 0 | AE143: 0 | AF143: =IFERROR(IF(((((DataInput!Q142-AE142)+(DataInput!Q143-AE143))/2)*(A143-A142))/27>0,ROUNDDOWN(((((DataInput!Q142-AE142)+(DataInput!Q143-AE143))/2)*(A143-A142))/27,0),0),0) -> 0 | AG143: =DataInput!U143 -> 32.2 | AH143: =DataInput!S143 -> 23 | AI143: 23 | AJ143: 0
A144: =IF(DataInput!A144<>"",DataInput!A144,"") -> 200575 | B144: =SUM(DataInput!C144,DataInput!X144)+(DataInput!U144-DataInput!E144) -> 155 | C144: =SUM(DataInput!D144,DataInput!Y144) -> 145 | D144: =DataInput!U144 -> 35 | E144: =SUM(DataInput!F144,DataInput!AA144) -> 0 | F144: =SUM(DataInput!G144,DataInput!AB144) -> 0 | G144: =SUM(DataInput!H144,DataInput!AC144) -> 0 | H144: =DataInput!W144 -> 37 | I144: =SUM(DataInput!J144,DataInput!AD144) -> 0 | J144: =SUM(DataInput!K144,DataInput!AE144) -> 0 | K144: =SUM(DataInput!L144,DataInput!AF144) -> 0 | L144: =SUM(DataInput!M144,DataInput!AG144) -> 0 | M144: =SUM(DataInput!N144,DataInput!AH144) -> 0 | N144: =SUM(DataInput!O144,DataInput!AI144) -> 0 | O144: =DataInput!P144 -> 0 | R144: 145 | S144: 112 | T144: =DataInput!R144 -> 3 | U144: =DataInput!X144 -> 0 | V144: =IF(DataInput!U144-DataInput!E144>0,DataInput!U144-DataInput!E144,"") -> 10 | W144: =IF(DataInput!W144-DataInput!I144>0,DataInput!W144-DataInput!I144,"") -> 37 | Z144: 50 | AA144: 62 | AB144: 0 | AC144: 0 | AD144: =IF(AC144>0,IFERROR(IF(AVERAGE(DataInput!Q143:Q144)>AVERAGE(AC144,AC143),ROUNDDOWN(((((AC143-AB143)+(AC144-AB144))/2)*(A144-A143))/27,0),IF(((((DataInput!Q144-AB144)+(DataInput!Q143-AB143))/2)*(A144-A143))/27>0,ROUNDDOWN(((((DataInput!Q144-AB143)+(DataInput!Q143-AB143))/2)*(A144-A143))/27,0),0)),0),0) -> 0 | AE144: 0 | AF144: =IFERROR(IF(((((DataInput!Q143-AE143)+(DataInput!Q144-AE144))/2)*(A144-A143))/27>0,ROUNDDOWN(((((DataInput!Q143-AE143)+(DataInput!Q144-AE144))/2)*(A144-A143))/27,0),0),0) -> 2 | AG144: =DataInput!U144 -> 35 | AH144: =DataInput!S144 -> 25 | AI144: 25 | AJ144: 0
A145: =IF(DataInput!A145<>"",DataInput!A145,"") -> 200600 | B145: =SUM(DataInput!C145,DataInput!X145)+(DataInput!U145-DataInput!E145) -> 158.8 | C145: =SUM(DataInput!D145,DataInput!Y145) -> 148 | D145: =DataInput!U145 -> 37.8 | E145: =SUM(DataInput!F145,DataInput!AA145) -> 0 | F145: =SUM(DataInput!G145,DataInput!AB145) -> 0 | G145: =SUM(DataInput!H145,DataInput!AC145) -> 0 | H145: =DataInput!W145 -> 38 | I145: =SUM(DataInput!J145,DataInput!AD145) -> 0 | J145: =SUM(DataInput!K145,DataInput!AE145) -> 0 | K145: =SUM(DataInput!L145,DataInput!AF145) -> 0 | L145: =SUM(DataInput!M145,DataInput!AG145) -> 0 | M145: =SUM(DataInput!N145,DataInput!AH145) -> 0 | N145: =SUM(DataInput!O145,DataInput!AI145) -> 0 | O145: =DataInput!P145 -> 0 | R145: 148 | S145: 114 | T145: =DataInput!R145 -> 7 | U145: =DataInput!X145 -> 0 | V145: =IF(DataInput!U145-DataInput!E145>0,DataInput!U145-DataInput!E145,"") -> 10.8 | W145: =IF(DataInput!W145-DataInput!I145>0,DataInput!W145-DataInput!I145,"") -> 38 | Z145: 55.8 | AA145: 58.2 | AB145: 0 | AC145: 0 | AD145: =IF(AC145>0,IFERROR(IF(AVERAGE(DataInput!Q144:Q145)>AVERAGE(AC145,AC144),ROUNDDOWN(((((AC144-AB144)+(AC145-AB145))/2)*(A145-A144))/27,0),IF(((((DataInput!Q145-AB145)+(DataInput!Q144-AB144))/2)*(A145-A144))/27>0,ROUNDDOWN(((((DataInput!Q145-AB144)+(DataInput!Q144-AB144))/2)*(A145-A144))/27,0),0)),0),0) -> 0 | AE145: 0 | AF145: =IFERROR(IF(((((DataInput!Q144-AE144)+(DataInput!Q145-AE145))/2)*(A145-A144))/27>0,ROUNDDOWN(((((DataInput!Q144-AE144)+(DataInput!Q145-AE145))/2)*(A145-A144))/27,0),0),0) -> 6 | AG145: =DataInput!U145 -> 37.8 | AH145: =DataInput!S145 -> 27 | AI145: 27 | AJ145: 0
A146: =IF(DataInput!A146<>"",DataInput!A146,"") -> 200625 | B146: =SUM(DataInput!C146,DataInput!X146)+(DataInput!U146-DataInput!E146) -> 163.2 | C146: =SUM(DataInput!D146,DataInput!Y146) -> 152 | D146: =DataInput!U146 -> 39.2 | E146: =SUM(DataInput!F146,DataInput!AA146) -> 0 | F146: =SUM(DataInput!G146,DataInput!AB146) -> 0 | G146: =SUM(DataInput!H146,DataInput!AC146) -> 0 | H146: =DataInput!W146 -> 38 | I146: =SUM(DataInput!J146,DataInput!AD146) -> 0 | J146: =SUM(DataInput!K146,DataInput!AE146) -> 0 | K146: =SUM(DataInput!L146,DataInput!AF146) -> 0 | L146: =SUM(DataInput!M146,DataInput!AG146) -> 0 | M146: =SUM(DataInput!N146,DataInput!AH146) -> 0 | N146: =SUM(DataInput!O146,DataInput!AI146) -> 0 | O146: =DataInput!P146 -> 0 | R146: 152 | S146: 117 | T146: =DataInput!R146 -> 11 | U146: =DataInput!X146 -> 0 | V146: =IF(DataInput!U146-DataInput!E146>0,DataInput!U146-DataInput!E146,"") -> 11.2 | W146: =IF(DataInput!W146-DataInput!I146>0,DataInput!W146-DataInput!I146,"") -> 38 | Z146: 60.2 | AA146: 56.8 | AB146: 0 | AC146: 0 | AD146: =IF(AC146>0,IFERROR(IF(AVERAGE(DataInput!Q145:Q146)>AVERAGE(AC146,AC145),ROUNDDOWN(((((AC145-AB145)+(AC146-AB146))/2)*(A146-A145))/27,0),IF(((((DataInput!Q146-AB146)+(DataInput!Q145-AB145))/2)*(A146-A145))/27>0,ROUNDDOWN(((((DataInput!Q146-AB145)+(DataInput!Q145-AB145))/2)*(A146-A145))/27,0),0)),0),0) -> 0 | AE146: 0 | AF146: =IFERROR(IF(((((DataInput!Q145-AE145)+(DataInput!Q146-AE146))/2)*(A146-A145))/27>0,ROUNDDOWN(((((DataInput!Q145-AE145)+(DataInput!Q146-AE146))/2)*(A146-A145))/27,0),0),0) -> 11 | AG146: =DataInput!U146 -> 39.2 | AH146: =DataInput!S146 -> 28 | AI146: 28 | AJ146: 0
A147: =IF(DataInput!A147<>"",DataInput!A147,"") -> 200650 | B147: =SUM(DataInput!C147,DataInput!X147)+(DataInput!U147-DataInput!E147) -> 147 | C147: =SUM(DataInput!D147,DataInput!Y147) -> 137 | D147: =DataInput!U147 -> 35 | E147: =SUM(DataInput!F147,DataInput!AA147) -> 0 | F147: =SUM(DataInput!G147,DataInput!AB147) -> 0 | G147: =SUM(DataInput!H147,DataInput!AC147) -> 0 | H147: =DataInput!W147 -> 33 | I147: =SUM(DataInput!J147,DataInput!AD147) -> 0 | J147: =SUM(DataInput!K147,DataInput!AE147) -> 0 | K147: =SUM(DataInput!L147,DataInput!AF147) -> 0 | L147: =SUM(DataInput!M147,DataInput!AG147) -> 0 | M147: =SUM(DataInput!N147,DataInput!AH147) -> 0 | N147: =SUM(DataInput!O147,DataInput!AI147) -> 0 | O147: =DataInput!P147 -> 0 | R147: 137 | S147: 105 | T147: =DataInput!R147 -> 11 | U147: =DataInput!X147 -> 0 | V147: =IF(DataInput!U147-DataInput!E147>0,DataInput!U147-DataInput!E147,"") -> 10 | W147: =IF(DataInput!W147-DataInput!I147>0,DataInput!W147-DataInput!I147,"") -> 33 | Z147: 54 | AA147: 51 | AB147: 0 | AC147: 0 | AD147: =IF(AC147>0,IFERROR(IF(AVERAGE(DataInput!Q146:Q147)>AVERAGE(AC147,AC146),ROUNDDOWN(((((AC146-AB146)+(AC147-AB147))/2)*(A147-A146))/27,0),IF(((((DataInput!Q147-AB147)+(DataInput!Q146-AB146))/2)*(A147-A146))/27>0,ROUNDDOWN(((((DataInput!Q147-AB146)+(DataInput!Q146-AB146))/2)*(A147-A146))/27,0),0)),0),0) -> 0 | AE147: 0 | AF147: =IFERROR(IF(((((DataInput!Q146-AE146)+(DataInput!Q147-AE147))/2)*(A147-A146))/27>0,ROUNDDOWN(((((DataInput!Q146-AE146)+(DataInput!Q147-AE147))/2)*(A147-A146))/27,0),0),0) -> 12 | AG147: =DataInput!U147 -> 35 | AH147: =DataInput!S147 -> 25 | AI147: 25 | AJ147: 0
A148: =IF(DataInput!A148<>"",DataInput!A148,"") -> 200671.76 | B148: =SUM(DataInput!C148,DataInput!X148)+(DataInput!U148-DataInput!E148) -> 21.6 | C148: =SUM(DataInput!D148,DataInput!Y148) -> 20 | D148: =DataInput!U148 -> 5.6 | E148: =SUM(DataInput!F148,DataInput!AA148) -> 0 | F148: =SUM(DataInput!G148,DataInput!AB148) -> 0 | G148: =SUM(DataInput!H148,DataInput!AC148) -> 0 | H148: =DataInput!W148 -> 5 | I148: =SUM(DataInput!J148,DataInput!AD148) -> 0 | J148: =SUM(DataInput!K148,DataInput!AE148) -> 0 | K148: =SUM(DataInput!L148,DataInput!AF148) -> 0 | L148: =SUM(DataInput!M148,DataInput!AG148) -> 0 | M148: =SUM(DataInput!N148,DataInput!AH148) -> 0 | N148: =SUM(DataInput!O148,DataInput!AI148) -> 0 | O148: =DataInput!P148 -> 0 | R148: 20 | S148: 15 | T148: =DataInput!R148 -> 1 | U148: =DataInput!X148 -> 0 | V148: =IF(DataInput!U148-DataInput!E148>0,DataInput!U148-DataInput!E148,"") -> 1.6 | W148: =IF(DataInput!W148-DataInput!I148>0,DataInput!W148-DataInput!I148,"") -> 5 | Z148: 7.6 | AA148: 7.4 | AB148: 0 | AC148: 0 | AD148: =IF(AC148>0,IFERROR(IF(AVERAGE(DataInput!Q147:Q148)>AVERAGE(AC148,AC147),ROUNDDOWN(((((AC147-AB147)+(AC148-AB148))/2)*(A148-A147))/27,0),IF(((((DataInput!Q148-AB148)+(DataInput!Q147-AB147))/2)*(A148-A147))/27>0,ROUNDDOWN(((((DataInput!Q148-AB147)+(DataInput!Q147-AB147))/2)*(A148-A147))/27,0),0)),0),0) -> 0 | AE148: 0 | AF148: =IFERROR(IF(((((DataInput!Q147-AE147)+(DataInput!Q148-AE148))/2)*(A148-A147))/27>0,ROUNDDOWN(((((DataInput!Q147-AE147)+(DataInput!Q148-AE148))/2)*(A148-A147))/27,0),0),0) -> 10 | AG148: =DataInput!U148 -> 5.6 | AH148: =DataInput!S148 -> 4 | AI148: 4 | AJ148: 0
A149: =IF(DataInput!A149<>"",DataInput!A149,"") -> 200675 | B149: =SUM(DataInput!C149,DataInput!X149)+(DataInput!U149-DataInput!E149) -> 164.6 | C149: =SUM(DataInput!D149,DataInput!Y149) -> 153 | D149: =DataInput!U149 -> 40.6 | E149: =SUM(DataInput!F149,DataInput!AA149) -> 0 | F149: =SUM(DataInput!G149,DataInput!AB149) -> 0 | G149: =SUM(DataInput!H149,DataInput!AC149) -> 0 | H149: =DataInput!W149 -> 37 | I149: =SUM(DataInput!J149,DataInput!AD149) -> 0 | J149: =SUM(DataInput!K149,DataInput!AE149) -> 0 | K149: =SUM(DataInput!L149,DataInput!AF149) -> 0 | L149: =SUM(DataInput!M149,DataInput!AG149) -> 0 | M149: =SUM(DataInput!N149,DataInput!AH149) -> 0 | N149: =SUM(DataInput!O149,DataInput!AI149) -> 0 | O149: =DataInput!P149 -> 0 | R149: 153 | S149: 118 | T149: =DataInput!R149 -> 11 | U149: =DataInput!X149 -> 0 | V149: =IF(DataInput!U149-DataInput!E149>0,DataInput!U149-DataInput!E149,"") -> 11.6 | W149: =IF(DataInput!W149-DataInput!I149>0,DataInput!W149-DataInput!I149,"") -> 37 | Z149: 59.6 | AA149: 58.4 | AB149: 0 | AC149: 0 | AD149: =IF(AC149>0,IFERROR(IF(AVERAGE(DataInput!Q148:Q149)>AVERAGE(AC149,AC148),ROUNDDOWN(((((AC148-AB148)+(AC149-AB149))/2)*(A149-A148))/27,0),IF(((((DataInput!Q149-AB149)+(DataInput!Q148-AB148))/2)*(A149-A148))/27>0,ROUNDDOWN(((((DataInput!Q149-AB148)+(DataInput!Q148-AB148))/2)*(A149-A148))/27,0),0)),0),0) -> 0 | AE149: 0 | AF149: =IFERROR(IF(((((DataInput!Q148-AE148)+(DataInput!Q149-AE149))/2)*(A149-A148))/27>0,ROUNDDOWN(((((DataInput!Q148-AE148)+(DataInput!Q149-AE149))/2)*(A149-A148))/27,0),0),0) -> 1 | AG149: =DataInput!U149 -> 40.6 | AH149: =DataInput!S149 -> 29 | AI149: 29 | AJ149: 0
A150: =IF(DataInput!A150<>"",DataInput!A150,"") -> 200700 | B150: =SUM(DataInput!C150,DataInput!X150)+(DataInput!U150-DataInput!E150) -> 157.6 | C150: =SUM(DataInput!D150,DataInput!Y150) -> 146 | D150: =DataInput!U150 -> 40.6 | E150: =SUM(DataInput!F150,DataInput!AA150) -> 0 | F150: =SUM(DataInput!G150,DataInput!AB150) -> 0 | G150: =SUM(DataInput!H150,DataInput!AC150) -> 0 | H150: =DataInput!W150 -> 37 | I150: =SUM(DataInput!J150,DataInput!AD150) -> 0 | J150: =SUM(DataInput!K150,DataInput!AE150) -> 0 | K150: =SUM(DataInput!L150,DataInput!AF150) -> 0 | L150: =SUM(DataInput!M150,DataInput!AG150) -> 0 | M150: =SUM(DataInput!N150,DataInput!AH150) -> 0 | N150: =SUM(DataInput!O150,DataInput!AI150) -> 0 | O150: =DataInput!P150 -> 0 | R150: 146 | S150: 112 | T150: =DataInput!R150 -> 9 | U150: =DataInput!X150 -> 0 | V150: =IF(DataInput!U150-DataInput!E150>0,DataInput!U150-DataInput!E150,"") -> 11.6 | W150: =IF(DataInput!W150-DataInput!I150>0,DataInput!W150-DataInput!I150,"") -> 37 | Z150: 57.6 | AA150: 54.4 | AB150: 0 | AC150: 0 | AD150: =IF(AC150>0,IFERROR(IF(AVERAGE(DataInput!Q149:Q150)>AVERAGE(AC150,AC149),ROUNDDOWN(((((AC149-AB149)+(AC150-AB150))/2)*(A150-A149))/27,0),IF(((((DataInput!Q150-AB150)+(DataInput!Q149-AB149))/2)*(A150-A149))/27>0,ROUNDDOWN(((((DataInput!Q150-AB149)+(DataInput!Q149-AB149))/2)*(A150-A149))/27,0),0)),0),0) -> 0 | AE150: 0 | AF150: =IFERROR(IF(((((DataInput!Q149-AE149)+(DataInput!Q150-AE150))/2)*(A150-A149))/27>0,ROUNDDOWN(((((DataInput!Q149-AE149)+(DataInput!Q150-AE150))/2)*(A150-A149))/27,0),0),0) -> 8 | AG150: =DataInput!U150 -> 40.6 | AH150: =DataInput!S150 -> 29 | AI150: 29 | AJ150: 0
A151: =IF(DataInput!A151<>"",DataInput!A151,"") -> 200725 | B151: =SUM(DataInput!C151,DataInput!X151)+(DataInput!U151-DataInput!E151) -> 144.8 | C151: =SUM(DataInput!D151,DataInput!Y151) -> 134 | D151: =DataInput!U151 -> 37.8 | E151: =SUM(DataInput!F151,DataInput!AA151) -> 0 | F151: =SUM(DataInput!G151,DataInput!AB151) -> 0 | G151: =SUM(DataInput!H151,DataInput!AC151) -> 0 | H151: =DataInput!W151 -> 36 | I151: =SUM(DataInput!J151,DataInput!AD151) -> 0 | J151: =SUM(DataInput!K151,DataInput!AE151) -> 0 | K151: =SUM(DataInput!L151,DataInput!AF151) -> 0 | L151: =SUM(DataInput!M151,DataInput!AG151) -> 0 | M151: =SUM(DataInput!N151,DataInput!AH151) -> 0 | N151: =SUM(DataInput!O151,DataInput!AI151) -> 0 | O151: =DataInput!P151 -> 0 | R151: 134 | S151: 103 | T151: =DataInput!R151 -> 4 | U151: =DataInput!X151 -> 0 | V151: =IF(DataInput!U151-DataInput!E151>0,DataInput!U151-DataInput!E151,"") -> 10.8 | W151: =IF(DataInput!W151-DataInput!I151>0,DataInput!W151-DataInput!I151,"") -> 36 | Z151: 50.8 | AA151: 52.2 | AB151: 0 | AC151: 0 | AD151: =IF(AC151>0,IFERROR(IF(AVERAGE(DataInput!Q150:Q151)>AVERAGE(AC151,AC150),ROUNDDOWN(((((AC150-AB150)+(AC151-AB151))/2)*(A151-A150))/27,0),IF(((((DataInput!Q151-AB151)+(DataInput!Q150-AB150))/2)*(A151-A150))/27>0,ROUNDDOWN(((((DataInput!Q151-AB150)+(DataInput!Q150-AB150))/2)*(A151-A150))/27,0),0)),0),0) -> 0 | AE151: 0 | AF151: =IFERROR(IF(((((DataInput!Q150-AE150)+(DataInput!Q151-AE151))/2)*(A151-A150))/27>0,ROUNDDOWN(((((DataInput!Q150-AE150)+(DataInput!Q151-AE151))/2)*(A151-A150))/27,0),0),0) -> 3 | AG151: =DataInput!U151 -> 37.8 | AH151: =DataInput!S151 -> 27 | AI151: 27 | AJ151: 0
A152: =IF(DataInput!A152<>"",DataInput!A152,"") -> 200750 | B152: =SUM(DataInput!C152,DataInput!X152)+(DataInput!U152-DataInput!E152) -> 129.6 | C152: =SUM(DataInput!D152,DataInput!Y152) -> 120 | D152: =DataInput!U152 -> 33.6 | E152: =SUM(DataInput!F152,DataInput!AA152) -> 0 | F152: =SUM(DataInput!G152,DataInput!AB152) -> 0 | G152: =SUM(DataInput!H152,DataInput!AC152) -> 0 | H152: =DataInput!W152 -> 38 | I152: =SUM(DataInput!J152,DataInput!AD152) -> 0 | J152: =SUM(DataInput!K152,DataInput!AE152) -> 0 | K152: =SUM(DataInput!L152,DataInput!AF152) -> 0 | L152: =SUM(DataInput!M152,DataInput!AG152) -> 0 | M152: =SUM(DataInput!N152,DataInput!AH152) -> 0 | N152: =SUM(DataInput!O152,DataInput!AI152) -> 0 | O152: =DataInput!P152 -> 0 | R152: 120 | S152: 92 | T152: =DataInput!R152 -> 1 | U152: =DataInput!X152 -> 0 | V152: =IF(DataInput!U152-DataInput!E152>0,DataInput!U152-DataInput!E152,"") -> 9.6 | W152: =IF(DataInput!W152-DataInput!I152>0,DataInput!W152-DataInput!I152,"") -> 38 | Z152: 48.6 | AA152: 43.4 | AB152: 0 | AC152: 0 | AD152: =IF(AC152>0,IFERROR(IF(AVERAGE(DataInput!Q151:Q152)>AVERAGE(AC152,AC151),ROUNDDOWN(((((AC151-AB151)+(AC152-AB152))/2)*(A152-A151))/27,0),IF(((((DataInput!Q152-AB152)+(DataInput!Q151-AB151))/2)*(A152-A151))/27>0,ROUNDDOWN(((((DataInput!Q152-AB151)+(DataInput!Q151-AB151))/2)*(A152-A151))/27,0),0)),0),0) -> 0 | AE152: 0 | AF152: =IFERROR(IF(((((DataInput!Q151-AE151)+(DataInput!Q152-AE152))/2)*(A152-A151))/27>0,ROUNDDOWN(((((DataInput!Q151-AE151)+(DataInput!Q152-AE152))/2)*(A152-A151))/27,0),0),0) -> 0 | AG152: =DataInput!U152 -> 33.6 | AH152: =DataInput!S152 -> 24 | AI152: 24 | AJ152: 0
A153: =IF(DataInput!A153<>"",DataInput!A153,"") -> 200775 | B153: =SUM(DataInput!C153,DataInput!X153)+(DataInput!U153-DataInput!E153) -> 156 | C153: =SUM(DataInput!D153,DataInput!Y153) -> 144 | D153: =DataInput!U153 -> 42 | E153: =SUM(DataInput!F153,DataInput!AA153) -> 0 | F153: =SUM(DataInput!G153,DataInput!AB153) -> 0 | G153: =SUM(DataInput!H153,DataInput!AC153) -> 0 | H153: =DataInput!W153 -> 41 | I153: =SUM(DataInput!J153,DataInput!AD153) -> 0 | J153: =SUM(DataInput!K153,DataInput!AE153) -> 0 | K153: =SUM(DataInput!L153,DataInput!AF153) -> 0 | L153: =SUM(DataInput!M153,DataInput!AG153) -> 0 | M153: =SUM(DataInput!N153,DataInput!AH153) -> 0 | N153: =SUM(DataInput!O153,DataInput!AI153) -> 0 | O153: =DataInput!P153 -> 0 | R153: 144 | S153: 111 | T153: =DataInput!R153 -> 4 | U153: =DataInput!X153 -> 0 | V153: =IF(DataInput!U153-DataInput!E153>0,DataInput!U153-DataInput!E153,"") -> 12 | W153: =IF(DataInput!W153-DataInput!I153>0,DataInput!W153-DataInput!I153,"") -> 41 | Z153: 57 | AA153: 54 | AB153: 0 | AC153: 0 | AD153: =IF(AC153>0,IFERROR(IF(AVERAGE(DataInput!Q152:Q153)>AVERAGE(AC153,AC152),ROUNDDOWN(((((AC152-AB152)+(AC153-AB153))/2)*(A153-A152))/27,0),IF(((((DataInput!Q153-AB153)+(DataInput!Q152-AB152))/2)*(A153-A152))/27>0,ROUNDDOWN(((((DataInput!Q153-AB152)+(DataInput!Q152-AB152))/2)*(A153-A152))/27,0),0)),0),0) -> 0 | AE153: 0 | AF153: =IFERROR(IF(((((DataInput!Q152-AE152)+(DataInput!Q153-AE153))/2)*(A153-A152))/27>0,ROUNDDOWN(((((DataInput!Q152-AE152)+(DataInput!Q153-AE153))/2)*(A153-A152))/27,0),0),0) -> 3 | AG153: =DataInput!U153 -> 42 | AH153: =DataInput!S153 -> 30 | AI153: 30 | AJ153: 0
A154: =IF(DataInput!A154<>"",DataInput!A154,"") -> 200800 | B154: =SUM(DataInput!C154,DataInput!X154)+(DataInput!U154-DataInput!E154) -> 225.2 | C154: =SUM(DataInput!D154,DataInput!Y154) -> 210 | D154: =DataInput!U154 -> 53.2 | E154: =SUM(DataInput!F154,DataInput!AA154) -> 0 | F154: =SUM(DataInput!G154,DataInput!AB154) -> 0 | G154: =SUM(DataInput!H154,DataInput!AC154) -> 0 | H154: =DataInput!W154 -> 43 | I154: =SUM(DataInput!J154,DataInput!AD154) -> 0 | J154: =SUM(DataInput!K154,DataInput!AE154) -> 0 | K154: =SUM(DataInput!L154,DataInput!AF154) -> 0 | L154: =SUM(DataInput!M154,DataInput!AG154) -> 0 | M154: =SUM(DataInput!N154,DataInput!AH154) -> 0 | N154: =SUM(DataInput!O154,DataInput!AI154) -> 0 | O154: =DataInput!P154 -> 0 | R154: 210 | S154: 162 | T154: =DataInput!R154 -> 4 | U154: =DataInput!X154 -> 0 | V154: =IF(DataInput!U154-DataInput!E154>0,DataInput!U154-DataInput!E154,"") -> 15.2 | W154: =IF(DataInput!W154-DataInput!I154>0,DataInput!W154-DataInput!I154,"") -> 43 | Z154: 62.2 | AA154: 99.8 | AB154: 0 | AC154: 0 | AD154: =IF(AC154>0,IFERROR(IF(AVERAGE(DataInput!Q153:Q154)>AVERAGE(AC154,AC153),ROUNDDOWN(((((AC153-AB153)+(AC154-AB154))/2)*(A154-A153))/27,0),IF(((((DataInput!Q154-AB154)+(DataInput!Q153-AB153))/2)*(A154-A153))/27>0,ROUNDDOWN(((((DataInput!Q154-AB153)+(DataInput!Q153-AB153))/2)*(A154-A153))/27,0),0)),0),0) -> 0 | AE154: 0 | AF154: =IFERROR(IF(((((DataInput!Q153-AE153)+(DataInput!Q154-AE154))/2)*(A154-A153))/27>0,ROUNDDOWN(((((DataInput!Q153-AE153)+(DataInput!Q154-AE154))/2)*(A154-A153))/27,0),0),0) -> 4 | AG154: =DataInput!U154 -> 53.2 | AH154: =DataInput!S154 -> 38 | AI154: 38 | AJ154: 0
A155: =IF(DataInput!A155<>"",DataInput!A155,"") -> 200825 | B155: =SUM(DataInput!C155,DataInput!X155)+(DataInput!U155-DataInput!E155) -> 321.2 | C155: =SUM(DataInput!D155,DataInput!Y155) -> 304 | D155: =DataInput!U155 -> 60.2 | E155: =SUM(DataInput!F155,DataInput!AA155) -> 0 | F155: =SUM(DataInput!G155,DataInput!AB155) -> 0 | G155: =SUM(DataInput!H155,DataInput!AC155) -> 0 | H155: =DataInput!W155 -> 43 | I155: =SUM(DataInput!J155,DataInput!AD155) -> 0 | J155: =SUM(DataInput!K155,DataInput!AE155) -> 0 | K155: =SUM(DataInput!L155,DataInput!AF155) -> 0 | L155: =SUM(DataInput!M155,DataInput!AG155) -> 0 | M155: =SUM(DataInput!N155,DataInput!AH155) -> 0 | N155: =SUM(DataInput!O155,DataInput!AI155) -> 0 | O155: =DataInput!P155 -> 0 | R155: 304 | S155: 234 | T155: =DataInput!R155 -> 1 | U155: =DataInput!X155 -> 0 | V155: =IF(DataInput!U155-DataInput!E155>0,DataInput!U155-DataInput!E155,"") -> 17.2 | W155: =IF(DataInput!W155-DataInput!I155>0,DataInput!W155-DataInput!I155,"") -> 43 | Z155: 61.2 | AA155: 172.8 | AB155: 0 | AC155: 0 | AD155: =IF(AC155>0,IFERROR(IF(AVERAGE(DataInput!Q154:Q155)>AVERAGE(AC155,AC154),ROUNDDOWN(((((AC154-AB154)+(AC155-AB155))/2)*(A155-A154))/27,0),IF(((((DataInput!Q155-AB155)+(DataInput!Q154-AB154))/2)*(A155-A154))/27>0,ROUNDDOWN(((((DataInput!Q155-AB154)+(DataInput!Q154-AB154))/2)*(A155-A154))/27,0),0)),0),0) -> 0 | AE155: 0 | AF155: =IFERROR(IF(((((DataInput!Q154-AE154)+(DataInput!Q155-AE155))/2)*(A155-A154))/27>0,ROUNDDOWN(((((DataInput!Q154-AE154)+(DataInput!Q155-AE155))/2)*(A155-A154))/27,0),0),0) -> 0 | AG155: =DataInput!U155 -> 60.2 | AH155: =DataInput!S155 -> 43 | AI155: 43 | AJ155: 0
A156: =IF(DataInput!A156<>"",DataInput!A156,"") -> 200850 | B156: =SUM(DataInput!C156,DataInput!X156)+(DataInput!U156-DataInput!E156) -> 421 | C156: =SUM(DataInput!D156,DataInput!Y156) -> 401 | D156: =DataInput!U156 -> 70 | E156: =SUM(DataInput!F156,DataInput!AA156) -> 0 | F156: =SUM(DataInput!G156,DataInput!AB156) -> 0 | G156: =SUM(DataInput!H156,DataInput!AC156) -> 0 | H156: =DataInput!W156 -> 40 | I156: =SUM(DataInput!J156,DataInput!AD156) -> 0 | J156: =SUM(DataInput!K156,DataInput!AE156) -> 0 | K156: =SUM(DataInput!L156,DataInput!AF156) -> 0 | L156: =SUM(DataInput!M156,DataInput!AG156) -> 0 | M156: =SUM(DataInput!N156,DataInput!AH156) -> 0 | N156: =SUM(DataInput!O156,DataInput!AI156) -> 0 | O156: =DataInput!P156 -> 0 | R156: 401 | S156: 308 | T156: =DataInput!R156 -> 4 | U156: =DataInput!X156 -> 0 | V156: =IF(DataInput!U156-DataInput!E156>0,DataInput!U156-DataInput!E156,"") -> 20 | W156: =IF(DataInput!W156-DataInput!I156>0,DataInput!W156-DataInput!I156,"") -> 40 | Z156: 64 | AA156: 244 | AB156: 0 | AC156: 0 | AD156: =IF(AC156>0,IFERROR(IF(AVERAGE(DataInput!Q155:Q156)>AVERAGE(AC156,AC155),ROUNDDOWN(((((AC155-AB155)+(AC156-AB156))/2)*(A156-A155))/27,0),IF(((((DataInput!Q156-AB156)+(DataInput!Q155-AB155))/2)*(A156-A155))/27>0,ROUNDDOWN(((((DataInput!Q156-AB155)+(DataInput!Q155-AB155))/2)*(A156-A155))/27,0),0)),0),0) -> 0 | AE156: 0 | AF156: =IFERROR(IF(((((DataInput!Q155-AE155)+(DataInput!Q156-AE156))/2)*(A156-A155))/27>0,ROUNDDOWN(((((DataInput!Q155-AE155)+(DataInput!Q156-AE156))/2)*(A156-A155))/27,0),0),0) -> 4 | AG156: =DataInput!U156 -> 70 | AH156: =DataInput!S156 -> 50 | AI156: 50 | AJ156: 0
A157: =IF(DataInput!A157<>"",DataInput!A157,"") -> 200875 | B157: =SUM(DataInput!C157,DataInput!X157)+(DataInput!U157-DataInput!E157) -> 529.6 | C157: =SUM(DataInput!D157,DataInput!Y157) -> 504 | D157: =DataInput!U157 -> 89.6 | E157: =SUM(DataInput!F157,DataInput!AA157) -> 0 | F157: =SUM(DataInput!G157,DataInput!AB157) -> 0 | G157: =SUM(DataInput!H157,DataInput!AC157) -> 0 | H157: =DataInput!W157 -> 37 | I157: =SUM(DataInput!J157,DataInput!AD157) -> 0 | J157: =SUM(DataInput!K157,DataInput!AE157) -> 0 | K157: =SUM(DataInput!L157,DataInput!AF157) -> 0 | L157: =SUM(DataInput!M157,DataInput!AG157) -> 0 | M157: =SUM(DataInput!N157,DataInput!AH157) -> 0 | N157: =SUM(DataInput!O157,DataInput!AI157) -> 0 | O157: =DataInput!P157 -> 0 | R157: 504 | S157: 388 | T157: =DataInput!R157 -> 60 | U157: =DataInput!X157 -> 0 | V157: =IF(DataInput!U157-DataInput!E157>0,DataInput!U157-DataInput!E157,"") -> 25.6 | W157: =IF(DataInput!W157-DataInput!I157>0,DataInput!W157-DataInput!I157,"") -> 37 | Z157: 122.6 | AA157: 265.4 | AB157: 0 | AC157: 0 | AD157: =IF(AC157>0,IFERROR(IF(AVERAGE(DataInput!Q156:Q157)>AVERAGE(AC157,AC156),ROUNDDOWN(((((AC156-AB156)+(AC157-AB157))/2)*(A157-A156))/27,0),IF(((((DataInput!Q157-AB157)+(DataInput!Q156-AB156))/2)*(A157-A156))/27>0,ROUNDDOWN(((((DataInput!Q157-AB156)+(DataInput!Q156-AB156))/2)*(A157-A156))/27,0),0)),0),0) -> 0 | AE157: 0 | AF157: =IFERROR(IF(((((DataInput!Q156-AE156)+(DataInput!Q157-AE157))/2)*(A157-A156))/27>0,ROUNDDOWN(((((DataInput!Q156-AE156)+(DataInput!Q157-AE157))/2)*(A157-A156))/27,0),0),0) -> 60 | AG157: =DataInput!U157 -> 89.6 | AH157: =DataInput!S157 -> 64 | AI157: 64 | AJ157: 0
A158: =IF(DataInput!A158<>"",DataInput!A158,"") -> 200900 | B158: =SUM(DataInput!C158,DataInput!X158)+(DataInput!U158-DataInput!E158) -> 717.6 | C158: =SUM(DataInput!D158,DataInput!Y158) -> 684 | D158: =DataInput!U158 -> 117.6 | E158: =SUM(DataInput!F158,DataInput!AA158) -> 0 | F158: =SUM(DataInput!G158,DataInput!AB158) -> 0 | G158: =SUM(DataInput!H158,DataInput!AC158) -> 0 | H158: =DataInput!W158 -> 38 | I158: =SUM(DataInput!J158,DataInput!AD158) -> 0 | J158: =SUM(DataInput!K158,DataInput!AE158) -> 0 | K158: =SUM(DataInput!L158,DataInput!AF158) -> 0 | L158: =SUM(DataInput!M158,DataInput!AG158) -> 0 | M158: =SUM(DataInput!N158,DataInput!AH158) -> 0 | N158: =SUM(DataInput!O158,DataInput!AI158) -> 0 | O158: =DataInput!P158 -> 0 | R158: 684 | S158: 526 | T158: =DataInput!R158 -> 167 | U158: =DataInput!X158 -> 0 | V158: =IF(DataInput!U158-DataInput!E158>0,DataInput!U158-DataInput!E158,"") -> 33.6 | W158: =IF(DataInput!W158-DataInput!I158>0,DataInput!W158-DataInput!I158,"") -> 38 | Z158: 238.6 | AA158: 287.4 | AB158: 0 | AC158: 0 | AD158: =IF(AC158>0,IFERROR(IF(AVERAGE(DataInput!Q157:Q158)>AVERAGE(AC158,AC157),ROUNDDOWN(((((AC157-AB157)+(AC158-AB158))/2)*(A158-A157))/27,0),IF(((((DataInput!Q158-AB158)+(DataInput!Q157-AB157))/2)*(A158-A157))/27>0,ROUNDDOWN(((((DataInput!Q158-AB157)+(DataInput!Q157-AB157))/2)*(A158-A157))/27,0),0)),0),0) -> 0 | AE158: 0 | AF158: =IFERROR(IF(((((DataInput!Q157-AE157)+(DataInput!Q158-AE158))/2)*(A158-A157))/27>0,ROUNDDOWN(((((DataInput!Q157-AE157)+(DataInput!Q158-AE158))/2)*(A158-A157))/27,0),0),0) -> 167 | AG158: =DataInput!U158 -> 117.6 | AH158: =DataInput!S158 -> 84 | AI158: 84 | AJ158: 0
A159: =IF(DataInput!A159<>"",DataInput!A159,"") -> 200925 | B159: =SUM(DataInput!C159,DataInput!X159)+(DataInput!U159-DataInput!E159) -> 1018.4 | C159: =SUM(DataInput!D159,DataInput!Y159) -> 974 | D159: =DataInput!U159 -> 155.4 | E159: =SUM(DataInput!F159,DataInput!AA159) -> 0 | F159: =SUM(DataInput!G159,DataInput!AB159) -> 0 | G159: =SUM(DataInput!H159,DataInput!AC159) -> 0 | H159: =DataInput!W159 -> 41 | I159: =SUM(DataInput!J159,DataInput!AD159) -> 0 | J159: =SUM(DataInput!K159,DataInput!AE159) -> 0 | K159: =SUM(DataInput!L159,DataInput!AF159) -> 0 | L159: =SUM(DataInput!M159,DataInput!AG159) -> 0 | M159: =SUM(DataInput!N159,DataInput!AH159) -> 0 | N159: =SUM(DataInput!O159,DataInput!AI159) -> 0 | O159: =DataInput!P159 -> 0 | R159: 974 | S159: 749 | T159: =DataInput!R159 -> 295 | U159: =DataInput!X159 -> 0 | V159: =IF(DataInput!U159-DataInput!E159>0,DataInput!U159-DataInput!E159,"") -> 44.4 | W159: =IF(DataInput!W159-DataInput!I159>0,DataInput!W159-DataInput!I159,"") -> 41 | Z159: 380.4 | AA159: 368.6 | AB159: 0 | AC159: 0 | AD159: =IF(AC159>0,IFERROR(IF(AVERAGE(DataInput!Q158:Q159)>AVERAGE(AC159,AC158),ROUNDDOWN(((((AC158-AB158)+(AC159-AB159))/2)*(A159-A158))/27,0),IF(((((DataInput!Q159-AB159)+(DataInput!Q158-AB158))/2)*(A159-A158))/27>0,ROUNDDOWN(((((DataInput!Q159-AB158)+(DataInput!Q158-AB158))/2)*(A159-A158))/27,0),0)),0),0) -> 0 | AE159: 0 | AF159: =IFERROR(IF(((((DataInput!Q158-AE158)+(DataInput!Q159-AE159))/2)*(A159-A158))/27>0,ROUNDDOWN(((((DataInput!Q158-AE158)+(DataInput!Q159-AE159))/2)*(A159-A158))/27,0),0),0) -> 294 | AG159: =DataInput!U159 -> 155.4 | AH159: =DataInput!S159 -> 111 | AI159: 111 | AJ159: 0
A160: =IF(DataInput!A160<>"",DataInput!A160,"") -> 200950 | B160: =SUM(DataInput!C160,DataInput!X160)+(DataInput!U160-DataInput!E160) -> 1011.6 | C160: =SUM(DataInput!D160,DataInput!Y160) -> 966 | D160: =DataInput!U160 -> 159.6 | E160: =SUM(DataInput!F160,DataInput!AA160) -> 0 | F160: =SUM(DataInput!G160,DataInput!AB160) -> 0 | G160: =SUM(DataInput!H160,DataInput!AC160) -> 0 | H160: =DataInput!W160 -> 49 | I160: =SUM(DataInput!J160,DataInput!AD160) -> 0 | J160: =SUM(DataInput!K160,DataInput!AE160) -> 0 | K160: =SUM(DataInput!L160,DataInput!AF160) -> 0 | L160: =SUM(DataInput!M160,DataInput!AG160) -> 0 | M160: =SUM(DataInput!N160,DataInput!AH160) -> 0 | N160: =SUM(DataInput!O160,DataInput!AI160) -> 0 | O160: =DataInput!P160 -> 0 | R160: 966 | S160: 743 | T160: =DataInput!R160 -> 416 | U160: =DataInput!X160 -> 0 | V160: =IF(DataInput!U160-DataInput!E160>0,DataInput!U160-DataInput!E160,"") -> 45.6 | W160: =IF(DataInput!W160-DataInput!I160>0,DataInput!W160-DataInput!I160,"") -> 49 | Z160: 510.6 | AA160: 232.4 | AB160: 0 | AC160: 0 | AD160: =IF(AC160>0,IFERROR(IF(AVERAGE(DataInput!Q159:Q160)>AVERAGE(AC160,AC159),ROUNDDOWN(((((AC159-AB159)+(AC160-AB160))/2)*(A160-A159))/27,0),IF(((((DataInput!Q160-AB160)+(DataInput!Q159-AB159))/2)*(A160-A159))/27>0,ROUNDDOWN(((((DataInput!Q160-AB159)+(DataInput!Q159-AB159))/2)*(A160-A159))/27,0),0)),0),0) -> 0 | AE160: 0 | AF160: =IFERROR(IF(((((DataInput!Q159-AE159)+(DataInput!Q160-AE160))/2)*(A160-A159))/27>0,ROUNDDOWN(((((DataInput!Q159-AE159)+(DataInput!Q160-AE160))/2)*(A160-A159))/27,0),0),0) -> 416 | AG160: =DataInput!U160 -> 159.6 | AH160: =DataInput!S160 -> 114 | AI160: 114 | AJ160: 0
A161: =IF(DataInput!A161<>"",DataInput!A161,"") -> 200975 | B161: =SUM(DataInput!C161,DataInput!X161)+(DataInput!U161-DataInput!E161) -> 0 | C161: =SUM(DataInput!D161,DataInput!Y161) -> 0 | D161: =DataInput!U161 -> 0 | E161: =SUM(DataInput!F161,DataInput!AA161) -> 0 | F161: =SUM(DataInput!G161,DataInput!AB161) -> 0 | G161: =SUM(DataInput!H161,DataInput!AC161) -> 0 | H161: =DataInput!W161 -> 0 | I161: =SUM(DataInput!J161,DataInput!AD161) -> 0 | J161: =SUM(DataInput!K161,DataInput!AE161) -> 0 | K161: =SUM(DataInput!L161,DataInput!AF161) -> 0 | L161: =SUM(DataInput!M161,DataInput!AG161) -> 0 | M161: =SUM(DataInput!N161,DataInput!AH161) -> 0 | N161: =SUM(DataInput!O161,DataInput!AI161) -> 0 | O161: =DataInput!P161 -> 0 | R161: 0 | S161: 0 | T161: =DataInput!R161 -> 0 | U161: =DataInput!X161 -> 0 | V161: =IF(DataInput!U161-DataInput!E161>0,DataInput!U161-DataInput!E161,"") ->  | W161: =IF(DataInput!W161-DataInput!I161>0,DataInput!W161-DataInput!I161,"") ->  | Z161: 0 | AA161: 0 | AB161: 0 | AC161: 0 | AD161: =IF(AC161>0,IFERROR(IF(AVERAGE(DataInput!Q160:Q161)>AVERAGE(AC161,AC160),ROUNDDOWN(((((AC160-AB160)+(AC161-AB161))/2)*(A161-A160))/27,0),IF(((((DataInput!Q161-AB161)+(DataInput!Q160-AB160))/2)*(A161-A160))/27>0,ROUNDDOWN(((((DataInput!Q161-AB160)+(DataInput!Q160-AB160))/2)*(A161-A160))/27,0),0)),0),0) -> 0 | AE161: 0 | AF161: =IFERROR(IF(((((DataInput!Q160-AE160)+(DataInput!Q161-AE161))/2)*(A161-A160))/27>0,ROUNDDOWN(((((DataInput!Q160-AE160)+(DataInput!Q161-AE161))/2)*(A161-A160))/27,0),0),0) -> 233 | AG161: =DataInput!U161 -> 0 | AH161: =DataInput!S161 -> 0 | AI161: 0 | AJ161: 0

Sheet Tabfill
A1: =IF(DataInformation!$A$7<>"",DataInformation!$A$7,"") -> Station | B1: =IF(DataInformation!$B$7<>"",DataInformation!$B$7,"") -> Template Cut Volume | C1: =IF(DataInformation!$C$7<>"",DataInformation!$C$7,"") -> Template Class 10 Volume | D1: =IF(DataInformation!$D$7<>"",DataInformation!$D$7,"") -> Template Topsoil Cut Volume | E1: =IF(DataInformation!$H$7<>"",DataInformation!$H$7,"") -> Template Pavement Removal Volume | F1: =IF(DataInformation!$R$7<>"",DataInformation!$R$7,"") -> Total Cut Adjusted | G1: =IF(DataInformation!$S$7<>"",DataInformation!$S$7,"") -> Total Cut Adjusted w/ Weighted Average 1.3 Shrink Factor | I1: =IF(DataInformation!$T$7<>"",DataInformation!$T$7,"") -> Template Fill Volume | J1: =IF(DataInformation!$V$7<>"",DataInformation!$V$7,"") -> Topsoil Stripping + Fill | K1: =IF(DataInformation!$W$7<>"",DataInformation!$W$7,"") -> Non-Template Existing Pavement Removal +Fill | L1: =IF(DataInformation!$Z$7<>"",DataInformation!$Z$7,"") -> Total Fill Adjusted | M1: =IF(DataInformation!$AA$7<>"",DataInformation!$AA$7,"") -> Total Cut Adjusted w/ 1.3 Shrink Factor Minus Fill | O1: =IF(DataInformation!$AD$7<>"",DataInformation!$AD$7,"") -> Approx. Fill Volume Below 5' And Above 20' Cu. Yds. | P1: =IF(DataInformation!$AF$7<>"",DataInformation!$AF$7,"") -> Approx. Fill Volume Below 3' Cu. Yds. | R1: =IF(DataInformation!$AG$7<>"",DataInformation!$AG$7,"") -> Total Topsoil Cut Volume | S1: =IF(DataInformation!$AH$7<>"",DataInformation!$AH$7,"") -> Template Topsoil Replacement Volume | T1: =IF(DataInformation!$AI$7<>"",DataInformation!$AI$7,"") -> Topsoil Cut With 1.4 Shrink Factor | U1: =IF(DataInformation!$AJ$7<>"",DataInformation!$AJ$7,"") -> Topsoil Cut With Shrink Minus Topsoil Replacement
A2: =IF(DataInformation!A11<>"",DataInformation!A11,"") -> ML461 | B2: =IF(DataInformation!B11<>"",DataInformation!B11,"") ->  | C2: =IF(DataInformation!C11<>"",DataInformation!C11,"") ->  | D2: =IF(DataInformation!D11<>"",DataInformation!D11,"") ->  | E2: =IF(DataInformation!H11<>"",DataInformation!H11,"") ->  | F2: =IF(DataInformation!R11<>"",DataInformation!R11,"") ->  | G2: =IF(DataInformation!S11<>"",DataInformation!S11,"") ->  | I2: =IF(DataInformation!T11<>"",DataInformation!T11,"") ->  | J2: =IF(DataInformation!V11<>"",DataInformation!V11,"") ->  | K2: =IF(DataInformation!W11<>"",DataInformation!W11,"") ->  | L2: =IF(DataInformation!Z11<>"",DataInformation!Z11,"") ->  | M2: =IF(DataInformation!AA11<>"",DataInformation!AA11,"") ->  | O2: =IF(DataInformation!AD11<>"",DataInformation!AD11,"") ->  | P2: =IF(DataInformation!AF11<>"",DataInformation!AF11,"") ->  | R2: =IF(DataInformation!AG11<>"",DataInformation!AG11,"") ->  | S2: =IF(DataInformation!AH11<>"",DataInformation!AH11,"") ->  | T2: =IF(DataInformation!AI11<>"",DataInformation!AI11,"") ->  | U2: =IF(DataInformation!AJ11<>"",DataInformation!AJ11,"") -> 
A3: =IF(DataInformation!A12<>"",DataInformation!A12,"") -> 4320.39 | B3: =IF(DataInformation!B12<>"",DataInformation!B12,"") -> 205.4 | C3: =IF(DataInformation!C12<>"",DataInformation!C12,"") -> 199 | D3: =IF(DataInformation!D12<>"",DataInformation!D12,"") -> 22.4 | E3: =IF(DataInformation!H12<>"",DataInformation!H12,"") -> 10 | F3: =IF(DataInformation!R12<>"",DataInformation!R12,"") -> 199 | G3: =IF(DataInformation!S12<>"",DataInformation!S12,"") -> 153 | I3: =IF(DataInformation!T12<>"",DataInformation!T12,"") -> 37 | J3: =IF(DataInformation!V12<>"",DataInformation!V12,"") -> 6.4 | K3: =IF(DataInformation!W12<>"",DataInformation!W12,"") -> 10 | L3: =IF(DataInformation!Z12<>"",DataInformation!Z12,"") -> 53.4 | M3: =IF(DataInformation!AA12<>"",DataInformation!AA12,"") -> 99.6 | O3: =IF(DataInformation!AD12<>"",DataInformation!AD12,"") -> 0 | P3: =IF(DataInformation!AF12<>"",DataInformation!AF12,"") -> 0 | R3: =IF(DataInformation!AG12<>"",DataInformation!AG12,"") -> 22.4 | S3: =IF(DataInformation!AH12<>"",DataInformation!AH12,"") -> 16 | T3: =IF(DataInformation!AI12<>"",DataInformation!AI12,"") -> 16 | U3: =IF(DataInformation!AJ12<>"",DataInformation!AJ12,"") -> 0
A4: =IF(DataInformation!A13<>"",DataInformation!A13,"") -> 4325 | B4: =IF(DataInformation!B13<>"",DataInformation!B13,"") -> 1208.4 | C4: =IF(DataInformation!C13<>"",DataInformation!C13,"") -> 1168 | D4: =IF(DataInformation!D13<>"",DataInformation!D13,"") -> 141.4 | E4: =IF(DataInformation!H13<>"",DataInformation!H13,"") -> 54 | F4: =IF(DataInformation!R13<>"",DataInformation!R13,"") -> 1168 | G4: =IF(DataInformation!S13<>"",DataInformation!S13,"") -> 898 | I4: =IF(DataInformation!T13<>"",DataInformation!T13,"") -> 237 | J4: =IF(DataInformation!V13<>"",DataInformation!V13,"") -> 40.4 | K4: =IF(DataInformation!W13<>"",DataInformation!W13,"") -> 54 | L4: =IF(DataInformation!Z13<>"",DataInformation!Z13,"") -> 331.4 | M4: =IF(DataInformation!AA13<>"",DataInformation!AA13,"") -> 566.6 | O4: =IF(DataInformation!AD13<>"",DataInformation!AD13,"") -> 0 | P4: =IF(DataInformation!AF13<>"",DataInformation!AF13,"") -> 43 | R4: =IF(DataInformation!AG13<>"",DataInformation!AG13,"") -> 141.4 | S4: =IF(DataInformation!AH13<>"",DataInformation!AH13,"") -> 101 | T4: =IF(DataInformation!AI13<>"",DataInformation!AI13,"") -> 101 | U4: =IF(DataInformation!AJ13<>"",DataInformation!AJ13,"") -> 0
A5: =IF(DataInformation!A14<>"",DataInformation!A14,"") -> 4350 | B5: =IF(DataInformation!B14<>"",DataInformation!B14,"") -> 1234.2 | C5: =IF(DataInformation!C14<>"",DataInformation!C14,"") -> 1185 | D5: =IF(DataInformation!D14<>"",DataInformation!D14,"") -> 172.2 | E5: =IF(DataInformation!H14<>"",DataInformation!H14,"") -> 53 | F5: =IF(DataInformation!R14<>"",DataInformation!R14,"") -> 1185 | G5: =IF(DataInformation!S14<>"",DataInformation!S14,"") -> 912 | I5: =IF(DataInformation!T14<>"",DataInformation!T14,"") -> 263 | J5: =IF(DataInformation!V14<>"",DataInformation!V14,"") -> 49.2 | K5: =IF(DataInformation!W14<>"",DataInformation!W14,"") -> 53 | L5: =IF(DataInformation!Z14<>"",DataInformation!Z14,"") -> 365.2 | M5: =IF(DataInformation!AA14<>"",DataInformation!AA14,"") -> 546.8 | O5: =IF(DataInformation!AD14<>"",DataInformation!AD14,"") -> 0 | P5: =IF(DataInformation!AF14<>"",DataInformation!AF14,"") -> 262 | R5: =IF(DataInformation!AG14<>"",DataInformation!AG14,"") -> 172.2 | S5: =IF(DataInformation!AH14<>"",DataInformation!AH14,"") -> 123 | T5: =IF(DataInformation!AI14<>"",DataInformation!AI14,"") -> 123 | U5: =IF(DataInformation!AJ14<>"",DataInformation!AJ14,"") -> 0
A6: =IF(DataInformation!A15<>"",DataInformation!A15,"") -> 4375 | B6: =IF(DataInformation!B15<>"",DataInformation!B15,"") -> 1191.6 | C6: =IF(DataInformation!C15<>"",DataInformation!C15,"") -> 1138 | D6: =IF(DataInformation!D15<>"",DataInformation!D15,"") -> 187.6 | E6: =IF(DataInformation!H15<>"",DataInformation!H15,"") -> 53 | F6: =IF(DataInformation!R15<>"",DataInformation!R15,"") -> 1138 | G6: =IF(DataInformation!S15<>"",DataInformation!S15,"") -> 875 | I6: =IF(DataInformation!T15<>"",DataInformation!T15,"") -> 240 | J6: =IF(DataInformation!V15<>"",DataInformation!V15,"") -> 53.6 | K6: =IF(DataInformation!W15<>"",DataInformation!W15,"") -> 53 | L6: =IF(DataInformation!Z15<>"",DataInformation!Z15,"") -> 346.6 | M6: =IF(DataInformation!AA15<>"",DataInformation!AA15,"") -> 528.4 | O6: =IF(DataInformation!AD15<>"",DataInformation!AD15,"") -> 0 | P6: =IF(DataInformation!AF15<>"",DataInformation!AF15,"") -> 240 | R6: =IF(DataInformation!AG15<>"",DataInformation!AG15,"") -> 187.6 | S6: =IF(DataInformation!AH15<>"",DataInformation!AH15,"") -> 134 | T6: =IF(DataInformation!AI15<>"",DataInformation!AI15,"") -> 134 | U6: =IF(DataInformation!AJ15<>"",DataInformation!AJ15,"") -> 0
A7: =IF(DataInformation!A16<>"",DataInformation!A16,"") -> 4400 | B7: =IF(DataInformation!B16<>"",DataInformation!B16,"") -> 885.6 | C7: =IF(DataInformation!C16<>"",DataInformation!C16,"") -> 834 | D7: =IF(DataInformation!D16<>"",DataInformation!D16,"") -> 180.6 | E7: =IF(DataInformation!H16<>"",DataInformation!H16,"") -> 53 | F7: =IF(DataInformation!R16<>"",DataInformation!R16,"") -> 834 | G7: =IF(DataInformation!S16<>"",DataInformation!S16,"") -> 642 | I7: =IF(DataInformation!T16<>"",DataInformation!T16,"") -> 209 | J7: =IF(DataInformation!V16<>"",DataInformation!V16,"") -> 51.6 | K7: =IF(DataInformation!W16<>"",DataInformation!W16,"") -> 53 | L7: =IF(DataInformation!Z16<>"",DataInformation!Z16,"") -> 313.6 | M7: =IF(DataInformation!AA16<>"",DataInformation!AA16,"") -> 328.4 | O7: =IF(DataInformation!AD16<>"",DataInformation!AD16,"") -> 0 | P7: =IF(DataInformation!AF16<>"",DataInformation!AF16,"") -> 208 | R7: =IF(DataInformation!AG16<>"",DataInformation!AG16,"") -> 180.6 | S7: =IF(DataInformation!AH16<>"",DataInformation!AH16,"") -> 129 | T7: =IF(DataInformation!AI16<>"",DataInformation!AI16,"") -> 129 | U7: =IF(DataInformation!AJ16<>"",DataInformation!AJ16,"") -> 0
A8: =IF(DataInformation!A17<>"",DataInformation!A17,"") -> 4425 | B8: =IF(DataInformation!B17<>"",DataInformation!B17,"") -> 715.6 | C8: =IF(DataInformation!C17<>"",DataInformation!C17,"") -> 668 | D8: =IF(DataInformation!D17<>"",DataInformation!D17,"") -> 166.6 | E8: =IF(DataInformation!H17<>"",DataInformation!H17,"") -> 53 | F8: =IF(DataInformation!R17<>"",DataInformation!R17,"") -> 668 | G8: =IF(DataInformation!S17<>"",DataInformation!S17,"") -> 514 | I8: =IF(DataInformation!T17<>"",DataInformation!T17,"") -> 190 | J8: =IF(DataInformation!V17<>"",DataInformation!V17,"") -> 47.6 | K8: =IF(DataInformation!W17<>"",DataInformation!W17,"") -> 53 | L8: =IF(DataInformation!Z17<>"",DataInformation!Z17,"") -> 290.6 | M8: =IF(DataInformation!AA17<>"",DataInformation!AA17,"") -> 223.4 | O8: =IF(DataInformation!AD17<>"",DataInformation!AD17,"") -> 0 | P8: =IF(DataInformation!AF17<>"",DataInformation!AF17,"") -> 189 | R8: =IF(DataInformation!AG17<>"",DataInformation!AG17,"") -> 166.6 | S8: =IF(DataInformation!AH17<>"",DataInformation!AH17,"") -> 119 | T8: =IF(DataInformation!AI17<>"",DataInformation!AI17,"") -> 119 | U8: =IF(DataInformation!AJ17<>"",DataInformation!AJ17,"") -> 0
A9: =IF(DataInformation!A18<>"",DataInformation!A18,"") -> 4450 | B9: =IF(DataInformation!B18<>"",DataInformation!B18,"") -> 755.2 | C9: =IF(DataInformation!C18<>"",DataInformation!C18,"") -> 710 | D9: =IF(DataInformation!D18<>"",DataInformation!D18,"") -> 158.2 | E9: =IF(DataInformation!H18<>"",DataInformation!H18,"") -> 53 | F9: =IF(DataInformation!R18<>"",DataInformation!R18,"") -> 710 | G9: =IF(DataInformation!S18<>"",DataInformation!S18,"") -> 546 | I9: =IF(DataInformation!T18<>"",DataInformation!T18,"") -> 163 | J9: =IF(DataInformation!V18<>"",DataInformation!V18,"") -> 45.2 | K9: =IF(DataInformation!W18<>"",DataInformation!W18,"") -> 53 | L9: =IF(DataInformation!Z18<>"",DataInformation!Z18,"") -> 261.2 | M9: =IF(DataInformation!AA18<>"",DataInformation!AA18,"") -> 284.8 | O9: =IF(DataInformation!AD18<>"",DataInformation!AD18,"") -> 0 | P9: =IF(DataInformation!AF18<>"",DataInformation!AF18,"") -> 162 | R9: =IF(DataInformation!AG18<>"",DataInformation!AG18,"") -> 158.2 | S9: =IF(DataInformation!AH18<>"",DataInformation!AH18,"") -> 113 | T9: =IF(DataInformation!AI18<>"",DataInformation!AI18,"") -> 113 | U9: =IF(DataInformation!AJ18<>"",DataInformation!AJ18,"") -> 0
A10: =IF(DataInformation!A19<>"",DataInformation!A19,"") -> 4475 | B10: =IF(DataInformation!B19<>"",DataInformation!B19,"") -> 558.4 | C10: =IF(DataInformation!C19<>"",DataInformation!C19,"") -> 518 | D10: =IF(DataInformation!D19<>"",DataInformation!D19,"") -> 141.4 | E10: =IF(DataInformation!H19<>"",DataInformation!H19,"") -> 53 | F10: =IF(DataInformation!R19<>"",DataInformation!R19,"") -> 518 | G10: =IF(DataInformation!S19<>"",DataInformation!S19,"") -> 398 | I10: =IF(DataInformation!T19<>"",DataInformation!T19,"") -> 126 | J10: =IF(DataInformation!V19<>"",DataInformation!V19,"") -> 40.4 | K10: =IF(DataInformation!W19<>"",DataInformation!W19,"") -> 53 | L10: =IF(DataInformation!Z19<>"",DataInformation!Z19,"") -> 219.4 | M10: =IF(DataInformation!AA19<>"",DataInformation!AA19,"") -> 178.6 | O10: =IF(DataInformation!AD19<>"",DataInformation!AD19,"") -> 0 | P10: =IF(DataInformation!AF19<>"",DataInformation!AF19,"") -> 125 | R10: =IF(DataInformation!AG19<>"",DataInformation!AG19,"") -> 141.4 | S10: =IF(DataInformation!AH19<>"",DataInformation!AH19,"") -> 101 | T10: =IF(DataInformation!AI19<>"",DataInformation!AI19,"") -> 101 | U10: =IF(DataInformation!AJ19<>"",DataInformation!AJ19,"") -> 0
A11: =IF(DataInformation!A20<>"",DataInformation!A20,"") -> 4500 | B11: =IF(DataInformation!B20<>"",DataInformation!B20,"") -> 0 | C11: =IF(DataInformation!C20<>"",DataInformation!C20,"") -> 0 | D11: =IF(DataInformation!D20<>"",DataInformation!D20,"") -> 0 | E11: =IF(DataInformation!H20<>"",DataInformation!H20,"") -> 0 | F11: =IF(DataInformation!R20<>"",DataInformation!R20,"") -> 0 | G11: =IF(DataInformation!S20<>"",DataInformation!S20,"") -> 0 | I11: =IF(DataInformation!T20<>"",DataInformation!T20,"") -> 0 | J11: =IF(DataInformation!V20<>"",DataInformation!V20,"") ->  | K11: =IF(DataInformation!W20<>"",DataInformation!W20,"") ->  | L11: =IF(DataInformation!Z20<>"",DataInformation!Z20,"") -> 0 | M11: =IF(DataInformation!AA20<>"",DataInformation!AA20,"") -> 0 | O11: =IF(DataInformation!AD20<>"",DataInformation!AD20,"") -> 0 | P11: =IF(DataInformation!AF20<>"",DataInformation!AF20,"") -> 54 | R11: =IF(DataInformation!AG20<>"",DataInformation!AG20,"") -> 0 | S11: =IF(DataInformation!AH20<>"",DataInformation!AH20,"") -> 0 | T11: =IF(DataInformation!AI20<>"",DataInformation!AI20,"") -> 0 | U11: =IF(DataInformation!AJ20<>"",DataInformation!AJ20,"") -> 0
A12: =IF(DataInformation!A22<>"",DataInformation!A22,"") -> 4525 | B12: =IF(DataInformation!B22<>"",DataInformation!B22,"") -> 444.8 | C12: =IF(DataInformation!C22<>"",DataInformation!C22,"") -> 420 | D12: =IF(DataInformation!D22<>"",DataInformation!D22,"") -> 86.8 | E12: =IF(DataInformation!H22<>"",DataInformation!H22,"") -> 53 | F12: =IF(DataInformation!R22<>"",DataInformation!R22,"") -> 420 | G12: =IF(DataInformation!S22<>"",DataInformation!S22,"") -> 323 | I12: =IF(DataInformation!T22<>"",DataInformation!T22,"") -> 51 | J12: =IF(DataInformation!V22<>"",DataInformation!V22,"") -> 24.8 | K12: =IF(DataInformation!W22<>"",DataInformation!W22,"") -> 53 | L12: =IF(DataInformation!Z22<>"",DataInformation!Z22,"") -> 128.8 | M12: =IF(DataInformation!AA22<>"",DataInformation!AA22,"") -> 194.2 | O12: =IF(DataInformation!AD22<>"",DataInformation!AD22,"") -> 0 | P12: =IF(DataInformation!AF22<>"",DataInformation!AF22,"") -> 0 | R12: =IF(DataInformation!AG22<>"",DataInformation!AG22,"") -> 86.8 | S12: =IF(DataInformation!AH22<>"",DataInformation!AH22,"") -> 62 | T12: =IF(DataInformation!AI22<>"",DataInformation!AI22,"") -> 62 | U12: =IF(DataInformation!AJ22<>"",DataInformation!AJ22,"") -> 0
A13: =IF(DataInformation!A23<>"",DataInformation!A23,"") -> 4550 | B13: =IF(DataInformation!B23<>"",DataInformation!B23,"") -> 375.2 | C13: =IF(DataInformation!C23<>"",DataInformation!C23,"") -> 358 | D13: =IF(DataInformation!D23<>"",DataInformation!D23,"") -> 60.2 | E13: =IF(DataInformation!H23<>"",DataInformation!H23,"") -> 53 | F13: =IF(DataInformation!R23<>"",DataInformation!R23,"") -> 358 | G13: =IF(DataInformation!S23<>"",DataInformation!S23,"") -> 275 | I13: =IF(DataInformation!T23<>"",DataInformation!T23,"") -> 33 | J13: =IF(DataInformation!V23<>"",DataInformation!V23,"") -> 17.2 | K13: =IF(DataInformation!W23<>"",DataInformation!W23,"") -> 53 | L13: =IF(DataInformation!Z23<>"",DataInformation!Z23,"") -> 103.2 | M13: =IF(DataInformation!AA23<>"",DataInformation!AA23,"") -> 171.8 | O13: =IF(DataInformation!AD23<>"",DataInformation!AD23,"") -> 0 | P13: =IF(DataInformation!AF23<>"",DataInformation!AF23,"") -> 33 | R13: =IF(DataInformation!AG23<>"",DataInformation!AG23,"") -> 60.2 | S13: =IF(DataInformation!AH23<>"",DataInformation!AH23,"") -> 43 | T13: =IF(DataInformation!AI23<>"",DataInformation!AI23,"") -> 43 | U13: =IF(DataInformation!AJ23<>"",DataInformation!AJ23,"") -> 0
A14: =IF(DataInformation!A24<>"",DataInformation!A24,"") -> 4575 | B14: =IF(DataInformation!B24<>"",DataInformation!B24,"") -> 375 | C14: =IF(DataInformation!C24<>"",DataInformation!C24,"") -> 357 | D14: =IF(DataInformation!D24<>"",DataInformation!D24,"") -> 63 | E14: =IF(DataInformation!H24<>"",DataInformation!H24,"") -> 53 | F14: =IF(DataInformation!R24<>"",DataInformation!R24,"") -> 357 | G14: =IF(DataInformation!S24<>"",DataInformation!S24,"") -> 275 | I14: =IF(DataInformation!T24<>"",DataInformation!T24,"") -> 32 | J14: =IF(DataInformation!V24<>"",DataInformation!V24,"") -> 18 | K14: =IF(DataInformation!W24<>"",DataInformation!W24,"") -> 53 | L14: =IF(DataInformation!Z24<>"",DataInformation!Z24,"") -> 103 | M14: =IF(DataInformation!AA24<>"",DataInformation!AA24,"") -> 172 | O14: =IF(DataInformation!AD24<>"",DataInformation!AD24,"") -> 0 | P14: =IF(DataInformation!AF24<>"",DataInformation!AF24,"") -> 31 | R14: =IF(DataInformation!AG24<>"",DataInformation!AG24,"") -> 63 | S14: =IF(DataInformation!AH24<>"",DataInformation!AH24,"") -> 45 | T14: =IF(DataInformation!AI24<>"",DataInformation!AI24,"") -> 45 | U14: =IF(DataInformation!AJ24<>"",DataInformation!AJ24,"") -> 0
A15: =IF(DataInformation!A25<>"",DataInformation!A25,"") -> 4600 | B15: =IF(DataInformation!B25<>"",DataInformation!B25,"") -> 460.2 | C15: =IF(DataInformation!C25<>"",DataInformation!C25,"") -> 437 | D15: =IF(DataInformation!D25<>"",DataInformation!D25,"") -> 81.2 | E15: =IF(DataInformation!H25<>"",DataInformation!H25,"") -> 53 | F15: =IF(DataInformation!R25<>"",DataInformation!R25,"") -> 437 | G15: =IF(DataInformation!S25<>"",DataInformation!S25,"") -> 336 | I15: =IF(DataInformation!T25<>"",DataInformation!T25,"") -> 31 | J15: =IF(DataInformation!V25<>"",DataInformation!V25,"") -> 23.2 | K15: =IF(DataInformation!W25<>"",DataInformation!W25,"") -> 53 | L15: =IF(DataInformation!Z25<>"",DataInformation!Z25,"") -> 107.2 | M15: =IF(DataInformation!AA25<>"",DataInformation!AA25,"") -> 228.8 | O15: =IF(DataInformation!AD25<>"",DataInformation!AD25,"") -> 0 | P15: =IF(DataInformation!AF25<>"",DataInformation!AF25,"") -> 31 | R15: =IF(DataInformation!AG25<>"",DataInformation!AG25,"") -> 81.2 | S15: =IF(DataInformation!AH25<>"",DataInformation!AH25,"") -> 58 | T15: =IF(DataInformation!AI25<>"",DataInformation!AI25,"") -> 58 | U15: =IF(DataInformation!AJ25<>"",DataInformation!AJ25,"") -> 0
A16: =IF(DataInformation!A26<>"",DataInformation!A26,"") -> 4625 | B16: =IF(DataInformation!B26<>"",DataInformation!B26,"") -> 529.8 | C16: =IF(DataInformation!C26<>"",DataInformation!C26,"") -> 503 | D16: =IF(DataInformation!D26<>"",DataInformation!D26,"") -> 93.8 | E16: =IF(DataInformation!H26<>"",DataInformation!H26,"") -> 53 | F16: =IF(DataInformation!R26<>"",DataInformation!R26,"") -> 503 | G16: =IF(DataInformation!S26<>"",DataInformation!S26,"") -> 387 | I16: =IF(DataInformation!T26<>"",DataInformation!T26,"") -> 32 | J16: =IF(DataInformation!V26<>"",DataInformation!V26,"") -> 26.8 | K16: =IF(DataInformation!W26<>"",DataInformation!W26,"") -> 53 | L16: =IF(DataInformation!Z26<>"",DataInformation!Z26,"") -> 111.8 | M16: =IF(DataInformation!AA26<>"",DataInformation!AA26,"") -> 275.2 | O16: =IF(DataInformation!AD26<>"",DataInformation!AD26,"") -> 0 | P16: =IF(DataInformation!AF26<>"",DataInformation!AF26,"") -> 31 | R16: =IF(DataInformation!AG26<>"",DataInformation!AG26,"") -> 93.8 | S16: =IF(DataInformation!AH26<>"",DataInformation!AH26,"") -> 67 | T16: =IF(DataInformation!AI26<>"",DataInformation!AI26,"") -> 67 | U16: =IF(DataInformation!AJ26<>"",DataInformation!AJ26,"") -> 0
A17: =IF(DataInformation!A27<>"",DataInformation!A27,"") -> 4650 | B17: =IF(DataInformation!B27<>"",DataInformation!B27,"") -> 531.6 | C17: =IF(DataInformation!C27<>"",DataInformation!C27,"") -> 506 | D17: =IF(DataInformation!D27<>"",DataInformation!D27,"") -> 89.6 | E17: =IF(DataInformation!H27<>"",DataInformation!H27,"") -> 53 | F17: =IF(DataInformation!R27<>"",DataInformation!R27,"") -> 506 | G17: =IF(DataInformation!S27<>"",DataInformation!S27,"") -> 389 | I17: =IF(DataInformation!T27<>"",DataInformation!T27,"") -> 34 | J17: =IF(DataInformation!V27<>"",DataInformation!V27,"") -> 25.6 | K17: =IF(DataInformation!W27<>"",DataInformation!W27,"") -> 53 | L17: =IF(DataInformation!Z27<>"",DataInformation!Z27,"") -> 112.6 | M17: =IF(DataInformation!AA27<>"",DataInformation!AA27,"") -> 276.4 | O17: =IF(DataInformation!AD27<>"",DataInformation!AD27,"") -> 0 | P17: =IF(DataInformation!AF27<>"",DataInformation!AF27,"") -> 34 | R17: =IF(DataInformation!AG27<>"",DataInformation!AG27,"") -> 89.6 | S17: =IF(DataInformation!AH27<>"",DataInformation!AH27,"") -> 64 | T17: =IF(DataInformation!AI27<>"",DataInformation!AI27,"") -> 64 | U17: =IF(DataInformation!AJ27<>"",DataInformation!AJ27,"") -> 0
A18: =IF(DataInformation!A28<>"",DataInformation!A28,"") -> 4675 | B18: =IF(DataInformation!B28<>"",DataInformation!B28,"") -> 497.8 | C18: =IF(DataInformation!C28<>"",DataInformation!C28,"") -> 473 | D18: =IF(DataInformation!D28<>"",DataInformation!D28,"") -> 86.8 | E18: =IF(DataInformation!H28<>"",DataInformation!H28,"") -> 53 | F18: =IF(DataInformation!R28<>"",DataInformation!R28,"") -> 473 | G18: =IF(DataInformation!S28<>"",DataInformation!S28,"") -> 364 | I18: =IF(DataInformation!T28<>"",DataInformation!T28,"") -> 44 | J18: =IF(DataInformation!V28<>"",DataInformation!V28,"") -> 24.8 | K18: =IF(DataInformation!W28<>"",DataInformation!W28,"") -> 53 | L18: =IF(DataInformation!Z28<>"",DataInformation!Z28,"") -> 121.8 | M18: =IF(DataInformation!AA28<>"",DataInformation!AA28,"") -> 242.2 | O18: =IF(DataInformation!AD28<>"",DataInformation!AD28,"") -> 0 | P18: =IF(DataInformation!AF28<>"",DataInformation!AF28,"") -> 43 | R18: =IF(DataInformation!AG28<>"",DataInformation!AG28,"") -> 86.8 | S18: =IF(DataInformation!AH28<>"",DataInformation!AH28,"") -> 62 | T18: =IF(DataInformation!AI28<>"",DataInformation!AI28,"") -> 62 | U18: =IF(DataInformation!AJ28<>"",DataInformation!AJ28,"") -> 0
A19: =IF(DataInformation!A29<>"",DataInformation!A29,"") -> 4700 | B19: =IF(DataInformation!B29<>"",DataInformation!B29,"") -> 345.8 | C19: =IF(DataInformation!C29<>"",DataInformation!C29,"") -> 319 | D19: =IF(DataInformation!D29<>"",DataInformation!D29,"") -> 93.8 | E19: =IF(DataInformation!H29<>"",DataInformation!H29,"") -> 53 | F19: =IF(DataInformation!R29<>"",DataInformation!R29,"") -> 319 | G19: =IF(DataInformation!S29<>"",DataInformation!S29,"") -> 245 | I19: =IF(DataInformation!T29<>"",DataInformation!T29,"") -> 55 | J19: =IF(DataInformation!V29<>"",DataInformation!V29,"") -> 26.8 | K19: =IF(DataInformation!W29<>"",DataInformation!W29,"") -> 53 | L19: =IF(DataInformation!Z29<>"",DataInformation!Z29,"") -> 134.8 | M19: =IF(DataInformation!AA29<>"",DataInformation!AA29,"") -> 110.2 | O19: =IF(DataInformation!AD29<>"",DataInformation!AD29,"") -> 0 | P19: =IF(DataInformation!AF29<>"",DataInformation!AF29,"") -> 54 | R19: =IF(DataInformation!AG29<>"",DataInformation!AG29,"") -> 93.8 | S19: =IF(DataInformation!AH29<>"",DataInformation!AH29,"") -> 67 | T19: =IF(DataInformation!AI29<>"",DataInformation!AI29,"") -> 67 | U19: =IF(DataInformation!AJ29<>"",DataInformation!AJ29,"") -> 0
A20: =IF(DataInformation!A30<>"",DataInformation!A30,"") -> 4725 | B20: =IF(DataInformation!B30<>"",DataInformation!B30,"") -> 287 | C20: =IF(DataInformation!C30<>"",DataInformation!C30,"") -> 261 | D20: =IF(DataInformation!D30<>"",DataInformation!D30,"") -> 91 | E20: =IF(DataInformation!H30<>"",DataInformation!H30,"") -> 53 | F20: =IF(DataInformation!R30<>"",DataInformation!R30,"") -> 261 | G20: =IF(DataInformation!S30<>"",DataInformation!S30,"") -> 201 | I20: =IF(DataInformation!T30<>"",DataInformation!T30,"") -> 66 | J20: =IF(DataInformation!V30<>"",DataInformation!V30,"") -> 26 | K20: =IF(DataInformation!W30<>"",DataInformation!W30,"") -> 53 | L20: =IF(DataInformation!Z30<>"",DataInformation!Z30,"") -> 145 | M20: =IF(DataInformation!AA30<>"",DataInformation!AA30,"") -> 56 | O20: =IF(DataInformation!AD30<>"",DataInformation!AD30,"") -> 0 | P20: =IF(DataInformation!AF30<>"",DataInformation!AF30,"") -> 66 | R20: =IF(DataInformation!AG30<>"",DataInformation!AG30,"") -> 91 | S20: =IF(DataInformation!AH30<>"",DataInformation!AH30,"") -> 65 | T20: =IF(DataInformation!AI30<>"",DataInformation!AI30,"") -> 65 | U20: =IF(DataInformation!AJ30<>"",DataInformation!AJ30,"") -> 0
A21: =IF(DataInformation!A31<>"",DataInformation!A31,"") -> 4750 | B21: =IF(DataInformation!B31<>"",DataInformation!B31,"") -> 359.6 | C21: =IF(DataInformation!C31<>"",DataInformation!C31,"") -> 334 | D21: =IF(DataInformation!D31<>"",DataInformation!D31,"") -> 89.6 | E21: =IF(DataInformation!H31<>"",DataInformation!H31,"") -> 53 | F21: =IF(DataInformation!R31<>"",DataInformation!R31,"") -> 334 | G21: =IF(DataInformation!S31<>"",DataInformation!S31,"") -> 257 | I21: =IF(DataInformation!T31<>"",DataInformation!T31,"") -> 84 | J21: =IF(DataInformation!V31<>"",DataInformation!V31,"") -> 25.6 | K21: =IF(DataInformation!W31<>"",DataInformation!W31,"") -> 53 | L21: =IF(DataInformation!Z31<>"",DataInformation!Z31,"") -> 162.6 | M21: =IF(DataInformation!AA31<>"",DataInformation!AA31,"") -> 94.4 | O21: =IF(DataInformation!AD31<>"",DataInformation!AD31,"") -> 0 | P21: =IF(DataInformation!AF31<>"",DataInformation!AF31,"") -> 84 | R21: =IF(DataInformation!AG31<>"",DataInformation!AG31,"") -> 89.6 | S21: =IF(DataInformation!AH31<>"",DataInformation!AH31,"") -> 64 | T21: =IF(DataInformation!AI31<>"",DataInformation!AI31,"") -> 64 | U21: =IF(DataInformation!AJ31<>"",DataInformation!AJ31,"") -> 0
A22: =IF(DataInformation!A32<>"",DataInformation!A32,"") -> 4775 | B22: =IF(DataInformation!B32<>"",DataInformation!B32,"") -> 340.2 | C22: =IF(DataInformation!C32<>"",DataInformation!C32,"") -> 313 | D22: =IF(DataInformation!D32<>"",DataInformation!D32,"") -> 95.2 | E22: =IF(DataInformation!H32<>"",DataInformation!H32,"") -> 53 | F22: =IF(DataInformation!R32<>"",DataInformation!R32,"") -> 313 | G22: =IF(DataInformation!S32<>"",DataInformation!S32,"") -> 241 | I22: =IF(DataInformation!T32<>"",DataInformation!T32,"") -> 100 | J22: =IF(DataInformation!V32<>"",DataInformation!V32,"") -> 27.2 | K22: =IF(DataInformation!W32<>"",DataInformation!W32,"") -> 53 | L22: =IF(DataInformation!Z32<>"",DataInformation!Z32,"") -> 180.2 | M22: =IF(DataInformation!AA32<>"",DataInformation!AA32,"") -> 60.8 | O22: =IF(DataInformation!AD32<>"",DataInformation!AD32,"") -> 0 | P22: =IF(DataInformation!AF32<>"",DataInformation!AF32,"") -> 100 | R22: =IF(DataInformation!AG32<>"",DataInformation!AG32,"") -> 95.2 | S22: =IF(DataInformation!AH32<>"",DataInformation!AH32,"") -> 68 | T22: =IF(DataInformation!AI32<>"",DataInformation!AI32,"") -> 68 | U22: =IF(DataInformation!AJ32<>"",DataInformation!AJ32,"") -> 0
A23: =IF(DataInformation!A33<>"",DataInformation!A33,"") -> 4800 | B23: =IF(DataInformation!B33<>"",DataInformation!B33,"") -> 305.8 | C23: =IF(DataInformation!C33<>"",DataInformation!C33,"") -> 281 | D23: =IF(DataInformation!D33<>"",DataInformation!D33,"") -> 86.8 | E23: =IF(DataInformation!H33<>"",DataInformation!H33,"") -> 53 | F23: =IF(DataInformation!R33<>"",DataInformation!R33,"") -> 281 | G23: =IF(DataInformation!S33<>"",DataInformation!S33,"") -> 216 | I23: =IF(DataInformation!T33<>"",DataInformation!T33,"") -> 113 | J23: =IF(DataInformation!V33<>"",DataInformation!V33,"") -> 24.8 | K23: =IF(DataInformation!W33<>"",DataInformation!W33,"") -> 53 | L23: =IF(DataInformation!Z33<>"",DataInformation!Z33,"") -> 190.8 | M23: =IF(DataInformation!AA33<>"",DataInformation!AA33,"") -> 25.2 | O23: =IF(DataInformation!AD33<>"",DataInformation!AD33,"") -> 0 | P23: =IF(DataInformation!AF33<>"",DataInformation!AF33,"") -> 112 | R23: =IF(DataInformation!AG33<>"",DataInformation!AG33,"") -> 86.8 | S23: =IF(DataInformation!AH33<>"",DataInformation!AH33,"") -> 62 | T23: =IF(DataInformation!AI33<>"",DataInformation!AI33,"") -> 62 | U23: =IF(DataInformation!AJ33<>"",DataInformation!AJ33,"") -> 0
A24: =IF(DataInformation!A34<>"",DataInformation!A34,"") -> 4825 | B24: =IF(DataInformation!B34<>"",DataInformation!B34,"") -> 282 | C24: =IF(DataInformation!C34<>"",DataInformation!C34,"") -> 260 | D24: =IF(DataInformation!D34<>"",DataInformation!D34,"") -> 77 | E24: =IF(DataInformation!H34<>"",DataInformation!H34,"") -> 53 | F24: =IF(DataInformation!R34<>"",DataInformation!R34,"") -> 260 | G24: =IF(DataInformation!S34<>"",DataInformation!S34,"") -> 200 | I24: =IF(DataInformation!T34<>"",DataInformation!T34,"") -> 134 | J24: =IF(DataInformation!V34<>"",DataInformation!V34,"") -> 22 | K24: =IF(DataInformation!W34<>"",DataInformation!W34,"") -> 53 | L24: =IF(DataInformation!Z34<>"",DataInformation!Z34,"") -> 209 | M24: =IF(DataInformation!AA34<>"",DataInformation!AA34,"") -> -9 | O24: =IF(DataInformation!AD34<>"",DataInformation!AD34,"") -> 0 | P24: =IF(DataInformation!AF34<>"",DataInformation!AF34,"") -> 134 | R24: =IF(DataInformation!AG34<>"",DataInformation!AG34,"") -> 77 | S24: =IF(DataInformation!AH34<>"",DataInformation!AH34,"") -> 55 | T24: =IF(DataInformation!AI34<>"",DataInformation!AI34,"") -> 55 | U24: =IF(DataInformation!AJ34<>"",DataInformation!AJ34,"") -> 0
A25: =IF(DataInformation!A35<>"",DataInformation!A35,"") -> 4850 | B25: =IF(DataInformation!B35<>"",DataInformation!B35,"") -> 282.2 | C25: =IF(DataInformation!C35<>"",DataInformation!C35,"") -> 263 | D25: =IF(DataInformation!D35<>"",DataInformation!D35,"") -> 67.2 | E25: =IF(DataInformation!H35<>"",DataInformation!H35,"") -> 53 | F25: =IF(DataInformation!R35<>"",DataInformation!R35,"") -> 263 | G25: =IF(DataInformation!S35<>"",DataInformation!S35,"") -> 202 | I25: =IF(DataInformation!T35<>"",DataInformation!T35,"") -> 175 | J25: =IF(DataInformation!V35<>"",DataInformation!V35,"") -> 19.2 | K25: =IF(DataInformation!W35<>"",DataInformation!W35,"") -> 53 | L25: =IF(DataInformation!Z35<>"",DataInformation!Z35,"") -> 247.2 | M25: =IF(DataInformation!AA35<>"",DataInformation!AA35,"") -> -45.2 | O25: =IF(DataInformation!AD35<>"",DataInformation!AD35,"") -> 0 | P25: =IF(DataInformation!AF35<>"",DataInformation!AF35,"") -> 175 | R25: =IF(DataInformation!AG35<>"",DataInformation!AG35,"") -> 67.2 | S25: =IF(DataInformation!AH35<>"",DataInformation!AH35,"") -> 48 | T25: =IF(DataInformation!AI35<>"",DataInformation!AI35,"") -> 48 | U25: =IF(DataInformation!AJ35<>"",DataInformation!AJ35,"") -> 0
A26: =IF(DataInformation!A36<>"",DataInformation!A36,"") -> 4875 | B26: =IF(DataInformation!B36<>"",DataInformation!B36,"") -> 322.6 | C26: =IF(DataInformation!C36<>"",DataInformation!C36,"") -> 301 | D26: =IF(DataInformation!D36<>"",DataInformation!D36,"") -> 75.6 | E26: =IF(DataInformation!H36<>"",DataInformation!H36,"") -> 53 | F26: =IF(DataInformation!R36<>"",DataInformation!R36,"") -> 301 | G26: =IF(DataInformation!S36<>"",DataInformation!S36,"") -> 232 | I26: =IF(DataInformation!T36<>"",DataInformation!T36,"") -> 218 | J26: =IF(DataInformation!V36<>"",DataInformation!V36,"") -> 21.6 | K26: =IF(DataInformation!W36<>"",DataInformation!W36,"") -> 53 | L26: =IF(DataInformation!Z36<>"",DataInformation!Z36,"") -> 292.6 | M26: =IF(DataInformation!AA36<>"",DataInformation!AA36,"") -> -60.6 | O26: =IF(DataInformation!AD36<>"",DataInformation!AD36,"") -> 0 | P26: =IF(DataInformation!AF36<>"",DataInformation!AF36,"") -> 218 | R26: =IF(DataInformation!AG36<>"",DataInformation!AG36,"") -> 75.6 | S26: =IF(DataInformation!AH36<>"",DataInformation!AH36,"") -> 54 | T26: =IF(DataInformation!AI36<>"",DataInformation!AI36,"") -> 54 | U26: =IF(DataInformation!AJ36<>"",DataInformation!AJ36,"") -> 0
A27: =IF(DataInformation!A37<>"",DataInformation!A37,"") -> 4900 | B27: =IF(DataInformation!B37<>"",DataInformation!B37,"") -> 361.6 | C27: =IF(DataInformation!C37<>"",DataInformation!C37,"") -> 336 | D27: =IF(DataInformation!D37<>"",DataInformation!D37,"") -> 89.6 | E27: =IF(DataInformation!H37<>"",DataInformation!H37,"") -> 53 | F27: =IF(DataInformation!R37<>"",DataInformation!R37,"") -> 336 | G27: =IF(DataInformation!S37<>"",DataInformation!S37,"") -> 258 | I27: =IF(DataInformation!T37<>"",DataInformation!T37,"") -> 252 | J27: =IF(DataInformation!V37<>"",DataInformation!V37,"") -> 25.6 | K27: =IF(DataInformation!W37<>"",DataInformation!W37,"") -> 53 | L27: =IF(DataInformation!Z37<>"",DataInformation!Z37,"") -> 330.6 | M27: =IF(DataInformation!AA37<>"",DataInformation!AA37,"") -> -72.6 | O27: =IF(DataInformation!AD37<>"",DataInformation!AD37,"") -> 0 | P27: =IF(DataInformation!AF37<>"",DataInformation!AF37,"") -> 252 | R27: =IF(DataInformation!AG37<>"",DataInformation!AG37,"") -> 89.6 | S27: =IF(DataInformation!AH37<>"",DataInformation!AH37,"") -> 64 | T27: =IF(DataInformation!AI37<>"",DataInformation!AI37,"") -> 64 | U27: =IF(DataInformation!AJ37<>"",DataInformation!AJ37,"") -> 0
A28: =IF(DataInformation!A38<>"",DataInformation!A38,"") -> 4925 | B28: =IF(DataInformation!B38<>"",DataInformation!B38,"") -> 392.4 | C28: =IF(DataInformation!C38<>"",DataInformation!C38,"") -> 366 | D28: =IF(DataInformation!D38<>"",DataInformation!D38,"") -> 92.4 | E28: =IF(DataInformation!H38<>"",DataInformation!H38,"") -> 53 | F28: =IF(DataInformation!R38<>"",DataInformation!R38,"") -> 366 | G28: =IF(DataInformation!S38<>"",DataInformation!S38,"") -> 282 | I28: =IF(DataInformation!T38<>"",DataInformation!T38,"") -> 282 | J28: =IF(DataInformation!V38<>"",DataInformation!V38,"") -> 26.4 | K28: =IF(DataInformation!W38<>"",DataInformation!W38,"") -> 53 | L28: =IF(DataInformation!Z38<>"",DataInformation!Z38,"") -> 361.4 | M28: =IF(DataInformation!AA38<>"",DataInformation!AA38,"") -> -79.4 | O28: =IF(DataInformation!AD38<>"",DataInformation!AD38,"") -> 0 | P28: =IF(DataInformation!AF38<>"",DataInformation!AF38,"") -> 282 | R28: =IF(DataInformation!AG38<>"",DataInformation!AG38,"") -> 92.4 | S28: =IF(DataInformation!AH38<>"",DataInformation!AH38,"") -> 66 | T28: =IF(DataInformation!AI38<>"",DataInformation!AI38,"") -> 66 | U28: =IF(DataInformation!AJ38<>"",DataInformation!AJ38,"") -> 0
A29: =IF(DataInformation!A39<>"",DataInformation!A39,"") -> 4950 | B29: =IF(DataInformation!B39<>"",DataInformation!B39,"") -> 414.8 | C29: =IF(DataInformation!C39<>"",DataInformation!C39,"") -> 388 | D29: =IF(DataInformation!D39<>"",DataInformation!D39,"") -> 93.8 | E29: =IF(DataInformation!H39<>"",DataInformation!H39,"") -> 53 | F29: =IF(DataInformation!R39<>"",DataInformation!R39,"") -> 388 | G29: =IF(DataInformation!S39<>"",DataInformation!S39,"") -> 298 | I29: =IF(DataInformation!T39<>"",DataInformation!T39,"") -> 326 | J29: =IF(DataInformation!V39<>"",DataInformation!V39,"") -> 26.8 | K29: =IF(DataInformation!W39<>"",DataInformation!W39,"") -> 53 | L29: =IF(DataInformation!Z39<>"",DataInformation!Z39,"") -> 405.8 | M29: =IF(DataInformation!AA39<>"",DataInformation!AA39,"") -> -107.8 | O29: =IF(DataInformation!AD39<>"",DataInformation!AD39,"") -> 0 | P29: =IF(DataInformation!AF39<>"",DataInformation!AF39,"") -> 325 | R29: =IF(DataInformation!AG39<>"",DataInformation!AG39,"") -> 93.8 | S29: =IF(DataInformation!AH39<>"",DataInformation!AH39,"") -> 67 | T29: =IF(DataInformation!AI39<>"",DataInformation!AI39,"") -> 67 | U29: =IF(DataInformation!AJ39<>"",DataInformation!AJ39,"") -> 0
